Workbook

Sheet Quick Guide
B3: 产品系列 Series | C3: 产品示例 Pictures | D3: 阀结构 Structure | E3: 名义制冷量 Nominal Capacity | F3: 制冷剂 Refrigerant
D4: 双向 Bi-Fow | E4: 1.5 - 8.2 冷吨 (R22) 1.5 - 8.2 RT (R22) | F4: R134a R22 R404A R32 R407C R448A R449A R410A
D5: 双向 Bi-Fow | E5: 08 - 25 冷吨 (R22) 08 - 25 RT (R22) | F5: R407C R134a R410A R32 R22
D6: 双向 Bi-Fow | E6: 08 - 25 冷吨 (R22) 08 - 25 RT (R22) | F6: R407C R134a R410A R32 R22
D7: 单向 Uni-Flow | E7: 0.25 - 4 冷吨 (R404A) 0.25 - 4 RT (R404A) | F7: R134a R22 R404A R507 R407F R448A R449A R450A R513A
B8: TRAES | D8: 整体 Hermetic | E8: 8 - 15 冷吨 (R22) 8 - 15 RT (R22) | F8: R134a R22 R404A R507 R407C

Sheet DX1
A1: =INDEX(Language!$F$2:$G$70,2,Language!$E$1) -> 使用方法: 选择冷媒, 并在黄色部分填入你所要求的工况 | K1: =INDEX(Language!$F$2:$G$41,2,Language!$E$1) -> 使用方法: 选择冷媒, 并在黄色部分填入你所要求的工况
A2: =INDEX(Language!$F$2:$G$70,3,Language!$E$1) -> 错误信息: Po或Pc如显示N/A, 表示已超出冷媒的正常工况.
D3: =INDEX(Language!$F$2:$G$70,4,Language!$E$1) -> 项目:
AE4: DP | AH4: Kt | AI4: Zeile in | AJ4: KDP | AO4: 3 | AP4: =INDEX(AP5:AP13,U59) -> 
AE5: =P12-(P9+P22) -> 5.4487 | AH5: bar | AI5: Korr.Tab | AJ5: =SQRT(S121/AE5) -> 1.491410697 | AP5: 2 | AQ5: R410A
A6: =INDEX(Language!$F$2:$G$70,5,Language!$E$1) -> 冷媒: | C6: =M6 -> R744 | K6: =INDEX(Language!$F$2:$G$41,5,Language!$E$1) -> 冷媒: | M6: =HLOOKUP(U60,W59:AE60,2) -> R744 | AH6: =HLOOKUP(P8,Kt!$C$3:'Kt'!$ED$1181,$AI$6,) -> 0.8541840754 | AI6: =MATCH(AJ6,Kt!$C$3:'Kt'!$C$1181,0) -> 1023 | AJ6: =S119 -> 1135 | AP6: 3 | AQ6: R134a
AC7: =(100-P14)/100 -> 1 | AE7: Kü | AH7: 1 | AP7: 4 | AQ7: R22
A8: =INDEX(Language!$F$2:$G$70,6,Language!$E$1) -> 蒸发温度 | E8: To: | F8: 10 | G8: =INDEX(Language!$B$5:$D$15,2,Language!$B$2) -> °C | K8: =INDEX(Language!$F$2:$G$41,6,Language!$E$1) -> 蒸发温度 | O8: To: | P8: -30 | Q8: °C | AP8: 5 | AQ8: R404A
E9: Po= | F9: =(P9)*INDEX(Language!$B$5:$D$15,9,Language!$B$2) -> 1.7286 | G9: =INDEX(Language!$B$5:$D$15,10,Language!$B$2) -> bara | O9: Po= | P9: =(VLOOKUP(P8,DampfDruck!$U$4:$AF$404,$U$60,))/100000 -> 1.7286 | Q9: bara | AP9: 6 | AQ9: R507
F10: =IF(C6="R407C",INDEX(Language!$F$2:$G$70,60,Language!$E$1),"") ->  | P10: =IF(M6="R407C",INDEX(Language!$F$2:$G$70,60,Language!$E$1),"") ->  | AE10: R124 | AH10: R134a | AI10: R22 | AJ10: R23 | AK10: R404A | AL10: R407C | AM10: R410A | AN10: R507 | AO10: R744 | AP10: 7 | AQ10: R407F
A11: =INDEX(Language!$F$2:$G$70,7,Language!$E$1) -> 冷凝温度 | E11: Tc: | F11: 30 | G11: =INDEX(Language!$B$5:$D$15,2,Language!$B$2) -> °C | K11: =INDEX(Language!$F$2:$G$41,7,Language!$E$1) -> 冷凝温度 | O11: Tc: | P11: 10 | Q11: °C | R11: =INDEX(Language!$F$2:$G$41,23,Language!$E$1) -> 指定工况下阀的最大容量 (kW) | AE11: =IF($M$6=AE10,(MATCH($P$20,T18:T21,-1)),FALSE) -> FALSE | AH11: =IF($M$6=AH10,(MATCH($P$20,U5:U8,-1)),FALSE) -> FALSE | AI11: =IF($M$6=AI10,(MATCH($P$20,W5:W8,-1)),FALSE) -> FALSE | AJ11: FALSE | AK11: FALSE | AL11: FALSE | AM11: FALSE | AN11: FALSE | AP11: 8 | AQ11: R32
E12: Pc= | F12: =(P12)*INDEX(Language!$B$5:$D$15,9,Language!$B$2) -> 8.6773 | G12: =INDEX(Language!$B$5:$D$15,10,Language!$B$2) -> bara | O12: Pc= | P12: =(VLOOKUP(P11,DampfDruck!$F$4:$Q$404,$U$60,))/100000 -> 8.6773 | Q12: bara | AE12: =IF(AE11=1,"EX8",IF(AE11=2,"EX7",IF(AE11=3,"EX6",IF(AE11=4,"EX5",#N/A)))) ->  | AO12: =IF(AO11=1,"EX8",IF(AO11=2,"EX7",IF(AO11=3,"EX6",IF(AO11=4,"EX5",#N/A)))) ->  | AP12: 9 | AQ12: R407C
F13: =IF(C6="R407C",INDEX(Language!$F$2:$G$70,61,Language!$E$1),"") ->  | P13: =IF(M6="R407C",INDEX(Language!$F$2:$G$70,61,Language!$E$1),"") ->  | R13: DX1 | S13: =INDEX(Language!$F$2:$G$70,69,Language!$E$1) -> DX1 | T13: =HLOOKUP(U60,W59:AG60,2) -> R448A | AP13: 10 | AQ13: R744
A14: =INDEX(Language!$F$2:$G$70,8,Language!$E$1) -> 过冷度 | E14: DTsub: | F14: 20 | G14: =INDEX(Language!$B$5:$D$15,3,Language!$B$2) -> K | H14: =INDEX(Language!$F$2:$G$70,23,Language!$E$1) -> 指定工况下阀的最大容量 (kW) | K14: =INDEX(Language!$F$2:$G$41,8,Language!$E$1) -> 过冷度 | O14: DTsub: | P14: 0 | Q14: K | S14: =U61 -> DX1-A32 | T14: =IF(S61="-","-",S61/($AJ$5*$AH$6*$AH$7)) -> 23.07802323 | V14: =0.85*T14 -> 19.61631974 | AP14: 11 | AQ14: R448A
S15: =U62 -> DX1-A30 | T15: =IF(S62="-","-",S62/($AJ$5*$AH$6*$AH$7)) -> 21.35109632 | V15: 18.14843187 | AE15: R1 | AH15: R134a | AI15: R22 | AJ15: R231 | AK15: R404A | AL15: R407C | AM15: R410A | AN15: R507 | AO15: R7 | AP15: 12 | AQ15: R449A
A16: =INDEX(Language!$F$2:$G$70,9,Language!$E$1) -> 液体温度 | E16: Tliquid: | F16: =F11-F14 -> 10 | G16: =INDEX(Language!$B$5:$D$15,2,Language!$B$2) -> °C | I16: =INDEX(Language!$F$2:$G$70,17,Language!$E$1) -> RX1S | J16: =T16 -> 19.62416941 | K16: =INDEX(Language!$F$2:$G$41,9,Language!$E$1) -> 液体温度 | O16: Tliquid: | P16: =P11-P14 -> 10 | Q16: °C | S16: DX1-A28 | T16: 19.62416941 | V16: 16.680544 | AE16: =IF($M$6=AE15,(MATCH($P$20,T25:T29,-1)),FALSE) -> FALSE | AH16: =IF($M$6=AH15,(MATCH($P$20,U12:U16,-1)),FALSE) -> FALSE | AI16: =IF($M$6=AI15,(MATCH($P$20,W12:W16,-1)),FALSE) -> FALSE | AJ16: FALSE | AK16: FALSE | AL16: FALSE | AM16: FALSE | AN16: FALSE | AO16: FALSE
H17: =I16 -> RX1S | I17: =U61 -> DX1-A32 | J17: =IF(T17="-","-",T17*INDEX(Language!$B$5:$D$15,8,Language!$B$2)) -> 14.36489201 | S17: DX1-A24 | T17: 14.36489201 | V17: 12.21015821 | AE17: =IF(AE16=1,"EX1-I",IF(AE16=2,"EX1-G",IF(AE16=3,"EX1-E",IF(AE16=4,"EX1-C",IF(AE16=5,"EX1-A",#N/A))))) ->  | AH17: =IF(AH16=1,"EX1-I",IF(AH16=2,"EX1-G",IF(AH16=3,"EX1-E",IF(AH16=4,"EX1-C",IF(AH16=5,"EX1-A",#N/A))))) ->  | AO17: =IF(AO16=1,"EX1-I",IF(AO16=2,"EX1-G",IF(AO16=3,"EX1-E",IF(AO16=4,"EX1-C",IF(AO16=5,"EX1-A",#N/A))))) -> 
A18: =INDEX(Language!$F$2:$G$70,10,Language!$E$1) -> 阀两端的压差 | F18: =F12-(F9+F22) -> 6.6087 | G18: =INDEX(Language!$B$5:$D$15,5,Language!$B$2) -> bar | I18: =U62 -> DX1-A30 | J18: =IF(T18="-","-",T18*INDEX(Language!$B$5:$D$15,8,Language!$B$2)) -> 12.16698503 | K18: =INDEX(Language!$F$2:$G$41,10,Language!$E$1) -> 阀两端的压差 | P18: =P12-(P9+P22) -> 5.4487 | Q18: bar | S18: DX1-A22 | T18: 12.16698503 | V18: 10.34193728 | AQ18: 1 | AR18: 2
I19: DX1-A28 | J19: =IF(T19="-","-",T19*INDEX(Language!$B$5:$D$15,8,Language!$B$2)) -> 10.04757474 | S19: DX1-A20 | T19: 10.04757474 | V19: 8.540438527 | AQ19: R407C | AR19: 1010
A20: =INDEX(Language!$F$2:$G$70,11,Language!$E$1) -> 系统制冷量 | E20: Q0: | F20: 70 | G20: =INDEX(Language!$B$5:$D$15,4,Language!$B$2) -> kW | I20: DX1-A24 | J20: =IF(T20="-","-",T20*INDEX(Language!$B$5:$D$15,8,Language!$B$2)) -> 8.242151152 | K20: =INDEX(Language!$F$2:$G$41,11,Language!$E$1) -> 系统制冷量 | O20: Q0: | P20: 10 | Q20: kW | S20: DX1-A18 | T20: 8.242151152 | V20: 7.005828479 | AE20: R1 | AH20: R134a | AI20: R22 | AJ20: R231 | AK20: R404A | AL20: R407C | AM20: R408 | AN20: R507 | AO20: R7 | AQ20: R134a | AR20: 120
I21: DX1-A22 | J21: =IF(T21="-","-",T21*INDEX(Language!$B$5:$D$15,8,Language!$B$2)) -> 6.750714277 | S21: DX1-A16 | T21: 6.750714277 | V21: 5.738107135 | AE21: =IF($M$6=AE20,(MATCH($P$20,T34:T41,-1)),FALSE) -> FALSE | AH21: =IF($M$6=AH20,(MATCH($P$20,U21:U40,-1)),FALSE) -> FALSE | AI21: =IF($M$6=AI20,(MATCH($P$20,W21:W40,-1)),FALSE) -> FALSE | AJ21: FALSE | AK21: FALSE | AL21: FALSE | AM21: FALSE | AN21: FALSE | AO21: FALSE | AQ21: R22 | AR21: 260
A22: =INDEX(Language!$F$2:$G$70,12,Language!$E$1) -> 压降 | F22: 0.34 | G22: =INDEX(Language!$B$5:$D$15,5,Language!$B$2) -> bar | I22: DX1-A20 | J22: =IF(T22="-","-",T22*INDEX(Language!$B$5:$D$15,8,Language!$B$2)) -> 4.238820592 | K22: =INDEX(Language!$F$2:$G$41,12,Language!$E$1) -> 压降 | P22: 1.5 | Q22: bar | S22: DX1-A13 | T22: 4.238820592 | V22: 3.602997504 | AB22: 1 | AC22: =Language!F$2 -> English | AE22: =IF(AE21=1,"EX2",IF(AE21=2,"EXO-004",IF(AE21=3,"EXO-003",IF(AE21=4,"EXO-002",IF(AE21=5,"EXO-001",IF(AE21=6,"EXO-000",IF(AE21=7,"EXO-00X",#N/A))))))) ->  | AH22: =IF(AH21=1,"EX2",IF(AH21=2,"EXO-004",IF(AH21=3,"EXO-003",IF(AH21=4,"EXO-002",IF(AH21=5,"EXO-001",IF(AH21=6,"EXO-000",IF(AH21=7,"EXO-00X",#N/A))))))) ->  | AO22: =IF(AO21=1,"EX2",IF(AO21=2,"EXO-004",IF(AO21=3,"EXO-003",IF(AO21=4,"EXO-002",IF(AO21=5,"EXO-001",IF(AO21=6,"EXO-000",IF(AO21=7,"EXO-00X",#N/A))))))) ->  | AQ22: R32 | AR22: 930
A23: =INDEX(Language!$F$2:$G$70,13,Language!$E$1) -> (液管, 干燥过滤器, 电磁阀, 视液镜, 分液头, 蒸发器) | I23: DX1-A18 | J23: =IF(T23="-","-",T23*INDEX(Language!$B$5:$D$15,8,Language!$B$2)) -> 0 | K23: =INDEX(Language!$F$2:$G$41,13,Language!$E$1) -> (液管, 干燥过滤器, 电磁阀, 视液镜, 分液头, 蒸发器) | V23: 0 | AB23: 2 | AC23: =Language!G$2 -> Chinese | AQ23: R404A | AR23: 440
I24: DX1-A16 | J24: =IF(T24="-","-",T24*INDEX(Language!$B$5:$D$15,8,Language!$B$2)) -> 0 | V24: 0 | AQ24: R407F | AR24: 520
AQ25: R410A | AR25: 640
A26: =INDEX(Language!$F$2:$G$70,14,Language!$E$1) -> 你的选择 | D26: =INDEX(Language!$F$2:$G$70,15,Language!$E$1) -> 型号 | F26: =P26 -> 产品编号: | H26: =R26 -> 0 | K26: =INDEX(Language!$F$2:$G$41,14,Language!$E$1) -> 你的选择 | N26: =INDEX(Language!$F$2:$G$41,15,Language!$E$1) -> 型号 | P26: =INDEX(Language!$F$2:$G$41,18,Language!$E$1) -> 产品编号: | S26: =INDEX(Language!$F$2:$G$70,66,Language!$E$1) -> 备注 | AQ26: R507 | AR26: 760
A27: =K27 -> 0 | D27: =N27 -> 0 | AQ27: R744 | AR27: 870
A28: =K28 -> DX1 | D28: =N28 -> DX1-A22 | F28: =P28 -> 098374 | K28: =INDEX(Language!$F$2:$G$70,69,Language!$E$1) -> DX1 | N28: =INDEX(S14:S31,T58,1) -> DX1-A22 | P28: =INDEX(V61:V78,T58,1) -> 098374 | AQ28: R448A | AR28: 1125
AQ29: R449A | AR29: 1235
D30: =N30 -> 配件 | N30: =INDEX(Language!$F$2:$G$41,38,Language!$E$1) -> 配件
A31: =K31 -> 0 | D31: =N31 -> 0 | F31: =P31 -> 0 | H31: =R31 -> 0 | Y31: 2m | Z31: 3m | AA31: 6m
K32: =INDEX(Language!$F$2:$G$71,70,Language!$E$1) -> 线圈 | N32: DX1-SU157J | P32: =V71 -> 098379 | V32: 2M | X32: IP65 | Y32: 098307 | Z32: 098315 | AA32: 098323
A33: =K33 -> 0 | D33: =N33 -> 0 | F33: =P33 -> 0 | H33: =R33 -> 0 | V33: 3M | X33: IP67 | Y33: 098308 | Z33: 098316 | AA33: 098324
D34: =N34 -> 0 | F34: =P34 -> 0 | H34: =R34 -> 0 | V34: 6M | X34: 1
D35: =N35 -> 0 | F35: =P35 -> 0 | H35: =R35 -> 0 | V35: 2
A37: =K37 -> 0 | D37: =N37 -> 0 | F37: =P37 -> 0
W38: =
A39: =K39 -> 0 | D39: =N39 -> 0 | F39: =P39 -> 0 | H39: =R39 -> 0
D40: =N40 -> 0 | F40: =P40 -> 0 | H40: =R40 -> 0
D45: =N45 -> 注: | N45: =INDEX(Language!$F$2:$G$70,22,Language!$E$1) -> 注:
N47: =IF(ISERR(HLOOKUP(U60,AL59:AS87,V58)),"DX1系列没有符合您需求的阀，请选择其他系列，谢谢！ DX1 series can not meet your demand, please choose other series, thanks!","") -> 
A54: =INDEX(Language!$F$2:$G$70,45,Language!$E$1) -> 螺口型或内平衡型请见 | K54: =INDEX(Language!$F$2:$G$70,45,Language!$E$1) -> 螺口型或内平衡型请见
A55: =INDEX(Language!$F$2:$G$70,50,Language!$E$1) -> ALCO CONTROLS is not to be held responsible for erroneous data regarding capacities, dimensions, applications, etc. stated herein. Products, specifications and data in this data are subject to change without notice. The information given herein is based on technical data and tests which ALCO CONTROLS believes to be reliable and which are in compliance with technical knowledge of today. It is intended only for use by persons having the appropriate technical knowledge and skills, at their own discretion and risk. Since conditions of use are outside of ALCO'S control we can not assume any liability for results obtained or damages occurred due to improper application. | K55: =INDEX(Language!$F$2:$G$70,50,Language!$E$1) -> ALCO CONTROLS is not to be held responsible for erroneous data regarding capacities, dimensions, applications, etc. stated herein. Products, specifications and data in this data are subject to change without notice. The information given herein is based on technical data and tests which ALCO CONTROLS believes to be reliable and which are in compliance with technical knowledge of today. It is intended only for use by persons having the appropriate technical knowledge and skills, at their own discretion and risk. Since conditions of use are outside of ALCO'S control we can not assume any liability for results obtained or damages occurred due to improper application.
A58: - | D58: =IF(I100=0,"",J100) ->  | G58: =I58+21 ->  | I58: =MATCH($P$20,J37:J45,-1) ->  | J58: =MATCH($P$20,J17:J34,-1) -> 3 | K58: - | N58: =IF(S100=0,"",T100) ->  | Q58: =S58+21 ->  | S58: =MATCH($P$20,T37:T45,-1) ->  | T58: =MATCH($P$20,V14:V24,-1) -> 5 | V58: =T58+2 -> 7
E59: =HLOOKUP(K60,Z59:AJ87,J58) ->  | F59: =INDEX(J17:J34,J58,1) -> 10.04757474 | O59: =HLOOKUP(U60,AL59:AS87,T58) -> DX3-015 | P59: =INDEX(T17:T34,T58,1) -> 6.750714277 | U59: 10 | W59: 2 | X59: 3 | Y59: 4 | Z59: 5 | AA59: 6 | AB59: 7 | AC59: 8 | AD59: 9 | AE59: 10 | AF59: 11 | AG59: 12 | AI59: Power | AL59: 2 | AM59: 3 | AN59: 4 | AO59: 5 | AP59: 6 | AQ59: 7 | AR59: 8 | AS59: 9
A60: 2 | I60: =HLOOKUP(K$60,M$59:U$87,A60) ->  | K60: 2 | S60: =HLOOKUP(U$60,W$59:AG$87,K60) -> R448A | U60: =INDEX(W59:AG59,U59) -> 11 | W60: R410A | X60: R134a | Y60: R22 | Z60: R404A | AA60: R507 | AB60: R407F | AC60: R32 | AD60: R407C | AE60: R744 | AF60: R448A | AG60: R449A | AI60: Assembly | AL60: R 410A | AM60: R 134a | AN60: R 22 | AO60: R 404A | AP60: R 507 | AQ60: R 407F | AR60: R32 | AS60: R407C
A61: 3 | I61: =HLOOKUP(K$60,K$59:U$87,A61) ->  | J61: Qmax oder Qn | K61: 3 | S61: =HLOOKUP(U$60,W$59:AG$87,K61) -> 29.4 | T61: Qmax oder Qn | U61: DX1-A32 | V61: 098378 | W61: 33.9 | X61: 22.6 | Y61: 28.9 | Z61: 20.3 | AA61: - | AB61: - | AC61: 50.9 | AD61: 29.6 | AE61: - | AF61: 29.4 | AG61: 28.8 | AI61: XC726 | AJ61: 2B | AL61: DX3-025 | AM61: DX3-025 | AN61: DX3-025 | AR61: DX3-025 | AS61: DX3-025
A62: 4 | K62: 4 | S62: 27.2 | U62: DX1-A30 | V62: 098377 | W62: 31.5 | X62: 21 | Y62: 26.8 | Z62: 18.9 | AA62: - | AB62: - | AC62: 47.3 | AD62: 27.5 | AE62: - | AF62: 27.2 | AG62: 26.7 | AI62: XC726 | AJ62: 2B | AL62: DX3-020 | AM62: DX3-020 | AN62: DX3-020 | AR62: DX3-020 | AS62: DX3-020
A63: 5 | K63: 5 | S63: 25 | U63: DX1-A28 | V63: 098376 | W63: 28.9 | X63: 19.2 | Y63: 24.6 | Z63: 17.3 | AA63: - | AB63: - | AC63: 43.4 | AD63: 25.2 | AE63: - | AF63: 25 | AG63: 24.5 | AI63: XC726 | AJ63: 2B | AL63: DX3-015 | AM63: DX3-015 | AN63: DX3-015 | AR63: DX3-015 | AS63: DX3-015
A64: 6 | K64: 6 | S64: 18.3 | U64: DX1-A24 | V64: 098375 | W64: 21.2 | X64: 14.1 | Y64: 18 | Z64: 12.7 | AA64: - | AB64: - | AC64: 31.8 | AD64: 18.5 | AE64: - | AF64: 18.3 | AG64: 17.9 | AI64: XC726 | AJ64: 2B | AL64: DX3-012 | AM64: DX3-012 | AN64: DX3-012 | AR64: DX3-012 | AS64: DX3-012
A65: 7 | K65: 7 | S65: 15.5 | U65: DX1-A22 | V65: 098374 | W65: 17.8 | X65: 11.8 | Y65: 15.2 | Z65: 10.7 | AA65: - | AB65: - | AC65: 26.7 | AD65: 15.6 | AE65: - | AF65: 15.5 | AG65: 15.1 | AI65: XC726 | AJ65: 2B | AL65: DX3-010 | AM65: DX3-010 | AN65: DX3-010 | AR65: DX3-010 | AS65: DX3-010
A66: 8 | K66: 8 | S66: 12.8 | U66: DX1-A20 | V66: 098373 | W66: 14.8 | X66: 9.8 | Y66: 12.6 | Z66: 8.9 | AA66: - | AB66: - | AC66: 22.2 | AD66: 12.9 | AE66: - | AF66: 12.8 | AG66: 12.6 | AI66: XC726 | AJ66: 2B | AL66: DX3-008 | AM66: DX3-008 | AN66: DX3-008 | AR66: DX3-008 | AS66: DX3-008
A67: 9 | K67: 9 | S67: 10.5 | U67: DX1-A18 | V67: 098372 | W67: 12.1 | X67: 8.1 | Y67: 10.3 | Z67: 7.3 | AA67: - | AB67: - | AC67: 18.2 | AD67: 10.6 | AE67: - | AF67: 10.5 | AG67: 10.3 | AI67: XC726 | AJ67: 2B | AL67: -
A68: 10 | K68: 10 | S68: 8.6 | U68: DX1-A16 | V68: 098371 | W68: 10 | X68: 6.7 | Y68: 8.5 | Z68: 6 | AA68: - | AB68: - | AC68: 15 | AD68: 8.8 | AE68: - | AF68: 8.6 | AG68: 8.5 | AI68: XB1019 | AJ68: 1B | AL68: -
A69: 11 | K69: 11 | S69: 5.4 | U69: DX1-A13 | V69: 098370 | W69: 6.2 | X69: 4.1 | Y69: 5.3 | Z69: 3.7 | AA69: - | AB69: - | AC69: 9.3 | AD69: 5.4 | AE69: - | AF69: 5.4 | AG69: 5.3 | AH69: - | AI69: - | AJ69: - | AK69: - | AL69: - | AM69: - | AN69: - | AO69: - | AP69: - | AQ69: -
A70: 12 | K70: 12 | S70: =HLOOKUP(U$60,U$59:AE$87,K70) -> 0
A71: 13 | K71: 13 | S71: 0 | V71: 098379
A72: 14 | K72: 14 | S72: 0
A73: 15 | K73: 15 | S73: 0
A74: 16 | K74: 16 | S74: 0
A75: 17 | K75: 17 | S75: 0
A76: 18 | K76: 18 | S76: 0
A77: 19 | K77: 19 | S77: 0
A78: 20 | K78: 20 | S78: 0
A79: 21 | K79: 21
A80: 22 | I80: =HLOOKUP(K$60,K$59:U$87,A80) ->  | J80: Qmax oder Qn | K80: 22
A81: 23 | K81: 23
A82: 24 | K82: 24
A83: 25 | K83: 25
A84: 26 | K84: 26
A85: 27 | K85: 27
A86: 28 | K86: 28
A87: 29 | K87: 29
A88: 30 | G88: =IF(OR(LEFT($N$27,4)="TCLE",LEFT($N$27,4)="TJRE"),CONCATENATE($S$93,$S88,"-1B"),CONCATENATE($R$93,$S88,"-2B")) -> -2B | I88: =HLOOKUP(K$60,K$59:U$106,A88) ->  | K88: 30
A89: 31 | G89: =IF(OR(LEFT($N$27,4)="TCLE",LEFT($N$27,4)="TJRE"),CONCATENATE($S$93,$S89,"-1B"),CONCATENATE($R$93,$S89,"-2B")) -> -2B | H89: =HLOOKUP($U$60,$AL$59:$AS$106,$K89) -> 0 | I89: =HLOOKUP(K$60,K$59:U$106,A89) ->  | J89: MOP | K89: 31
A90: 32 | G90: =IF(OR(LEFT($N$27,4)="TCLE",LEFT($N$27,4)="TJRE"),CONCATENATE($S$93,$S90,"-1B"),CONCATENATE($R$93,$S90,"-2B")) -> -2B | H90: =HLOOKUP($U$60,$AL$59:$AS$106,$K90) -> 0 | I90: =HLOOKUP(K$60,K$59:U$106,A90) ->  | J90: T | K90: 32
A91: 33 | G91: =IF(OR(LEFT($N$27,4)="TCLE",LEFT($N$27,4)="TJRE"),CONCATENATE($S$93,$S91,"-1B"),CONCATENATE($R$93,$S91,"-2B")) -> -2B | H91: =HLOOKUP($U$60,$AL$59:$AS$106,$K91) -> 0 | I91: =HLOOKUP(K$60,K$59:U$106,A91) ->  | K91: 33
A92: 34 | K92: 34
A93: 35 | H93: XC 726 | I93: XB 1019 | K93: 35
A94: 36 | H94: =HLOOKUP($U$60,$AL$59:$AS$106,$K94) -> 0 | I94: =HLOOKUP(K$60,K$59:U$106,A94) ->  | J94: Best. | K94: 36
A95: 37 | H95: =HLOOKUP($U$60,$AL$59:$AS$106,$K95) -> 0 | I95: =HLOOKUP(K$60,K$59:U$106,A95) ->  | J95: Nr. | K95: 37
A96: 38 | H96: =HLOOKUP($U$60,$AL$59:$AS$106,$K96) -> 0 | I96: =HLOOKUP(K$60,K$59:U$106,A96) ->  | K96: 38
A97: 39 | H97: =HLOOKUP($U$60,$AL$59:$AS$106,$K97) -> 0 | I97: =HLOOKUP(K$60,K$59:U$106,A97) ->  | K97: 39
A98: 40 | K98: 40
A99: 41 | K99: 41
A100: 42 | H100: =HLOOKUP($U$60,$AL$59:$AS$106,$K100) -> 0 | I100: =HLOOKUP(K$60,K$59:U$106,A100) ->  | J100: MOP | K100: 42
A101: 43 | H101: =HLOOKUP($U$60,$AL$59:$AS$106,$K101) -> 0 | I101: =HLOOKUP(K$60,K$59:U$106,A101) ->  | J101: TI | K101: 43
A102: 44 | H102: =HLOOKUP($U$60,$AL$59:$AS$106,$K102) -> 0 | I102: =HLOOKUP(K$60,K$59:U$106,A102) ->  | K102: 44
A103: 45 | K103: 45
A104: 46 | J104: Metrisch | K104: 46
A105: 47 | I105: =HLOOKUP(K$60,K$59:U$115,A105) ->  | J105: Best | K105: 47
A106: 48 | I106: =HLOOKUP(K$60,K$59:U$115,A106) ->  | J106: Nr | K106: 48
A107: 49 | I107: =HLOOKUP(K$60,K$59:U$115,A107) ->  | J107: TI | K107: 49
A108: 50 | I108: =HLOOKUP(K$60,K$59:U$115,A108) ->  | K108: 50
A109: 51 | K109: 51
A110: 52 | J110: Zöllig | K110: 52
A111: 53 | I111: =HLOOKUP(K$60,K$59:U$115,A111) ->  | J111: Best | K111: 53
A112: 54 | I112: =HLOOKUP(K$60,K$59:U$115,A112) ->  | J112: Nr | K112: 54
A113: 55 | I113: =HLOOKUP(K$60,K$59:U$115,A113) ->  | J113: TI | K113: 55
A114: 56 | I114: =HLOOKUP(K$60,K$59:U$115,A114) ->  | K114: 56
A115: 57 | K115: 57
A117: 1 | K117: 1 | W117: 2 | X117: 3 | Y117: 4 | Z117: 5 | AA117: 6 | AB117: 7 | AC117: 8 | AD117: 9 | AE117: 10 | AF117: 11 | AG117: 12
A118: 2 | I118: =HLOOKUP(K$60,L$117:T$121,A118) ->  | K118: 2 | S118: =HLOOKUP(U$60,W$117:AG$121,K118) -> R448A | U118: Temperatur | W118: R410A | X118: R134a | Y118: R22 | Z118: R404A | AA118: R507 | AB118: R407F | AC118: R32 | AD118: R407C | AE118: R744 | AF118: R448A | AG118: R449A | AK118: Temperatur | AL118: R 410A | AM118: R 134a | AN118: R 22 | AO118: R 404A | AP118: R 507 | AQ118: R 407F | AR118: R23 | AS118: R124
A119: 3 | I119: =HLOOKUP(K$60,L$117:T$121,A119)+$P$16 ->  | J119: Eintrittspkt Korr Tabelle Flüssig.Temp: | K119: 3 | S119: =HLOOKUP(U$60,W$117:AG$121,K119)+$P$16 -> 1135 | T119: Eintrittspkt Korr Tabelle Flüssig.Temp: | W119: 640 | X119: 120 | Y119: 260 | Z119: 440 | AA119: 760 | AB119: 520 | AC119: 930 | AD119: 1010 | AE119: 870 | AF119: 1125 | AG119: 1235
A121: 5 | I121: =HLOOKUP(K$60,L$117:T$121,A121) ->  | J121: Korr.Faktor | K121: 5 | S121: =HLOOKUP(U$60,W$117:AG$121,K121) -> 12.11957538 | T121: Korr.Faktor | W121: 13.99599596 | X121: 6.251925281 | Y121: 8.94166157 | Z121: 10.6251 | AA121: 10.73171206 | AB121: 12.3175 | AC121: 14.37586207 | AD121: 11.36551724 | AE121: 16.47026704 | AF121: 12.11957538 | AG121: 11.93702752
Y326: Valves Type | Z326: =(IF(O27="EX5",10,IF(O27="EX6",11,IF(O27="EX7",12,IF(O27="EX8",13,#N/A))))) -> 
U327: =T16 -> 19.62416941 | W327: =U4 -> 0 | X327: =W4 -> 0 | Y327: =X4 -> 0 | Z327: =Y4 -> 0 | AA327: =Z4 -> 0 | AB327: =AA4 -> 0 | AC327: R507 | AD327: =AC4 -> 0
J328: 1 | T328: 1 | U328: 2 | W328: 3 | X328: 4 | Y328: 5 | Z328: 6 | AA328: 7 | AB328: 8 | AC328: 9 | AD328: 10
J329: 10 | T329: 10 | U329: =T21 -> 6.750714277 | W329: =U8 -> 0 | X329: =W8 -> 0 | Y329: =X8 -> 0 | Z329: =Y8 -> 0 | AA329: =Z8 -> 0 | AB329: =AA8 -> 0 | AC329: =$AB$8 -> 0 | AD329: =AC8 -> 0
J330: 11 | T330: 11 | U330: =T20 -> 8.242151152 | W330: =U7 -> 0 | X330: =W7 -> 0 | Y330: =X7 -> 0 | Z330: =Y7 -> 0 | AA330: =Z7 -> 0 | AB330: =AA7 -> 0 | AC330: =$AB$7 -> 0 | AD330: =AC7 -> 1
J331: 12 | T331: 12 | U331: =T19 -> 10.04757474 | W331: =U6 -> 0 | X331: =W6 -> 0 | Y331: =X6 -> 0 | Z331: =Y6 -> 0 | AA331: =Z6 -> 0 | AB331: =AA6 -> 0 | AC331: =$AB$6 -> 0 | AD331: =AC6 -> 0
J332: 13 | T332: 13 | U332: =T18 -> 12.16698503 | W332: =U5 -> 0 | X332: =W5 -> 0 | Y332: =X5 -> 0 | Z332: =Y5 -> 0 | AA332: =Z5 -> 0 | AB332: =AA5 -> 0 | AC332: =$AB$5 -> 0 | AD332: =AC5 -> 0
J335: EX1 | T335: EX1
Y336: Refrigerant | Z336: =(IF(M6="R124",2,IF(M6="R134a",3,IF(M6="R22",4,IF(M6="R23",5,IF(M6="R404A",6,IF(M6="R407C",7,IF(M6="R410A",8,IF(M6="R744",10,"9"))))))))) -> 10
Y337: Valves Type | Z337: =(IF(O39="EX1-A",10,IF(O39="EX1-C",11,IF(O39="EX1-E",12,IF(O39="EX1-G",13,IF(O39="EX1-I",14,#N/A)))))) -> 
U338: R124 | W338: R134a | X338: R22 | Y338: R23 | Z338: R404A | AA338: R407C | AB338: R410A | AC338: R507 | AD338: R744
J339: 1 | T339: 1 | U339: 2 | W339: 3 | X339: 4 | Y339: 5 | Z339: 6 | AA339: 7 | AB339: 8 | AC339: 9 | AD339: 10
J340: 10 | T340: 10 | U340: =T29 -> 0 | W340: =U16 -> 0 | X340: =W16 -> 0 | Y340: =X16 -> 0 | Z340: =Y16 -> 0 | AA340: =Z16 -> 0 | AB340: =AA16 -> 0 | AC340: =$AB$16 -> 0 | AD340: =AC16 -> 0
J341: 11 | T341: 11 | U341: =T28 -> 0 | W341: =U15 -> 0 | X341: =W15 -> 0 | Y341: =X15 -> 0 | Z341: =Y15 -> 0 | AA341: =Z15 -> 0 | AB341: =AA15 -> 0 | AC341: =$AB$15 -> 0 | AD341: =AC15 -> 0
J342: 12 | T342: 12 | U342: =T27 -> 0 | W342: =U14 -> 0 | X342: =W14 -> 0 | Y342: =X14 -> 0 | Z342: =Y14 -> 0 | AA342: =Z14 -> 0 | AB342: =AA14 -> 0 | AC342: =$AB$14 -> 0 | AD342: =AC14 -> 0
J343: 13 | T343: 13 | U343: =T26 -> 0 | W343: =U13 -> 0 | X343: =W13 -> 0 | Y343: =X13 -> 0 | Z343: =Y13 -> 0 | AA343: =Z13 -> 0 | AB343: =AA13 -> 0 | AC343: =$AB$13 -> 0 | AD343: =AC13 -> 0
J344: 14 | T344: 14 | U344: =T25 -> 0 | W344: =U12 -> 0 | X344: =W12 -> 0 | Y344: =X12 -> 0 | Z344: =Y12 -> 0 | AA344: =Z12 -> 0 | AB344: =AA12 -> 0 | AC344: =$AB$12 -> 0 | AD344: =AC12 -> 0
J347: EX2 | T347: EX2
Y348: Refrigerant | Z348: =(IF(M6="R124",2,IF(M6="R134a",3,IF(M6="R22",4,IF(M6="R23",5,IF(M6="R404A",6,IF(M6="R407C",7,IF(M6="R410A",8,IF(M6="R744",10,"9"))))))))) -> 10
Y349: Valves Type | Z349: =IF(O37="EXO-00X",10,IF(O37="EXO-000",11,IF(O37="EXO-001",12,IF(O37="EXO-002",13,IF(O37="EXO-003",14,IF(O37="EXO-004",15,IF(O37="EX2",16,#N/A))))))) -> 
U350: R124 | W350: R134a | X350: R22 | Y350: R23 | Z350: R404A | AA350: R407C | AB350: R410A | AC350: R507 | AD350: R744
J351: 1 | T351: 1 | U351: 2 | W351: 3 | X351: 4 | Y351: 5 | Z351: 6 | AA351: 7 | AB351: 8 | AC351: 9 | AD351: 10
J352: 10 | T352: 10 | U352: =T41 -> 0 | W352: =U40 -> 0 | X352: =W40 -> 0 | Y352: =X40 -> 0 | Z352: =Y40 -> 0 | AA352: =Z40 -> 0 | AB352: =AA40 -> 0 | AC352: =$AB$40 -> 0 | AD352: =AC40 -> 0
J353: 11 | T353: 11 | U353: =T40 -> 0 | W353: =U39 -> 0 | X353: =W39 -> 0 | Y353: =X39 -> 0 | Z353: =Y39 -> 0 | AA353: =Z39 -> 0 | AB353: =AA39 -> 0 | AC353: =$AB$39 -> 0 | AD353: =AC39 -> 0
J354: 12 | T354: 12 | U354: =T39 -> 0 | W354: =U38 -> 0 | X354: =W38 -> = | Y354: =X38 -> 0 | Z354: =Y38 -> 0 | AA354: =Z38 -> 0 | AB354: =AA38 -> 0 | AC354: =$AB$38 -> 0 | AD354: =AC38 -> 0
J355: 13 | T355: 13 | U355: =T38 -> 0 | W355: =U24 -> 0 | X355: =W24 -> 0 | Y355: =X24 -> 0 | Z355: =Y24 -> 0 | AA355: =Z24 -> 0 | AB355: =AA24 -> 0 | AC355: =$AB$24 -> 0 | AD355: =AC24 -> 0
J356: 14 | T356: 14 | U356: =T37 -> 0 | W356: =U23 -> 0 | X356: =W23 -> 0 | Y356: =X23 -> 0 | Z356: =Y23 -> 0 | AA356: =Z23 -> 0 | AB356: =AA23 -> 0 | AC356: =$AB$23 -> 2 | AD356: =AC23 -> Chinese
J357: 15 | T357: 15 | U357: =T36 -> 0 | W357: =U22 -> 0 | X357: =W22 -> 0 | Y357: =X22 -> 0 | Z357: =Y22 -> 0 | AA357: =Z22 -> 0 | AB357: =AA22 -> 0 | AC357: =$AB$22 -> 1 | AD357: =AC22 -> English
J358: 16 | T358: 16 | U358: =T34 -> 0 | W358: =U21 -> 0 | X358: =W21 -> 0 | Y358: =X21 -> 0 | Z358: =Y21 -> 0 | AA358: =Z21 -> 0 | AB358: =AA21 -> 0 | AC358: =$AB$21 -> 0 | AD358: =AC21 -> 0

Sheet DX2
A1: =INDEX(Language!$F$2:$G$70,2,Language!$E$1) -> 使用方法: 选择冷媒, 并在黄色部分填入你所要求的工况 | K1: =INDEX(Language!$F$2:$G$41,2,Language!$E$1) -> 使用方法: 选择冷媒, 并在黄色部分填入你所要求的工况
A2: =INDEX(Language!$F$2:$G$70,3,Language!$E$1) -> 错误信息: Po或Pc如显示N/A, 表示已超出冷媒的正常工况.
D3: =INDEX(Language!$F$2:$G$70,4,Language!$E$1) -> 项目:
AE4: DP | AF4: Kt | AG4: Zeile in | AH4: KDP | AM4: 3 | AN4: =INDEX(AN5:AN13,U59) -> 2
AE5: =P12-(P9+P22) -> 13.3169591 | AF5: bar | AG5: Korr.Tab | AH5: =SQRT(S121/AE5) -> 1.025178221 | AN5: 2 | AO5: R410A
A6: =INDEX(Language!$F$2:$G$70,5,Language!$E$1) -> 冷媒: | C6: =M6 -> R410A | K6: =INDEX(Language!$F$2:$G$41,5,Language!$E$1) -> 冷媒: | M6: =HLOOKUP(U60,W59:AE60,2) -> R410A | AF6: =HLOOKUP(P8,Kt!$C$3:'Kt'!$ED$969,$AG$6,) -> 0.94 | AG6: =MATCH(AH6,Kt!$C$3:'Kt'!$C$969,0) -> 583 | AH6: =S119 -> 670 | AN6: 3 | AO6: R134a
AC7: =(100-P14)/100 -> 1 | AE7: Kü | AF7: 1 | AN7: 4 | AO7: R22
A8: =INDEX(Language!$F$2:$G$70,6,Language!$E$1) -> 蒸发温度 | E8: To: | F8: 10 | G8: =INDEX(Language!$B$5:$D$15,2,Language!$B$2) -> °C | K8: =INDEX(Language!$F$2:$G$41,6,Language!$E$1) -> 蒸发温度 | O8: To: | P8: -20 | Q8: °C | AN8: 5 | AO8: R404A
E9: Po= | F9: =(P9)*INDEX(Language!$B$5:$D$15,9,Language!$B$2) -> 4.0092863 | G9: =INDEX(Language!$B$5:$D$15,10,Language!$B$2) -> bara | O9: Po= | P9: =(VLOOKUP(P8,DampfDruck!$U$4:$AD$404,$U$60,))/100000 -> 4.0092863 | Q9: bara | AN9: 6 | AO9: R507
F10: =IF(C6="R407C",INDEX(Language!$F$2:$G$70,60,Language!$E$1),"") ->  | P10: =IF(M6="R407C",INDEX(Language!$F$2:$G$70,60,Language!$E$1),"") ->  | AE10: R124 | AF10: R134a | AG10: R22 | AH10: R23 | AI10: R404A | AJ10: R407C | AK10: R410A | AL10: R507 | AM10: R744 | AN10: 7 | AO10: R407F
A11: =INDEX(Language!$F$2:$G$70,7,Language!$E$1) -> 冷凝温度 | E11: Tc: | F11: 30 | G11: =INDEX(Language!$B$5:$D$15,2,Language!$B$2) -> °C | K11: =INDEX(Language!$F$2:$G$41,7,Language!$E$1) -> 冷凝温度 | O11: Tc: | P11: 30 | Q11: °C | AE11: =IF($M$6=AE10,(MATCH($P$20,T18:T21,-1)),FALSE) -> FALSE | AF11: =IF($M$6=AF10,(MATCH($P$20,U5:U8,-1)),FALSE) -> FALSE | AG11: =IF($M$6=AG10,(MATCH($P$20,W5:W8,-1)),FALSE) -> FALSE | AH11: FALSE | AI11: FALSE | AJ11: FALSE | AL11: FALSE | AM11: FALSE | AN11: 8 | AO11: R32
E12: Pc= | F12: =(P12)*INDEX(Language!$B$5:$D$15,9,Language!$B$2) -> 18.8262454 | G12: =INDEX(Language!$B$5:$D$15,10,Language!$B$2) -> bara | O12: Pc= | P12: =(VLOOKUP(P11,DampfDruck!$F$4:$O$404,$U$60,))/100000 -> 18.8262454 | Q12: bara | AE12: =IF(AE11=1,"EX8",IF(AE11=2,"EX7",IF(AE11=3,"EX6",IF(AE11=4,"EX5",#N/A)))) ->  | AM12: =IF(AM11=1,"EX8",IF(AM11=2,"EX7",IF(AM11=3,"EX6",IF(AM11=4,"EX5",#N/A)))) ->  | AN12: 9 | AO12: R407C
F13: =IF(C6="R407C",INDEX(Language!$F$2:$G$70,61,Language!$E$1),"") ->  | P13: =IF(M6="R407C",INDEX(Language!$F$2:$G$70,61,Language!$E$1),"") ->  | AN13: 10 | AO13: R744
A14: =INDEX(Language!$F$2:$G$70,8,Language!$E$1) -> 过冷度 | E14: DTsub: | F14: 20 | G14: =INDEX(Language!$B$5:$D$15,3,Language!$B$2) -> K | H14: =INDEX(Language!$F$2:$G$70,23,Language!$E$1) -> 指定工况下阀的最大容量 (kW) | K14: =INDEX(Language!$F$2:$G$41,8,Language!$E$1) -> 过冷度 | O14: DTsub: | P14: 0 | Q14: K | R14: =INDEX(Language!$F$2:$G$41,23,Language!$E$1) -> 指定工况下阀的最大容量 (kW)
AE15: R1 | AF15: R134a | AG15: R22 | AH15: R231 | AI15: R404A | AJ15: R407C | AK15: R410A | AL15: R507 | AM15: R7
A16: =INDEX(Language!$F$2:$G$70,9,Language!$E$1) -> 液体温度 | E16: Tliquid: | F16: =F11-F14 -> 10 | G16: =INDEX(Language!$B$5:$D$15,2,Language!$B$2) -> °C | I16: =INDEX(Language!$F$2:$G$70,17,Language!$E$1) -> RX1S | J16: =T16 -> R410A | K16: =INDEX(Language!$F$2:$G$41,9,Language!$E$1) -> 液体温度 | O16: Tliquid: | P16: =P11-P14 -> 30 | Q16: °C | S16: =INDEX(Language!$F$2:$G$72,71,Language!$E$1) -> DX2 | T16: =HLOOKUP(U60,W59:AE60,2) -> R410A | AE16: =IF($M$6=AE15,(MATCH($P$20,T25:T29,-1)),FALSE) -> FALSE | AF16: =IF($M$6=AF15,(MATCH($P$20,U12:U16,-1)),FALSE) -> FALSE | AG16: =IF($M$6=AG15,(MATCH($P$20,W12:W16,-1)),FALSE) -> FALSE | AH16: FALSE | AI16: FALSE | AJ16: FALSE | AL16: FALSE | AM16: FALSE
H17: =I16 -> RX1S | I17: =U61 -> DX2-025S | J17: =IF(T17="-","-",T17*INDEX(Language!$B$5:$D$15,8,Language!$B$2)) -> 107.4163353 | R17: DX2 | S17: =U61 -> DX2-025S | T17: =IF(S61="-","-",S61/($AH$5*$AF$6*$AF$7)) -> 107.4163353 | V17: =0.85*T17 -> 91.30388504 | AE17: =IF(AE16=1,"EX1-I",IF(AE16=2,"EX1-G",IF(AE16=3,"EX1-E",IF(AE16=4,"EX1-C",IF(AE16=5,"EX1-A",#N/A))))) ->  | AF17: =IF(AF16=1,"EX1-I",IF(AF16=2,"EX1-G",IF(AF16=3,"EX1-E",IF(AF16=4,"EX1-C",IF(AF16=5,"EX1-A",#N/A))))) ->  | AM17: =IF(AM16=1,"EX1-I",IF(AM16=2,"EX1-G",IF(AM16=3,"EX1-E",IF(AM16=4,"EX1-C",IF(AM16=5,"EX1-A",#N/A))))) -> 
A18: =INDEX(Language!$F$2:$G$70,10,Language!$E$1) -> 阀两端的压差 | F18: =F12-(F9+F22) -> 14.4769591 | G18: =INDEX(Language!$B$5:$D$15,5,Language!$B$2) -> bar | I18: =U62 -> DX2-022S | J18: =IF(T18="-","-",T18*INDEX(Language!$B$5:$D$15,8,Language!$B$2)) -> 94.5263751 | K18: =INDEX(Language!$F$2:$G$41,10,Language!$E$1) -> 阀两端的压差 | P18: =P12-(P9+P22) -> 13.3169591 | Q18: bar | S18: =U62 -> DX2-022S | T18: 94.5263751 | V18: 80.34741883 | AO18: 1 | AP18: 2
I19: 0 | J19: =IF(T19="-","-",T19*INDEX(Language!$B$5:$D$15,8,Language!$B$2)) -> 0 | V19: 0 | AO19: R407C | AP19: 1010
A20: =INDEX(Language!$F$2:$G$70,11,Language!$E$1) -> 系统制冷量 | E20: Q0: | F20: 70 | G20: =INDEX(Language!$B$5:$D$15,4,Language!$B$2) -> kW | I20: 0 | J20: =IF(T20="-","-",T20*INDEX(Language!$B$5:$D$15,8,Language!$B$2)) -> 0 | K20: =INDEX(Language!$F$2:$G$41,11,Language!$E$1) -> 系统制冷量 | O20: Q0: | P20: 10 | Q20: kW | V20: 0 | AE20: R1 | AF20: R134a | AG20: R22 | AH20: R231 | AI20: R404A | AJ20: R407C | AK20: R408 | AL20: R507 | AM20: R7 | AO20: R134a | AP20: 120
I21: 0 | J21: =IF(T21="-","-",T21*INDEX(Language!$B$5:$D$15,8,Language!$B$2)) -> 0 | V21: 0 | AE21: =IF($M$6=AE20,(MATCH($P$20,T34:T41,-1)),FALSE) -> FALSE | AF21: =IF($M$6=AF20,(MATCH($P$20,U21:U40,-1)),FALSE) -> FALSE | AG21: =IF($M$6=AG20,(MATCH($P$20,W21:W40,-1)),FALSE) -> FALSE | AH21: FALSE | AI21: FALSE | AJ21: FALSE | AK21: FALSE | AL21: FALSE | AM21: FALSE | AO21: R22 | AP21: 260
A22: =INDEX(Language!$F$2:$G$70,12,Language!$E$1) -> 压降 | F22: 0.34 | G22: =INDEX(Language!$B$5:$D$15,5,Language!$B$2) -> bar | I22: 0 | J22: =IF(T22="-","-",T22*INDEX(Language!$B$5:$D$15,8,Language!$B$2)) -> 0 | K22: =INDEX(Language!$F$2:$G$41,12,Language!$E$1) -> 压降 | P22: 1.5 | Q22: bar | V22: 0 | AB22: 1 | AC22: =Language!F$2 -> English | AE22: =IF(AE21=1,"EX2",IF(AE21=2,"EXO-004",IF(AE21=3,"EXO-003",IF(AE21=4,"EXO-002",IF(AE21=5,"EXO-001",IF(AE21=6,"EXO-000",IF(AE21=7,"EXO-00X",#N/A))))))) ->  | AF22: =IF(AF21=1,"EX2",IF(AF21=2,"EXO-004",IF(AF21=3,"EXO-003",IF(AF21=4,"EXO-002",IF(AF21=5,"EXO-001",IF(AF21=6,"EXO-000",IF(AF21=7,"EXO-00X",#N/A))))))) ->  | AM22: =IF(AM21=1,"EX2",IF(AM21=2,"EXO-004",IF(AM21=3,"EXO-003",IF(AM21=4,"EXO-002",IF(AM21=5,"EXO-001",IF(AM21=6,"EXO-000",IF(AM21=7,"EXO-00X",#N/A))))))) ->  | AO22: R32 | AP22: 930
A23: =INDEX(Language!$F$2:$G$70,13,Language!$E$1) -> (液管, 干燥过滤器, 电磁阀, 视液镜, 分液头, 蒸发器) | I23: 0 | J23: =IF(T23="-","-",T23*INDEX(Language!$B$5:$D$15,8,Language!$B$2)) -> 0 | K23: =INDEX(Language!$F$2:$G$41,13,Language!$E$1) -> (液管, 干燥过滤器, 电磁阀, 视液镜, 分液头, 蒸发器) | V23: 0 | AB23: 2 | AC23: =Language!G$2 -> Chinese | AO23: R404A | AP23: 440
I24: 0 | J24: =IF(T24="-","-",T24*INDEX(Language!$B$5:$D$15,8,Language!$B$2)) -> 0 | V24: 0 | AO24: R407F | AP24: 520
AO25: R410A | AP25: 640
A26: =INDEX(Language!$F$2:$G$70,14,Language!$E$1) -> 你的选择 | D26: =INDEX(Language!$F$2:$G$70,15,Language!$E$1) -> 型号 | F26: =P26 -> 产品编号: | H26: =R26 -> 0 | K26: =INDEX(Language!$F$2:$G$41,14,Language!$E$1) -> 你的选择 | N26: =INDEX(Language!$F$2:$G$41,15,Language!$E$1) -> 型号 | P26: =INDEX(Language!$F$2:$G$41,18,Language!$E$1) -> 产品编号: | S26: =INDEX(Language!$F$2:$G$70,66,Language!$E$1) -> 备注 | AO26: R507 | AP26: 760
A27: =K27 -> 0 | D27: =N27 -> 0 | AO27: R744 | AP27: 870
A28: =K28 -> DX2 | D28: =N28 -> DX2-022S | F28: =P28 -> 098305 | K28: =INDEX(Language!$F$2:$G$72,71,Language!$E$1) -> DX2 | N28: =INDEX(S17:S34,T58,1) -> DX2-022S | P28: =INDEX(V61:V78,T58,1) -> 098305
D30: =N30 -> 配件 | N30: =INDEX(Language!$F$2:$G$41,38,Language!$E$1) -> 配件
A31: =K31 -> IP防护等级 | D31: =N31 -> 0 | F31: =P31 -> 098315 | H31: =R31 -> 0 | K31: =INDEX(Language!$F$2:$G$69,68,Language!$E$1) -> IP防护等级 | P31: =INDEX(Y32:AA33,X34,V35) -> 098315 | Y31: 2m | Z31: 3m | AA31: 6m
K32: =INDEX(Language!$F$2:$G$66,65,Language!$E$1) -> 定子导线（选择其中之一） | V32: 2M | X32: IP65 | Y32: 098307 | Z32: 098315 | AA32: 098323
A33: =K33 -> 0 | D33: =N33 -> 0 | F33: =P33 -> 0 | H33: =R33 -> 0 | V33: 3M | X33: IP67 | Y33: 098308 | Z33: 098316 | AA33: 098324
D34: =N34 -> 0 | F34: =P34 -> 0 | H34: =R34 -> 0 | V34: 6M | X34: 1
D35: =N35 -> 0 | F35: =P35 -> 0 | H35: =R35 -> 0 | V35: 2
A37: =K37 -> 0 | D37: =N37 -> 0 | F37: =P37 -> 0
W38: =
A39: =K39 -> 0 | D39: =N39 -> 0 | F39: =P39 -> 0 | H39: =R39 -> 0
D40: =N40 -> 0 | F40: =P40 -> 0 | H40: =R40 -> 0
D45: =N45 -> 注: | N45: =INDEX(Language!$F$2:$G$70,22,Language!$E$1) -> 注:
N47: =IF(ISERR(HLOOKUP(U60,AJ59:AQ87,V58)),"DX3系列没有符合您需求的阀，请选择其他系列，谢谢！ DX3 series can not meet your demand, please choose other series, thanks!","") -> 
A54: =INDEX(Language!$F$2:$G$70,45,Language!$E$1) -> 螺口型或内平衡型请见 | K54: =INDEX(Language!$F$2:$G$70,45,Language!$E$1) -> 螺口型或内平衡型请见
A55: =INDEX(Language!$F$2:$G$70,50,Language!$E$1) -> ALCO CONTROLS is not to be held responsible for erroneous data regarding capacities, dimensions, applications, etc. stated herein. Products, specifications and data in this data are subject to change without notice. The information given herein is based on technical data and tests which ALCO CONTROLS believes to be reliable and which are in compliance with technical knowledge of today. It is intended only for use by persons having the appropriate technical knowledge and skills, at their own discretion and risk. Since conditions of use are outside of ALCO'S control we can not assume any liability for results obtained or damages occurred due to improper application. | K55: =INDEX(Language!$F$2:$G$70,50,Language!$E$1) -> ALCO CONTROLS is not to be held responsible for erroneous data regarding capacities, dimensions, applications, etc. stated herein. Products, specifications and data in this data are subject to change without notice. The information given herein is based on technical data and tests which ALCO CONTROLS believes to be reliable and which are in compliance with technical knowledge of today. It is intended only for use by persons having the appropriate technical knowledge and skills, at their own discretion and risk. Since conditions of use are outside of ALCO'S control we can not assume any liability for results obtained or damages occurred due to improper application.
A58: - | D58: =IF(I100=0,"",J100) ->  | G58: =I58+21 ->  | I58: =MATCH($P$20,J37:J45,-1) ->  | J58: =MATCH($P$20,J17:J34,-1) -> 2 | K58: - | N58: =IF(S100=0,"",T100) ->  | Q58: =S58+21 ->  | S58: =MATCH($P$20,T37:T45,-1) ->  | T58: =MATCH($P$20,V17:V24,-1) -> 2 | V58: =T58+2 -> 4
E59: =HLOOKUP(K60,Z59:AH87,J58) ->  | F59: =INDEX(J17:J34,J58,1) -> 94.5263751 | O59: =HLOOKUP(U60,AJ59:AQ87,T58) -> R 410A | P59: =INDEX(T17:T34,T58,1) -> 94.5263751 | U59: 1 | W59: 2 | X59: 3 | Y59: 4 | Z59: 5 | AA59: 6 | AB59: 7 | AC59: 8 | AD59: 9 | AE59: 10 | AG59: Power | AJ59: 2 | AK59: 3 | AL59: 4 | AM59: 5 | AN59: 6 | AO59: 7 | AP59: 8 | AQ59: 9
A60: 2 | I60: =HLOOKUP(K$60,M$59:U$87,A60) -> 2 | K60: 2 | S60: =HLOOKUP(U$60,W$59:AE$87,K60) -> R410A | U60: =INDEX(W59:AE59,U59) -> 2 | W60: R410A | X60: R134a | Y60: R22 | Z60: R404A | AA60: R507 | AB60: R407F | AC60: R32 | AD60: R407C | AE60: R744 | AG60: Assembly | AJ60: R 410A | AK60: R 134a | AL60: R 22 | AM60: R 404A | AN60: R 507 | AO60: R 407F | AP60: R32 | AQ60: R407C
A61: 3 | I61: =HLOOKUP(K$60,K$59:U$87,A61) ->  | J61: Qmax oder Qn | K61: 3 | S61: =HLOOKUP(U$60,U$59:AE$87,K61) -> 103.5136343 | T61: Qmax oder Qn | U61: DX2-025S | V61: 098306 | W61: 103.5136343 | X61: 68.64865145 | Y61: 87.925 | Z61: 61.8 | AA61: 60.6 | AB61: - | AC61: 152.4706663 | AD61: 93.5165075 | AE61: - | AG61: XC726 | AH61: 2B | AJ61: DX2-025S | AK61: DX2-025S | AL61: DX2-025S | AP61: DX2-025S | AQ61: DX2-025S
A62: 4 | K62: 4 | S62: 91.09199818 | U62: DX2-022S | V62: 098305 | W62: =W61*22/25 -> 91.09199818 | X62: =X61*22/25 -> 60.41081327 | Y62: =Y61*22/25 -> 77.374 | Z62: 54.4 | AA62: 53.3 | AB62: - | AC62: =AC61*22/25 -> 134.1741864 | AD62: =AD61*22/25 -> 82.2945266 | AE62: - | AG62: XC726 | AH62: 2B | AJ62: DX2-022S | AK62: DX2-022S | AL62: DX2-022S | AP62: DX2-022S | AQ62: DX2-022S
A63: 5 | K63: 5 | S63: 0 | AG63: XC726 | AH63: 2B
A64: 6 | K64: 6 | S64: 0 | AG64: XC726 | AH64: 2B
A65: 7 | K65: 7 | S65: 0 | AG65: XC726 | AH65: 2B
A66: 8 | K66: 8 | S66: 0 | AG66: XC726 | AH66: 2B
A67: 9 | K67: 9 | S67: 0 | AG67: XC726 | AH67: 2B | AJ67: -
A68: 10 | K68: 10 | S68: 0 | AG68: XB1019 | AH68: 1B | AJ68: -
A69: 11 | K69: 11 | S69: - | U69: - | V69: - | W69: - | X69: - | Y69: - | Z69: - | AA69: - | AB69: - | AC69: - | AD69: - | AE69: - | AF69: - | AG69: - | AH69: - | AI69: - | AJ69: - | AK69: - | AL69: - | AM69: - | AN69: - | AO69: -
A70: 12 | K70: 12 | S70: 0
A71: 13 | K71: 13 | S71: 0
A72: 14 | K72: 14 | S72: 0
A73: 15 | K73: 15 | S73: 0
A74: 16 | K74: 16 | S74: 0
A75: 17 | K75: 17 | S75: 0
A76: 18 | K76: 18 | S76: 0
A77: 19 | K77: 19 | S77: 0
A78: 20 | K78: 20 | S78: 0
A79: 21 | K79: 21
A80: 22 | I80: =HLOOKUP(K$60,K$59:U$87,A80) ->  | J80: Qmax oder Qn | K80: 22
A81: 23 | K81: 23
A82: 24 | K82: 24
A83: 25 | K83: 25
A84: 26 | K84: 26
A85: 27 | K85: 27
A86: 28 | K86: 28
A87: 29 | K87: 29
A88: 30 | G88: =IF(OR(LEFT($N$27,4)="TCLE",LEFT($N$27,4)="TJRE"),CONCATENATE($S$93,$S88,"-1B"),CONCATENATE($R$93,$S88,"-2B")) -> -2B | I88: =HLOOKUP(K$60,K$59:U$106,A88) ->  | K88: 30
A89: 31 | G89: =IF(OR(LEFT($N$27,4)="TCLE",LEFT($N$27,4)="TJRE"),CONCATENATE($S$93,$S89,"-1B"),CONCATENATE($R$93,$S89,"-2B")) -> -2B | H89: =HLOOKUP($U$60,$AJ$59:$AQ$106,$K89) -> 0 | I89: =HLOOKUP(K$60,K$59:U$106,A89) ->  | J89: MOP | K89: 31
A90: 32 | G90: =IF(OR(LEFT($N$27,4)="TCLE",LEFT($N$27,4)="TJRE"),CONCATENATE($S$93,$S90,"-1B"),CONCATENATE($R$93,$S90,"-2B")) -> -2B | H90: =HLOOKUP($U$60,$AJ$59:$AQ$106,$K90) -> 0 | I90: =HLOOKUP(K$60,K$59:U$106,A90) ->  | J90: T | K90: 32
A91: 33 | G91: =IF(OR(LEFT($N$27,4)="TCLE",LEFT($N$27,4)="TJRE"),CONCATENATE($S$93,$S91,"-1B"),CONCATENATE($R$93,$S91,"-2B")) -> -2B | H91: =HLOOKUP($U$60,$AJ$59:$AQ$106,$K91) -> 0 | I91: =HLOOKUP(K$60,K$59:U$106,A91) ->  | K91: 33
A92: 34 | K92: 34
A93: 35 | H93: XC 726 | I93: XB 1019 | K93: 35
A94: 36 | H94: =HLOOKUP($U$60,$AJ$59:$AQ$106,$K94) -> 0 | I94: =HLOOKUP(K$60,K$59:U$106,A94) ->  | J94: Best. | K94: 36
A95: 37 | H95: =HLOOKUP($U$60,$AJ$59:$AQ$106,$K95) -> 0 | I95: =HLOOKUP(K$60,K$59:U$106,A95) ->  | J95: Nr. | K95: 37
A96: 38 | H96: =HLOOKUP($U$60,$AJ$59:$AQ$106,$K96) -> 0 | I96: =HLOOKUP(K$60,K$59:U$106,A96) ->  | K96: 38
A97: 39 | H97: =HLOOKUP($U$60,$AJ$59:$AQ$106,$K97) -> 0 | I97: =HLOOKUP(K$60,K$59:U$106,A97) ->  | K97: 39
A98: 40 | K98: 40
A99: 41 | K99: 41
A100: 42 | H100: =HLOOKUP($U$60,$AJ$59:$AQ$106,$K100) -> 0 | I100: =HLOOKUP(K$60,K$59:U$106,A100) ->  | J100: MOP | K100: 42
A101: 43 | H101: =HLOOKUP($U$60,$AJ$59:$AQ$106,$K101) -> 0 | I101: =HLOOKUP(K$60,K$59:U$106,A101) ->  | J101: TI | K101: 43
A102: 44 | H102: =HLOOKUP($U$60,$AJ$59:$AQ$106,$K102) -> 0 | I102: =HLOOKUP(K$60,K$59:U$106,A102) ->  | K102: 44
A103: 45 | K103: 45
A104: 46 | J104: Metrisch | K104: 46
A105: 47 | I105: =HLOOKUP(K$60,K$59:U$115,A105) ->  | J105: Best | K105: 47
A106: 48 | I106: =HLOOKUP(K$60,K$59:U$115,A106) ->  | J106: Nr | K106: 48
A107: 49 | I107: =HLOOKUP(K$60,K$59:U$115,A107) ->  | J107: TI | K107: 49
A108: 50 | I108: =HLOOKUP(K$60,K$59:U$115,A108) ->  | K108: 50
A109: 51 | K109: 51
A110: 52 | J110: Zöllig | K110: 52
A111: 53 | I111: =HLOOKUP(K$60,K$59:U$115,A111) ->  | J111: Best | K111: 53
A112: 54 | I112: =HLOOKUP(K$60,K$59:U$115,A112) ->  | J112: Nr | K112: 54
A113: 55 | I113: =HLOOKUP(K$60,K$59:U$115,A113) ->  | J113: TI | K113: 55
A114: 56 | I114: =HLOOKUP(K$60,K$59:U$115,A114) ->  | K114: 56
A115: 57 | K115: 57
A117: 1 | K117: 1 | W117: 2 | X117: 3 | Y117: 4 | Z117: 5 | AA117: 6 | AB117: 7 | AC117: 8 | AD117: 9 | AE117: 10
A118: 2 | I118: =HLOOKUP(K$60,L$117:T$121,A118) ->  | K118: 2 | S118: =HLOOKUP(U$60,W$117:AE$121,K118) -> R410A | U118: Temperatur | W118: R410A | X118: R134a | Y118: R22 | Z118: R404A | AA118: R507 | AB118: R407F | AC118: R32 | AD118: R407C | AE118: R744 | AI118: Temperatur | AJ118: R 410A | AK118: R 134a | AL118: R 22 | AM118: R 404A | AN118: R 507 | AO118: R 407F | AP118: R23 | AQ118: R124
A119: 3 | I119: =HLOOKUP(K$60,L$117:T$121,A119)+$P$16 ->  | J119: Eintrittspkt Korr Tabelle Flüssig.Temp: | K119: 3 | S119: =HLOOKUP(U$60,W$117:AE$121,K119)+$P$16 -> 670 | T119: Eintrittspkt Korr Tabelle Flüssig.Temp: | W119: 640 | X119: 120 | Y119: 260 | Z119: 440 | AA119: 760 | AB119: 520 | AC119: 930 | AD119: 1010 | AE119: 870
A121: 5 | I121: =HLOOKUP(K$60,L$117:T$121,A121) ->  | J121: Korr.Faktor | K121: 5 | S121: =HLOOKUP(U$60,W$117:AE$121,K121) -> 13.99599596 | T121: Korr.Faktor | W121: 13.99599596 | X121: 6.251925281 | Y121: 8.94166157 | Z121: 10.6251 | AA121: 10.73171206 | AB121: 12.3175 | AC121: 14.37586207 | AD121: 11.36551724 | AE121: 16.47026704
Y326: Valves Type | Z326: =(IF(O27="EX5",10,IF(O27="EX6",11,IF(O27="EX7",12,IF(O27="EX8",13,#N/A))))) -> 
U327: =T16 -> R410A | W327: =U4 -> 0 | X327: =W4 -> 0 | Y327: =X4 -> 0 | Z327: =Y4 -> 0 | AA327: =Z4 -> 0 | AB327: =AA4 -> 0 | AC327: R507 | AD327: =AC4 -> 0
J328: 1 | T328: 1 | U328: 2 | W328: 3 | X328: 4 | Y328: 5 | Z328: 6 | AA328: 7 | AB328: 8 | AC328: 9 | AD328: 10
J329: 10 | T329: 10 | U329: =T21 -> 0 | W329: =U8 -> 0 | X329: =W8 -> 0 | Y329: =X8 -> 0 | Z329: =Y8 -> 0 | AA329: =Z8 -> 0 | AB329: =AA8 -> 0 | AC329: =$AB$8 -> 0 | AD329: =AC8 -> 0
J330: 11 | T330: 11 | U330: =T20 -> 0 | W330: =U7 -> 0 | X330: =W7 -> 0 | Y330: =X7 -> 0 | Z330: =Y7 -> 0 | AA330: =Z7 -> 0 | AB330: =AA7 -> 0 | AC330: =$AB$7 -> 0 | AD330: =AC7 -> 1
J331: 12 | T331: 12 | U331: =T19 -> 0 | W331: =U6 -> 0 | X331: =W6 -> 0 | Y331: =X6 -> 0 | Z331: =Y6 -> 0 | AA331: =Z6 -> 0 | AB331: =AA6 -> 0 | AC331: =$AB$6 -> 0 | AD331: =AC6 -> 0
J332: 13 | T332: 13 | U332: =T18 -> 94.5263751 | W332: =U5 -> 0 | X332: =W5 -> 0 | Y332: =X5 -> 0 | Z332: =Y5 -> 0 | AA332: =Z5 -> 0 | AB332: =AA5 -> 0 | AC332: =$AB$5 -> 0 | AD332: =AC5 -> 0
J335: EX1 | T335: EX1
Y336: Refrigerant | Z336: =(IF(M6="R124",2,IF(M6="R134a",3,IF(M6="R22",4,IF(M6="R23",5,IF(M6="R404A",6,IF(M6="R407C",7,IF(M6="R410A",8,IF(M6="R744",10,"9"))))))))) -> 8
Y337: Valves Type | Z337: =(IF(O39="EX1-A",10,IF(O39="EX1-C",11,IF(O39="EX1-E",12,IF(O39="EX1-G",13,IF(O39="EX1-I",14,#N/A)))))) -> 
U338: R124 | W338: R134a | X338: R22 | Y338: R23 | Z338: R404A | AA338: R407C | AB338: R410A | AC338: R507 | AD338: R744
J339: 1 | T339: 1 | U339: 2 | W339: 3 | X339: 4 | Y339: 5 | Z339: 6 | AA339: 7 | AB339: 8 | AC339: 9 | AD339: 10
J340: 10 | T340: 10 | U340: =T29 -> 0 | W340: =U16 -> 0 | X340: =W16 -> 0 | Y340: =X16 -> 0 | Z340: =Y16 -> 0 | AA340: =Z16 -> 0 | AB340: =AA16 -> 0 | AC340: =$AB$16 -> 0 | AD340: =AC16 -> 0
J341: 11 | T341: 11 | U341: =T28 -> 0 | W341: =U15 -> 0 | X341: =W15 -> 0 | Y341: =X15 -> 0 | Z341: =Y15 -> 0 | AA341: =Z15 -> 0 | AB341: =AA15 -> 0 | AC341: =$AB$15 -> 0 | AD341: =AC15 -> 0
J342: 12 | T342: 12 | U342: =T27 -> 0 | W342: =U14 -> 0 | X342: =W14 -> 0 | Y342: =X14 -> 0 | Z342: =Y14 -> 0 | AA342: =Z14 -> 0 | AB342: =AA14 -> 0 | AC342: =$AB$14 -> 0 | AD342: =AC14 -> 0
J343: 13 | T343: 13 | U343: =T26 -> 0 | W343: =U13 -> 0 | X343: =W13 -> 0 | Y343: =X13 -> 0 | Z343: =Y13 -> 0 | AA343: =Z13 -> 0 | AB343: =AA13 -> 0 | AC343: =$AB$13 -> 0 | AD343: =AC13 -> 0
J344: 14 | T344: 14 | U344: =T25 -> 0 | W344: =U12 -> 0 | X344: =W12 -> 0 | Y344: =X12 -> 0 | Z344: =Y12 -> 0 | AA344: =Z12 -> 0 | AB344: =AA12 -> 0 | AC344: =$AB$12 -> 0 | AD344: =AC12 -> 0
J347: EX2 | T347: EX2
Y348: Refrigerant | Z348: =(IF(M6="R124",2,IF(M6="R134a",3,IF(M6="R22",4,IF(M6="R23",5,IF(M6="R404A",6,IF(M6="R407C",7,IF(M6="R410A",8,IF(M6="R744",10,"9"))))))))) -> 8
Y349: Valves Type | Z349: =IF(O37="EXO-00X",10,IF(O37="EXO-000",11,IF(O37="EXO-001",12,IF(O37="EXO-002",13,IF(O37="EXO-003",14,IF(O37="EXO-004",15,IF(O37="EX2",16,#N/A))))))) -> 
U350: R124 | W350: R134a | X350: R22 | Y350: R23 | Z350: R404A | AA350: R407C | AB350: R410A | AC350: R507 | AD350: R744
J351: 1 | T351: 1 | U351: 2 | W351: 3 | X351: 4 | Y351: 5 | Z351: 6 | AA351: 7 | AB351: 8 | AC351: 9 | AD351: 10
J352: 10 | T352: 10 | U352: =T41 -> 0 | W352: =U40 -> 0 | X352: =W40 -> 0 | Y352: =X40 -> 0 | Z352: =Y40 -> 0 | AA352: =Z40 -> 0 | AB352: =AA40 -> 0 | AC352: =$AB$40 -> 0 | AD352: =AC40 -> 0
J353: 11 | T353: 11 | U353: =T40 -> 0 | W353: =U39 -> 0 | X353: =W39 -> 0 | Y353: =X39 -> 0 | Z353: =Y39 -> 0 | AA353: =Z39 -> 0 | AB353: =AA39 -> 0 | AC353: =$AB$39 -> 0 | AD353: =AC39 -> 0
J354: 12 | T354: 12 | U354: =T39 -> 0 | W354: =U38 -> 0 | X354: =W38 -> = | Y354: =X38 -> 0 | Z354: =Y38 -> 0 | AA354: =Z38 -> 0 | AB354: =AA38 -> 0 | AC354: =$AB$38 -> 0 | AD354: =AC38 -> 0
J355: 13 | T355: 13 | U355: =T38 -> 0 | W355: =U24 -> 0 | X355: =W24 -> 0 | Y355: =X24 -> 0 | Z355: =Y24 -> 0 | AA355: =Z24 -> 0 | AB355: =AA24 -> 0 | AC355: =$AB$24 -> 0 | AD355: =AC24 -> 0
J356: 14 | T356: 14 | U356: =T37 -> 0 | W356: =U23 -> 0 | X356: =W23 -> 0 | Y356: =X23 -> 0 | Z356: =Y23 -> 0 | AA356: =Z23 -> 0 | AB356: =AA23 -> 0 | AC356: =$AB$23 -> 2 | AD356: =AC23 -> Chinese
J357: 15 | T357: 15 | U357: =T36 -> 0 | W357: =U22 -> 0 | X357: =W22 -> 0 | Y357: =X22 -> 0 | Z357: =Y22 -> 0 | AA357: =Z22 -> 0 | AB357: =AA22 -> 0 | AC357: =$AB$22 -> 1 | AD357: =AC22 -> English
J358: 16 | T358: 16 | U358: =T34 -> 0 | W358: =U21 -> 0 | X358: =W21 -> 0 | Y358: =X21 -> 0 | Z358: =Y21 -> 0 | AA358: =Z21 -> 0 | AB358: =AA21 -> 0 | AC358: =$AB$21 -> 0 | AD358: =AC21 -> 0

Sheet DX3
A1: =INDEX(Language!$F$2:$G$70,2,Language!$E$1) -> 使用方法: 选择冷媒, 并在黄色部分填入你所要求的工况 | K1: =INDEX(Language!$F$2:$G$41,2,Language!$E$1) -> 使用方法: 选择冷媒, 并在黄色部分填入你所要求的工况
A2: =INDEX(Language!$F$2:$G$70,3,Language!$E$1) -> 错误信息: Po或Pc如显示N/A, 表示已超出冷媒的正常工况.
D3: =INDEX(Language!$F$2:$G$70,4,Language!$E$1) -> 项目:
AE4: DP | AF4: Kt | AG4: Zeile in | AH4: KDP | AM4: 3 | AN4: =INDEX(AN5:AN13,U59) -> 5
AE5: =P12-(P9+P22) -> 8.9124 | AF5: bar | AG5: Korr.Tab | AH5: =SQRT(S121/AE5) -> 1.091865587 | AN5: 2 | AO5: R410A
A6: =INDEX(Language!$F$2:$G$70,5,Language!$E$1) -> 冷媒: | C6: =M6 -> R404A | K6: =INDEX(Language!$F$2:$G$41,5,Language!$E$1) -> 冷媒: | M6: =HLOOKUP(U60,W59:AE60,2) -> R404A | AF6: =HLOOKUP(P8,Kt!$C$3:'Kt'!$ED$969,$AG$6,) -> 0.98 | AG6: =MATCH(AH6,Kt!$C$3:'Kt'!$C$969,0) -> 398 | AH6: =S119 -> 477 | AN6: 3 | AO6: R134a
AC7: =(100-P14)/100 -> 0.99 | AE7: Kü | AF7: 1 | AN7: 4 | AO7: R22
A8: =INDEX(Language!$F$2:$G$70,6,Language!$E$1) -> 蒸发温度 | E8: To: | F8: 10 | G8: =INDEX(Language!$B$5:$D$15,2,Language!$B$2) -> °C | K8: =INDEX(Language!$F$2:$G$41,6,Language!$E$1) -> 蒸发温度 | O8: To: | P8: 5 | Q8: °C | AN8: 5 | AO8: R404A
E9: Po= | F9: =(P9)*INDEX(Language!$B$5:$D$15,9,Language!$B$2) -> 7.0186 | G9: =INDEX(Language!$B$5:$D$15,10,Language!$B$2) -> bara | O9: Po= | P9: =(VLOOKUP(P8,DampfDruck!$U$4:$AD$404,$U$60,))/100000 -> 7.0186 | Q9: bara | AN9: 6 | AO9: R507
F10: =IF(C6="R407C",INDEX(Language!$F$2:$G$70,60,Language!$E$1),"") ->  | P10: =IF(M6="R407C",INDEX(Language!$F$2:$G$70,60,Language!$E$1),"") ->  | AE10: R124 | AF10: R134a | AG10: R22 | AH10: R23 | AI10: R404A | AJ10: R407C | AK10: R410A | AL10: R507 | AM10: R744 | AN10: 7 | AO10: R407F
A11: =INDEX(Language!$F$2:$G$70,7,Language!$E$1) -> 冷凝温度 | E11: Tc: | F11: 30 | G11: =INDEX(Language!$B$5:$D$15,2,Language!$B$2) -> °C | K11: =INDEX(Language!$F$2:$G$41,7,Language!$E$1) -> 冷凝温度 | O11: Tc: | P11: 38 | Q11: °C | AE11: =IF($M$6=AE10,(MATCH($P$20,T18:T21,-1)),FALSE) -> FALSE | AF11: =IF($M$6=AF10,(MATCH($P$20,U5:U8,-1)),FALSE) -> FALSE | AG11: =IF($M$6=AG10,(MATCH($P$20,W5:W8,-1)),FALSE) -> FALSE | AH11: FALSE | AJ11: FALSE | AK11: FALSE | AL11: FALSE | AM11: FALSE | AN11: 8 | AO11: R32
E12: Pc= | F12: =(P12)*INDEX(Language!$B$5:$D$15,9,Language!$B$2) -> 17.431 | G12: =INDEX(Language!$B$5:$D$15,10,Language!$B$2) -> bara | O12: Pc= | P12: =(VLOOKUP(P11,DampfDruck!$F$4:$O$404,$U$60,))/100000 -> 17.431 | Q12: bara | AE12: =IF(AE11=1,"EX8",IF(AE11=2,"EX7",IF(AE11=3,"EX6",IF(AE11=4,"EX5",#N/A)))) ->  | AM12: =IF(AM11=1,"EX8",IF(AM11=2,"EX7",IF(AM11=3,"EX6",IF(AM11=4,"EX5",#N/A)))) ->  | AN12: 9 | AO12: R407C
F13: =IF(C6="R407C",INDEX(Language!$F$2:$G$70,61,Language!$E$1),"") ->  | P13: =IF(M6="R407C",INDEX(Language!$F$2:$G$70,61,Language!$E$1),"") ->  | AN13: 10 | AO13: R744
A14: =INDEX(Language!$F$2:$G$70,8,Language!$E$1) -> 过冷度 | E14: DTsub: | F14: 20 | G14: =INDEX(Language!$B$5:$D$15,3,Language!$B$2) -> K | H14: =INDEX(Language!$F$2:$G$70,23,Language!$E$1) -> 指定工况下阀的最大容量 (kW) | K14: =INDEX(Language!$F$2:$G$41,8,Language!$E$1) -> 过冷度 | O14: DTsub: | P14: 1 | Q14: K | R14: =INDEX(Language!$F$2:$G$41,23,Language!$E$1) -> 指定工况下阀的最大容量 (kW)
AE15: R1 | AF15: R134a | AG15: R22 | AH15: R231 | AI15: R404A | AJ15: R407C | AK15: R410A | AL15: R507 | AM15: R7
A16: =INDEX(Language!$F$2:$G$70,9,Language!$E$1) -> 液体温度 | E16: Tliquid: | F16: =F11-F14 -> 10 | G16: =INDEX(Language!$B$5:$D$15,2,Language!$B$2) -> °C | I16: =INDEX(Language!$F$2:$G$70,17,Language!$E$1) -> RX1S | J16: =T16 -> R404A | K16: =INDEX(Language!$F$2:$G$41,9,Language!$E$1) -> 液体温度 | O16: Tliquid: | P16: =P11-P14 -> 37 | Q16: °C | S16: =INDEX(Language!$F$2:$G$70,67,Language!$E$1) -> DX3 | T16: =HLOOKUP(U60,W59:AE60,2) -> R404A | AE16: =IF($M$6=AE15,(MATCH($P$20,T25:T29,-1)),FALSE) -> FALSE | AF16: =IF($M$6=AF15,(MATCH($P$20,U12:U16,-1)),FALSE) -> FALSE | AG16: =IF($M$6=AG15,(MATCH($P$20,W12:W16,-1)),FALSE) -> FALSE | AH16: FALSE | AJ16: FALSE | AK16: FALSE | AL16: FALSE | AM16: FALSE
H17: =I16 -> RX1S | I17: =U61 -> DX3-025 | J17: =IF(T17="-","-",T17*INDEX(Language!$B$5:$D$15,8,Language!$B$2)) -> - | R17: DX3 | S17: =U61 -> DX3-025 | T17: =IF(S61="-","-",S61/($AH$5*$AF$6*$AF$7)) -> - | V17: =0.85*T17 ->  | AE17: =IF(AE16=1,"EX1-I",IF(AE16=2,"EX1-G",IF(AE16=3,"EX1-E",IF(AE16=4,"EX1-C",IF(AE16=5,"EX1-A",#N/A))))) ->  | AF17: =IF(AF16=1,"EX1-I",IF(AF16=2,"EX1-G",IF(AF16=3,"EX1-E",IF(AF16=4,"EX1-C",IF(AF16=5,"EX1-A",#N/A))))) ->  | AM17: =IF(AM16=1,"EX1-I",IF(AM16=2,"EX1-G",IF(AM16=3,"EX1-E",IF(AM16=4,"EX1-C",IF(AM16=5,"EX1-A",#N/A))))) -> 
A18: =INDEX(Language!$F$2:$G$70,10,Language!$E$1) -> 阀两端的压差 | F18: =F12-(F9+F22) -> 10.0724 | G18: =INDEX(Language!$B$5:$D$15,5,Language!$B$2) -> bar | I18: =U62 -> DX3-020 | J18: =IF(T18="-","-",T18*INDEX(Language!$B$5:$D$15,8,Language!$B$2)) -> - | K18: =INDEX(Language!$F$2:$G$41,10,Language!$E$1) -> 阀两端的压差 | P18: =P12-(P9+P22) -> 8.9124 | Q18: bar | S18: =U62 -> DX3-020 | T18: - | AO18: 1 | AP18: 2
I19: DX3-015 | J19: =IF(T19="-","-",T19*INDEX(Language!$B$5:$D$15,8,Language!$B$2)) -> - | S19: =U63 -> DX3-015 | T19: - | AO19: R407C | AP19: 1010
A20: =INDEX(Language!$F$2:$G$70,11,Language!$E$1) -> 系统制冷量 | E20: Q0: | F20: 70 | G20: =INDEX(Language!$B$5:$D$15,4,Language!$B$2) -> kW | I20: DX3-012 | J20: =IF(T20="-","-",T20*INDEX(Language!$B$5:$D$15,8,Language!$B$2)) -> - | K20: =INDEX(Language!$F$2:$G$41,11,Language!$E$1) -> 系统制冷量 | O20: Q0: | P20: 20 | Q20: kW | S20: DX3-012 | T20: - | AE20: R1 | AF20: R134a | AG20: R22 | AH20: R231 | AI20: R404A | AJ20: R407C | AK20: R408 | AL20: R507 | AM20: R7 | AO20: R134a | AP20: 120
I21: DX3-010 | J21: =IF(T21="-","-",T21*INDEX(Language!$B$5:$D$15,8,Language!$B$2)) -> - | S21: DX3-010 | T21: - | AE21: =IF($M$6=AE20,(MATCH($P$20,T34:T41,-1)),FALSE) -> FALSE | AF21: =IF($M$6=AF20,(MATCH($P$20,U21:U40,-1)),FALSE) -> FALSE | AG21: =IF($M$6=AG20,(MATCH($P$20,W21:W40,-1)),FALSE) -> FALSE | AH21: FALSE | AJ21: FALSE | AK21: FALSE | AL21: FALSE | AM21: FALSE | AO21: R22 | AP21: 260
A22: =INDEX(Language!$F$2:$G$70,12,Language!$E$1) -> 压降 | F22: 0.34 | G22: =INDEX(Language!$B$5:$D$15,5,Language!$B$2) -> bar | I22: DX3-008 | J22: =IF(T22="-","-",T22*INDEX(Language!$B$5:$D$15,8,Language!$B$2)) -> - | K22: =INDEX(Language!$F$2:$G$41,12,Language!$E$1) -> 压降 | P22: 1.5 | Q22: bar | S22: DX3-008 | T22: - | AB22: 1 | AC22: =Language!F$2 -> English | AE22: =IF(AE21=1,"EX2",IF(AE21=2,"EXO-004",IF(AE21=3,"EXO-003",IF(AE21=4,"EXO-002",IF(AE21=5,"EXO-001",IF(AE21=6,"EXO-000",IF(AE21=7,"EXO-00X",#N/A))))))) ->  | AF22: =IF(AF21=1,"EX2",IF(AF21=2,"EXO-004",IF(AF21=3,"EXO-003",IF(AF21=4,"EXO-002",IF(AF21=5,"EXO-001",IF(AF21=6,"EXO-000",IF(AF21=7,"EXO-00X",#N/A))))))) ->  | AM22: =IF(AM21=1,"EX2",IF(AM21=2,"EXO-004",IF(AM21=3,"EXO-003",IF(AM21=4,"EXO-002",IF(AM21=5,"EXO-001",IF(AM21=6,"EXO-000",IF(AM21=7,"EXO-00X",#N/A))))))) ->  | AO22: R32 | AP22: 930
A23: =INDEX(Language!$F$2:$G$70,13,Language!$E$1) -> (液管, 干燥过滤器, 电磁阀, 视液镜, 分液头, 蒸发器) | I23: DX3-075S | J23: =IF(T23="-","-",T23*INDEX(Language!$B$5:$D$15,8,Language!$B$2)) -> - | K23: =INDEX(Language!$F$2:$G$41,13,Language!$E$1) -> (液管, 干燥过滤器, 电磁阀, 视液镜, 分液头, 蒸发器) | S23: DX3-075S | T23: - | AB23: 2 | AC23: =Language!G$2 -> Chinese | AO23: R404A | AP23: 440
I24: DX3-006 | J24: =IF(T24="-","-",T24*INDEX(Language!$B$5:$D$15,8,Language!$B$2)) -> 0 | S24: DX3-006 | T24: 0 | V24: 0 | AO24: R407F | AP24: 520
K25: =INDEX(Language!$F$2:$G$41,13,Language!$E$1) -> (液管, 干燥过滤器, 电磁阀, 视液镜, 分液头, 蒸发器) | AO25: R410A | AP25: 640
A26: =INDEX(Language!$F$2:$G$70,14,Language!$E$1) -> 你的选择 | D26: =INDEX(Language!$F$2:$G$70,15,Language!$E$1) -> 型号 | F26: =P26 -> 产品编号: | H26: =R26 -> 0 | K26: =INDEX(Language!$F$2:$G$41,14,Language!$E$1) -> 你的选择 | N26: =INDEX(Language!$F$2:$G$41,15,Language!$E$1) -> 型号 | P26: =INDEX(Language!$F$2:$G$41,18,Language!$E$1) -> 产品编号: | S26: =INDEX(Language!$F$2:$G$70,66,Language!$E$1) -> 备注 | AO26: R507 | AP26: 760
A27: =K27 -> 0 | D27: =N27 -> 0 | AO27: R744 | AP27: 870
A28: =K28 -> DX3 | D28: =N28 ->  | F28: =P28 ->  | K28: =INDEX(Language!$F$2:$G$70,67,Language!$E$1) -> DX3 | N28: =INDEX(S17:S34,T58,1) ->  | P28: =INDEX(V61:V78,T58,1) -> 
D30: =N30 -> 配件 | N30: =INDEX(Language!$F$2:$G$41,38,Language!$E$1) -> 配件
A31: =K31 -> IP防护等级 | D31: =N31 -> 0 | F31: =P31 -> 098315 | H31: =R31 -> 0 | K31: =INDEX(Language!$F$2:$G$69,68,Language!$E$1) -> IP防护等级 | P31: =INDEX(Y32:AA33,X34,V35) -> 098315 | Y31: 2m | Z31: 3m | AA31: 6m
K32: =INDEX(Language!$F$2:$G$66,65,Language!$E$1) -> 定子导线（选择其中之一） | V32: 2M | X32: IP65 | Y32: 098307 | Z32: 098315 | AA32: 098323
A33: =K33 -> 0 | D33: =N33 -> 0 | F33: =P33 -> 0 | H33: =R33 -> 0 | V33: 3M | X33: IP67 | Y33: 098308 | Z33: 098316 | AA33: 098324
D34: =N34 -> 0 | F34: =P34 -> 0 | H34: =R34 -> 0 | V34: 6M | X34: 1
D35: =N35 -> 0 | F35: =P35 -> 0 | H35: =R35 -> 0 | V35: 2
A37: =K37 -> 0 | D37: =N37 -> 0 | F37: =P37 -> 0
W38: =
A39: =K39 -> 0 | D39: =N39 -> 0 | F39: =P39 -> 0 | H39: =R39 -> 0
D40: =N40 -> 0 | F40: =P40 -> 0 | H40: =R40 -> 0
D45: =N45 -> 注: | N45: =INDEX(Language!$F$2:$G$70,22,Language!$E$1) -> 注:
N47: =IF(ISERR(HLOOKUP(U60,AJ59:AQ87,V58)),"DX3系列没有符合您需求的阀，请选择其他系列，谢谢！ DX3 series can not meet your demand, please choose other series, thanks!","") -> DX3系列没有符合您需求的阀，请选择其他系列，谢谢！ DX3 series can not meet your demand, please choose other series, thanks!
A54: =INDEX(Language!$F$2:$G$70,45,Language!$E$1) -> 螺口型或内平衡型请见 | K54: =INDEX(Language!$F$2:$G$70,45,Language!$E$1) -> 螺口型或内平衡型请见
A55: =INDEX(Language!$F$2:$G$70,50,Language!$E$1) -> ALCO CONTROLS is not to be held responsible for erroneous data regarding capacities, dimensions, applications, etc. stated herein. Products, specifications and data in this data are subject to change without notice. The information given herein is based on technical data and tests which ALCO CONTROLS believes to be reliable and which are in compliance with technical knowledge of today. It is intended only for use by persons having the appropriate technical knowledge and skills, at their own discretion and risk. Since conditions of use are outside of ALCO'S control we can not assume any liability for results obtained or damages occurred due to improper application. | K55: =INDEX(Language!$F$2:$G$70,50,Language!$E$1) -> ALCO CONTROLS is not to be held responsible for erroneous data regarding capacities, dimensions, applications, etc. stated herein. Products, specifications and data in this data are subject to change without notice. The information given herein is based on technical data and tests which ALCO CONTROLS believes to be reliable and which are in compliance with technical knowledge of today. It is intended only for use by persons having the appropriate technical knowledge and skills, at their own discretion and risk. Since conditions of use are outside of ALCO'S control we can not assume any liability for results obtained or damages occurred due to improper application.
A58: - | D58: =IF(I100=0,"",J100) ->  | G58: =I58+21 ->  | I58: =MATCH($P$20,J37:J45,-1) ->  | J58: =MATCH($P$20,J17:J34,-1) ->  | K58: - | N58: =IF(S100=0,"",T100) ->  | Q58: =S58+21 ->  | S58: =MATCH($P$20,T37:T45,-1) ->  | T58: =MATCH($P$20,V17:V24,-1) ->  | V58: =T58+2 -> 
E59: =HLOOKUP(K60,Z59:AH87,J58) ->  | F59: =INDEX(J17:J34,J58,1) ->  | O59: =HLOOKUP(U60,AJ59:AQ87,T58) ->  | P59: =INDEX(T17:T34,T58,1) ->  | U59: 4 | W59: 2 | X59: 3 | Y59: 4 | Z59: 5 | AA59: 6 | AB59: 7 | AC59: 8 | AD59: 9 | AE59: 10 | AG59: Power | AJ59: 2 | AK59: 3 | AL59: 4 | AM59: 5 | AN59: 6 | AO59: 7 | AP59: 8 | AQ59: 9
A60: 2 | I60: =HLOOKUP(K$60,M$59:U$87,A60) ->  | K60: 2 | S60: =HLOOKUP(U$60,W$59:AE$87,K60) -> R404A | U60: =INDEX(W59:AE59,U59) -> 5 | W60: R410A | X60: R134a | Y60: R22 | Z60: R404A | AA60: R507 | AB60: R407F | AC60: R32 | AD60: R407C | AE60: R744 | AG60: Assembly | AJ60: R 410A | AK60: R 134a | AL60: R 22 | AM60: R 404A | AN60: R 507 | AO60: R 407F | AP60: R32 | AQ60: R407C
A61: 3 | I61: =HLOOKUP(K$60,K$59:U$87,A61) ->  | J61: Qmax oder Qn | K61: 3 | S61: =HLOOKUP(U$60,U$59:AE$87,K61) -> - | T61: Qmax oder Qn | U61: DX3-025 | V61: 098306 | W61: 103.5136343 | X61: 68.64865145 | Y61: 87.925 | Z61: - | AA61: - | AB61: - | AC61: 152.4706663 | AD61: 93.5165075 | AE61: - | AG61: XC726 | AH61: 2B | AJ61: DX3-025 | AK61: DX3-025 | AL61: DX3-025 | AP61: DX3-025 | AQ61: DX3-025
A62: 4 | K62: 4 | S62: - | U62: DX3-020 | V62: 098305 | W62: 82.81090743 | X62: 54.91892116 | Y62: 70.34 | Z62: - | AA62: - | AB62: - | AC62: 121.9765331 | AD62: 74.813206 | AE62: - | AG62: XC726 | AH62: 2B | AJ62: DX3-020 | AK62: DX3-020 | AL62: DX3-020 | AP62: DX3-020 | AQ62: DX3-020
A63: 5 | K63: 5 | S63: - | U63: DX3-015 | V63: 098304 | W63: 62.10818057 | X63: 41.18919087 | Y63: 52.755 | Z63: - | AA63: - | AB63: - | AC63: 91.4823998 | AD63: 56.1099045 | AE63: - | AG63: XC726 | AH63: 2B | AJ63: DX3-015 | AK63: DX3-015 | AL63: DX3-015 | AP63: DX3-015 | AQ63: DX3-015
A64: 6 | K64: 6 | S64: - | U64: DX3-012 | V64: 098303 | W64: 49.68654446 | X64: 32.9513527 | Y64: 42.204 | Z64: - | AA64: - | AB64: - | AC64: 73.18591984 | AD64: 44.8879236 | AE64: - | AG64: XC726 | AH64: 2B | AJ64: DX3-012 | AK64: DX3-012 | AL64: DX3-012 | AP64: DX3-012 | AQ64: DX3-012
A65: 7 | K65: 7 | S65: - | U65: DX3-010 | V65: 098302 | W65: 41.40545372 | X65: 27.45946058 | Y65: 35.17 | Z65: - | AA65: - | AB65: - | AC65: 60.98826653 | AD65: 37.406603 | AE65: - | AG65: XC726 | AH65: 2B | AJ65: DX3-010 | AK65: DX3-010 | AL65: DX3-010 | AP65: DX3-010 | AQ65: DX3-010
A66: 8 | K66: 8 | S66: - | U66: DX3-008 | V66: 098301 | W66: 33.12436297 | X66: 21.96756846 | Y66: 28.136 | Z66: - | AA66: - | AB66: - | AC66: 48.79061323 | AD66: 29.9252824 | AE66: - | AG66: XC726 | AH66: 2B | AJ66: DX3-008 | AK66: DX3-008 | AL66: DX3-008 | AP66: DX3-008 | AQ66: DX3-008
A67: 9 | K67: 9 | S67: - | U67: DX3-075S | W67: =W66*7.5/8 -> 31.05409029 | X67: =X66*7.5/8 -> 20.59459543 | Y67: 26.3775 | Z67: - | AA67: - | AB67: - | AC67: =AC66*7.5/8 -> 45.7411999 | AD67: 28.05495225 | AE67: - | AG67: XC726 | AH67: 2B | AJ67: DX3-075S | AK67: DX3-075S | AL67: DX3-075S | AP67: DX3-075S | AQ67: DX3-075S
A68: 10 | K68: 10 | S68: 0 | U68: DX3-006 | W68: =W67*6/7.5 -> 24.84327223 | X68: =X67*6/7.5 -> 16.47567635 | Y68: 21.102 | AG68: XB1019 | AH68: 1B | AJ68: DX3-006 | AK68: DX3-006 | AL68: DX3-006 | AP68: DX3-006 | AQ68: DX3-006
A69: 11 | K69: 11 | S69: - | U69: - | V69: - | W69: - | X69: - | Y69: - | Z69: - | AA69: - | AB69: - | AC69: - | AD69: - | AE69: - | AF69: - | AG69: - | AH69: - | AI69: - | AJ69: - | AK69: - | AL69: - | AM69: - | AN69: - | AO69: -
A70: 12 | K70: 12 | S70: 0
A71: 13 | K71: 13 | S71: 0
A72: 14 | K72: 14 | S72: 0
A73: 15 | K73: 15 | S73: 0
A74: 16 | K74: 16 | S74: 0
A75: 17 | K75: 17 | S75: 0
A76: 18 | K76: 18 | S76: 0
A77: 19 | K77: 19 | S77: 0
A78: 20 | K78: 20 | S78: 0
A79: 21 | K79: 21
A80: 22 | I80: =HLOOKUP(K$60,K$59:U$87,A80) ->  | J80: Qmax oder Qn | K80: 22
A81: 23 | K81: 23
A82: 24 | K82: 24
A83: 25 | K83: 25
A84: 26 | K84: 26
A85: 27 | K85: 27
A86: 28 | K86: 28
A87: 29 | K87: 29
A88: 30 | G88: =IF(OR(LEFT($N$27,4)="TCLE",LEFT($N$27,4)="TJRE"),CONCATENATE($S$93,$S88,"-1B"),CONCATENATE($R$93,$S88,"-2B")) -> -2B | I88: =HLOOKUP(K$60,K$59:U$106,A88) ->  | K88: 30
A89: 31 | G89: =IF(OR(LEFT($N$27,4)="TCLE",LEFT($N$27,4)="TJRE"),CONCATENATE($S$93,$S89,"-1B"),CONCATENATE($R$93,$S89,"-2B")) -> -2B | H89: =HLOOKUP($U$60,$AJ$59:$AQ$106,$K89) -> 0 | I89: =HLOOKUP(K$60,K$59:U$106,A89) ->  | J89: MOP | K89: 31
A90: 32 | G90: =IF(OR(LEFT($N$27,4)="TCLE",LEFT($N$27,4)="TJRE"),CONCATENATE($S$93,$S90,"-1B"),CONCATENATE($R$93,$S90,"-2B")) -> -2B | H90: =HLOOKUP($U$60,$AJ$59:$AQ$106,$K90) -> 0 | I90: =HLOOKUP(K$60,K$59:U$106,A90) ->  | J90: T | K90: 32
A91: 33 | G91: =IF(OR(LEFT($N$27,4)="TCLE",LEFT($N$27,4)="TJRE"),CONCATENATE($S$93,$S91,"-1B"),CONCATENATE($R$93,$S91,"-2B")) -> -2B | H91: =HLOOKUP($U$60,$AJ$59:$AQ$106,$K91) -> 0 | I91: =HLOOKUP(K$60,K$59:U$106,A91) ->  | K91: 33
A92: 34 | K92: 34
A93: 35 | H93: XC 726 | I93: XB 1019 | K93: 35
A94: 36 | H94: =HLOOKUP($U$60,$AJ$59:$AQ$106,$K94) -> 0 | I94: =HLOOKUP(K$60,K$59:U$106,A94) ->  | J94: Best. | K94: 36
A95: 37 | H95: =HLOOKUP($U$60,$AJ$59:$AQ$106,$K95) -> 0 | I95: =HLOOKUP(K$60,K$59:U$106,A95) ->  | J95: Nr. | K95: 37
A96: 38 | H96: =HLOOKUP($U$60,$AJ$59:$AQ$106,$K96) -> 0 | I96: =HLOOKUP(K$60,K$59:U$106,A96) ->  | K96: 38
A97: 39 | H97: =HLOOKUP($U$60,$AJ$59:$AQ$106,$K97) -> 0 | I97: =HLOOKUP(K$60,K$59:U$106,A97) ->  | K97: 39
A98: 40 | K98: 40
A99: 41 | K99: 41
A100: 42 | H100: =HLOOKUP($U$60,$AJ$59:$AQ$106,$K100) -> 0 | I100: =HLOOKUP(K$60,K$59:U$106,A100) ->  | J100: MOP | K100: 42
A101: 43 | H101: =HLOOKUP($U$60,$AJ$59:$AQ$106,$K101) -> 0 | I101: =HLOOKUP(K$60,K$59:U$106,A101) ->  | J101: TI | K101: 43
A102: 44 | H102: =HLOOKUP($U$60,$AJ$59:$AQ$106,$K102) -> 0 | I102: =HLOOKUP(K$60,K$59:U$106,A102) ->  | K102: 44
A103: 45 | K103: 45
A104: 46 | J104: Metrisch | K104: 46
A105: 47 | I105: =HLOOKUP(K$60,K$59:U$115,A105) ->  | J105: Best | K105: 47
A106: 48 | I106: =HLOOKUP(K$60,K$59:U$115,A106) ->  | J106: Nr | K106: 48
A107: 49 | I107: =HLOOKUP(K$60,K$59:U$115,A107) ->  | J107: TI | K107: 49
A108: 50 | I108: =HLOOKUP(K$60,K$59:U$115,A108) ->  | K108: 50
A109: 51 | K109: 51
A110: 52 | J110: Zöllig | K110: 52
A111: 53 | I111: =HLOOKUP(K$60,K$59:U$115,A111) ->  | J111: Best | K111: 53
A112: 54 | I112: =HLOOKUP(K$60,K$59:U$115,A112) ->  | J112: Nr | K112: 54
A113: 55 | I113: =HLOOKUP(K$60,K$59:U$115,A113) ->  | J113: TI | K113: 55
A114: 56 | I114: =HLOOKUP(K$60,K$59:U$115,A114) ->  | K114: 56
A115: 57 | K115: 57
A117: 1 | K117: 1 | W117: 2 | X117: 3 | Y117: 4 | Z117: 5 | AA117: 6 | AB117: 7 | AC117: 8 | AD117: 9 | AE117: 10
A118: 2 | I118: =HLOOKUP(K$60,L$117:T$121,A118) ->  | K118: 2 | S118: =HLOOKUP(U$60,W$117:AE$121,K118) -> R404A | U118: Temperatur | W118: R410A | X118: R134a | Y118: R22 | Z118: R404A | AA118: R507 | AB118: R407F | AC118: R32 | AD118: R407C | AE118: R744 | AI118: Temperatur | AJ118: R 410A | AK118: R 134a | AL118: R 22 | AM118: R 404A | AN118: R 507 | AO118: R 407F | AP118: R23 | AQ118: R124
A119: 3 | I119: =HLOOKUP(K$60,L$117:T$121,A119)+$P$16 ->  | J119: Eintrittspkt Korr Tabelle Flüssig.Temp: | K119: 3 | S119: =HLOOKUP(U$60,W$117:AE$121,K119)+$P$16 -> 477 | T119: Eintrittspkt Korr Tabelle Flüssig.Temp: | W119: 640 | X119: 120 | Y119: 260 | Z119: 440 | AA119: 760 | AB119: 520 | AC119: 930 | AD119: 1010 | AE119: 870
A121: 5 | I121: =HLOOKUP(K$60,L$117:T$121,A121) ->  | J121: Korr.Faktor | K121: 5 | S121: =HLOOKUP(U$60,W$117:AE$121,K121) -> 10.6251 | T121: Korr.Faktor | W121: 13.99599596 | X121: 6.251925281 | Y121: 8.94166157 | Z121: 10.6251 | AA121: 10.73171206 | AB121: 12.3175 | AC121: 14.37586207 | AD121: 11.36551724 | AE121: 16.47026704
Y326: Valves Type | Z326: =(IF(O27="EX5",10,IF(O27="EX6",11,IF(O27="EX7",12,IF(O27="EX8",13,#N/A))))) -> 
U327: =T16 -> R404A | W327: =U4 -> 0 | X327: =W4 -> 0 | Y327: =X4 -> 0 | Z327: =Y4 -> 0 | AA327: =Z4 -> 0 | AB327: =AA4 -> 0 | AC327: R507 | AD327: =AC4 -> 0
J328: 1 | T328: 1 | U328: 2 | W328: 3 | X328: 4 | Y328: 5 | Z328: 6 | AA328: 7 | AB328: 8 | AC328: 9 | AD328: 10
J329: 10 | T329: 10 | U329: =T21 -> - | W329: =U8 -> 0 | X329: =W8 -> 0 | Y329: =X8 -> 0 | Z329: =Y8 -> 0 | AA329: =Z8 -> 0 | AB329: =AA8 -> 0 | AC329: =$AB$8 -> 0 | AD329: =AC8 -> 0
J330: 11 | T330: 11 | U330: =T20 -> - | W330: =U7 -> 0 | X330: =W7 -> 0 | Y330: =X7 -> 0 | Z330: =Y7 -> 0 | AA330: =Z7 -> 0 | AB330: =AA7 -> 0 | AC330: =$AB$7 -> 0 | AD330: =AC7 -> 0.99
J331: 12 | T331: 12 | U331: =T19 -> - | W331: =U6 -> 0 | X331: =W6 -> 0 | Y331: =X6 -> 0 | Z331: =Y6 -> 0 | AA331: =Z6 -> 0 | AB331: =AA6 -> 0 | AC331: =$AB$6 -> 0 | AD331: =AC6 -> 0
J332: 13 | T332: 13 | U332: =T18 -> - | W332: =U5 -> 0 | X332: =W5 -> 0 | Y332: =X5 -> 0 | Z332: =Y5 -> 0 | AA332: =Z5 -> 0 | AB332: =AA5 -> 0 | AC332: =$AB$5 -> 0 | AD332: =AC5 -> 0
J335: EX1 | T335: EX1
Y336: Refrigerant | Z336: =(IF(M6="R124",2,IF(M6="R134a",3,IF(M6="R22",4,IF(M6="R23",5,IF(M6="R404A",6,IF(M6="R407C",7,IF(M6="R410A",8,IF(M6="R744",10,"9"))))))))) -> 6
Y337: Valves Type | Z337: =(IF(O39="EX1-A",10,IF(O39="EX1-C",11,IF(O39="EX1-E",12,IF(O39="EX1-G",13,IF(O39="EX1-I",14,#N/A)))))) -> 
U338: R124 | W338: R134a | X338: R22 | Y338: R23 | Z338: R404A | AA338: R407C | AB338: R410A | AC338: R507 | AD338: R744
J339: 1 | T339: 1 | U339: 2 | W339: 3 | X339: 4 | Y339: 5 | Z339: 6 | AA339: 7 | AB339: 8 | AC339: 9 | AD339: 10
J340: 10 | T340: 10 | U340: =T29 -> 0 | W340: =U16 -> 0 | X340: =W16 -> 0 | Y340: =X16 -> 0 | Z340: =Y16 -> 0 | AA340: =Z16 -> 0 | AB340: =AA16 -> 0 | AC340: =$AB$16 -> 0 | AD340: =AC16 -> 0
J341: 11 | T341: 11 | U341: =T28 -> 0 | W341: =U15 -> 0 | X341: =W15 -> 0 | Y341: =X15 -> 0 | Z341: =Y15 -> 0 | AA341: =Z15 -> 0 | AB341: =AA15 -> 0 | AC341: =$AB$15 -> 0 | AD341: =AC15 -> 0
J342: 12 | T342: 12 | U342: =T27 -> 0 | W342: =U14 -> 0 | X342: =W14 -> 0 | Y342: =X14 -> 0 | Z342: =Y14 -> 0 | AA342: =Z14 -> 0 | AB342: =AA14 -> 0 | AC342: =$AB$14 -> 0 | AD342: =AC14 -> 0
J343: 13 | T343: 13 | U343: =T26 -> 0 | W343: =U13 -> 0 | X343: =W13 -> 0 | Y343: =X13 -> 0 | Z343: =Y13 -> 0 | AA343: =Z13 -> 0 | AB343: =AA13 -> 0 | AC343: =$AB$13 -> 0 | AD343: =AC13 -> 0
J344: 14 | T344: 14 | U344: =T25 -> 0 | W344: =U12 -> 0 | X344: =W12 -> 0 | Y344: =X12 -> 0 | Z344: =Y12 -> 0 | AA344: =Z12 -> 0 | AB344: =AA12 -> 0 | AC344: =$AB$12 -> 0 | AD344: =AC12 -> 0
J347: EX2 | T347: EX2
Y348: Refrigerant | Z348: =(IF(M6="R124",2,IF(M6="R134a",3,IF(M6="R22",4,IF(M6="R23",5,IF(M6="R404A",6,IF(M6="R407C",7,IF(M6="R410A",8,IF(M6="R744",10,"9"))))))))) -> 6
Y349: Valves Type | Z349: =IF(O37="EXO-00X",10,IF(O37="EXO-000",11,IF(O37="EXO-001",12,IF(O37="EXO-002",13,IF(O37="EXO-003",14,IF(O37="EXO-004",15,IF(O37="EX2",16,#N/A))))))) -> 
U350: R124 | W350: R134a | X350: R22 | Y350: R23 | Z350: R404A | AA350: R407C | AB350: R410A | AC350: R507 | AD350: R744
J351: 1 | T351: 1 | U351: 2 | W351: 3 | X351: 4 | Y351: 5 | Z351: 6 | AA351: 7 | AB351: 8 | AC351: 9 | AD351: 10
J352: 10 | T352: 10 | U352: =T41 -> 0 | W352: =U40 -> 0 | X352: =W40 -> 0 | Y352: =X40 -> 0 | Z352: =Y40 -> 0 | AA352: =Z40 -> 0 | AB352: =AA40 -> 0 | AC352: =$AB$40 -> 0 | AD352: =AC40 -> 0
J353: 11 | T353: 11 | U353: =T40 -> 0 | W353: =U39 -> 0 | X353: =W39 -> 0 | Y353: =X39 -> 0 | Z353: =Y39 -> 0 | AA353: =Z39 -> 0 | AB353: =AA39 -> 0 | AC353: =$AB$39 -> 0 | AD353: =AC39 -> 0
J354: 12 | T354: 12 | U354: =T39 -> 0 | W354: =U38 -> 0 | X354: =W38 -> = | Y354: =X38 -> 0 | Z354: =Y38 -> 0 | AA354: =Z38 -> 0 | AB354: =AA38 -> 0 | AC354: =$AB$38 -> 0 | AD354: =AC38 -> 0
J355: 13 | T355: 13 | U355: =T38 -> 0 | W355: =U24 -> 0 | X355: =W24 -> 0 | Y355: =X24 -> 0 | Z355: =Y24 -> 0 | AA355: =Z24 -> 0 | AB355: =AA24 -> 0 | AC355: =$AB$24 -> 0 | AD355: =AC24 -> 0
J356: 14 | T356: 14 | U356: =T37 -> 0 | W356: =U23 -> 0 | X356: =W23 -> 0 | Y356: =X23 -> 0 | Z356: =Y23 -> 0 | AA356: =Z23 -> 0 | AB356: =AA23 -> 0 | AC356: =$AB$23 -> 2 | AD356: =AC23 -> Chinese
J357: 15 | T357: 15 | U357: =T36 -> 0 | W357: =U22 -> 0 | X357: =W22 -> 0 | Y357: =X22 -> 0 | Z357: =Y22 -> 0 | AA357: =Z22 -> 0 | AB357: =AA22 -> 0 | AC357: =$AB$22 -> 1 | AD357: =AC22 -> English
J358: 16 | T358: 16 | U358: =T34 -> 0 | W358: =U21 -> 0 | X358: =W21 -> 0 | Y358: =X21 -> 0 | Z358: =Y21 -> 0 | AA358: =Z21 -> 0 | AB358: =AA21 -> 0 | AC358: =$AB$21 -> 0 | AD358: =AC21 -> 0

Sheet RX1S
A1: =INDEX(Language!$F$2:$G$70,2,Language!$E$1) -> 使用方法: 选择冷媒, 并在黄色部分填入你所要求的工况 | K1: =INDEX(Language!$F$2:$G$41,2,Language!$E$1) -> 使用方法: 选择冷媒, 并在黄色部分填入你所要求的工况
A2: =INDEX(Language!$F$2:$G$70,3,Language!$E$1) -> 错误信息: Po或Pc如显示N/A, 表示已超出冷媒的正常工况.
D3: =INDEX(Language!$F$2:$G$70,4,Language!$E$1) -> 项目:
AE4: DP | AF4: Kt | AG4: Zeile in | AH4: KDP | AM4: 3 | AN4: =INDEX(AN5:AN13,U59) -> 7 | BO4: 0.7098202859
AE5: =P12-(P9+P22) -> 28.07461 | AF5: bar | AG5: Korr.Tab | AH5: =SQRT(S121/AE5) -> 0.6623757427 | AN5: 2 | AO5: R410A | BO5: 1.504819006
A6: =INDEX(Language!$F$2:$G$70,5,Language!$E$1) -> 冷媒: | C6: =M6 -> R407F | K6: =INDEX(Language!$F$2:$G$41,5,Language!$E$1) -> 冷媒: | M6: =HLOOKUP(U60,W59:AI60,2) -> R407F | AF6: =HLOOKUP(P8,Kt!$C$3:'Kt'!$ED$1393,$AG$6,) -> 1.818432522 | AG6: =MATCH(AH6,Kt!$C$3:'Kt'!$C$1393,0) -> 497 | AH6: =ROUND(VLOOKUP(C6,AO19:AP31,2)+P16,0) -> 580 | AN6: 3 | AO6: R134a | BO6: 2.441781784
AC7: =(100-P14)/100 -> 1 | AE7: Kü | AF7: 1 | AN7: 4 | AO7: R22 | BO7: 3.94660079
A8: =INDEX(Language!$F$2:$G$70,6,Language!$E$1) -> 蒸发温度 | E8: To: | F8: 10 | G8: =INDEX(Language!$B$5:$D$15,2,Language!$B$2) -> °C | K8: =INDEX(Language!$F$2:$G$41,6,Language!$E$1) -> 蒸发温度 | O8: To: | P8: -45 | Q8: °C | AN8: 5 | AO8: R404A | BO8: 6.388382573
E9: Po= | F9: =(P9)*INDEX(Language!$B$5:$D$15,9,Language!$B$2) -> 0.77139 | G9: =INDEX(Language!$B$5:$D$15,10,Language!$B$2) -> bara | O9: Po= | P9: =(VLOOKUP(P8,DampfDruck!$U$4:$AH$404,$U$60,))/100000 -> 0.77139 | Q9: bara | AN9: 6 | AO9: R507 | BO9: 8.09195126
F10: =IF(C6="R407C",INDEX(Language!$F$2:$G$70,60,Language!$E$1),"") ->  | P10: =IF(M6="R407C",INDEX(Language!$F$2:$G$70,60,Language!$E$1),"") ->  | AE10: R124 | AF10: R134a | AG10: R22 | AH10: R23 | AI10: R404A | AJ10: R407C | AK10: R410A | AL10: R507 | AM10: R744 | AN10: 7 | AO10: R407F | BO10: 9.000521226
A11: =INDEX(Language!$F$2:$G$70,7,Language!$E$1) -> 冷凝温度 | E11: Tc: | F11: 30 | G11: =INDEX(Language!$B$5:$D$15,2,Language!$B$2) -> °C | K11: =INDEX(Language!$F$2:$G$41,7,Language!$E$1) -> 冷凝温度 | O11: Tc: | P11: 60 | Q11: °C | AE11: =IF($M$6=AE10,(MATCH($P$20,T18:T21,-1)),FALSE) -> FALSE | AF11: =IF($M$6=AF10,(MATCH($P$20,U5:U8,-1)),FALSE) -> FALSE | AG11: =IF($M$6=AG10,(MATCH($P$20,W5:W8,-1)),FALSE) -> FALSE | AH11: FALSE | AI11: FALSE | AJ11: FALSE | AK11: FALSE | AL11: FALSE | AM11: FALSE | AN11: 8 | AO11: R23 | BO11: 11.52748144
E12: Pc= | F12: =(P12)*INDEX(Language!$B$5:$D$15,9,Language!$B$2) -> 30.346 | G12: =INDEX(Language!$B$5:$D$15,10,Language!$B$2) -> bara | O12: Pc= | P12: =(VLOOKUP(P11,DampfDruck!$F$4:$S$404,$U$60,))/100000 -> 30.346 | Q12: bara | AE12: =IF(AE11=1,"EX8",IF(AE11=2,"EX7",IF(AE11=3,"EX6",IF(AE11=4,"EX5",#N/A)))) ->  | AM12: =IF(AM11=1,"EX8",IF(AM11=2,"EX7",IF(AM11=3,"EX6",IF(AM11=4,"EX5",#N/A)))) ->  | AN12: 9 | AO12: R124
F13: =IF(C6="R407C",INDEX(Language!$F$2:$G$70,61,Language!$E$1),"") ->  | P13: =IF(M6="R407C",INDEX(Language!$F$2:$G$70,61,Language!$E$1),"") ->  | AN13: 10 | AO13: R744
A14: =INDEX(Language!$F$2:$G$70,8,Language!$E$1) -> 过冷度 | E14: DTsub: | F14: 20 | G14: =INDEX(Language!$B$5:$D$15,3,Language!$B$2) -> K | H14: =INDEX(Language!$F$2:$G$70,23,Language!$E$1) -> 指定工况下阀的最大容量 (kW) | K14: =INDEX(Language!$F$2:$G$41,8,Language!$E$1) -> 过冷度 | O14: DTsub: | P14: 0 | Q14: K | R14: =INDEX(Language!$F$2:$G$41,23,Language!$E$1) -> 指定工况下阀的最大容量 (kW) | AN14: 11 | AO14: R448A
AE15: R1 | AF15: R134a | AG15: R22 | AH15: R231 | AI15: R404A | AJ15: R407C | AK15: R410A | AL15: R507 | AM15: R7 | AN15: 12 | AO15: R449A
A16: =INDEX(Language!$F$2:$G$70,9,Language!$E$1) -> 液体温度 | E16: Tliquid: | F16: =F11-F14 -> 10 | G16: =INDEX(Language!$B$5:$D$15,2,Language!$B$2) -> °C | I16: =INDEX(Language!$F$2:$G$70,17,Language!$E$1) -> RX1S | J16: =T16 -> R407F | K16: =INDEX(Language!$F$2:$G$41,9,Language!$E$1) -> 液体温度 | O16: Tliquid: | P16: =P11-P14 -> 60 | Q16: °C | S16: =INDEX(Language!$F$2:$G$70,17,Language!$E$1) -> RX1S | T16: =HLOOKUP(U60,W59:AE60,2) -> R407F | AE16: =IF($M$6=AE15,(MATCH($P$20,T25:T29,-1)),FALSE) -> FALSE | AF16: =IF($M$6=AF15,(MATCH($P$20,U12:U16,-1)),FALSE) -> FALSE | AG16: =IF($M$6=AG15,(MATCH($P$20,W12:W16,-1)),FALSE) -> FALSE | AH16: FALSE | AI16: FALSE | AJ16: FALSE | AK16: FALSE | AL16: FALSE | AM16: FALSE | AN16: 13 | AO16: R450A
H17: =I16 -> RX1S | I17: =U61 -> RX1S-9000 | J17: =IF(T17="-","-",T17*INDEX(Language!$B$5:$D$15,8,Language!$B$2)) -> 17.57791054 | R17: RX1S | S17: =U61 -> RX1S-9000 | T17: =IF(S61="-","-",S61/($AH$5*$AF$6*$AF$7)) -> 17.57791054 | V17: =0.85*T17 -> 14.94122396 | AE17: =IF(AE16=1,"EX1-I",IF(AE16=2,"EX1-G",IF(AE16=3,"EX1-E",IF(AE16=4,"EX1-C",IF(AE16=5,"EX1-A",#N/A))))) ->  | AF17: =IF(AF16=1,"EX1-I",IF(AF16=2,"EX1-G",IF(AF16=3,"EX1-E",IF(AF16=4,"EX1-C",IF(AF16=5,"EX1-A",#N/A))))) ->  | AM17: =IF(AM16=1,"EX1-I",IF(AM16=2,"EX1-G",IF(AM16=3,"EX1-E",IF(AM16=4,"EX1-C",IF(AM16=5,"EX1-A",#N/A))))) ->  | AN17: 14 | AO17: R513A
A18: =INDEX(Language!$F$2:$G$70,10,Language!$E$1) -> 阀两端的压差 | F18: =F12-(F9+F22) -> 29.23461 | G18: =INDEX(Language!$B$5:$D$15,5,Language!$B$2) -> bar | I18: =U62 -> RX1S-8000 | J18: =IF(T18="-","-",T18*INDEX(Language!$B$5:$D$15,8,Language!$B$2)) -> 13.75281705 | K18: =INDEX(Language!$F$2:$G$41,10,Language!$E$1) -> 阀两端的压差 | P18: =P12-(P9+P22) -> 28.07461 | Q18: bar | S18: =U62 -> RX1S-8000 | T18: 13.75281705 | V18: =0.85*T18 -> 11.6898945 | AO18: 1 | AP18: 2
I19: RX1S-7000 | J19: =IF(T19="-","-",T19*INDEX(Language!$B$5:$D$15,8,Language!$B$2)) -> 12.35125608 | S19: =U63 -> RX1S-7000 | T19: 12.35125608 | V19: =0.85*T19 -> 10.49856767 | AO19: R124 | AP19: 0
A20: =INDEX(Language!$F$2:$G$70,11,Language!$E$1) -> 系统制冷量 | E20: Q0: | F20: 70 | G20: =INDEX(Language!$B$5:$D$15,4,Language!$B$2) -> kW | I20: RX1S-6000 | J20: =IF(T20="-","-",T20*INDEX(Language!$B$5:$D$15,8,Language!$B$2)) -> 9.752528442 | K20: =INDEX(Language!$F$2:$G$41,11,Language!$E$1) -> 系统制冷量 | O20: Q0: | P20: 10 | Q20: kW | S20: RX1S-6000 | T20: 9.752528442 | V20: =0.85*T20 -> 8.289649175 | AE20: R1 | AF20: R134a | AG20: R22 | AH20: R231 | AI20: R404A | AJ20: R407C | AK20: R408 | AL20: R507 | AM20: R7 | AO20: R134a | AP20: 120
I21: RX1S-5000 | J21: =IF(T21="-","-",T21*INDEX(Language!$B$5:$D$15,8,Language!$B$2)) -> 6.015032512 | S21: RX1S-5000 | T21: 6.015032512 | V21: =0.7*T21 -> 4.210522758 | AE21: =IF($M$6=AE20,(MATCH($P$20,T34:T41,-1)),FALSE) -> FALSE | AF21: =IF($M$6=AF20,(MATCH($P$20,U21:U40,-1)),FALSE) -> FALSE | AG21: =IF($M$6=AG20,(MATCH($P$20,W21:W40,-1)),FALSE) -> FALSE | AH21: FALSE | AI21: FALSE | AJ21: FALSE | AK21: FALSE | AL21: FALSE | AM21: FALSE | AO21: R22 | AP21: 260
A22: =INDEX(Language!$F$2:$G$70,12,Language!$E$1) -> 压降 | F22: 0.34 | G22: =INDEX(Language!$B$5:$D$15,5,Language!$B$2) -> bar | I22: RX1S-4000 | J22: =IF(T22="-","-",T22*INDEX(Language!$B$5:$D$15,8,Language!$B$2)) -> 3.708296743 | K22: =INDEX(Language!$F$2:$G$41,12,Language!$E$1) -> 压降 | P22: 1.5 | Q22: bar | S22: RX1S-4000 | T22: 3.708296743 | V22: =0.85*T22 -> 3.152052231 | AB22: 1 | AC22: =Language!F$2 -> English | AE22: =IF(AE21=1,"EX2",IF(AE21=2,"EXO-004",IF(AE21=3,"EXO-003",IF(AE21=4,"EXO-002",IF(AE21=5,"EXO-001",IF(AE21=6,"EXO-000",IF(AE21=7,"EXO-00X",#N/A))))))) ->  | AF22: =IF(AF21=1,"EX2",IF(AF21=2,"EXO-004",IF(AF21=3,"EXO-003",IF(AF21=4,"EXO-002",IF(AF21=5,"EXO-001",IF(AF21=6,"EXO-000",IF(AF21=7,"EXO-00X",#N/A))))))) ->  | AM22: =IF(AM21=1,"EX2",IF(AM21=2,"EXO-004",IF(AM21=3,"EXO-003",IF(AM21=4,"EXO-002",IF(AM21=5,"EXO-001",IF(AM21=6,"EXO-000",IF(AM21=7,"EXO-00X",#N/A))))))) ->  | AO22: R23 | AP22: 390
A23: =INDEX(Language!$F$2:$G$70,13,Language!$E$1) -> (液管, 干燥过滤器, 电磁阀, 视液镜, 分液头, 蒸发器) | I23: RX1S-3000 | J23: =IF(T23="-","-",T23*INDEX(Language!$B$5:$D$15,8,Language!$B$2)) -> 2.306735769 | K23: =INDEX(Language!$F$2:$G$41,13,Language!$E$1) -> (液管, 干燥过滤器, 电磁阀, 视液镜, 分液头, 蒸发器) | S23: RX1S-3000 | T23: 2.306735769 | V23: =0.85*T23 -> 1.960725404 | AB23: 2 | AC23: =Language!G$2 -> Chinese | AO23: R404A | AP23: 440
I24: RX1S-2000 | J24: =IF(T24="-","-",T24*INDEX(Language!$B$5:$D$15,8,Language!$B$2)) -> 1.109569104 | S24: RX1S-2000 | T24: 1.109569104 | V24: =0.85*T24 -> 0.9431337385 | AO24: R407F | AP24: 520
AO25: R410A | AP25: 640
A26: =INDEX(Language!$F$2:$G$70,14,Language!$E$1) -> 你的选择 | D26: =INDEX(Language!$F$2:$G$70,15,Language!$E$1) -> 型号 | F26: =P26 -> 产品编号: | H26: =R26 -> 0 | K26: =INDEX(Language!$F$2:$G$41,14,Language!$E$1) -> 你的选择 | N26: =INDEX(Language!$F$2:$G$41,15,Language!$E$1) -> 型号 | P26: =INDEX(Language!$F$2:$G$41,18,Language!$E$1) -> 产品编号: | S26: =INDEX(Language!$F$2:$G$70,66,Language!$E$1) -> 备注 | AO26: R507 | AP26: 760
A27: =K27 -> 0 | D27: =N27 -> 0 | AO27: R744 | AP27: 870
A28: =K28 -> RX1S | D28: =N28 -> RX1S-7000 | F28: =P28 -> 098332 | K28: =INDEX(Language!$F$2:$G$70,17,Language!$E$1) -> RX1S | N28: =INDEX(S17:S34,T58,1) -> RX1S-7000 | P28: =INDEX(V61:V78,T58,1) -> 098332 | AO28: R448A | AP28: 1125
AO29: R449A | AP29: 1235
D30: =N30 -> 配件 | N30: =INDEX(Language!$F$2:$G$41,38,Language!$E$1) -> 配件 | AO30: R450A | AP30: 1345
A31: =K31 -> 定子 | D31: =N31 -> S012 | F31: =P31 -> 098338 | H31: =R31 -> 12VDC | K31: =INDEX(Language!$F$2:$G$65,62,Language!$E$1) -> 定子 | N31: S012 | P31: 098338 | R31: 12VDC | AO31: R513A | AP31: 1455
A33: =K33 -> 线圈（选择其中之一） | D33: =N33 -> C230 | F33: =P33 -> 098335 | H33: =R33 -> 230VAC | K33: =INDEX(Language!$F$2:$G$65,63,Language!$E$1) -> 线圈（选择其中之一） | N33: C230 | P33: 098335 | R33: 230VAC
D34: =N34 -> C120 | F34: =P34 -> 098336 | H34: =R34 -> 120VAC | N34: C120 | P34: 098336 | R34: 120VAC
D35: =N35 -> C024 | F35: =P35 -> 098337 | H35: =R35 -> 24VAC | N35: C024 | P35: 098337 | R35: 24VAC
A37: =K37 -> IP67接线盒 | D37: =N37 -> PL67 | F37: =P37 -> 098351 | K37: =INDEX(Language!$F$2:$G$65,64,Language!$E$1) -> IP67接线盒 | N37: PL67 | P37: 098351
A39: =K39 -> 定子导线（选择其中之一） | D39: =N39 -> M300 | F39: =P39 -> 098325 | H39: =R39 -> 3M | K39: =INDEX(Language!$F$2:$G$66,65,Language!$E$1) -> 定子导线（选择其中之一） | N39: M300 | P39: 098325 | R39: 3M
D40: =N40 -> M600 | F40: =P40 -> 098326 | H40: =R40 -> 6M | N40: M600 | P40: 098326 | R40: 6M
D45: =N45 -> 注: | N45: =INDEX(Language!$F$2:$G$70,22,Language!$E$1) -> 注:
N47: =IF(ISERR(HLOOKUP(U60,AJ59:AQ87,V58)),"RX1S系列没有符合您需求的阀，请选择其他系列，谢谢！ RX1S series can not meet your demand, please choose other series, thanks!","") -> 
A54: =INDEX(Language!$F$2:$G$70,45,Language!$E$1) -> 螺口型或内平衡型请见 | K54: =INDEX(Language!$F$2:$G$70,45,Language!$E$1) -> 螺口型或内平衡型请见
A55: =INDEX(Language!$F$2:$G$70,50,Language!$E$1) -> ALCO CONTROLS is not to be held responsible for erroneous data regarding capacities, dimensions, applications, etc. stated herein. Products, specifications and data in this data are subject to change without notice. The information given herein is based on technical data and tests which ALCO CONTROLS believes to be reliable and which are in compliance with technical knowledge of today. It is intended only for use by persons having the appropriate technical knowledge and skills, at their own discretion and risk. Since conditions of use are outside of ALCO'S control we can not assume any liability for results obtained or damages occurred due to improper application. | K55: =INDEX(Language!$F$2:$G$70,50,Language!$E$1) -> ALCO CONTROLS is not to be held responsible for erroneous data regarding capacities, dimensions, applications, etc. stated herein. Products, specifications and data in this data are subject to change without notice. The information given herein is based on technical data and tests which ALCO CONTROLS believes to be reliable and which are in compliance with technical knowledge of today. It is intended only for use by persons having the appropriate technical knowledge and skills, at their own discretion and risk. Since conditions of use are outside of ALCO'S control we can not assume any liability for results obtained or damages occurred due to improper application.
A58: - | D58: =IF(I100=0,"",J100) ->  | G58: =I58+21 ->  | I58: =MATCH($P$20,J37:J45,-1) ->  | J58: =MATCH($P$20,J17:J34,-1) -> 3 | K58: - | N58: =IF(S100=0,"",T100) ->  | Q58: =S58+21 ->  | S58: =MATCH($P$20,T37:T45,-1) ->  | T58: =MATCH($P$20,V17:V24,-1) -> 3 | V58: =T58+2 -> 5
E59: =HLOOKUP(K60,Z59:AH87,J58) ->  | F59: =INDEX(J17:J34,J58,1) -> 12.35125608 | O59: =HLOOKUP(U60,AJ59:AQ87,T58) -> RX1S-9000 | P59: =INDEX(T17:T34,T58,1) -> 12.35125608 | U59: 6 | W59: 2 | X59: 3 | Y59: 4 | Z59: 5 | AA59: 6 | AB59: 7 | AC59: 8 | AD59: 9 | AE59: 10 | AF59: 11 | AG59: 12 | AH59: 13 | AI59: 14 | AJ59: 2 | AK59: 3 | AL59: 4 | AM59: 5 | AN59: 6 | AO59: 7 | AP59: 8 | AQ59: 9 | AR59: 10 | AS59: 11 | AT59: 12 | AU59: 13 | AV59: 14
A60: 2 | I60: =HLOOKUP(K$60,M$59:U$87,A60) ->  | K60: 2 | S60: =HLOOKUP(U$60,W$59:AI$87,K60) -> R407F | U60: =INDEX(W59:AI59,U59) -> 7 | W60: R410A | X60: R134a | Y60: R22 | Z60: R404A | AA60: R507 | AB60: R407F | AC60: R23 | AD60: R124 | AE60: R744 | AF60: R448A | AG60: R449A | AH60: R450A | AI60: R513A | AJ60: R 410A | AK60: R 134a | AL60: R 22 | AM60: R 404A | AN60: R 507 | AO60: R 407F | AP60: R23 | AQ60: R124 | AR60: R744 | AS60: R448A | AT60: R449A | AU60: R450A | AV60: R513A
A61: 3 | I61: =HLOOKUP(K$60,K$59:U$87,A61) ->  | J61: Qmax oder Qn | K61: 3 | S61: =HLOOKUP(U$60,U$59:AI$87,K61) -> 21.17234 | T61: Qmax oder Qn | U61: RX1S-9000 | V61: 098334 | W61: - | X61: 16.14303 | Y61: 22.36812 | Z61: 14.27902 | AA61: 13.85698 | AB61: 21.17234 | AC61: - | AD61: - | AE61: - | AF61: 21.96919824 | AG61: 21.54419889 | AH61: 15.40591058 | AI61: 14.54420852 | AJ61: - | AK61: RX1S-9000 | AL61: RX1S-9000 | AM61: RX1S-9000 | AN61: RX1S-9000 | AO61: RX1S-9000 | AS61: RX1S-9000 | AT61: RX1S-9000 | AU61: RX1S-9000 | AV61: RX1S-9000
A62: 4 | K62: 4 | S62: =HLOOKUP(U$60,U$59:AI$87,K62) -> 16.56507 | U62: RX1S-8000 | V62: 098333 | W62: - | X62: 12.62603 | Y62: 17.51466 | Z62: 11.14889 | AA62: 10.83236 | AB62: 16.56507 | AC62: - | AD62: - | AE62: - | AF62: 17.20229674 | AG62: 16.86951422 | AH62: 12.06311866 | AI62: 11.38838969 | AJ62: - | AK62: RX1S-8000 | AL62: RX1S-8000 | AM62: RX1S-8000 | AN62: RX1S-8000 | AO62: RX1S-8000 | AS62: RX1S-8000 | AT62: RX1S-8000 | AU62: RX1S-8000 | AV62: RX1S-8000
A63: 5 | K63: 5 | S63: 14.87691 | U63: RX1S-7000 | V63: 098332 | W63: - | X63: 11.32474 | Y63: 15.72099 | Z63: 10.02345 | AA63: 9.74209 | AB63: 14.87691 | AC63: - | AD63: - | AE63: - | AF63: 15.44061575 | AG63: 15.14191337 | AH63: 10.82773904 | AI63: 10.22210881 | AJ63: - | AK63: RX1S-7000 | AL63: RX1S-7000 | AM63: RX1S-7000 | AN63: RX1S-7000 | AO63: RX1S-7000 | AS63: RX1S-7000 | AT63: RX1S-7000 | AU63: RX1S-7000 | AV63: RX1S-7000
A64: 6 | K64: 6 | S64: 11.74678 | U64: RX1S-6000 | V64: 098331 | W64: - | X64: 8.93318 | Y64: 12.41501 | Z64: 7.91325 | AA64: 7.66706 | AB64: 11.74678 | AC64: - | AD64: - | AE64: - | AF64: 12.19359588 | AG64: 11.95770787 | AH64: 8.550764835 | AI64: 8.072493091 | AJ64: - | AK64: RX1S-6000 | AL64: RX1S-6000 | AM64: RX1S-6000 | AN64: RX1S-6000 | AO64: RX1S-6000 | AS64: RX1S-6000 | AT64: RX1S-6000 | AU64: RX1S-6000 | AV64: RX1S-6000
A65: 7 | K65: 7 | S65: 7.24502 | U65: RX1S-5000 | V65: 098330 | W65: - | X65: 5.52169 | Y65: 7.66706 | Z65: 4.88863 | AA65: 4.74795 | AB65: 7.24502 | AC65: - | AD65: - | AE65: - | AF65: 7.530322668 | AG65: 7.384646789 | AH65: 5.280642306 | AI65: 4.985279019 | AJ65: - | AK65: RX1S-5000 | AL65: RX1S-5000 | AM65: RX1S-5000 | AN65: RX1S-5000 | AO65: RX1S-5000 | AS65: RX1S-5000 | AT65: RX1S-5000 | AU65: RX1S-5000 | AV65: RX1S-5000
A66: 8 | K66: 8 | S66: 4.46659 | U66: RX1S-4000 | V66: 098329 | W66: - | X66: 3.41149 | Y66: 4.71278 | Z66: 3.02462 | AA66: 2.91911 | AB66: 4.46659 | AC66: - | AD66: - | AE66: - | AF66: 4.628730447 | AG66: 4.539186558 | AH66: 3.245899399 | AI66: 3.064345819 | AJ66: - | AK66: RX1S-4000 | AL66: RX1S-4000 | AM66: RX1S-4000 | AN66: RX1S-4000 | AO66: RX1S-4000 | AS66: RX1S-4000 | AT66: RX1S-4000 | AU66: RX1S-4000 | AV66: RX1S-4000
A67: 9 | K67: 9 | S67: 2.77843 | U67: RX1S-3000 | V67: 098328 | W67: - | X67: 2.1102 | Y67: 2.95428 | Z67: 1.86401 | AA67: 1.82884 | AB67: 2.77843 | AC67: - | AD67: - | AE67: - | AF67: 2.901592221 | AG67: 2.845460231 | AH67: 2.034742907 | AI67: 1.9209332 | AJ67: - | AK67: RX1S-3000 | AL67: RX1S-3000 | AM67: RX1S-3000 | AN67: RX1S-3000 | AO67: RX1S-3000 | AS67: RX1S-3000 | AT67: RX1S-3000 | AU67: RX1S-3000 | AV67: RX1S-3000
A68: 10 | K68: 10 | S68: 1.33646 | U68: RX1S-2000 | V68: 098327 | W68: - | X68: 1.01993 | Y68: 1.4068 | Z68: 0.87925 | AA68: 0.87925 | AB68: 1.33646 | AC68: - | AD68: - | AE68: - | AF68: 1.381710581 | AG68: 1.354981062 | AH68: 0.9689251938 | AI68: 0.9147300953 | AJ68: - | AK68: RX1S-2000 | AL68: RX1S-2000 | AM68: RX1S-2000 | AN68: RX1S-2000 | AO68: RX1S-2000 | AS68: RX1S-2000 | AT68: RX1S-2000 | AU68: RX1S-2000 | AV68: RX1S-2000
A69: 11 | K69: 11 | S69: =HLOOKUP(U$60,U$59:AE$87,K69) -> - | U69: - | V69: - | W69: - | X69: - | Y69: - | Z69: - | AA69: - | AB69: - | AC69: - | AD69: - | AE69: - | AJ69: - | AK69: - | AL69: - | AM69: - | AN69: - | AO69: -
A70: 12 | K70: 12 | S70: 0
A71: 13 | K71: 13 | S71: 0
A72: 14 | K72: 14 | S72: 0
A73: 15 | K73: 15 | S73: 0
A74: 16 | K74: 16 | S74: 0
A75: 17 | K75: 17 | S75: 0
A76: 18 | K76: 18 | S76: 0
A77: 19 | K77: 19 | S77: 0
A78: 20 | K78: 20 | S78: 0
A79: 21 | K79: 21
A80: 22 | I80: =HLOOKUP(K$60,K$59:U$87,A80) ->  | J80: Qmax oder Qn | K80: 22
A81: 23 | K81: 23
A82: 24 | K82: 24
A83: 25 | K83: 25
A84: 26 | K84: 26
A85: 27 | K85: 27
A86: 28 | K86: 28
A87: 29 | K87: 29
A88: 30 | G88: =IF(OR(LEFT($N$27,4)="TCLE",LEFT($N$27,4)="TJRE"),CONCATENATE($S$93,$S88,"-1B"),CONCATENATE($R$93,$S88,"-2B")) -> -2B | I88: =HLOOKUP(K$60,K$59:U$106,A88) ->  | K88: 30
A89: 31 | G89: =IF(OR(LEFT($N$27,4)="TCLE",LEFT($N$27,4)="TJRE"),CONCATENATE($S$93,$S89,"-1B"),CONCATENATE($R$93,$S89,"-2B")) -> -2B | H89: =HLOOKUP($U$60,$AJ$59:$AQ$106,$K89) -> 0 | I89: =HLOOKUP(K$60,K$59:U$106,A89) ->  | J89: MOP | K89: 31
A90: 32 | G90: =IF(OR(LEFT($N$27,4)="TCLE",LEFT($N$27,4)="TJRE"),CONCATENATE($S$93,$S90,"-1B"),CONCATENATE($R$93,$S90,"-2B")) -> -2B | H90: =HLOOKUP($U$60,$AJ$59:$AQ$106,$K90) -> 0 | I90: =HLOOKUP(K$60,K$59:U$106,A90) ->  | J90: T | K90: 32
A91: 33 | G91: =IF(OR(LEFT($N$27,4)="TCLE",LEFT($N$27,4)="TJRE"),CONCATENATE($S$93,$S91,"-1B"),CONCATENATE($R$93,$S91,"-2B")) -> -2B | H91: =HLOOKUP($U$60,$AJ$59:$AQ$106,$K91) -> 0 | I91: =HLOOKUP(K$60,K$59:U$106,A91) ->  | K91: 33
A92: 34 | K92: 34
A93: 35 | H93: XC 726 | I93: XB 1019 | K93: 35
A94: 36 | H94: =HLOOKUP($U$60,$AJ$59:$AQ$106,$K94) -> 0 | I94: =HLOOKUP(K$60,K$59:U$106,A94) ->  | J94: Best. | K94: 36
A95: 37 | H95: =HLOOKUP($U$60,$AJ$59:$AQ$106,$K95) -> 0 | I95: =HLOOKUP(K$60,K$59:U$106,A95) ->  | J95: Nr. | K95: 37
A96: 38 | H96: =HLOOKUP($U$60,$AJ$59:$AQ$106,$K96) -> 0 | I96: =HLOOKUP(K$60,K$59:U$106,A96) ->  | K96: 38
A97: 39 | H97: =HLOOKUP($U$60,$AJ$59:$AQ$106,$K97) -> 0 | I97: =HLOOKUP(K$60,K$59:U$106,A97) ->  | K97: 39
A98: 40 | K98: 40
A99: 41 | K99: 41
A100: 42 | H100: =HLOOKUP($U$60,$AJ$59:$AQ$106,$K100) -> 0 | I100: =HLOOKUP(K$60,K$59:U$106,A100) ->  | J100: MOP | K100: 42
A101: 43 | H101: =HLOOKUP($U$60,$AJ$59:$AQ$106,$K101) -> 0 | I101: =HLOOKUP(K$60,K$59:U$106,A101) ->  | J101: TI | K101: 43
A102: 44 | H102: =HLOOKUP($U$60,$AJ$59:$AQ$106,$K102) -> 0 | I102: =HLOOKUP(K$60,K$59:U$106,A102) ->  | K102: 44
A103: 45 | K103: 45
A104: 46 | J104: Metrisch | K104: 46
A105: 47 | I105: =HLOOKUP(K$60,K$59:U$115,A105) ->  | J105: Best | K105: 47
A106: 48 | I106: =HLOOKUP(K$60,K$59:U$115,A106) ->  | J106: Nr | K106: 48
A107: 49 | I107: =HLOOKUP(K$60,K$59:U$115,A107) ->  | J107: TI | K107: 49
A108: 50 | I108: =HLOOKUP(K$60,K$59:U$115,A108) ->  | K108: 50
A109: 51 | K109: 51
A110: 52 | J110: Zöllig | K110: 52
A111: 53 | I111: =HLOOKUP(K$60,K$59:U$115,A111) ->  | J111: Best | K111: 53
A112: 54 | I112: =HLOOKUP(K$60,K$59:U$115,A112) ->  | J112: Nr | K112: 54
A113: 55 | I113: =HLOOKUP(K$60,K$59:U$115,A113) ->  | J113: TI | K113: 55
A114: 56 | I114: =HLOOKUP(K$60,K$59:U$115,A114) ->  | K114: 56
A115: 57 | K115: 57
A117: 1 | K117: 1 | W117: 2 | X117: 3 | Y117: 4 | Z117: 5 | AA117: 6 | AB117: 7 | AC117: 8 | AD117: 9 | AE117: 10 | AF117: 11 | AG117: 12 | AH117: 13 | AI117: 14
A118: 2 | I118: =HLOOKUP(K$60,L$117:T$121,A118) ->  | K118: 2 | S118: =HLOOKUP(U$60,W$117:AE$121,K118) -> R407F | U118: Temperatur | W118: R410A | X118: R134a | Y118: R22 | Z118: R404A | AA118: R507 | AB118: R407F | AC118: R23 | AD118: R124 | AE118: R744 | AF118: R448A | AG118: R449A | AH118: R450A | AI118: R513A
A119: 3 | I119: =HLOOKUP(K$60,L$117:T$121,A119)+$P$16 ->  | J119: Eintrittspkt Korr Tabelle Flüssig.Temp: | K119: 3 | S119: =HLOOKUP(U$60,W$117:AE$121,K119)+$P$16 -> 580 | T119: Eintrittspkt Korr Tabelle Flüssig.Temp: | W119: 640 | X119: 120 | Y119: 260 | Z119: 440 | AA119: 760 | AB119: 520 | AC119: 390 | AD119: 0 | AE119: 870 | AF119: 1125 | AG119: 1235 | AH119: 1345 | AI119: 1455
A121: 5 | I121: =HLOOKUP(K$60,L$117:T$121,A121) ->  | J121: Korr.Faktor | K121: 5 | S121: =HLOOKUP(U$60,W$117:AI$121,K121) -> 12.3175 | T121: Korr.Faktor | W121: 13.99599596 | X121: 6.251925281 | Y121: 8.94166157 | Z121: 10.6251 | AA121: 10.73171206 | AB121: 12.3175 | AC121: 8.832424584 | AD121: 11.87682174 | AE121: 16.47026704 | AF121: 12.11957538 | AG121: 11.93702752 | AH121: 5.901746207 | AI121: 6.883203448
Y326: Valves Type | Z326: =(IF(O27="EX5",10,IF(O27="EX6",11,IF(O27="EX7",12,IF(O27="EX8",13,#N/A))))) -> 
U327: =T16 -> R407F | W327: =U4 -> 0 | X327: =W4 -> 0 | Y327: =X4 -> 0 | Z327: =Y4 -> 0 | AA327: =Z4 -> 0 | AB327: =AA4 -> 0 | AC327: R507 | AD327: =AC4 -> 0
J328: 1 | T328: 1 | U328: 2 | W328: 3 | X328: 4 | Y328: 5 | Z328: 6 | AA328: 7 | AB328: 8 | AC328: 9 | AD328: 10
J329: 10 | T329: 10 | U329: =T21 -> 6.015032512 | W329: =U8 -> 0 | X329: =W8 -> 0 | Y329: =X8 -> 0 | Z329: =Y8 -> 0 | AA329: =Z8 -> 0 | AB329: =AA8 -> 0 | AC329: =$AB$8 -> 0 | AD329: =AC8 -> 0
J330: 11 | T330: 11 | U330: =T20 -> 9.752528442 | W330: =U7 -> 0 | X330: =W7 -> 0 | Y330: =X7 -> 0 | Z330: =Y7 -> 0 | AA330: =Z7 -> 0 | AB330: =AA7 -> 0 | AC330: =$AB$7 -> 0 | AD330: =AC7 -> 1
J331: 12 | T331: 12 | U331: =T19 -> 12.35125608 | W331: =U6 -> 0 | X331: =W6 -> 0 | Y331: =X6 -> 0 | Z331: =Y6 -> 0 | AA331: =Z6 -> 0 | AB331: =AA6 -> 0 | AC331: =$AB$6 -> 0 | AD331: =AC6 -> 0
J332: 13 | T332: 13 | U332: =T18 -> 13.75281705 | W332: =U5 -> 0 | X332: =W5 -> 0 | Y332: =X5 -> 0 | Z332: =Y5 -> 0 | AA332: =Z5 -> 0 | AB332: =AA5 -> 0 | AC332: =$AB$5 -> 0 | AD332: =AC5 -> 0
J335: EX1 | T335: EX1
Y336: Refrigerant | Z336: =(IF(M6="R124",2,IF(M6="R134a",3,IF(M6="R22",4,IF(M6="R23",5,IF(M6="R404A",6,IF(M6="R407C",7,IF(M6="R410A",8,IF(M6="R744",10,"9"))))))))) -> 9
Y337: Valves Type | Z337: =(IF(O39="EX1-A",10,IF(O39="EX1-C",11,IF(O39="EX1-E",12,IF(O39="EX1-G",13,IF(O39="EX1-I",14,#N/A)))))) -> 
U338: R124 | W338: R134a | X338: R22 | Y338: R23 | Z338: R404A | AA338: R407C | AB338: R410A | AC338: R507 | AD338: R744
J339: 1 | T339: 1 | U339: 2 | W339: 3 | X339: 4 | Y339: 5 | Z339: 6 | AA339: 7 | AB339: 8 | AC339: 9 | AD339: 10
J340: 10 | T340: 10 | U340: =T29 -> 0 | W340: =U16 -> 0 | X340: =W16 -> 0 | Y340: =X16 -> 0 | Z340: =Y16 -> 0 | AA340: =Z16 -> 0 | AB340: =AA16 -> 0 | AC340: =$AB$16 -> 0 | AD340: =AC16 -> 0
J341: 11 | T341: 11 | U341: =T28 -> 0 | W341: =U15 -> 0 | X341: =W15 -> 0 | Y341: =X15 -> 0 | Z341: =Y15 -> 0 | AA341: =Z15 -> 0 | AB341: =AA15 -> 0 | AC341: =$AB$15 -> 0 | AD341: =AC15 -> 0
J342: 12 | T342: 12 | U342: =T27 -> 0 | W342: =U14 -> 0 | X342: =W14 -> 0 | Y342: =X14 -> 0 | Z342: =Y14 -> 0 | AA342: =Z14 -> 0 | AB342: =AA14 -> 0 | AC342: =$AB$14 -> 0 | AD342: =AC14 -> 0
J343: 13 | T343: 13 | U343: =T26 -> 0 | W343: =U13 -> 0 | X343: =W13 -> 0 | Y343: =X13 -> 0 | Z343: =Y13 -> 0 | AA343: =Z13 -> 0 | AB343: =AA13 -> 0 | AC343: =$AB$13 -> 0 | AD343: =AC13 -> 0
J344: 14 | T344: 14 | U344: =T25 -> 0 | W344: =U12 -> 0 | X344: =W12 -> 0 | Y344: =X12 -> 0 | Z344: =Y12 -> 0 | AA344: =Z12 -> 0 | AB344: =AA12 -> 0 | AC344: =$AB$12 -> 0 | AD344: =AC12 -> 0
J347: EX2 | T347: EX2
Y348: Refrigerant | Z348: =(IF(M6="R124",2,IF(M6="R134a",3,IF(M6="R22",4,IF(M6="R23",5,IF(M6="R404A",6,IF(M6="R407C",7,IF(M6="R410A",8,IF(M6="R744",10,"9"))))))))) -> 9
Y349: Valves Type | Z349: =IF(O37="EXO-00X",10,IF(O37="EXO-000",11,IF(O37="EXO-001",12,IF(O37="EXO-002",13,IF(O37="EXO-003",14,IF(O37="EXO-004",15,IF(O37="EX2",16,#N/A))))))) -> 
U350: R124 | W350: R134a | X350: R22 | Y350: R23 | Z350: R404A | AA350: R407C | AB350: R410A | AC350: R507 | AD350: R744
J351: 1 | T351: 1 | U351: 2 | W351: 3 | X351: 4 | Y351: 5 | Z351: 6 | AA351: 7 | AB351: 8 | AC351: 9 | AD351: 10
J352: 10 | T352: 10 | U352: =T41 -> 0 | W352: =U40 -> 0 | X352: =W40 -> 0 | Y352: =X40 -> 0 | Z352: =Y40 -> 0 | AA352: =Z40 -> 0 | AB352: =AA40 -> 0 | AC352: =$AB$40 -> 0 | AD352: =AC40 -> 0
J353: 11 | T353: 11 | U353: =T40 -> 0 | W353: =U39 -> 0 | X353: =W39 -> 0 | Y353: =X39 -> 0 | Z353: =Y39 -> 0 | AA353: =Z39 -> 0 | AB353: =AA39 -> 0 | AC353: =$AB$39 -> 0 | AD353: =AC39 -> 0
J354: 12 | T354: 12 | U354: =T39 -> 0 | W354: =U38 -> 0 | X354: =W38 -> 0 | Y354: =X38 -> 0 | Z354: =Y38 -> 0 | AA354: =Z38 -> 0 | AB354: =AA38 -> 0 | AC354: =$AB$38 -> 0 | AD354: =AC38 -> 0
J355: 13 | T355: 13 | U355: =T38 -> 0 | W355: =U24 -> 0 | X355: =W24 -> 0 | Y355: =X24 -> 0 | Z355: =Y24 -> 0 | AA355: =Z24 -> 0 | AB355: =AA24 -> 0 | AC355: =$AB$24 -> 0 | AD355: =AC24 -> 0
J356: 14 | T356: 14 | U356: =T37 -> 0 | W356: =U23 -> 0 | X356: =W23 -> 0 | Y356: =X23 -> 0 | Z356: =Y23 -> 0 | AA356: =Z23 -> 0 | AB356: =AA23 -> 0 | AC356: =$AB$23 -> 2 | AD356: =AC23 -> Chinese
J357: 15 | T357: 15 | U357: =T36 -> 0 | W357: =U22 -> 0 | X357: =W22 -> 0 | Y357: =X22 -> 0 | Z357: =Y22 -> 0 | AA357: =Z22 -> 0 | AB357: =AA22 -> 0 | AC357: =$AB$22 -> 1 | AD357: =AC22 -> English
J358: 16 | T358: 16 | U358: =T34 -> 0 | W358: =U21 -> 0 | X358: =W21 -> 0 | Y358: =X21 -> 0 | Z358: =Y21 -> 0 | AA358: =Z21 -> 0 | AB358: =AA21 -> 0 | AC358: =$AB$21 -> 0 | AD358: =AC21 -> 0

Sheet DampfDruck (hidden)
F1: Condensing Temperature / Pressure (Pascala) | U1: Evaporating Temperature / Pressure (Pascala)
E2: °F | F2: Temperatur | G2: R 410A | H2: R 134a | I2: R 22 | J2: R 404A | K2: R 507 | L2: R 407F | M2: R32 | N2: R407C | O2: R744 | P2: R448A | Q2: R449A | R2: R450A | S2: R513A | U2: Temperatur | V2: R 410A | W2: R 134a | X2: R 22 | Y2: R 404A | Z2: R 507 | AA2: R 407F | AB2: R32 | AC2: R407C | AD2: R744 | AE2: R448A | AF2: R449A | AG2: R450A | AH2: R513A
E3: °F | F3: 1 | G3: 2 | H3: 3 | I3: 4 | J3: 5 | K3: 6 | L3: 7 | M3: 8 | N3: 9 | O3: 10 | P3: 11 | Q3: 12 | R3: 13 | S3: 14 | U3: 1 | V3: 2 | W3: 3 | X3: 4 | Y3: 6 | Z3: 7 | AA3: 9 | AB3: 8 | AC3: 9 | AD3: 10 | AE3: 11 | AF3: 12 | AG3: 13 | AH3: 14
E4: =F4/Language!$C$11+Language!$C$10 -> -148 | F4: -100 | M4: 3813 | U4: -100 | AB4: 3813
E5: =F5/Language!$C$11+Language!$C$10 -> -147.1 | F5: =(F4+F6)/2 -> -99.5 | M5: 3988.1 | P5: =(P4+P6)/2 ->  | R5: =(R4+R6)/2 ->  | U5: =(U4+U6)/2 -> -99.5 | AB5: 3988.1 | AE5: =(AE4+AE6)/2 -> 
E6: =F6/Language!$C$11+Language!$C$10 -> -146.2 | F6: -99 | M6: 4170 | U6: -99 | AB6: 4170
E7: =F7/Language!$C$11+Language!$C$10 -> -145.3 | F7: =(F6+F8)/2 -> -98.5 | M7: 4358.8 | P7: =(P6+P8)/2 ->  | R7: =(R6+R8)/2 ->  | U7: =(U6+U8)/2 -> -98.5 | AB7: 4358.8 | AE7: =(AE6+AE8)/2 -> 
E8: =F8/Language!$C$11+Language!$C$10 -> -144.4 | F8: -98 | M8: 4554.9 | U8: -98 | AB8: 4554.9
E9: =F9/Language!$C$11+Language!$C$10 -> -143.5 | F9: =(F8+F10)/2 -> -97.5 | M9: 4758.4 | P9: =(P8+P10)/2 ->  | U9: =(U8+U10)/2 -> -97.5 | AB9: 4758.4 | AE9: =(AE8+AE10)/2 -> 
E10: =F10/Language!$C$11+Language!$C$10 -> -142.6 | F10: -97 | M10: 4969.6 | Q10: =(Q9+Q11)/2 ->  | U10: -97 | AB10: 4969.6 | AF10: =(AF9+AF11)/2 -> 
E11: =F11/Language!$C$11+Language!$C$10 -> -141.7 | F11: =(F10+F12)/2 -> -96.5 | M11: 5188.7 | P11: =(P10+P12)/2 ->  | U11: =(U10+U12)/2 -> -96.5 | AB11: 5188.7 | AE11: =(AE10+AE12)/2 -> 
E12: =F12/Language!$C$11+Language!$C$10 -> -140.8 | F12: -96 | M12: 5415.9 | Q12: =(Q11+Q13)/2 ->  | U12: -96 | AB12: 5415.9 | AF12: =(AF11+AF13)/2 -> 
E13: =F13/Language!$C$11+Language!$C$10 -> -139.9 | F13: =(F12+F14)/2 -> -95.5 | M13: 5651.5 | P13: =(P12+P14)/2 ->  | U13: =(U12+U14)/2 -> -95.5 | AB13: 5651.5 | AE13: =(AE12+AE14)/2 -> 
E14: =F14/Language!$C$11+Language!$C$10 -> -139 | F14: -95 | M14: 5895.7 | U14: -95 | AB14: 5895.7
E15: =F15/Language!$C$11+Language!$C$10 -> -138.1 | F15: =(F14+F16)/2 -> -94.5 | M15: 6148.7 | P15: =(P14+P16)/2 ->  | R15: =(R14+R16)/2 ->  | U15: =(U14+U16)/2 -> -94.5 | AB15: 6148.7
E16: =F16/Language!$C$11+Language!$C$10 -> -137.2 | F16: -94 | M16: 6410.9 | U16: -94 | AB16: 6410.9
E17: =F17/Language!$C$11+Language!$C$10 -> -136.3 | F17: =(F16+F18)/2 -> -93.5 | M17: 6682.4 | P17: =(P16+P18)/2 ->  | R17: =(R16+R18)/2 ->  | U17: =(U16+U18)/2 -> -93.5 | AB17: 6682.4
E18: =F18/Language!$C$11+Language!$C$10 -> -135.4 | F18: -93 | M18: 6963.6 | U18: -93 | AB18: 6963.6
E19: =F19/Language!$C$11+Language!$C$10 -> -134.5 | F19: =(F18+F20)/2 -> -92.5 | M19: 7254.7 | P19: =(P18+P20)/2 ->  | U19: =(U18+U20)/2 -> -92.5 | AB19: 7254.7
E20: =F20/Language!$C$11+Language!$C$10 -> -133.6 | F20: -92 | M20: 7556 | Q20: =(Q19+Q21)/2 ->  | U20: -92 | AB20: 7556 | AF20: =(AF19+AF21)/2 -> 
E21: =F21/Language!$C$11+Language!$C$10 -> -132.7 | F21: =(F20+F22)/2 -> -91.5 | M21: 7867.8 | P21: =(P20+P22)/2 ->  | U21: =(U20+U22)/2 -> -91.5 | AB21: 7867.8
E22: =F22/Language!$C$11+Language!$C$10 -> -131.8 | F22: -91 | M22: 8190.3 | Q22: =(Q21+Q23)/2 ->  | U22: -91 | AB22: 8190.3 | AF22: =(AF21+AF23)/2 -> 
E23: =F23/Language!$C$11+Language!$C$10 -> -130.9 | F23: =(F22+F24)/2 -> -90.5 | M23: 8523.8 | P23: =(P22+P24)/2 ->  | U23: =(U22+U24)/2 -> -90.5 | AB23: 8523.8
E24: =F24/Language!$C$11+Language!$C$10 -> -130 | F24: -90 | M24: 8868.7 | U24: -90 | AB24: 8868.7
E25: =F25/Language!$C$11+Language!$C$10 -> -129.1 | F25: =(F24+F26)/2 -> -89.5 | M25: 9225.2 | P25: =(P24+P26)/2 ->  | R25: =(R24+R26)/2 ->  | U25: =(U24+U26)/2 -> -89.5 | AB25: 9225.2
E26: =F26/Language!$C$11+Language!$C$10 -> -128.2 | F26: -89 | M26: 9593.7 | U26: -89 | AB26: 9593.7
E27: =F27/Language!$C$11+Language!$C$10 -> -127.3 | F27: =(F26+F28)/2 -> -88.5 | M27: 9974.5 | P27: =(P26+P28)/2 ->  | R27: =(R26+R28)/2 ->  | U27: =(U26+U28)/2 -> -88.5 | AB27: 9974.5
E28: =F28/Language!$C$11+Language!$C$10 -> -126.4 | F28: -88 | M28: 10368 | U28: -88 | AB28: 10368
E29: =F29/Language!$C$11+Language!$C$10 -> -125.5 | F29: =(F28+F30)/2 -> -87.5 | M29: 10774 | P29: =(P28+P30)/2 ->  | U29: =(U28+U30)/2 -> -87.5 | AB29: 10774
E30: =F30/Language!$C$11+Language!$C$10 -> -124.6 | F30: -87 | M30: 11194 | Q30: =(Q29+Q31)/2 ->  | U30: -87 | AB30: 11194 | AF30: =(AF29+AF31)/2 -> 
E31: =F31/Language!$C$11+Language!$C$10 -> -123.7 | F31: =(F30+F32)/2 -> -86.5 | M31: 11627 | P31: =(P30+P32)/2 ->  | U31: =(U30+U32)/2 -> -86.5 | AB31: 11627
E32: =F32/Language!$C$11+Language!$C$10 -> -122.8 | F32: -86 | M32: 12073 | Q32: =(Q31+Q33)/2 ->  | U32: -86 | AB32: 12073 | AF32: =(AF31+AF33)/2 -> 
E33: =F33/Language!$C$11+Language!$C$10 -> -121.9 | F33: =(F32+F34)/2 -> -85.5 | M33: 12535 | P33: =(P32+P34)/2 ->  | U33: =(U32+U34)/2 -> -85.5 | AB33: 12535
E34: =F34/Language!$C$11+Language!$C$10 -> -121 | F34: -85 | M34: 13011 | U34: -85 | AB34: 13011
E35: =F35/Language!$C$11+Language!$C$10 -> -120.1 | F35: =(F34+F36)/2 -> -84.5 | M35: 13501 | P35: =(P34+P36)/2 ->  | R35: =(R34+R36)/2 ->  | U35: =(U34+U36)/2 -> -84.5 | AB35: 13501
E36: =F36/Language!$C$11+Language!$C$10 -> -119.2 | F36: -84 | M36: 14007 | U36: -84 | AB36: 14007
E37: =F37/Language!$C$11+Language!$C$10 -> -118.3 | F37: =(F36+F38)/2 -> -83.5 | M37: 14529 | P37: =(P36+P38)/2 ->  | R37: =(R36+R38)/2 ->  | U37: =(U36+U38)/2 -> -83.5 | AB37: 14529
E38: =F38/Language!$C$11+Language!$C$10 -> -117.4 | F38: -83 | M38: 15067 | U38: -83 | AB38: 15067
E39: =F39/Language!$C$11+Language!$C$10 -> -116.5 | F39: =(F38+F40)/2 -> -82.5 | M39: 15622 | P39: =(P38+P40)/2 ->  | U39: =(U38+U40)/2 -> -82.5 | AB39: 15622
E40: =F40/Language!$C$11+Language!$C$10 -> -115.6 | F40: -82 | M40: 16193 | Q40: =(Q39+Q41)/2 ->  | U40: -82 | AB40: 16193 | AF40: =(AF39+AF41)/2 -> 
E41: =F41/Language!$C$11+Language!$C$10 -> -114.7 | F41: =(F40+F42)/2 -> -81.5 | M41: 16781 | P41: =(P40+P42)/2 ->  | U41: =(U40+U42)/2 -> -81.5 | AB41: 16781
E42: =F42/Language!$C$11+Language!$C$10 -> -113.8 | F42: -81 | M42: 17387 | Q42: =(Q41+Q43)/2 ->  | U42: -81 | AB42: 17387 | AF42: =(AF41+AF43)/2 -> 
E43: =F43/Language!$C$11+Language!$C$10 -> -112.9 | F43: =(F42+F44)/2 -> -80.5 | M43: 18011 | P43: =(P42+P44)/2 ->  | U43: =(U42+U44)/2 -> -80.5 | AB43: 18011
E44: =F44/Language!$C$11+Language!$C$10 -> -112 | F44: -80 | M44: 18654 | U44: -80 | AB44: 18654
E45: =F45/Language!$C$11+Language!$C$10 -> -111.1 | F45: =(F44+F46)/2 -> -79.5 | M45: 19315 | R45: =(R44+R46)/2 ->  | U45: =(U44+U46)/2 -> -79.5 | AB45: 19315
E46: =F46/Language!$C$11+Language!$C$10 -> -110.2 | F46: -79 | M46: 19996 | U46: -79 | AB46: 19996
E47: =F47/Language!$C$11+Language!$C$10 -> -109.3 | F47: =(F46+F48)/2 -> -78.5 | M47: 20697 | R47: =(R46+R48)/2 ->  | U47: =(U46+U48)/2 -> -78.5 | AB47: 20697
E48: =F48/Language!$C$11+Language!$C$10 -> -108.4 | F48: -78 | M48: 21417 | U48: -78 | AB48: 21417
E49: =F49/Language!$C$11+Language!$C$10 -> -107.5 | F49: =(F48+F50)/2 -> -77.5 | M49: 22158 | U49: =(U48+U50)/2 -> -77.5 | AB49: 22158
E50: =F50/Language!$C$11+Language!$C$10 -> -106.6 | F50: -77 | M50: 22921 | Q50: =(Q49+Q51)/2 ->  | U50: -77 | AB50: 22921 | AF50: =(AF49+AF51)/2 -> 
E51: =F51/Language!$C$11+Language!$C$10 -> -105.7 | F51: =(F50+F52)/2 -> -76.5 | M51: 23704 | U51: =(U50+U52)/2 -> -76.5 | AB51: 23704
E52: =F52/Language!$C$11+Language!$C$10 -> -104.8 | F52: -76 | M52: 24510 | Q52: =(Q51+Q53)/2 ->  | U52: -76 | AB52: 24510 | AF52: =(AF51+AF53)/2 -> 
E53: =F53/Language!$C$11+Language!$C$10 -> -103.9 | F53: =(F52+F54)/2 -> -75.5 | M53: 25338 | U53: =(U52+U54)/2 -> -75.5 | Y53: =(Y52+#REF!)/2 ->  | AB53: 25338
E54: =F54/Language!$C$11+Language!$C$10 -> -103 | F54: -75 | M54: 26189 | U54: -75 | Y54: 18797 | Z54: 21224.77 | AB54: 26189
E55: =F55/Language!$C$11+Language!$C$10 -> -102.1 | F55: =(F54+F56)/2 -> -74.5 | M55: 27064 | R55: =(R54+R56)/2 ->  | U55: =(U54+U56)/2 -> -74.5 | Y55: 19440 | Z55: 21939.02 | AB55: 27064
E56: =F56/Language!$C$11+Language!$C$10 -> -101.2 | F56: -74 | M56: 27962 | U56: -74 | Y56: 20100 | Z56: 22653.27 | AB56: 27962
E57: =F57/Language!$C$11+Language!$C$10 -> -100.3 | F57: =(F56+F58)/2 -> -73.5 | M57: 28885 | R57: =(R56+R58)/2 ->  | U57: =(U56+U58)/2 -> -73.5 | Y57: 20779 | Z57: 23406.035 | AB57: 28885
E58: =F58/Language!$C$11+Language!$C$10 -> -99.4 | F58: -73 | M58: 29832 | N58: 19349 | U58: -73 | Y58: 21477 | Z58: 24158.8 | AB58: 29832 | AC58: 11437
E59: =F59/Language!$C$11+Language!$C$10 -> -98.5 | F59: =(F58+F60)/2 -> -72.5 | M59: 30805 | N59: 19997 | U59: =(U58+U60)/2 -> -72.5 | Y59: 22194 | Z59: 24951.61 | AB59: 30805 | AC59: 11863
E60: =F60/Language!$C$11+Language!$C$10 -> -97.6 | F60: -72 | M60: 31804 | N60: 20662 | Q60: =(Q59+Q61)/2 ->  | U60: -72 | Y60: 22929 | Z60: 25744.42 | AB60: 31804 | AC60: 12303 | AF60: =(AF59+AF61)/2 -> 
E61: =F61/Language!$C$11+Language!$C$10 -> -96.7 | F61: =(F60+F62)/2 -> -71.5 | M61: 32829 | N61: 21345 | U61: =(U60+U62)/2 -> -71.5 | Y61: 23685 | Z61: 26578.84 | AB61: 32829 | AC61: 12756
E62: =F62/Language!$C$11+Language!$C$10 -> -95.8 | F62: -71 | M62: 33880 | N62: 22047 | Q62: =(Q61+Q63)/2 ->  | U62: -71 | Y62: 24461 | Z62: 27413.26 | AB62: 33880 | AC62: 13223 | AF62: =(AF61+AF63)/2 -> 
E63: =F63/Language!$C$11+Language!$C$10 -> -94.9 | F63: =(F62+F64)/2 -> -70.5 | M63: 34960 | N63: 22768 | U63: =(U62+U64)/2 -> -70.5 | Y63: 25257 | Z63: 28290.885 | AB63: 34960 | AC63: 13704
E64: =F64/Language!$C$11+Language!$C$10 -> -94 | F64: -70 | M64: 36067 | N64: 23508 | U64: -70 | V64: 36140.47 | X64: 20510.12 | Y64: 26074 | Z64: 29168.51 | AB64: 36067 | AC64: 14200
E65: =F65/Language!$C$11+Language!$C$10 -> -93.1 | F65: =(F64+F66)/2 -> -69.5 | M65: 37203 | N65: 24268 | R65: =(R64+R66)/2 ->  | U65: =(U64+U66)/2 -> -69.5 | V65: 37287.96 | X65: 21179.91 | Y65: 26912 | Z65: 30090.98 | AB65: 37203 | AC65: 14710
E66: =F66/Language!$C$11+Language!$C$10 -> -92.2 | F66: -69 | M66: 38367 | N66: 25048 | U66: -69 | V66: 38435.45 | X66: 21849.7 | Y66: 27773 | Z66: 31013.45 | AB66: 38367 | AC66: 15235
E67: =F67/Language!$C$11+Language!$C$10 -> -91.3 | F67: =(F66+F68)/2 -> -68.5 | M67: 39562 | N67: 25848 | R67: =(R66+R68)/2 ->  | U67: =(U66+U68)/2 -> -68.5 | V67: 39641.59 | X67: 22555.05 | Y67: 28655 | Z67: 31982.435 | AB67: 39562 | AC67: 15776
E68: =F68/Language!$C$11+Language!$C$10 -> -90.4 | F68: -68 | M68: 40786 | N68: 26669 | U68: -68 | V68: 40847.73 | X68: 23260.4 | Y68: 29560 | Z68: 32951.42 | AB68: 40786 | AC68: 16333
E69: =F69/Language!$C$11+Language!$C$10 -> -89.5 | F69: =(F68+F70)/2 -> -67.5 | M69: 42041 | N69: 27511 | U69: =(U68+U70)/2 -> -67.5 | V69: 42114.72 | X69: 24002.72 | Y69: 30487 | Z69: 33968.625 | AB69: 42041 | AC69: 16905
E70: =F70/Language!$C$11+Language!$C$10 -> -88.6 | F70: -67 | M70: 43328 | N70: 28375 | Q70: =(Q69+Q71)/2 ->  | U70: -67 | V70: 43381.71 | X70: 24745.04 | Y70: 31438 | Z70: 34985.83 | AB70: 43328 | AC70: 17495 | AF70: =(AF69+AF71)/2 -> 
E71: =F71/Language!$C$11+Language!$C$10 -> -87.7 | F71: =(F70+F72)/2 -> -66.5 | M71: 44646 | N71: 29260 | U71: =(U70+U72)/2 -> -66.5 | V71: 44711.795 | X71: 25525.77 | Y71: 32413 | Z71: 36052.995 | AB71: 44646 | AC71: 18101
E72: =F72/Language!$C$11+Language!$C$10 -> -86.8 | F72: -66 | M72: 45997 | N72: 30168 | Q72: =(Q71+Q73)/2 ->  | U72: -66 | V72: 46041.88 | X72: 26306.5 | Y72: 33412 | Z72: 37120.16 | AB72: 45997 | AC72: 18724 | AF72: =(AF71+AF73)/2 -> 
E73: =F73/Language!$C$11+Language!$C$10 -> -85.9 | F73: =(F72+F74)/2 -> -65.5 | M73: 47381 | N73: 31100 | U73: =(U72+U74)/2 -> -65.5 | V73: 47437.345 | X73: 27127.12 | Y73: 34436 | Z73: 38239.075 | AB73: 47381 | AC73: 19365
E74: =F74/Language!$C$11+Language!$C$10 -> -85 | F74: -65 | M74: 48798 | N74: 32054 | U74: -65 | V74: 48832.81 | X74: 27947.74 | Y74: 35485 | Z74: 39357.99 | AB74: 48798 | AC74: 20024
E75: =F75/Language!$C$11+Language!$C$10 -> -84.1 | F75: =(F74+F76)/2 -> -64.5 | M75: 50250 | N75: 33032 | R75: =(R74+R76)/2 ->  | U75: =(U74+U76)/2 -> -64.5 | V75: 50295.995 | X75: 28809.765 | Y75: 36560 | Z75: 40530.46 | AB75: 50250 | AC75: 20701
E76: =F76/Language!$C$11+Language!$C$10 -> -83.2 | F76: -64 | M76: 51736 | N76: 34034 | U76: -64 | V76: 51759.18 | X76: 29671.79 | Y76: 37660 | Z76: 41702.93 | AB76: 51736 | AC76: 21397
E77: =F77/Language!$C$11+Language!$C$10 -> -82.3 | F77: =(F76+F78)/2 -> -63.5 | M77: 53258 | N77: 35061 | R77: =(R76+R78)/2 ->  | U77: =(U76+U78)/2 -> -63.5 | V77: 53292.455 | X77: 30576.76 | Y77: 38787 | Z77: 42930.81 | AB77: 53258 | AC77: 22112
E78: =F78/Language!$C$11+Language!$C$10 -> -81.4 | F78: -63 | M78: 54816 | N78: 36113 | U78: -63 | V78: 54825.73 | X78: 31481.73 | Y78: 39941 | Z78: 44158.69 | AB78: 54816 | AC78: 22847
E79: =F79/Language!$C$11+Language!$C$10 -> -80.5 | F79: =(F78+F80)/2 -> -62.5 | M79: 56410 | N79: 37191 | U79: =(U78+U80)/2 -> -62.5 | V79: 56431.535 | X79: 32431.22 | Y79: 41122 | Z79: 45443.86 | AB79: 56410 | AC79: 23602
E80: =F80/Language!$C$11+Language!$C$10 -> -79.6 | F80: -62 | M80: 58042 | N80: 38294 | Q80: =(Q79+Q81)/2 ->  | U80: -62 | V80: 58037.34 | X80: 33380.71 | Y80: 42332 | Z80: 46729.03 | AB80: 58042 | AC80: 24376 | AF80: =(AF79+AF81)/2 -> 
E81: =F81/Language!$C$11+Language!$C$10 -> -78.7 | F81: =(F80+F82)/2 -> -61.5 | M81: 59712 | N81: 39424 | U81: =(U80+U82)/2 -> -61.5 | V81: 59718.135 | X81: 34376.335 | Y81: 43569 | Z81: 48073.415 | AB81: 59712 | AC81: 25172
E82: =F82/Language!$C$11+Language!$C$10 -> -77.8 | F82: -61 | M82: 61420 | N82: 40580 | Q82: =(Q81+Q83)/2 ->  | U82: -61 | V82: 61398.93 | X82: 35371.96 | Y82: 44836 | Z82: 49417.8 | AB82: 61420 | AC82: 25989 | AF82: =(AF81+AF83)/2 -> 
E83: =F83/Language!$C$11+Language!$C$10 -> -76.9 | F83: =(F82+F84)/2 -> -60.5 | M83: 63168 | N83: 41764 | U83: =(U82+U84)/2 -> -60.5 | V83: 63157.24 | X83: 36415.36 | Y83: 46131 | Z83: 50823.355 | AB83: 63168 | AC83: 26827
E84: =F84/Language!$C$11+Language!$C$10 -> -76 | F84: -60 | M84: 64955 | N84: 42976 | U84: -60 | V84: 64915.55 | X84: 37458.76 | Y84: 47457 | Z84: 52228.91 | AB84: 64955 | AC84: 27688
E85: =F85/Language!$C$11+Language!$C$10 -> -75.1 | F85: =(F84+F86)/2 -> -59.5 | M85: 66783 | N85: 44216 | R85: =(R84+R86)/2 ->  | U85: =(U84+U86)/2 -> -59.5 | V85: 66753.935 | X85: 38551.615 | Y85: 48813 | Z85: 53697.63 | AB85: 66783 | AC85: 28571
E86: =F86/Language!$C$11+Language!$C$10 -> -74.2 | F86: -59 | M86: 68652 | N86: 45485 | U86: -59 | V86: 68592.32 | X86: 39644.47 | Y86: 50199 | Z86: 55166.35 | AB86: 68652 | AC86: 29477
E87: =F87/Language!$C$11+Language!$C$10 -> -73.3 | F87: =(F86+F88)/2 -> -58.5 | M87: 70564 | N87: 46784 | R87: =(R86+R88)/2 ->  | U87: =(U86+U88)/2 -> -58.5 | V87: 70513.38 | X87: 40788.49 | Y87: 51617 | Z87: 56700.255 | AB87: 70564 | AC87: 30406
E88: =F88/Language!$C$11+Language!$C$10 -> -72.4 | F88: -58 | M88: 72517 | N88: 48112 | U88: -58 | V88: 72434.44 | X88: 41932.51 | Y88: 53066 | Z88: 58234.16 | AB88: 72517 | AC88: 31359
E89: =F89/Language!$C$11+Language!$C$10 -> -71.5 | F89: =(F88+F90)/2 -> -57.5 | M89: 74514 | N89: 49470 | U89: =(U88+U90)/2 -> -57.5 | V89: 74440.835 | X89: 43129.435 | Y89: 54548 | Z89: 59835.315 | AB89: 74514 | AC89: 32336
E90: =F90/Language!$C$11+Language!$C$10 -> -70.6 | F90: -57 | M90: 76555 | N90: 50859 | Q90: =(Q89+Q91)/2 ->  | U90: -57 | V90: 76447.23 | X90: 44326.36 | Y90: 56063 | Z90: 61436.47 | AB90: 76555 | AC90: 33338 | AF90: =(AF89+AF91)/2 -> 
E91: =F91/Language!$C$11+Language!$C$10 -> -69.7 | F91: =(F90+F92)/2 -> -56.5 | M91: 78641 | N91: 52279 | U91: =(U90+U92)/2 -> -56.5 | V91: 78541.65 | X91: 45577.965 | Y91: 57611 | Z91: 63106.965 | AB91: 78641 | AC91: 34365
E92: =F92/Language!$C$11+Language!$C$10 -> -68.8 | F92: -56 | M92: 80772 | N92: 53731 | Q92: =(Q91+Q93)/2 ->  | U92: -56 | V92: 80636.07 | X92: 46829.57 | Y92: 59192 | Z92: 64777.46 | AB92: 80772 | AC92: 35417 | AF92: =(AF91+AF93)/2 -> 
E93: =F93/Language!$C$11+Language!$C$10 -> -67.9 | F93: =(F92+F94)/2 -> -55.5 | M93: 82948 | N93: 55215 | U93: =(U92+U94)/2 -> -55.5 | V93: 82821.255 | X93: 48137.665 | Y93: 60808 | Z93: 66519.43 | AB93: 82948 | AC93: 36496
E94: =F94/Language!$C$11+Language!$C$10 -> -67 | F94: -55 | M94: 85172 | N94: 56733 | U94: -55 | V94: 85006.44 | X94: 49445.76 | Y94: 62459 | Z94: 68261.4 | AB94: 85172 | AC94: 37601
E95: =F95/Language!$C$11+Language!$C$10 -> -66.1 | F95: =(F94+F96)/2 -> -54.5 | M95: 87443 | N95: 58283 | R95: =(R94+R96)/2 ->  | U95: =(U94+U96)/2 -> -54.5 | V95: 87285.17 | X95: 50812.185 | Y95: 64146 | Z95: 70077.005 | AB95: 87443 | AC95: 38733
E96: =F96/Language!$C$11+Language!$C$10 -> -65.2 | F96: -54 | M96: 89763 | N96: 59867 | U96: -54 | V96: 89563.9 | X96: 52178.61 | Y96: 65868 | Z96: 71892.61 | AB96: 89763 | AC96: 39893
E97: =F97/Language!$C$11+Language!$C$10 -> -64.3 | F97: =(F96+F98)/2 -> -53.5 | M97: 92131 | N97: 61486 | R97: =(R96+R98)/2 ->  | U97: =(U96+U98)/2 -> -53.5 | V97: 91939 | X97: 53605.235 | Y97: 67627 | Z97: 73784.045 | AB97: 92131 | AC97: 41081
E98: =F98/Language!$C$11+Language!$C$10 -> -63.4 | F98: -53 | M98: 94549 | N98: 63140 | U98: -53 | V98: 94314.1 | X98: 55031.86 | Y98: 69423 | Z98: 75675.48 | AB98: 94549 | AC98: 42297
E99: =F99/Language!$C$11+Language!$C$10 -> -62.5 | F99: =(F98+F100)/2 -> -52.5 | M99: 97018 | N99: 64829 | U99: =(U98+U100)/2 -> -52.5 | V99: 96788.435 | X99: 56520.59 | Y99: 71256 | Z99: 77644.975 | AB99: 97018 | AC99: 43542
E100: =F100/Language!$C$11+Language!$C$10 -> -61.6 | F100: -52 | M100: 99537 | N100: 66554 | Q100: =(Q99+Q101)/2 ->  | U100: -52 | V100: 99262.77 | X100: 58009.32 | Y100: 73127 | Z100: 79614.47 | AB100: 99537 | AC100: 44817 | AF100: =(AF99+AF101)/2 -> 
E101: =F101/Language!$C$11+Language!$C$10 -> -60.7 | F101: =(F100+F102)/2 -> -51.5 | M101: 102110 | N101: 68316 | U101: =(U100+U102)/2 -> -51.5 | V101: 101839.255 | X101: 59562.085 | Y101: 75037 | Z101: 81664.285 | AB101: 102110 | AC101: 46122
E102: =F102/Language!$C$11+Language!$C$10 -> -59.8 | F102: -51 | M102: 104730 | N102: 70114 | Q102: =(Q101+Q103)/2 ->  | U102: -51 | V102: 104415.74 | X102: 61114.85 | Y102: 76987 | Z102: 83714.1 | AB102: 104730 | AC102: 47457 | AF102: =(AF101+AF103)/2 -> 
E103: =F103/Language!$C$11+Language!$C$10 -> -58.9 | F103: =(F102+F104)/2 -> -50.5 | M103: 107410 | N103: 71951 | U103: =(U102+U104)/2 -> -50.5 | V103: 107097.32 | X103: 62733.62 | Y103: 78976 | Z103: 85846.535 | AB103: 107410 | AC103: 48824
E104: =F104/Language!$C$11+Language!$C$10 -> -58 | F104: -50 | G104: 109778.9 | I104: 64352.39 | J104: 85707.61 | K104: 87978.97 | M104: 110140 | N104: 73826 | U104: -50 | V104: 109778.9 | X104: 64352.39 | Y104: 81005 | Z104: 87978.97 | AB104: 110140 | AC104: 50222 | AD104: 681979.83
E105: =F105/Language!$C$11+Language!$C$10 -> -57.1 | F105: =(F104+F106)/2 -> -49.5 | G105: 112568.57 | I105: 66039.16 | J105: 87872.16 | K105: 90196.35 | M105: 112930 | N105: 75739 | R105: =(R104+R106)/2 ->  | U105: =(U104+U106)/2 -> -49.5 | V105: 112568.57 | X105: 66039.16 | Y105: 83076 | Z105: 90196.35 | AB105: 112930 | AC105: 51652 | AD105: 695823.42
E106: =F106/Language!$C$11+Language!$C$10 -> -56.2 | F106: -49 | G106: 115358.24 | I106: 67725.93 | J106: 90036.71 | K106: 92413.73 | M106: 115770 | N106: 77692 | U106: -49 | V106: 115358.24 | X106: 67725.93 | Y106: 85188 | Z106: 92413.73 | AB106: 115770 | AC106: 53115 | AD106: 709667.01
E107: =F107/Language!$C$11+Language!$C$10 -> -55.3 | F107: =(F106+F108)/2 -> -48.5 | G107: 118259.04 | I107: 69482.73 | J107: 92286.71 | K107: 94718.41 | M107: 118670 | N107: 79685 | R107: =(R106+R108)/2 ->  | U107: =(U106+U108)/2 -> -48.5 | V107: 118259.04 | X107: 69482.73 | Y107: 87342 | Z107: 94718.41 | AB107: 118670 | AC107: 54611 | AD107: 723942.26
E108: =F108/Language!$C$11+Language!$C$10 -> -54.4 | F108: -48 | G108: 121159.84 | I108: 71239.53 | J108: 94536.71 | K108: 97023.09 | M108: 121630 | N108: 81718 | U108: -48 | V108: 121159.84 | X108: 71239.53 | Y108: 89538 | Z108: 97023.09 | AB108: 121630 | AC108: 56141 | AD108: 738217.51
E109: =F109/Language!$C$11+Language!$C$10 -> -53.5 | F109: =(F108+F110)/2 -> -47.5 | G109: 124174.835 | I109: 73068.415 | J109: 96874.49 | K109: 99417.465 | M109: 124640 | N109: 83793 | U109: =(U108+U110)/2 -> -47.5 | V109: 124174.835 | X109: 73068.415 | Y109: 91778 | Z109: 99417.465 | AB109: 124640 | AC109: 57705 | AD109: 752933.305
E110: =F110/Language!$C$11+Language!$C$10 -> -52.6 | F110: -47 | G110: 127189.83 | I110: 74897.3 | J110: 99212.27 | K110: 101811.84 | M110: 127720 | N110: 85909 | Q110: =(Q109+Q111)/2 ->  | U110: -47 | V110: 127189.83 | X110: 74897.3 | Y110: 94062 | Z110: 101811.84 | AB110: 127720 | AC110: 59304 | AD110: 767649.1 | AF110: =(AF109+AF111)/2 -> 
E111: =F111/Language!$C$11+Language!$C$10 -> -51.7 | F111: =(F110+F112)/2 -> -46.5 | G111: 130322.14 | I111: 76800.355 | J111: 101640.19 | K111: 104298.33 | M111: 130850 | N111: 88067 | U111: =(U110+U112)/2 -> -46.5 | V111: 130322.14 | X111: 76800.355 | Y111: 96390 | Z111: 104298.33 | AB111: 130850 | AC111: 60938 | AD111: 782814.385
E112: =F112/Language!$C$11+Language!$C$10 -> -50.8 | F112: -46 | G112: 133454.45 | I112: 78703.41 | J112: 104068.11 | K112: 106784.82 | M112: 134050 | N112: 90268 | Q112: =(Q111+Q113)/2 ->  | U112: -46 | V112: 133454.45 | X112: 78703.41 | Y112: 98763 | Z112: 106784.82 | AB112: 134050 | AC112: 62609 | AD112: 797979.67 | AF112: =(AF111+AF113)/2 -> 
E113: =F113/Language!$C$11+Language!$C$10 -> -49.9 | F113: =(F112+F114)/2 -> -45.5 | G113: 136707.23 | I113: 80682.76 | J113: 106588.56 | K113: 109365.87 | M113: 137300 | N113: 92513 | U113: =(U112+U114)/2 -> -45.5 | V113: 136707.23 | X113: 80682.76 | Y113: 101180 | Z113: 109365.87 | AB113: 137300 | AC113: 64316 | AD113: 813603.435
E114: =F114/Language!$C$11+Language!$C$10 -> -49 | F114: -45 | G114: 139960.01 | I114: 82662.11 | J114: 109109.01 | K114: 111946.92 | M114: 140620 | N114: 94802 | P114: 110730 | Q114: 109370 | R114: 37445 | S114: 53412 | U114: -45 | V114: 139960.01 | W114: 39117 | X114: 82662.11 | Y114: 103650 | Z114: 111946.92 | AA114: 77139 | AB114: 140620 | AC114: 66060 | AD114: 829227.2 | AE114: 85063 | AF114: 84845 | AG114: 35916 | AH114: 53013
E115: =F115/Language!$C$11+Language!$C$10 -> -48.1 | F115: =(F114+F116)/2 -> -44.5 | G115: 143336.455 | I115: 84719.89 | J115: 111724.405 | K115: 114625.02 | M115: 144000 | N115: 97136 | P115: 113390 | Q115: 112010 | R115: 38482 | S115: 54804 | U115: =(U114+U116)/2 -> -44.5 | V115: 143336.455 | W115: 40211 | X115: 84719.89 | Y115: 106160 | Z115: 114625.02 | AA115: 79186 | AB115: 144000 | AC115: 67842 | AD115: 845318.505 | AE115: 87253 | AF115: 87029 | AG115: 36918 | AH115: 54406
E116: =F116/Language!$C$11+Language!$C$10 -> -47.2 | F116: -44 | G116: 146712.9 | I116: 86777.67 | J116: 114339.8 | K116: 117303.12 | M116: 147450 | N116: 99515 | P116: 116110 | Q116: 114690 | R116: 39542 | S116: 56225 | U116: -44 | V116: 146712.9 | W116: 41329 | X116: 86777.67 | Y116: 108720 | Z116: 117303.12 | AA116: 81277 | AB116: 147450 | AC116: 69662 | AD116: 861409.81 | AE116: 89489 | AF116: 89257 | AG116: 37941 | AH116: 55827
E117: =F117/Language!$C$11+Language!$C$10 -> -46.3 | F117: =(F116+F118)/2 -> -43.5 | G117: 150216.245 | I117: 88916.065 | J117: 117052.585 | K117: 120080.775 | M117: 150960 | N117: 101940 | P117: 118880 | Q117: 117420 | R117: 40626 | S117: 57675 | U117: =(U116+U118)/2 -> -43.5 | V117: 150216.245 | W117: 42472 | X117: 88916.065 | Y117: 111330 | Z117: 120080.775 | AA117: 83411 | AB117: 150960 | AC117: 71521 | AD117: 877977.765 | AE117: 91769 | AF117: 91530 | AG117: 38988 | AH117: 57278
E118: =F118/Language!$C$11+Language!$C$10 -> -45.4 | F118: -43 | G118: 153719.59 | I118: 91054.46 | J118: 119765.37 | K118: 122858.43 | M118: 154530 | N118: 104410 | P118: 121700 | Q118: 120200 | R118: 41733 | S118: 59156 | U118: -43 | V118: 153719.59 | W118: 43640 | X118: 91054.46 | Y118: 113980 | Z118: 122858.43 | AA118: 85590 | AB118: 154530 | AC118: 73420 | AD118: 894545.72 | AE118: 94095 | AF118: 93849 | AG118: 40058 | AH118: 58758
E119: =F119/Language!$C$11+Language!$C$10 -> -44.5 | F119: =(F118+F120)/2 -> -42.5 | G119: 157353.11 | I119: 93275.665 | J119: 122578.015 | K119: 125738.185 | M119: 158170 | N119: 106930 | P119: 124570 | Q119: 123040 | R119: 42865 | S119: 60666 | U119: =(U118+U120)/2 -> -42.5 | V119: 157353.11 | W119: 44835 | X119: 93275.665 | Y119: 116690 | Z119: 125738.185 | AA119: 87814 | AB119: 158170 | AC119: 75358 | AD119: 911599.495 | AE119: 96468 | AF119: 96214 | AG119: 41152 | AH119: 60269
E120: =F120/Language!$C$11+Language!$C$10 -> -43.6 | F120: -42 | G120: 160986.63 | I120: 95496.87 | J120: 125390.66 | K120: 128617.94 | M120: 161880 | N120: 109500 | P120: 127490 | Q120: 125930 | R120: 44022 | S120: 62207 | U120: -42 | V120: 160986.63 | W120: 46055 | X120: 95496.87 | Y120: 119440 | Z120: 128617.94 | AA120: 90084 | AB120: 161880 | AC120: 77337 | AD120: 928653.27 | AE120: 98888 | AF120: 98626 | AG120: 42269 | AH120: 61811
E121: =F121/Language!$C$11+Language!$C$10 -> -42.7 | F121: =(F120+F122)/2 -> -41.5 | G121: 164753.63 | I121: 97803.125 | J121: 128305.665 | K121: 131602.36 | M121: 165660 | N121: 112110 | P121: 130470 | Q121: 128870 | R121: 45204 | S121: 63779 | U121: =(U120+U122)/2 -> -41.5 | V121: 164753.63 | W121: 47303 | X121: 97803.125 | Y121: 122250 | Z121: 131602.36 | AA121: 92400 | AB121: 165660 | AC121: 79358 | AD121: 946202.075 | AE121: 101360 | AF121: 101090 | AG121: 43411 | AH121: 63384
E122: =F122/Language!$C$11+Language!$C$10 -> -41.8 | F122: -41 | G122: 168520.63 | I122: 100109.38 | J122: 131220.67 | K122: 134586.78 | M122: 169510 | N122: 114770 | P122: 133500 | Q122: 131860 | R122: 46411 | S122: 65383 | U122: -41 | V122: 168520.63 | W122: 48577 | X122: 100109.38 | Y122: 125110 | Z122: 134586.78 | AA122: 94764 | AB122: 169510 | AC122: 81421 | AD122: 963750.88 | AE122: 103870 | AF122: 103590 | AG122: 44578 | AH122: 64989
E123: =F123/Language!$C$11+Language!$C$10 -> -40.9 | F123: =(F122+F124)/2 -> -40.5 | G123: 172424.47 | I123: 102502.94 | J123: 134240.565 | K123: 137678.46 | M123: 173420 | N123: 117490 | P123: 136590 | Q123: 134910 | R123: 47643 | S123: 67019 | U123: =(U122+U124)/2 -> -40.5 | V123: 172424.47 | W123: 49879 | X123: 102502.94 | Y123: 128010 | Z123: 137678.46 | AA123: 97175 | AB123: 173420 | AC123: 83526 | AD123: 981803.98 | AE123: 106440 | AF123: 106150 | AG123: 45770 | AH123: 66626
E124: =F124/Language!$C$11+Language!$C$10 -> -40 | F124: -40 | G124: 176328.31 | I124: 104896.5 | J124: 137260.46 | K124: 140770.14 | M124: 177410 | N124: 120250 | O124: 999857.08 | P124: 139730 | Q124: 138020 | R124: 48902 | S124: 68688 | U124: -40 | V124: 176328.31 | W124: 51209 | X124: 104896.5 | Y124: 130980 | Z124: 140770.14 | AA124: 99634 | AB124: 177410 | AC124: 85674 | AD124: 999857.08 | AE124: 109050 | AF124: 108760 | AG124: 46987 | AH124: 68296
E125: =F125/Language!$C$11+Language!$C$10 -> -39.1 | F125: =(F124+F126)/2 -> -39.5 | G125: 180372.375 | I125: 107379.65 | J125: 140387.79 | K125: 143971.71 | M125: 181470 | N125: 123070 | O125: 1018423.785 | P125: 142930 | Q125: 141180 | R125: 50188 | S125: 70389 | U125: =(U124+U126)/2 -> -39.5 | V125: 180372.375 | W125: 52567 | X125: 107379.65 | Y125: 133990 | Z125: 143971.71 | AA125: 102140 | AB125: 181470 | AC125: 87866 | AD125: 1018423.785 | AE125: 111720 | AF125: 111410 | AG125: 48231 | AH125: 69998
E126: =F126/Language!$C$11+Language!$C$10 -> -38.2 | F126: -39 | G126: 184416.44 | I126: 109862.8 | J126: 143515.12 | K126: 147173.28 | M126: 185600 | N126: 125930 | O126: 1036990.49 | P126: 146180 | Q126: 144390 | R126: 51501 | S126: 72124 | U126: -39 | V126: 184416.44 | W126: 53955 | X126: 109862.8 | Y126: 137060 | Z126: 147173.28 | AA126: 104700 | AB126: 185600 | AC126: 90102 | AD126: 1036990.49 | AE126: 114430 | AF126: 114120 | AG126: 49500 | AH126: 71734
E127: =F127/Language!$C$11+Language!$C$10 -> -37.3 | F127: =(F126+F128)/2 -> -38.5 | G127: 188604.15 | I127: 112437.855 | J127: 146752.465 | K127: 150487.39 | M127: 189810 | N127: 128850 | O127: 1056080.16 | P127: 149500 | Q127: 147670 | R127: 52841 | S127: 73892 | U127: =(U126+U128)/2 -> -38.5 | V127: 188604.15 | W127: 55371 | X127: 112437.855 | Y127: 140180 | Z127: 150487.39 | AA127: 107310 | AB127: 189810 | AC127: 92384 | AD127: 1056080.16 | AE127: 117200 | AF127: 116880 | AG127: 50797 | AH127: 73504
E128: =F128/Language!$C$11+Language!$C$10 -> -36.4 | F128: -38 | G128: 192791.86 | I128: 115012.91 | J128: 149989.81 | K128: 153801.5 | M128: 194090 | N128: 131820 | O128: 1075169.83 | P128: 152870 | Q128: 151000 | R128: 54209 | S128: 75695 | U128: -38 | V128: 192791.86 | W128: 56817 | X128: 115012.91 | Y128: 143360 | Z128: 153801.5 | AA128: 109970 | AB128: 194090 | AC128: 94711 | AD128: 1075169.83 | AE128: 120020 | AF128: 119690 | AG128: 52121 | AH128: 75309
E129: =F129/Language!$C$11+Language!$C$10 -> -35.5 | F129: =(F128+F130)/2 -> -37.5 | G129: 197126.69 | I129: 117682.215 | J129: 153339.78 | K129: 157230.83 | M129: 198440 | N129: 134850 | O129: 1094791.865 | P129: 156300 | Q129: 154390 | R129: 55605 | S129: 77533 | U129: =(U128+U130)/2 -> -37.5 | V129: 197126.69 | W129: 58294 | X129: 117682.215 | Y129: 146590 | Z129: 157230.83 | AA129: 112680 | AB129: 198440 | AC129: 97085 | AD129: 1094791.865 | AE129: 122900 | AF129: 122550 | AG129: 53472 | AH129: 77148
E130: =F130/Language!$C$11+Language!$C$10 -> -34.6 | F130: -37 | G130: 201461.52 | I130: 120351.52 | J130: 156689.75 | K130: 160660.16 | M130: 202870 | N130: 137930 | O130: 1114413.9 | P130: 159790 | Q130: 157830 | R130: 57030 | S130: 79406 | U130: -37 | V130: 201461.52 | W130: 59801 | X130: 120351.52 | Y130: 149880 | Z130: 160660.16 | AA130: 115450 | AB130: 202870 | AC130: 99505 | AD130: 1114413.9 | AE130: 125820 | AF130: 125470 | AG130: 54851 | AH130: 79023
E131: =F131/Language!$C$11+Language!$C$10 -> -33.7 | F131: =(F130+F132)/2 -> -36.5 | G131: 205946.965 | I131: 123117.435 | J131: 160154.96 | K131: 164207.41 | M131: 207380 | N131: 141060 | O131: 1134577.74 | P131: 163340 | Q131: 161340 | R131: 58485 | S131: 81315 | U131: =(U130+U132)/2 -> -36.5 | V131: 205946.965 | W131: 61339 | X131: 123117.435 | Y131: 153230 | Z131: 164207.41 | AA131: 118270 | AB131: 207380 | AC131: 101970 | AD131: 1134577.74 | AE131: 128800 | AF131: 128440 | AG131: 56259 | AH131: 80933
E132: =F132/Language!$C$11+Language!$C$10 -> -32.8 | F132: -36 | G132: 210432.41 | I132: 125883.35 | J132: 163620.17 | K132: 167754.66 | M132: 211970 | N132: 144250 | O132: 1154741.58 | P132: 166960 | Q132: 164910 | R132: 59968 | S132: 83260 | U132: -36 | V132: 210432.41 | W132: 62908 | X132: 125883.35 | Y132: 156630 | Z132: 167754.66 | AA132: 121140 | AB132: 211970 | AC132: 104490 | AD132: 1154741.58 | AE132: 131840 | AF132: 131460 | AG132: 57696 | AH132: 82880
E133: =F133/Language!$C$11+Language!$C$10 -> -31.9 | F133: =(F132+F134)/2 -> -35.5 | G133: 215072.005 | I133: 128748.275 | J133: 167203.285 | K133: 171422.565 | M133: 216630 | N133: 147500 | O133: 1175456.705 | P133: 170630 | Q133: 168540 | R133: 61482 | S133: 85242 | U133: =(U132+U134)/2 -> -35.5 | V133: 215072.005 | W133: 64510 | X133: 128748.275 | Y133: 160090 | Z133: 171422.565 | AA133: 124070 | AB133: 216630 | AC133: 107060 | AD133: 1175456.705 | AE133: 134940 | AF133: 134550 | AG133: 59161 | AH133: 84864
E134: =F134/Language!$C$11+Language!$C$10 -> -31 | F134: -35 | G134: 219711.6 | I134: 131613.2 | J134: 170786.4 | K134: 175090.47 | M134: 221380 | N134: 150800 | O134: 1196171.83 | P134: 174370 | Q134: 172240 | R134: 63026 | S134: 87261 | U134: -35 | V134: 219711.6 | W134: 66144 | X134: 131613.2 | Y134: 163620 | Z134: 175090.47 | AA134: 127050 | AB134: 221380 | AC134: 109670 | AD134: 1196171.83 | AE134: 138090 | AF134: 137680 | AG134: 60657 | AH134: 86885
E135: =F135/Language!$C$11+Language!$C$10 -> -30.1 | F135: =(F134+F136)/2 -> -34.5 | G135: 224508.925 | I135: 134579.54 | J135: 174490.085 | K135: 178881.785 | M135: 226210 | N135: 154170 | O135: 1217447.765 | P135: 178170 | Q135: 175990 | R135: 64601 | S135: 89318 | U135: =(U134+U136)/2 -> -34.5 | V135: 224508.925 | W135: 67811 | X135: 134579.54 | Y135: 167200 | Z135: 178881.785 | AA135: 130090 | AB135: 226210 | AC135: 112340 | AD135: 1217447.765 | AE135: 141290 | AF135: 140880 | AG135: 62183 | AH135: 88944
E136: =F136/Language!$C$11+Language!$C$10 -> -29.2 | F136: -34 | G136: 229306.25 | I136: 137545.88 | J136: 178193.77 | K136: 182673.1 | M136: 231110 | N136: 157590 | O136: 1238723.7 | P136: 182040 | Q136: 179810 | R136: 66207 | S136: 91413 | U136: -34 | V136: 229306.25 | W136: 69512 | X136: 137545.88 | Y136: 170840 | Z136: 182673.1 | AA136: 133180 | AB136: 231110 | AC136: 115050 | AD136: 1238723.7 | AE136: 144560 | AF136: 144130 | AG136: 63739 | AH136: 91041
E137: =F137/Language!$C$11+Language!$C$10 -> -28.3 | F137: =(F136+F138)/2 -> -33.5 | G137: 234264.91 | I137: 140616.09 | J137: 182020.74 | K137: 186590.605 | M137: 236110 | N137: 161060 | O137: 1260569.995 | P137: 185970 | Q137: 183690 | R137: 67845 | S137: 93546 | U137: =(U136+U138)/2 -> -33.5 | V137: 234264.91 | W137: 71246 | X137: 140616.09 | Y137: 174540 | Z137: 186590.605 | AA137: 136340 | AB137: 236110 | AC137: 117820 | AD137: 1260569.995 | AE137: 147880 | AF137: 147440 | AG137: 65326 | AH137: 93177
E138: =F138/Language!$C$11+Language!$C$10 -> -27.4 | F138: -33 | G138: 239223.57 | I138: 143686.3 | J138: 185847.71 | K138: 190508.11 | M138: 241180 | N138: 164600 | O138: 1282416.29 | P138: 189960 | Q138: 187640 | R138: 69515 | S138: 95719 | U138: -33 | V138: 239223.57 | W138: 73015 | X138: 143686.3 | Y138: 178310 | Z138: 190508.11 | AA138: 139550 | AB138: 241180 | AC138: 120640 | AD138: 1282416.29 | AE138: 151270 | AF138: 150810 | AG138: 66945 | AH138: 95352
E139: =F139/Language!$C$11+Language!$C$10 -> -26.5 | F139: =(F138+F140)/2 -> -32.5 | G139: 244347.22 | I139: 146862.845 | J139: 189800.68 | K139: 194554.61 | M139: 246340 | N139: 168200 | O139: 1304842.53 | P139: 194030 | Q139: 191650 | R139: 71218 | S139: 97932 | U139: =(U138+U140)/2 -> -32.5 | V139: 244347.22 | W139: 74819 | X139: 146862.845 | Y139: 182140 | Z139: 194554.61 | AA139: 142820 | AB139: 246340 | AC139: 123510 | AD139: 1304842.53 | AE139: 154710 | AF139: 154240 | AG139: 68595 | AH139: 97568
E140: =F140/Language!$C$11+Language!$C$10 -> -25.6 | F140: -32 | G140: 249470.87 | I140: 150039.39 | J140: 193753.65 | K140: 198601.11 | M140: 251590 | N140: 171860 | O140: 1327268.77 | P140: 198160 | Q140: 195730 | R140: 72953 | S140: 100180 | U140: -32 | V140: 249470.87 | W140: 76658 | X140: 150039.39 | Y140: 186030 | Z140: 198601.11 | AA140: 146150 | AB140: 251590 | AC140: 126440 | AD140: 1327268.77 | AE140: 158220 | AF140: 157730 | AG140: 70278 | AH140: 99823
E141: =F141/Language!$C$11+Language!$C$10 -> -24.7 | F141: =(F140+F142)/2 -> -31.5 | G141: 254763.185 | I141: 153324.755 | J141: 197835.375 | K141: 202779.425 | M141: 256920 | N141: 175580 | O141: 1350284.58 | P141: 202350 | Q141: 199880 | R141: 74723 | S141: 102480 | U141: =(U140+U142)/2 -> -31.5 | V141: 254763.185 | W141: 78533 | X141: 153324.755 | Y141: 189980 | Z141: 202779.425 | AA141: 149540 | AB141: 256920 | AC141: 129420 | AD141: 1350284.58 | AE141: 161780 | AF141: 161290 | AG141: 71993 | AH141: 102120
E142: =F142/Language!$C$11+Language!$C$10 -> -23.8 | F142: -31 | G142: 260055.5 | I142: 156610.12 | J142: 201917.1 | K142: 206957.74 | M142: 262340 | N142: 179370 | O142: 1373300.39 | P142: 206620 | Q142: 204100 | R142: 76526 | S142: 104810 | U142: -31 | V142: 260055.5 | W142: 80444 | X142: 156610.12 | Y142: 194000 | Z142: 206957.74 | AA142: 153000 | AB142: 262340 | AC142: 132460 | AD142: 1373300.39 | AE142: 165410 | AF142: 164900 | AG142: 73742 | AH142: 104460
E143: =F143/Language!$C$11+Language!$C$10 -> -22.9 | F143: =(F142+F144)/2 -> -30.5 | G143: 265520.205 | I143: 160006.825 | J143: 206130.34 | K143: 211270.735 | M143: 267840 | N143: 183220 | O143: 1396915.42 | P143: 210960 | Q143: 208380 | R143: 78364 | S143: 107190 | U143: =(U142+U144)/2 -> -30.5 | V143: 265520.205 | W143: 82392 | X143: 160006.825 | Y143: 198080 | Z143: 211270.735 | AA143: 156510 | AB143: 267840 | AC143: 135550 | AD143: 1396915.42 | AE143: 169100 | AF143: 168580 | AG143: 75525 | AH143: 106840
E144: =F144/Language!$C$11+Language!$C$10 -> -22 | F144: -30 | G144: 270984.91 | H144: 84365.39 | I144: 163403.53 | J144: 210343.58 | K144: 215583.73 | M144: 273440 | N144: 187130 | O144: 1420530.45 | P144: 215360 | Q144: 212730 | R144: 80236 | S144: 109610 | U144: -30 | V144: 270984.91 | W144: 84365.39 | X144: 163403.53 | Y144: 202230 | Z144: 215583.73 | AA144: 160090 | AB144: 273440 | AC144: 138700 | AD144: 1420530.45 | AE144: 172860 | AF144: 172320 | AG144: 77341 | AH144: 109260
E145: =F145/Language!$C$11+Language!$C$10 -> -21.1 | F145: =(F144+F146)/2 -> -29.5 | G145: 276625.76 | H145: 86408.085 | I145: 166914.11 | J145: 214691.14 | K145: 220034.265 | M145: 279130 | N145: 191100 | O145: 1444754.37 | P145: 219840 | Q145: 217160 | R145: 82144 | S145: 112070 | U145: =(U144+U146)/2 -> -29.5 | V145: 276625.76 | W145: 86408.085 | X145: 166914.11 | Y145: 206450 | Z145: 220034.265 | AA145: 163740 | AB145: 279130 | AC145: 141910 | AD145: 1444754.37 | AE145: 176680 | AF145: 176130 | AG145: 79192 | AH145: 111720
E146: =F146/Language!$C$11+Language!$C$10 -> -20.2 | F146: -29 | G146: 282266.61 | H146: 88450.78 | I146: 170424.69 | J146: 219038.7 | K146: 224484.8 | M146: 284910 | N146: 195150 | O146: 1468978.29 | P146: 224390 | Q146: 221650 | R146: 84088 | S146: 114570 | U146: -29 | V146: 282266.61 | W146: 88450.78 | X146: 170424.69 | Y146: 210730 | Z146: 224484.8 | AA146: 167440 | AB146: 284910 | AC146: 145170 | AD146: 1468978.29 | AE146: 180570 | AF146: 180000 | AG146: 81079 | AH146: 114230
E147: =F147/Language!$C$11+Language!$C$10 -> -19.3 | F147: =(F146+F148)/2 -> -28.5 | G147: 288087.39 | H147: 90571.31 | I147: 174051.705 | J147: 223523.39 | K147: 229075.78 | M147: 290780 | N147: 199260 | O147: 1493820.805 | P147: 229010 | Q147: 226220 | R147: 86068 | S147: 117120 | U147: =(U146+U148)/2 -> -28.5 | V147: 288087.39 | W147: 90571.31 | X147: 174051.705 | Y147: 215090 | Z147: 229075.78 | AA147: 171220 | AB147: 290780 | AC147: 148500 | AD147: 1493820.805 | AE147: 184520 | AF147: 183930 | AG147: 83001 | AH147: 116780
E148: =F148/Language!$C$11+Language!$C$10 -> -18.4 | F148: -28 | G148: 293908.17 | H148: 92691.84 | I148: 177678.72 | J148: 228008.08 | K148: 233666.76 | M148: 296750 | N148: 203430 | O148: 1518663.32 | P148: 233700 | Q148: 230850 | R148: 88085 | S148: 119710 | U148: -28 | V148: 293908.17 | W148: 92691.84 | X148: 177678.72 | Y148: 219510 | Z148: 233666.76 | AA148: 175060 | AB148: 296750 | AC148: 151880 | AD148: 1518663.32 | AE148: 188540 | AF148: 187940 | AG148: 84958 | AH148: 119380
E149: =F149/Language!$C$11+Language!$C$10 -> -17.5 | F149: =(F148+F150)/2 -> -27.5 | G149: 299912.705 | H149: 94892.28 | I149: 181424.76 | J149: 232632.74 | K149: 238401.1 | M149: 302810 | N149: 207670 | O149: 1544134.16 | P149: 238470 | Q149: 235560 | R149: 90139 | S149: 122350 | U149: =(U148+U150)/2 -> -27.5 | V149: 299912.705 | W149: 94892.28 | X149: 181424.76 | Y149: 224000 | Z149: 238401.1 | AA149: 178960 | AB149: 302810 | AC149: 155320 | AD149: 1544134.16 | AE149: 192630 | AF149: 192010 | AG149: 86953 | AH149: 122020
E150: =F150/Language!$C$11+Language!$C$10 -> -16.6 | F150: -27 | G150: 305917.24 | H150: 97092.72 | I150: 185170.8 | J150: 237257.4 | K150: 243135.44 | M150: 308960 | N150: 211980 | O150: 1569605 | P150: 243320 | Q150: 240350 | R150: 92231 | S150: 125040 | U150: -27 | V150: 305917.24 | W150: 97092.72 | X150: 185170.8 | Y150: 228560 | Z150: 243135.44 | AA150: 182940 | AB150: 308960 | AC150: 158830 | AD150: 1569605 | AE150: 196790 | AF150: 196150 | AG150: 88984 | AH150: 124700
E151: =F151/Language!$C$11+Language!$C$10 -> -15.7 | F151: =(F150+F152)/2 -> -26.5 | G151: 312109.395 | H151: 99375.175 | I151: 189038.46 | J151: 242024.89 | K151: 248016.08 | M151: 315220 | N151: 216360 | O151: 1595713.915 | P151: 248240 | Q151: 245210 | R151: 94361 | S151: 127760 | U151: =(U150+U152)/2 -> -26.5 | V151: 312109.395 | W151: 99375.175 | X151: 189038.46 | Y151: 233190 | Z151: 248016.08 | AA151: 186980 | AB151: 315220 | AC151: 162390 | AD151: 1595713.915 | AE151: 201010 | AF151: 200350 | AG151: 91052 | AH151: 127440
E152: =F152/Language!$C$11+Language!$C$10 -> -14.8 | F152: -26 | G152: 318301.55 | H152: 101657.63 | I152: 192906.12 | J152: 246792.38 | K152: 252896.72 | M152: 321570 | N152: 220810 | O152: 1621822.83 | P152: 253230 | Q152: 250140 | R152: 96530 | S152: 130540 | U152: -26 | V152: 318301.55 | W152: 101657.63 | X152: 192906.12 | Y152: 237890 | Z152: 252896.72 | AA152: 191090 | AB152: 321570 | AC152: 166020 | AD152: 1621822.83 | AE152: 205310 | AF152: 204630 | AG152: 93159 | AH152: 130220
E153: =F153/Language!$C$11+Language!$C$10 -> -13.9 | F153: =(F152+F154)/2 -> -25.5 | G153: 324685.22 | H153: 104024.225 | I153: 196898.04 | J153: 251705.58 | K153: 257926.61 | M153: 328010 | N153: 225330 | O153: 1648579.58 | P153: 258300 | Q153: 255160 | R153: 98738 | S153: 133360 | U153: =(U152+U154)/2 -> -25.5 | V153: 324685.22 | W153: 104024.225 | X153: 196898.04 | Y153: 242670 | Z153: 257926.61 | AA153: 195270 | AB153: 328010 | AC153: 169710 | AD153: 1648579.58 | AE153: 209680 | AF153: 208980 | AG153: 95304 | AH153: 133040
E154: =F154/Language!$C$11+Language!$C$10 -> -13 | F154: -25 | G154: 331068.89 | H154: 106390.82 | I154: 200889.96 | J154: 256618.78 | K154: 262956.5 | M154: 334560 | N154: 229930 | O154: 1675336.33 | P154: 263450 | Q154: 260240 | R154: 100990 | S154: 136230 | U154: -25 | V154: 331068.89 | W154: 106390.82 | X154: 200889.96 | Y154: 247520 | Z154: 262956.5 | AA154: 199530 | AB154: 334560 | AC154: 173470 | AD154: 1675336.33 | AE154: 214120 | AF154: 213400 | AG154: 97488 | AH154: 135920
E155: =F155/Language!$C$11+Language!$C$10 -> -12.1 | F155: =(F154+F156)/2 -> -24.5 | G155: 337648.005 | H155: 108843.715 | I155: 205008.775 | J155: 261680.59 | K155: 268138.63 | M155: 341210 | N155: 234590 | O155: 1702750.71 | P155: 268680 | Q155: 265410 | R155: 103270 | S155: 139150 | U155: =(U154+U156)/2 -> -24.5 | V155: 337648.005 | W155: 108843.715 | X155: 205008.775 | Y155: 252440 | Z155: 268138.63 | AA155: 203850 | AB155: 341210 | AC155: 177290 | AD155: 1702750.71 | AE155: 218630 | AF155: 217890 | AG155: 99711 | AH155: 138840
E156: =F156/Language!$C$11+Language!$C$10 -> -11.2 | F156: -24 | G156: 344227.12 | H156: 111296.61 | I156: 209127.59 | J156: 266742.4 | K156: 273320.76 | M156: 347960 | N156: 239330 | O156: 1730165.09 | P156: 273990 | Q156: 270650 | R156: 105600 | S156: 142120 | U156: -24 | V156: 344227.12 | W156: 111296.61 | X156: 209127.59 | Y156: 257440 | Z156: 273320.76 | AA156: 208250 | AB156: 347960 | AC156: 181180 | AD156: 1730165.09 | AE156: 223210 | AF156: 222450 | AG156: 101970 | AH156: 141810
E157: =F157/Language!$C$11+Language!$C$10 -> -10.3 | F157: =(F156+F158)/2 -> -23.5 | G157: 351005.645 | H157: 113837.975 | I157: 213375.98 | J157: 271955.745 | K157: 278658.125 | M157: 354810 | N157: 244140 | O157: 1758246.895 | P157: 279380 | Q157: 275980 | R157: 107970 | S157: 145130 | U157: =(U156+U158)/2 -> -23.5 | V157: 351005.645 | W157: 113837.975 | X157: 213375.98 | Y157: 262510 | Z157: 278658.125 | AA157: 212720 | AB157: 354810 | AC157: 185130 | AD157: 1758246.895 | AE157: 227870 | AF157: 227090 | AG157: 104280 | AH157: 144830
E158: =F158/Language!$C$11+Language!$C$10 -> -9.4 | F158: -23 | G158: 357784.17 | H158: 116379.34 | I158: 217624.37 | J158: 277169.09 | K158: 283995.49 | M158: 361770 | N158: 249020 | O158: 1786328.7 | P158: 284850 | Q158: 281380 | R158: 110380 | S158: 148200 | U158: -23 | V158: 357784.17 | W158: 116379.34 | X158: 217624.37 | Y158: 267660 | Z158: 283995.49 | AA158: 217270 | AB158: 361770 | AC158: 189150 | AD158: 1786328.7 | AE158: 232610 | AF158: 231800 | AG158: 106620 | AH158: 147900
E159: =F159/Language!$C$11+Language!$C$10 -> -8.5 | F159: =(F158+F160)/2 -> -22.5 | G159: 364766.11 | H159: 119011.395 | I159: 222005.02 | J159: 282536.92 | K159: 289491.105 | M159: 368830 | N159: 253980 | O159: 1815087.755 | P159: 290400 | Q159: 286870 | R159: 112840 | S159: 151320 | U159: =(U158+U160)/2 -> -22.5 | V159: 364766.11 | W159: 119011.395 | X159: 222005.02 | Y159: 272880 | Z159: 289491.105 | AA159: 221890 | AB159: 368830 | AC159: 193230 | AD159: 1815087.755 | AE159: 237420 | AF159: 236590 | AG159: 109010 | AH159: 151020
E160: =F160/Language!$C$11+Language!$C$10 -> -7.6 | F160: -22 | G160: 371748.05 | H160: 121643.45 | I160: 226385.67 | J160: 287904.75 | K160: 294986.72 | M160: 376000 | N160: 259020 | O160: 1843846.81 | P160: 296040 | Q160: 292440 | R160: 115330 | S160: 154480 | U160: -22 | V160: 371748.05 | W160: 121643.45 | X160: 226385.67 | Y160: 278190 | Z160: 294986.72 | AA160: 226590 | AB160: 376000 | AC160: 197390 | AD160: 1843846.81 | AE160: 242310 | AF160: 241450 | AG160: 111440 | AH160: 154190
E161: =F161/Language!$C$11+Language!$C$10 -> -6.7 | F161: =(F160+F162)/2 -> -21.5 | G161: 378937.435 | H161: 124368.42 | I161: 230901.285 | J161: 293430.02 | K161: 300643.625 | M161: 383280 | N161: 264130 | O161: 1873292.94 | P161: 301760 | Q161: 298080 | R161: 117870 | S161: 157700 | U161: =(U160+U162)/2 -> -21.5 | V161: 378937.435 | W161: 124368.42 | X161: 230901.285 | Y161: 283570 | Z161: 300643.625 | AA161: 231360 | AB161: 383280 | AC161: 201610 | AD161: 1873292.94 | AE161: 247270 | AF161: 246390 | AG161: 113910 | AH161: 157410
E162: =F162/Language!$C$11+Language!$C$10 -> -5.8 | F162: -21 | G162: 386126.82 | H162: 127093.39 | I162: 235416.9 | J162: 298955.29 | K162: 306300.53 | M162: 390660 | N162: 269320 | O162: 1902739.07 | P162: 307560 | Q162: 303820 | R162: 120460 | S162: 160970 | U162: -21 | V162: 386126.82 | W162: 127093.39 | X162: 235416.9 | Y162: 289030 | Z162: 306300.53 | AA162: 236220 | AB162: 390660 | AC162: 205910 | AD162: 1902739.07 | AE162: 252310 | AF162: 251410 | AG162: 116420 | AH162: 160690
E163: =F163/Language!$C$11+Language!$C$10 -> -4.9 | F163: =(F162+F164)/2 -> -20.5 | G163: 393527.725 | H163: 129913.525 | I163: 240070.215 | J163: 304640.985 | K163: 312121.785 | M163: 398150 | N163: 274590 | O163: 1932882.115 | P163: 313450 | Q163: 309630 | R163: 123090 | S163: 164290 | U163: =(U162+U164)/2 -> -20.5 | V163: 393527.725 | W163: 129913.525 | X163: 240070.215 | Y163: 294570 | Z163: 312121.785 | AA163: 241150 | AB163: 398150 | AC163: 210270 | AD163: 1932882.115 | AE163: 257430 | AF163: 256510 | AG163: 118980 | AH163: 164020
E164: =F164/Language!$C$11+Language!$C$10 -> -4 | F164: -20 | G164: 400928.63 | H164: 132733.66 | I164: 244723.53 | J164: 310326.68 | K164: 317943.04 | M164: 405750 | N164: 279940 | O164: 1963025.16 | P164: 319420 | Q164: 315540 | R164: 125760 | S164: 167670 | U164: -20 | V164: 400928.63 | W164: 132733.66 | X164: 244723.53 | Y164: 300190 | Z164: 317943.04 | AA164: 246160 | AB164: 405750 | AC164: 214710 | AD164: 1963025.16 | AE164: 262630 | AF164: 261690 | AG164: 121580 | AH164: 167400
E165: =F165/Language!$C$11+Language!$C$10 -> -3.1 | F165: =(F164+F166)/2 -> -19.5 | G165: 408545.16 | H165: 135651.25 | I165: 249517.29 | J165: 316175.815 | K165: 323931.71 | M165: 413470 | N165: 285360 | O165: 1993874.965 | P165: 325480 | Q165: 321520 | R165: 128480 | S165: 171100 | U165: =(U164+U166)/2 -> -19.5 | V165: 408545.16 | W165: 135651.25 | X165: 249517.29 | Y165: 305900 | Z165: 323931.71 | AA165: 251250 | AB165: 413470 | AC165: 219220 | AD165: 1993874.965 | AE165: 267920 | AF165: 266940 | AG165: 124220 | AH165: 170830
E166: =F166/Language!$C$11+Language!$C$10 -> -2.2 | F166: -19 | G166: 416161.69 | H166: 138568.84 | I166: 254311.05 | J166: 322024.95 | K166: 329920.38 | M166: 421290 | N166: 290870 | O166: 2024724.77 | P166: 331630 | Q166: 327600 | R166: 131240 | S166: 174590 | U166: -19 | V166: 416161.69 | W166: 138568.84 | X166: 254311.05 | Y166: 311680 | Z166: 329920.38 | AA166: 256420 | AB166: 421290 | AC166: 223810 | AD166: 2024724.77 | AE166: 273280 | AF166: 272280 | AG166: 126910 | AH166: 174320
E167: =F167/Language!$C$11+Language!$C$10 -> -1.3 | F167: =(F166+F168)/2 -> -18.5 | G167: 423997.985 | H167: 141586.185 | I167: 259248.025 | J167: 328040.545 | K167: 336079.56 | M167: 429230 | N167: 296460 | O167: 2056291.195 | P167: 337860 | Q167: 333760 | R167: 134050 | S167: 178120 | U167: =(U166+U168)/2 -> -18.5 | V167: 423997.985 | W167: 141586.185 | X167: 259248.025 | Y167: 317550 | Z167: 336079.56 | AA167: 261680 | AB167: 429230 | AC167: 228460 | AD167: 2056291.195 | AE167: 278730 | AF167: 277700 | AG167: 129650 | AH167: 177870
E168: =F168/Language!$C$11+Language!$C$10 -> -0.4 | F168: -18 | G168: 431834.28 | H168: 144603.53 | I168: 264185 | J168: 334056.14 | K168: 342238.74 | M168: 437280 | N168: 302130 | O168: 2087857.62 | P168: 344190 | Q168: 340010 | R168: 136910 | S168: 181720 | U168: -18 | V168: 431834.28 | W168: 144603.53 | X168: 264185 | Y168: 323500 | Z168: 342238.74 | AA168: 267010 | AB168: 437280 | AC168: 233200 | AD168: 2087857.62 | AE168: 284260 | AF168: 283200 | AG168: 132430 | AH168: 181460
E169: =F169/Language!$C$11+Language!$C$10 -> 0.5 | F169: =(F168+F170)/2 -> -17.5 | G169: 439894.525 | H169: 147722.96 | I169: 269267.975 | J169: 340241.24 | K169: 348571.545 | M169: 445450 | N169: 307890 | O169: 2120150.525 | P169: 350610 | Q169: 346350 | R169: 139810 | S169: 185370 | U169: =(U168+U170)/2 -> -17.5 | V169: 439894.525 | W169: 147722.96 | X169: 269267.975 | Y169: 329540 | Z169: 348571.545 | AA169: 272430 | AB169: 445450 | AC169: 238010 | AD169: 2120150.525 | AE169: 289870 | AF169: 288780 | AG169: 135260 | AH169: 185120
E170: =F170/Language!$C$11+Language!$C$10 -> 1.4 | F170: -17 | G170: 447954.77 | H170: 150842.39 | I170: 274350.95 | J170: 346426.34 | K170: 354904.35 | M170: 453740 | N170: 313720 | O170: 2152443.43 | P170: 357110 | Q170: 352780 | R170: 142760 | S170: 189080 | U170: -17 | V170: 447954.77 | W170: 150842.39 | X170: 274350.95 | Y170: 335660 | Z170: 354904.35 | AA170: 277940 | AB170: 453740 | AC170: 242890 | AD170: 2152443.43 | AE170: 295570 | AF170: 294450 | AG170: 138130 | AH170: 188830
E171: =F171/Language!$C$11+Language!$C$10 -> 2.3 | F171: =(F170+F172)/2 -> -16.5 | G171: 456243.165 | H171: 154066.26 | I171: 279582.73 | J171: 352784.01 | K171: 361413.9 | M171: 462140 | N171: 319650 | O171: 2185472.675 | P171: 363710 | Q171: 359300 | R171: 145770 | S171: 192840 | U171: =(U170+U172)/2 -> -16.5 | V171: 456243.165 | W171: 154066.26 | X171: 279582.73 | Y171: 341870 | Z171: 361413.9 | AA171: 283530 | AB171: 462140 | AC171: 247850 | AD171: 2185472.675 | AE171: 301350 | AF171: 300210 | AG171: 141050 | AH171: 192600
E172: =F172/Language!$C$11+Language!$C$10 -> 3.2 | F172: -16 | G172: 464531.56 | H172: 157290.13 | I172: 284814.51 | J172: 359141.68 | K172: 367923.45 | M172: 470670 | N172: 325650 | O172: 2218501.92 | P172: 370400 | Q172: 365910 | R172: 148820 | S172: 196670 | U172: -16 | V172: 464531.56 | W172: 157290.13 | X172: 284814.51 | Y172: 348160 | Z172: 367923.45 | AA172: 289210 | AB172: 470670 | AC172: 252900 | AD172: 2218501.92 | AE172: 307220 | AF172: 306050 | AG172: 144030 | AH172: 196430
E173: =F173/Language!$C$11+Language!$C$10 -> 4.1 | F173: =(F172+F174)/2 -> -15.5 | G173: 473052.365 | H173: 160620.81 | I173: 290197.915 | J173: 365675.01 | K173: 374612.89 | M173: 479310 | N173: 331750 | O173: 2252277.37 | P173: 377190 | Q173: 372610 | R173: 151920 | S173: 200550 | U173: =(U172+U174)/2 -> -15.5 | V173: 473052.365 | W173: 160620.81 | X173: 290197.915 | Y173: 354540 | Z173: 374612.89 | AA173: 294980 | AB173: 479310 | AC173: 258020 | AD173: 2252277.37 | AE173: 313180 | AF173: 311980 | AG173: 147040 | AH173: 200320
E174: =F174/Language!$C$11+Language!$C$10 -> 5 | F174: -15 | G174: 481573.17 | H174: 163951.49 | I174: 295581.32 | J174: 372208.34 | K174: 381302.33 | M174: 488070 | N174: 337930 | O174: 2286052.82 | P174: 384070 | Q174: 379410 | R174: 155070 | S174: 204490 | U174: -15 | V174: 481573.17 | W174: 163951.49 | X174: 295581.32 | Y174: 361010 | Z174: 381302.33 | AA174: 300830 | AB174: 488070 | AC174: 263220 | AD174: 2286052.82 | AE174: 319230 | AF174: 317990 | AG174: 150110 | AH174: 204260
E175: =F175/Language!$C$11+Language!$C$10 -> 5.9 | F175: =(F174+F176)/2 -> -14.5 | G175: 490330.66 | H175: 167391.385 | I175: 301119.185 | J175: 378920.435 | K175: 388174.825 | M175: 496960 | N175: 344200 | O175: 2320584.345 | P175: 391040 | Q175: 386300 | R175: 158270 | S175: 208490 | U175: =(U174+U176)/2 -> -14.5 | V175: 490330.66 | W175: 167391.385 | X175: 301119.185 | Y175: 367570 | Z175: 388174.825 | AA175: 306770 | AB175: 496960 | AC175: 268500 | AD175: 2320584.345 | AE175: 325370 | AF175: 324100 | AG175: 153230 | AH175: 208270
E176: =F176/Language!$C$11+Language!$C$10 -> 6.8 | F176: -14 | G176: 499088.15 | H176: 170831.28 | I176: 306657.05 | J176: 385632.53 | K176: 395047.32 | M176: 505970 | N176: 350550 | O176: 2355115.87 | P176: 398110 | Q176: 393290 | R176: 161520 | S176: 212550 | U176: -14 | V176: 499088.15 | W176: 170831.28 | X176: 306657.05 | Y176: 374220 | Z176: 395047.32 | AA176: 312810 | AB176: 505970 | AC176: 273860 | AD176: 2355115.87 | AE176: 331590 | AF176: 330290 | AG176: 156400 | AH176: 212330
E177: =F177/Language!$C$11+Language!$C$10 -> 7.7 | F177: =(F176+F178)/2 -> -13.5 | G177: 508086.645 | H177: 174382.81 | I177: 312352.24 | J177: 392526.51 | K177: 402106.04 | M177: 515110 | N177: 357000 | O177: 2390413.32 | P177: 405280 | Q177: 400370 | R177: 164820 | S177: 216670 | U177: =(U176+U178)/2 -> -13.5 | V177: 508086.645 | W177: 174382.81 | X177: 312352.24 | Y177: 380970 | Z177: 402106.04 | AA177: 318930 | AB177: 515110 | AC177: 279300 | AD177: 2390413.32 | AE177: 337910 | AF177: 336570 | AG177: 159620 | AH177: 216460
E178: =F178/Language!$C$11+Language!$C$10 -> 8.6 | F178: -13 | G178: 517085.14 | H178: 177934.34 | I178: 318047.43 | J178: 399420.49 | K178: 409164.76 | M178: 524370 | N178: 363540 | O178: 2425710.77 | P178: 412540 | Q178: 407550 | R178: 168180 | S178: 220850 | U178: -13 | V178: 517085.14 | W178: 177934.34 | X178: 318047.43 | Y178: 387800 | Z178: 409164.76 | AA178: 325150 | AB178: 524370 | AC178: 284830 | AD178: 2425710.77 | AE178: 344320 | AF178: 342950 | AG178: 162890 | AH178: 220640
E179: =F179/Language!$C$11+Language!$C$10 -> 9.5 | F179: =(F178+F180)/2 -> -12.5 | G179: 526329.005 | H179: 181599.95 | I179: 323902.815 | J179: 406499.51 | K179: 416412.905 | M179: 533750 | N179: 370160 | O179: 2461784.015 | P179: 419910 | Q179: 414820 | R179: 171590 | S179: 225090 | U179: =(U178+U180)/2 -> -12.5 | V179: 526329.005 | W179: 181599.95 | X179: 323902.815 | Y179: 394720 | Z179: 416412.905 | AA179: 331460 | AB179: 533750 | AC179: 290450 | AD179: 2461784.015 | AE179: 350820 | AF179: 349420 | AG179: 166220 | AH179: 224890
E180: =F180/Language!$C$11+Language!$C$10 -> 10.4 | F180: -12 | G180: 535572.87 | H180: 185265.56 | I180: 329758.2 | J180: 413578.53 | K180: 423661.05 | M180: 543270 | N180: 376880 | O180: 2497857.26 | P180: 427370 | Q180: 422200 | R180: 175050 | S180: 229400 | U180: -12 | V180: 535572.87 | W180: 185265.56 | X180: 329758.2 | Y180: 401740 | Z180: 423661.05 | AA180: 337860 | AB180: 543270 | AC180: 296140 | AD180: 2497857.26 | AE180: 357420 | AF180: 355980 | AG180: 169600 | AH180: 229200
E181: =F181/Language!$C$11+Language!$C$10 -> 11.3 | F181: =(F180+F182)/2 -> -11.5 | G181: 545066.49 | H181: 189047.715 | I181: 335776.665 | J181: 420845.75 | K181: 431101.83 | M181: 552910 | N181: 383700 | O181: 2534716.15 | P181: 434930 | Q181: 429670 | R181: 178570 | S181: 233770 | U181: =(U180+U182)/2 -> -11.5 | V181: 545066.49 | W181: 189047.715 | X181: 335776.665 | Y181: 408850 | Z181: 431101.83 | AA181: 344360 | AB181: 552910 | AC181: 301930 | AD181: 2534716.15 | AE181: 364110 | AF181: 362630 | AG181: 173020 | AH181: 233580
E182: =F182/Language!$C$11+Language!$C$10 -> 12.2 | F182: -11 | G182: 554560.11 | H182: 192829.87 | I182: 341795.13 | J182: 428112.97 | K182: 438542.61 | M182: 562690 | N182: 390600 | O182: 2571575.04 | P182: 442600 | Q182: 437240 | R182: 182140 | S182: 238210 | U182: -11 | V182: 554560.11 | W182: 192829.87 | X182: 341795.13 | Y182: 416060 | Z182: 438542.61 | AA182: 350960 | AB182: 562690 | AC182: 307800 | AD182: 2571575.04 | AE182: 370900 | AF182: 369380 | AG182: 176510 | AH182: 238020
E183: =F183/Language!$C$11+Language!$C$10 -> 13.1 | F183: =(F182+F184)/2 -> -10.5 | G183: 564307.915 | H183: 196731.065 | I183: 347979.59 | J183: 435571.58 | K183: 446179.25 | M183: 572590 | N183: 397600 | O183: 2609229.41 | P183: 450360 | Q183: 444920 | R183: 185770 | S183: 242700 | U183: =(U182+U184)/2 -> -10.5 | V183: 564307.915 | W183: 196731.065 | X183: 347979.59 | Y183: 423370 | Z183: 446179.25 | AA183: 357650 | AB183: 572590 | AC183: 313760 | AD183: 2609229.41 | AE183: 377780 | AF183: 376230 | AG183: 180050 | AH183: 242520
E184: =F184/Language!$C$11+Language!$C$10 -> 14 | F184: -10 | G184: 574055.72 | H184: 200632.26 | I184: 354164.05 | J184: 443030.19 | K184: 453815.89 | M184: 582630 | N184: 404700 | O184: 2646883.78 | P184: 458230 | Q184: 452690 | R184: 189450 | S184: 247270 | U184: -10 | V184: 574055.72 | W184: 200632.26 | X184: 354164.05 | Y184: 430760 | Z184: 453815.89 | AA184: 364440 | AB184: 582630 | AC184: 319800 | AD184: 2646883.78 | AE184: 384760 | AF184: 383170 | AG184: 183640 | AH184: 247090
E185: =F185/Language!$C$11+Language!$C$10 -> 14.9 | F185: =(F184+F186)/2 -> -9.5 | G185: 584062.18 | H185: 204654.995 | I185: 360517.42 | J185: 450683.395 | K185: 461651.63 | M185: 592810 | N185: 411890 | O185: 2685343.475 | P185: 466210 | Q185: 460570 | R185: 193190 | S185: 251900 | U185: =(U184+U186)/2 -> -9.5 | V185: 584062.18 | W185: 204654.995 | X185: 360517.42 | Y185: 438260 | Z185: 461651.63 | AA185: 371320 | AB185: 592810 | AC185: 325940 | AE185: 391840 | AF185: 390210 | AG185: 187290 | AH185: 251730
E186: =F186/Language!$C$11+Language!$C$10 -> 15.8 | F186: -9 | G186: 594068.64 | H186: 208677.73 | I186: 366870.79 | J186: 458336.6 | K186: 469487.37 | M186: 603110 | N186: 419180 | O186: 2723803.17 | P186: 474280 | Q186: 468550 | R186: 196980 | S186: 256590 | U186: -9 | V186: 594068.64 | W186: 208677.73 | X186: 366870.79 | Y186: 445860 | Z186: 469487.37 | AA186: 378310 | AB186: 603110 | AC186: 332160 | AE186: 399020 | AF186: 397340 | AG186: 190990 | AH186: 256430
E187: =F187/Language!$C$11+Language!$C$10 -> 16.7 | F187: =(F186+F188)/2 -> -8.5 | G187: 604338.255 | H187: 212824.545 | I187: 373396.015 | J187: 466187.625 | K187: 477525.48 | M187: 613560 | N187: 426560 | O187: 2763078.01 | P187: 482470 | Q187: 476640 | R187: 200840 | S187: 261360 | U187: =(U186+U188)/2 -> -8.5 | V187: 604338.255 | W187: 212824.545 | X187: 373396.015 | Y187: 453550 | Z187: 477525.48 | AA187: 385400 | AB187: 613560 | AC187: 338480 | AE187: 406290 | AF187: 404580 | AG187: 194750 | AH187: 261200
E188: =F188/Language!$C$11+Language!$C$10 -> 17.6 | F188: -8 | G188: 614607.87 | H188: 216971.36 | I188: 379921.24 | J188: 474038.65 | K188: 485563.59 | M188: 624140 | N188: 434050 | O188: 2802352.85 | P188: 490760 | Q188: 484830 | R188: 204750 | S188: 266190 | U188: -8 | V188: 614607.87 | W188: 216971.36 | X188: 379921.24 | Y188: 461350 | Z188: 485563.59 | AA188: 392590 | AB188: 624140 | AC188: 344890 | AE188: 413670 | AF188: 411920 | AG188: 198570 | AH188: 266030
E189: =F189/Language!$C$11+Language!$C$10 -> 18.5 | F189: =(F188+F190)/2 -> -7.5 | G189: 625145.185 | H189: 221244.81 | I189: 386621.265 | J189: 482090.755 | K189: 493807.34 | M189: 634860 | N189: 441630 | O189: 2842452.65 | P189: 499150 | Q189: 493130 | R189: 208720 | S189: 271090 | U189: =(U188+U190)/2 -> -7.5 | V189: 625145.185 | W189: 221244.81 | X189: 386621.265 | Y189: 469240 | Z189: 493807.34 | AA189: 399880 | AB189: 634860 | AC189: 351400 | AE189: 421150 | AF189: 419360 | AG189: 202450 | AH189: 270940
E190: =F190/Language!$C$11+Language!$C$10 -> 19.4 | F190: -7 | G190: 635682.5 | H190: 225518.26 | I190: 393321.29 | J190: 490142.86 | K190: 502051.09 | M190: 645720 | N190: 449310 | O190: 2882552.45 | P190: 507660 | Q190: 501530 | R190: 212750 | S190: 276050 | U190: -7 | V190: 635682.5 | W190: 225518.26 | X190: 393321.29 | Y190: 477240 | Z190: 502051.09 | AA190: 407270 | AB190: 645720 | AC190: 357990 | AE190: 428740 | AF190: 426900 | AG190: 206380 | AH190: 275910
E191: =F191/Language!$C$11+Language!$C$10 -> 20.3 | F191: =(F190+F192)/2 -> -6.5 | G191: 646492.1 | H191: 229920.915 | I191: 400199.095 | J191: 498399.305 | K191: 510503.775 | M191: 656720 | N191: 457100 | O191: 2923487.005 | P191: 516270 | Q191: 510050 | R191: 216840 | S191: 281090 | U191: =(U190+U192)/2 -> -6.5 | V191: 646492.1 | W191: 229920.915 | X191: 400199.095 | Y191: 485340 | Z191: 510503.775 | AA191: 414770 | AB191: 656720 | AC191: 364680 | AE191: 436420 | AF191: 434540 | AG191: 210370 | AH191: 280950
E192: =F192/Language!$C$11+Language!$C$10 -> 21.2 | F192: -6 | G192: 657301.7 | H192: 234323.57 | I192: 407076.9 | J192: 506655.75 | K192: 518956.46 | M192: 667860 | N192: 464980 | O192: 2964421.56 | P192: 525000 | Q192: 518670 | R192: 220990 | S192: 286200 | U192: -6 | V192: 657301.7 | W192: 234323.57 | X192: 407076.9 | Y192: 493540 | Z192: 518956.46 | AA192: 422380 | AB192: 667860 | AC192: 371470 | AE192: 444220 | AF192: 442290 | AG192: 214430 | AH192: 286060
E193: =F193/Language!$C$11+Language!$C$10 -> 22.1 | F193: =(F192+F194)/2 -> -5.5 | G193: 668388.19 | H193: 238858.03 | I193: 414135.455 | J193: 515119.83 | K193: 527621.39 | M193: 679150 | N193: 472970 | O193: 3006200.65 | P193: 533830 | Q193: 527400 | R193: 225200 | S193: 291380 | U193: =(U192+U194)/2 -> -5.5 | V193: 668388.19 | W193: 238858.03 | X193: 414135.455 | Y193: 501850 | Z193: 527621.39 | AA193: 430090 | AB193: 679150 | AC193: 378360 | AE193: 452120 | AF193: 450140 | AG193: 218540 | AH193: 291250
E194: =F194/Language!$C$11+Language!$C$10 -> 23 | F194: -5 | G194: 679474.68 | H194: 243392.49 | I194: 421194.01 | J194: 523583.91 | K194: 536286.32 | M194: 690580 | N194: 481070 | O194: 3047979.74 | P194: 542780 | Q194: 536240 | R194: 229470 | S194: 296630 | U194: -5 | V194: 679474.68 | W194: 243392.49 | X194: 421194.01 | Y194: 510260 | Z194: 536286.32 | AA194: 437910 | AB194: 690580 | AC194: 385340 | AE194: 460120 | AF194: 458090 | AG194: 222720 | AH194: 296500
E195: =F195/Language!$C$11+Language!$C$10 -> 23.9 | F195: =(F194+F196)/2 -> -4.5 | G195: 690842.735 | H195: 248061.365 | I195: 428436.325 | J195: 532258.94 | K195: 545166.83 | M195: 702150 | N195: 489270 | O195: 3090613.13 | P195: 551840 | Q195: 545190 | R195: 233810 | S195: 301950 | U195: =(U194+U196)/2 -> -4.5 | V195: 690842.735 | W195: 248061.365 | X195: 428436.325 | Y195: 518770 | Z195: 545166.83 | AA195: 445830 | AB195: 702150 | AC195: 392420 | AE195: 468230 | AF195: 466160 | AG195: 226950 | AH195: 301830
E196: =F196/Language!$C$11+Language!$C$10 -> 24.8 | F196: -4 | G196: 702210.79 | H196: 252730.24 | I196: 435678.64 | J196: 540933.97 | K196: 554047.34 | M196: 713880 | N196: 497570 | O196: 3133246.52 | P196: 561010 | Q196: 554260 | R196: 238210 | S196: 307350 | U196: -4 | V196: 702210.79 | W196: 252730.24 | X196: 435678.64 | Y196: 527400 | Z196: 554047.34 | AA196: 453870 | AB196: 713880 | AC196: 399600 | AE196: 476450 | AF196: 474330 | AG196: 231250 | AH196: 307230
E197: =F197/Language!$C$11+Language!$C$10 -> 25.7 | F197: =(F196+F198)/2 -> -3.5 | G197: 713865.095 | H197: 257536.175 | I197: 443107.725 | J197: 549823.285 | K197: 563146.775 | M197: 725750 | N197: 505980 | O197: 3176743.96 | P197: 570300 | Q197: 563430 | R197: 242670 | S197: 312820 | U197: =(U196+U198)/2 -> -3.5 | V197: 713865.095 | W197: 257536.175 | X197: 443107.725 | Y197: 536130 | Z197: 563146.775 | AA197: 462020 | AB197: 725750 | AC197: 406880 | AE197: 484780 | AF197: 482610 | AG197: 235610 | AH197: 312700
E198: =F198/Language!$C$11+Language!$C$10 -> 26.6 | F198: -3 | G198: 725519.4 | H198: 262342.11 | I198: 450536.81 | J198: 558712.6 | K198: 572246.21 | M198: 737770 | N198: 514490 | O198: 3220241.4 | P198: 579700 | Q198: 572730 | R198: 247190 | S198: 318360 | U198: -3 | V198: 725519.4 | W198: 262342.11 | X198: 450536.81 | Y198: 544970 | Z198: 572246.21 | AA198: 470280 | AB198: 737770 | AC198: 414260 | AE198: 493230 | AF198: 491000 | AG198: 240030 | AH198: 318250
E199: =F199/Language!$C$11+Language!$C$10 -> 27.5 | F199: =(F198+F200)/2 -> -2.5 | G199: 737464.7 | H199: 267287.755 | I199: 458155.695 | J199: 567819.555 | K199: 581567.935 | M199: 749940 | N199: 523120 | O199: 3264612.615 | P199: 589220 | Q199: 582130 | R199: 251780 | S199: 323980 | U199: =(U198+U200)/2 -> -2.5 | V199: 737464.7 | W199: 267287.755 | X199: 458155.695 | Y199: 553920 | Z199: 581567.935 | AA199: 478650 | AB199: 749940 | AC199: 421740 | AE199: 501780 | AF199: 499500 | AG199: 244520 | AH199: 323870
E200: =F200/Language!$C$11+Language!$C$10 -> 28.4 | F200: -2 | G200: 749410 | H200: 272233.4 | I200: 465774.58 | J200: 576926.51 | K200: 590889.66 | M200: 762260 | N200: 531850 | O200: 3308983.83 | P200: 598860 | Q200: 591660 | R200: 256440 | S200: 329670 | U200: -2 | V200: 749410 | W200: 272233.4 | X200: 465774.58 | Y200: 562980 | Z200: 590889.66 | AA200: 487130 | AB200: 762260 | AC200: 429330 | AE200: 510440 | AF200: 508110 | AG200: 249070 | AH200: 329570
... 204 more rows

Sheet Kt (hidden)
B3: °C | D3: -100 | E3: -99 | F3: -98 | G3: -97 | H3: -96 | I3: -95 | J3: -94 | K3: -93 | L3: -92 | M3: -91 | N3: -90 | O3: -89 | P3: -88 | Q3: -87 | R3: -86 | S3: -85 | T3: -84 | U3: -83 | V3: -82 | W3: -81 | X3: -80 | Y3: -79 | Z3: -78 | AA3: -77 | AB3: -76 | AC3: -75 | AD3: -74 | AE3: -73 | AF3: -72 | AG3: -71 | AH3: -70 | AI3: -69 | AJ3: -68 | AK3: -67 | AL3: -66 | AM3: -65 | AN3: -64 | AO3: -63 | AP3: -62 | AQ3: -61 | AR3: -60 | AS3: -59 | AT3: -58 | AU3: -57 | AV3: -56 | AW3: -55 | AX3: -54 | AY3: -53 | AZ3: -52 | BA3: -51 | BB3: -50 | BC3: -49 | BD3: -48 | BE3: -47 | BF3: -46 | BG3: -45 | BH3: -44 | BI3: -43 | BJ3: -42 | BK3: -41 | BL3: -40 | BM3: -39 | BN3: -38 | BO3: -37 | BP3: -36 | BQ3: -35 | BR3: -34 | BS3: -33 | BT3: -32 | BU3: -31 | BV3: -30 | BW3: -29 | BX3: -28 | BY3: -27 | BZ3: -26 | CA3: -25 | CB3: -24 | CC3: -23 | CD3: -22 | CE3: -21 | CF3: -20 | CG3: -19 | CH3: -18 | CI3: -17 | CJ3: -16 | CK3: -15 | CL3: -14 | CM3: -13 | CN3: -12 | CO3: -11 | CP3: -10 | CQ3: -9 | CR3: -8 | CS3: -7 | CT3: -6 | CU3: -5 | CV3: -4 | CW3: -3 | CX3: -2 | CY3: -1 | CZ3: 0 | DA3: 1 | DB3: 2 | DC3: 3 | DD3: 4 | DE3: 5 | DF3: 6 | DG3: 7 | DH3: 8 | DI3: 9 | DJ3: 10 | DK3: 11 | DL3: 12 | DM3: 13 | DN3: 14 | DO3: 15 | DP3: 16 | DQ3: 17 | DR3: 18 | DS3: 19 | DT3: 20 | DU3: 21 | DV3: 22 | DW3: 23 | DX3: 24 | DY3: 25 | DZ3: 26 | EA3: 27 | EB3: 28 | EC3: 29 | ED3: 30 | EE3: 31 | EF3: 32 | EG3: 33 | EH3: 34 | EI3: 35 | EJ3: 36 | EK3: 37 | EL3: 38 | EM3: 39 | EN3: 40 | EO3: 41 | EP3: 42 | EQ3: 43 | ER3: 44 | ES3: 45 | ET3: 46 | EU3: 47 | EV3: 48 | EW3: 49 | EX3: 50 | EY3: 51 | EZ3: 52 | FA3: 53 | FB3: 54 | FC3: 55 | FD3: 56 | FE3: 57 | FF3: 58 | FG3: 59 | FH3: 60
A4: R124 | B4: 50 | C4: 50
A5: R124 | B5: 51 | C5: 51
A6: R124 | B6: 52 | C6: 52
A7: R124 | B7: 53 | C7: 53
A8: R124 | B8: 54 | C8: 54
A9: R124 | B9: 55 | C9: 55
A10: R124 | B10: 56 | C10: 56
A11: R124 | B11: 57 | C11: 57
A12: R124 | B12: 58 | C12: 58
A13: R124 | B13: 59 | C13: 59
A14: R124 | B14: 60 | C14: 60 | CZ14: 0.8042916477 | DA14: 0.79923 | DB14: 0.79442 | DC14: 0.78967 | DD14: 0.78498 | DE14: 0.7799980489 | DF14: 0.77578 | DG14: 0.77127 | DH14: 0.76682 | DI14: 0.76243 | DJ14: 0.7571289961 | DK14: 0.75383 | DL14: 0.74962 | DM14: 0.74547 | DN14: 0.74138 | DO14: 0.7363118038 | DP14: 0.73338 | DQ14: 0.72947 | DR14: 0.72562 | DS14: 0.72183 | DT14: 0.7158991993 | DU14: 0.71443 | DV14: 0.71082 | DW14: 0.70727 | DX14: 0.70378 | DY14: 0.6972595866 | DZ14: 0.69698 | EA14: 0.69367 | EB14: 0.69042 | EC14: 0.68723 | ED14: 0.6795659693
A15: R124 | B15: 61 | C15: 61 | CZ15: 0.8211558284 | DA15: 0.815905 | DB15: 0.810895 | DC15: 0.805945 | DD15: 0.801055 | DE15: 0.7958810181 | DF15: 0.791455 | DG15: 0.786745 | DH15: 0.782095 | DI15: 0.777505 | DJ15: 0.7721170119 | DK15: 0.768505 | DL15: 0.764095 | DM15: 0.759745 | DN15: 0.755455 | DO15: 0.7505092295 | DP15: 0.747055 | DQ15: 0.742945 | DR15: 0.738895 | DS15: 0.734905 | DT15: 0.7293435414 | DU15: 0.727105 | DV15: 0.723295 | DW15: 0.719545 | DX15: 0.715855 | DY15: 0.7100353017 | DZ15: 0.708655 | EA15: 0.705145 | EB15: 0.701695 | EC15: 0.698305 | ED15: 0.691723725
A16: R124 | B16: 62 | C16: 62 | CZ16: 0.838020009 | DA16: 0.83258 | DB16: 0.82737 | DC16: 0.82222 | DD16: 0.81713 | DE16: 0.8117639874 | DF16: 0.80713 | DG16: 0.80222 | DH16: 0.79737 | DI16: 0.79258 | DJ16: 0.7871050277 | DK16: 0.78318 | DL16: 0.77857 | DM16: 0.77402 | DN16: 0.76953 | DO16: 0.7647066551 | DP16: 0.76073 | DQ16: 0.75642 | DR16: 0.75217 | DS16: 0.74798 | DT16: 0.7427878834 | DU16: 0.73978 | DV16: 0.73577 | DW16: 0.73182 | DX16: 0.72793 | DY16: 0.7228110169 | DZ16: 0.72033 | EA16: 0.71662 | EB16: 0.71297 | EC16: 0.70938 | ED16: 0.7038814806
A17: R124 | B17: 63 | C17: 63 | CZ17: 0.8548841897 | DA17: 0.849255 | DB17: 0.843845 | DC17: 0.838495 | DD17: 0.833205 | DE17: 0.8276469567 | DF17: 0.822805 | DG17: 0.817695 | DH17: 0.812645 | DI17: 0.807655 | DJ17: 0.8020930435 | DK17: 0.797855 | DL17: 0.793045 | DM17: 0.788295 | DN17: 0.783605 | DO17: 0.7789040808 | DP17: 0.774405 | DQ17: 0.769895 | DR17: 0.765445 | DS17: 0.761055 | DT17: 0.7562322254 | DU17: 0.752455 | DV17: 0.748245 | DW17: 0.744095 | DX17: 0.740005 | DY17: 0.735586732 | DZ17: 0.732005 | EA17: 0.728095 | EB17: 0.724245 | EC17: 0.720455 | ED17: 0.7160392363
A18: R124 | B18: 64 | C18: 64 | CZ18: 0.838020009 | DA18: 0.83258 | DB18: 0.82737 | DC18: 0.82222 | DD18: 0.81713 | DE18: 0.8117639874 | DF18: 0.80713 | DG18: 0.80222 | DH18: 0.79737 | DI18: 0.79258 | DJ18: 0.7871050277 | DK18: 0.78318 | DL18: 0.77857 | DM18: 0.77402 | DN18: 0.76953 | DO18: 0.7647066551 | DP18: 0.76073 | DQ18: 0.75642 | DR18: 0.75217 | DS18: 0.74798 | DT18: 0.7427878834 | DU18: 0.73978 | DV18: 0.73577 | DW18: 0.73182 | DX18: 0.72793 | DY18: 0.7228110169 | DZ18: 0.72033 | EA18: 0.71662 | EB18: 0.71297 | EC18: 0.70938 | ED18: 0.7038814806
A19: R124 | B19: 65 | C19: 65 | CZ19: 0.8717483703 | DA19: 0.86593 | DB19: 0.86032 | DC19: 0.85477 | DD19: 0.84928 | DE19: 0.843529926 | DF19: 0.83848 | DG19: 0.83317 | DH19: 0.82792 | DI19: 0.82273 | DJ19: 0.8170810593 | DK19: 0.81253 | DL19: 0.80752 | DM19: 0.80257 | DN19: 0.79768 | DO19: 0.7931015065 | DP19: 0.78808 | DQ19: 0.78337 | DR19: 0.77872 | DS19: 0.77413 | DT19: 0.7696765675 | DU19: 0.76513 | DV19: 0.76072 | DW19: 0.75637 | DX19: 0.75208 | DY19: 0.7483624472 | DZ19: 0.74368 | EA19: 0.73957 | EB19: 0.73552 | EC19: 0.73153 | ED19: 0.728196992
A20: R124 | B20: 66 | C20: 66 | CZ20: 0.8920959919 | DA20: 0.8859825 | DB20: 0.880105 | DC20: 0.8742925 | DD20: 0.868545 | DE20: 0.8626026055 | DF20: 0.857245 | DG20: 0.8516925 | DH20: 0.846205 | DI20: 0.8407825 | DJ20: 0.8349990744 | DK20: 0.8301325 | DL20: 0.824905 | DM20: 0.8197425 | DN20: 0.814645 | DO20: 0.8100061346 | DP20: 0.804645 | DQ20: 0.7997425 | DR20: 0.794905 | DS20: 0.7901325 | DT20: 0.785621774 | DU20: 0.7807825 | DV20: 0.776205 | DW20: 0.7716925 | DX20: 0.767245 | DY20: 0.7634607311 | DZ20: 0.758545 | EA20: 0.7542925 | EB20: 0.750105 | EC20: 0.7459825 | ED20: 0.7425167035
A21: R124 | B21: 67 | C21: 67 | CZ21: 0.9124436134 | DA21: 0.906035 | DB21: 0.89989 | DC21: 0.893815 | DD21: 0.88781 | DE21: 0.8816752851 | DF21: 0.87601 | DG21: 0.870215 | DH21: 0.86449 | DI21: 0.858835 | DJ21: 0.8529170894 | DK21: 0.847735 | DL21: 0.84229 | DM21: 0.836915 | DN21: 0.83161 | DO21: 0.8269107626 | DP21: 0.82121 | DQ21: 0.816115 | DR21: 0.81109 | DS21: 0.806135 | DT21: 0.8015669806 | DU21: 0.796435 | DV21: 0.79169 | DW21: 0.787015 | DX21: 0.78241 | DY21: 0.778559015 | DZ21: 0.77341 | EA21: 0.769015 | EB21: 0.76469 | EC21: 0.760435 | ED21: 0.756836415
A22: R124 | B22: 68 | C22: 68 | CZ22: 0.9327912349 | DA22: 0.9260875 | DB22: 0.919675 | DC22: 0.9133375 | DD22: 0.907075 | DE22: 0.9007479647 | DF22: 0.894775 | DG22: 0.8887375 | DH22: 0.882775 | DI22: 0.8768875 | DJ22: 0.8708351044 | DK22: 0.8653375 | DL22: 0.859675 | DM22: 0.8540875 | DN22: 0.848575 | DO22: 0.8438153907 | DP22: 0.837775 | DQ22: 0.8324875 | DR22: 0.827275 | DS22: 0.8221375 | DT22: 0.8175121871 | DU22: 0.8120875 | DV22: 0.807175 | DW22: 0.8023375 | DX22: 0.797575 | DY22: 0.793657299 | DZ22: 0.788275 | EA22: 0.7837375 | EB22: 0.779275 | EC22: 0.7748875 | ED22: 0.7711561265
A23: R124 | B23: 69 | C23: 69 | CZ23: 0.9124436134 | DA23: 0.906035 | DB23: 0.89989 | DC23: 0.893815 | DD23: 0.88781 | DE23: 0.8816752851 | DF23: 0.87601 | DG23: 0.870215 | DH23: 0.86449 | DI23: 0.858835 | DJ23: 0.8529170894 | DK23: 0.847735 | DL23: 0.84229 | DM23: 0.836915 | DN23: 0.83161 | DO23: 0.8269107626 | DP23: 0.82121 | DQ23: 0.816115 | DR23: 0.81109 | DS23: 0.806135 | DT23: 0.8015669806 | DU23: 0.796435 | DV23: 0.79169 | DW23: 0.787015 | DX23: 0.78241 | DY23: 0.778559015 | DZ23: 0.77341 | EA23: 0.769015 | EB23: 0.76469 | EC23: 0.760435 | ED23: 0.756836415
A24: R124 | B24: 70 | C24: 70 | CZ24: 0.9531388564 | DA24: 0.94614 | DB24: 0.93946 | DC24: 0.93286 | DD24: 0.92634 | DE24: 0.9198206442 | DF24: 0.91354 | DG24: 0.90726 | DH24: 0.90106 | DI24: 0.89494 | DJ24: 0.8887531194 | DK24: 0.88294 | DL24: 0.87706 | DM24: 0.87126 | DN24: 0.86554 | DO24: 0.8607200187 | DP24: 0.85434 | DQ24: 0.84886 | DR24: 0.84346 | DS24: 0.83814 | DT24: 0.8334573937 | DU24: 0.82774 | DV24: 0.82266 | DW24: 0.81766 | DX24: 0.81274 | DY24: 0.8087555829 | DZ24: 0.80314 | EA24: 0.79846 | EB24: 0.79386 | EC24: 0.78934 | ED24: 0.785475838
A25: R124 | B25: 71 | C25: 71 | CZ25: 0.9777536554 | DA25: 0.9700041101 | DB25: 0.9624937071 | DC25: 0.9550433041 | DD25: 0.9476529011 | DE25: 0.9427633843 | DF25: 0.9357357738 | DG25: 0.9287086464 | DH25: 0.921741519 | DI25: 0.9148343917 | DJ25: 0.9101942313 | DK25: 0.9037553798 | DL25: 0.8972663679 | DM25: 0.8908373561 | DN25: 0.8844683442 | DO25: 0.8808533582 | DP25: 0.874057119 | DQ25: 0.8679358938 | DR25: 0.8618746687 | DS25: 0.8558734435 | DT25: 0.8523614888 | DU25: 0.8462601315 | DV25: 0.8406368194 | DW25: 0.8350735074 | DX25: 0.8295701953 | DY25: 0.8265818825 | DZ25: 0.8206690469 | EA25: 0.8154578985 | EB25: 0.8103067501 | EC25: 0.8052156017 | ED25: 0.8023174801
A26: R124 | B26: 72 | C26: 72 | CZ26: 1.002368454 | DA26: 0.9938682202 | DB26: 0.9855274142 | DC26: 0.9772266082 | DD26: 0.9689658023 | DE26: 0.9657061244 | DF26: 0.9579315476 | DG26: 0.9501572928 | DH26: 0.9424230381 | DI26: 0.9347287834 | DJ26: 0.9316353431 | DK26: 0.9245707596 | DL26: 0.9174727359 | DM26: 0.9104147121 | DN26: 0.9033966883 | DO26: 0.9009866977 | DP26: 0.893774238 | DQ26: 0.8870117877 | DR26: 0.8802893374 | DS26: 0.873606887 | DT26: 0.8712655839 | DU26: 0.8647802629 | DV26: 0.8586136388 | DW26: 0.8524870147 | DX26: 0.8464003906 | DY26: 0.8444081821 | DZ26: 0.8381980938 | EA26: 0.832455797 | EB26: 0.8267535001 | EC26: 0.8210912033 | ED26: 0.8191591223
A27: R124 | B27: 73 | C27: 73 | CZ27: 1.026983253 | DA27: 1.01773233 | DB27: 1.008561121 | DC27: 0.9994099124 | DD27: 0.9902787034 | DE27: 0.9886488645 | DF27: 0.9801273213 | DG27: 0.9716059392 | DH27: 0.9631045571 | DI27: 0.954623175 | DJ27: 0.9530764549 | DK27: 0.9453861394 | DL27: 0.9376791038 | DM27: 0.9299920682 | DN27: 0.9223250325 | DO27: 0.9211200372 | DP27: 0.913491357 | DQ27: 0.9060876815 | DR27: 0.898704006 | DS27: 0.8913403306 | DT27: 0.890169679 | DU27: 0.8833003944 | DV27: 0.8765904583 | DW27: 0.8699005221 | DX27: 0.863230586 | DY27: 0.8622344817 | DZ27: 0.8557271407 | EA27: 0.8494536955 | EB27: 0.8432002502 | EC27: 0.836966805 | ED27: 0.8360007644
A28: R124 | B28: 74 | C28: 74 | CZ28: 1.002368454 | DA28: 0.9938682202 | DB28: 0.9855274142 | DC28: 0.9772266082 | DD28: 0.9689658023 | DE28: 0.9657061244 | DF28: 0.9579315476 | DG28: 0.9501572928 | DH28: 0.9424230381 | DI28: 0.9347287834 | DJ28: 0.9316353431 | DK28: 0.9245707596 | DL28: 0.9174727359 | DM28: 0.9104147121 | DN28: 0.9033966883 | DO28: 0.9009866977 | DP28: 0.893774238 | DQ28: 0.8870117877 | DR28: 0.8802893374 | DS28: 0.873606887 | DT28: 0.8712655839 | DU28: 0.8647802629 | DV28: 0.8586136388 | DW28: 0.8524870147 | DX28: 0.8464003906 | DY28: 0.8444081821 | DZ28: 0.8381980938 | EA28: 0.832455797 | EB28: 0.8267535001 | EC28: 0.8210912033 | ED28: 0.8191591223
A29: R124 | B29: 75 | C29: 75 | CZ29: 1.051598052 | DA29: 1.04159644 | DB29: 1.031594828 | DC29: 1.021593216 | DD29: 1.011591605 | DE29: 1.011591605 | DF29: 1.002323095 | DG29: 0.9930545856 | DH29: 0.9837860762 | DI29: 0.9745175667 | DJ29: 0.9745175667 | DK29: 0.9662015192 | DL29: 0.9578854717 | DM29: 0.9495694242 | DN29: 0.9412533767 | DO29: 0.9412533767 | DP29: 0.933208476 | DQ29: 0.9251635754 | DR29: 0.9171186747 | DS29: 0.9090737741 | DT29: 0.9090737741 | DU29: 0.9018205259 | DV29: 0.8945672777 | DW29: 0.8873140295 | DX29: 0.8800607813 | DY29: 0.8800607813 | DZ29: 0.8732561876 | EA29: 0.8664515939 | EB29: 0.8596470003 | EC29: 0.8528424066 | ED29: 0.8528424066
A30: R124 | B30: 76 | C30: 76 | CZ30: 1.081924336 | DA30: 1.071359574 | DB30: 1.060794812 | DC30: 1.05023005 | DD30: 1.041193703 | DE30: 1.039665288 | DF30: 1.029896139 | DG30: 1.02012699 | DH30: 1.010357842 | DI30: 1.000588693 | DJ30: 1.000588693 | DK30: 0.9918406524 | DL30: 0.983092612 | DM30: 0.9743445716 | DN30: 0.9655965311 | DO30: 0.9655965311 | DP30: 0.9571490502 | DQ30: 0.9487015693 | DR30: 0.9402540883 | DS30: 0.9318066074 | DT30: 0.9318066074 | DU30: 0.9242031987 | DV30: 0.9165997899 | DW30: 0.9089963812 | DX30: 0.9013929725 | DY30: 0.9013929725 | DZ30: 0.8942708223 | EA30: 0.8871486721 | EB30: 0.880026522 | EC30: 0.8729043718 | ED30: 0.8729043718
A31: R124 | B31: 77 | C31: 77 | CZ31: 1.112250619 | DA31: 1.101122707 | DB31: 1.089994795 | DC31: 1.078866883 | DD31: 1.070795802 | DE31: 1.067738971 | DF31: 1.057469183 | DG31: 1.047199395 | DH31: 1.036929607 | DI31: 1.026659819 | DJ31: 1.026659819 | DK31: 1.017479786 | DL31: 1.008299752 | DM31: 0.9991197189 | DN31: 0.9899396855 | DO31: 0.9899396855 | DP31: 0.9810896243 | DQ31: 0.9722395631 | DR31: 0.9633895019 | DS31: 0.9545394407 | DT31: 0.9545394407 | DU31: 0.9465858715 | DV31: 0.9386323022 | DW31: 0.9306787329 | DX31: 0.9227251636 | DY31: 0.9227251636 | DZ31: 0.915285457 | EA31: 0.9078457504 | EB31: 0.9004060437 | EC31: 0.8929663371 | ED31: 0.8929663371
A32: R124 | B32: 78 | C32: 78 | CZ32: 1.142576903 | DA32: 1.130885841 | DB32: 1.119194779 | DC32: 1.107503716 | DD32: 1.100397901 | DE32: 1.095812654 | DF32: 1.085042227 | DG32: 1.0742718 | DH32: 1.063501372 | DI32: 1.052730945 | DJ32: 1.052730945 | DK32: 1.043118919 | DL32: 1.033506893 | DM32: 1.023894866 | DN32: 1.01428284 | DO32: 1.01428284 | DP32: 1.005030198 | DQ32: 0.995777557 | DR32: 0.9865249155 | DS32: 0.9772722741 | DT32: 0.9772722741 | DU32: 0.9689685443 | DV32: 0.9606648144 | DW32: 0.9523610846 | DX32: 0.9440573548 | DY32: 0.9440573548 | DZ32: 0.9363000917 | EA32: 0.9285428286 | EB32: 0.9207855654 | EC32: 0.9130283023 | ED32: 0.9130283023
A33: R124 | B33: 79 | C33: 79 | CZ33: 1.112250619 | DA33: 1.101122707 | DB33: 1.089994795 | DC33: 1.078866883 | DD33: 1.070795802 | DE33: 1.067738971 | DF33: 1.057469183 | DG33: 1.047199395 | DH33: 1.036929607 | DI33: 1.026659819 | DJ33: 1.026659819 | DK33: 1.017479786 | DL33: 1.008299752 | DM33: 0.9991197189 | DN33: 0.9899396855 | DO33: 0.9899396855 | DP33: 0.9810896243 | DQ33: 0.9722395631 | DR33: 0.9633895019 | DS33: 0.9545394407 | DT33: 0.9545394407 | DU33: 0.9465858715 | DV33: 0.9386323022 | DW33: 0.9306787329 | DX33: 0.9227251636 | DY33: 0.9227251636 | DZ33: 0.915285457 | EA33: 0.9078457504 | EB33: 0.9004060437 | EC33: 0.8929663371 | ED33: 0.8929663371
A34: R124 | B34: 80 | C34: 80 | CZ34: 1.172903187 | DA34: 1.160648974 | DB34: 1.148394762 | DC34: 1.13614055 | DD34: 1.13 | DE34: 1.123886337 | DF34: 1.112615271 | DG34: 1.101344204 | DH34: 1.090073138 | DI34: 1.078802071 | DJ34: 1.078802071 | DK34: 1.068758052 | DL34: 1.058714033 | DM34: 1.048670014 | DN34: 1.038625994 | DO34: 1.038625994 | DP34: 1.028970773 | DQ34: 1.019315551 | DR34: 1.009660329 | DS34: 1.000005107 | DT34: 1.000005107 | DU34: 0.9913512171 | DV34: 0.9826973267 | DW34: 0.9740434364 | DX34: 0.965389546 | DY34: 0.965389546 | DZ34: 0.9573147264 | EA34: 0.9492399068 | EB34: 0.9411650871 | EC34: 0.9330902675 | ED34: 0.9330902675
A35: R124 | B35: 81 | C35: 81 | CZ35: 1.211731175 | DA35: 1.200486731 | DB35: 1.186296071 | DC35: 1.174605412 | DD35: 1.1675 | DE35: 1.159524176 | DF35: 1.149461453 | DG35: 1.137490271 | DH35: 1.125519088 | DI35: 1.113547906 | DJ35: 1.111639447 | DK35: 1.100998166 | DL35: 1.090356886 | DM35: 1.079715605 | DN35: 1.069074325 | DO35: 1.069074325 | DP35: 1.058868333 | DQ35: 1.048662342 | DR35: 1.038456351 | DS35: 1.02825036 | DT35: 1.02825036 | DU35: 1.019122071 | DV35: 1.009993783 | DW35: 1.000865494 | DX35: 0.9917372053 | DY35: 0.9917372053 | DZ35: 0.9832359734 | EA35: 0.9747347416 | EB35: 0.9662335098 | EC35: 0.9577322779 | ED35: 0.9577322779
A36: R124 | B36: 82 | C36: 82 | CZ36: 1.250559163 | DA36: 1.240324487 | DB36: 1.224197381 | DC36: 1.213070275 | DD36: 1.205 | DE36: 1.195162014 | DF36: 1.186307635 | DG36: 1.173636337 | DH36: 1.160965039 | DI36: 1.148293741 | DJ36: 1.144476822 | DK36: 1.13323828 | DL36: 1.121999738 | DM36: 1.110761197 | DN36: 1.099522655 | DO36: 1.099522655 | DP36: 1.088765894 | DQ36: 1.078009134 | DR36: 1.067252373 | DS36: 1.056495612 | DT36: 1.056495612 | DU36: 1.046892925 | DV36: 1.037290238 | DW36: 1.027687552 | DX36: 1.018084865 | DY36: 1.018084865 | DZ36: 1.009157221 | EA36: 1.000229576 | EB36: 0.9913019324 | EC36: 0.9823742883 | ED36: 0.9823742883
A37: R124 | B37: 83 | C37: 83 | CZ37: 1.289387152 | DA37: 1.280162244 | DB37: 1.26209869 | DC37: 1.251535137 | DD37: 1.2425 | DE37: 1.230799853 | DF37: 1.223153818 | DG37: 1.209782404 | DH37: 1.19641099 | DI37: 1.183039576 | DJ37: 1.177314197 | DK37: 1.165478394 | DL37: 1.153642591 | DM37: 1.141806788 | DN37: 1.129970985 | DO37: 1.129970985 | DP37: 1.118663455 | DQ37: 1.107355925 | DR37: 1.096048395 | DS37: 1.084740865 | DT37: 1.084740865 | DU37: 1.07466378 | DV37: 1.064586694 | DW37: 1.054509609 | DX37: 1.044432524 | DY37: 1.044432524 | DZ37: 1.035078468 | EA37: 1.025724411 | EB37: 1.016370355 | EC37: 1.007016299 | ED37: 1.007016299
A38: R124 | B38: 84 | C38: 84 | CZ38: 1.250559163 | DA38: 1.240324487 | DB38: 1.224197381 | DC38: 1.213070275 | DD38: 1.205 | DE38: 1.195162014 | DF38: 1.186307635 | DG38: 1.173636337 | DH38: 1.160965039 | DI38: 1.148293741 | DJ38: 1.144476822 | DK38: 1.13323828 | DL38: 1.121999738 | DM38: 1.110761197 | DN38: 1.099522655 | DO38: 1.099522655 | DP38: 1.088765894 | DQ38: 1.078009134 | DR38: 1.067252373 | DS38: 1.056495612 | DT38: 1.056495612 | DU38: 1.046892925 | DV38: 1.037290238 | DW38: 1.027687552 | DX38: 1.018084865 | DY38: 1.018084865 | DZ38: 1.009157221 | EA38: 1.000229576 | EB38: 0.9913019324 | EC38: 0.9823742883 | ED38: 0.9823742883
A39: R124 | B39: 85 | C39: 85 | CZ39: 1.32821514 | DA39: 1.32 | DB39: 1.3 | DC39: 1.29 | DD39: 1.28 | DE39: 1.266437692 | DF39: 1.26 | DG39: 1.24592847 | DH39: 1.23185694 | DI39: 1.21778541 | DJ39: 1.210151572 | DK39: 1.197718508 | DL39: 1.185285444 | DM39: 1.17285238 | DN39: 1.160419316 | DO39: 1.160419316 | DP39: 1.148561016 | DQ39: 1.136702717 | DR39: 1.124844417 | DS39: 1.112986117 | DT39: 1.112986117 | DU39: 1.102434634 | DV39: 1.09188315 | DW39: 1.081331667 | DX39: 1.070780183 | DY39: 1.070780183 | DZ39: 1.060999715 | EA39: 1.051219246 | EB39: 1.041438778 | EC39: 1.031658309 | ED39: 1.031658309
A40: R124 | B40: 86 | C40: 86 | CZ40: 1.379546749 | DA40: 1.37 | DB40: 1.349955455 | DC40: 1.337410911 | DD40: 1.324866366 | DE40: 1.313035484 | DF40: 1.3025 | DG40: 1.289446353 | DH40: 1.273892705 | DI40: 1.260839058 | DJ40: 1.252660533 | DK40: 1.240788881 | DL40: 1.228964083 | DM40: 1.21567154 | DN40: 1.202814487 | DO40: 1.199490361 | DP40: 1.188920762 | DQ40: 1.17628032 | DR40: 1.163639878 | DS40: 1.150999436 | DT40: 1.148928593 | DU40: 1.139325975 | DV40: 1.128108974 | DW40: 1.116891972 | DX40: 1.10567497 | DY40: 1.104060587 | DZ40: 1.093688487 | EA40: 1.083316388 | EB40: 1.072944289 | EC40: 1.06257219 | ED40: 1.06257219
A41: R124 | B41: 87 | C41: 87 | CZ41: 1.430878357 | DA41: 1.42 | DB41: 1.399910911 | DC41: 1.384821821 | DD41: 1.369732732 | DE41: 1.359633276 | DF41: 1.345 | DG41: 1.332964235 | DH41: 1.31592847 | DI41: 1.303892705 | DJ41: 1.295169494 | DK41: 1.283859254 | DL41: 1.272642722 | DM41: 1.2584907 | DN41: 1.245209658 | DO41: 1.238561407 | DP41: 1.229280508 | DQ41: 1.215857924 | DR41: 1.202435339 | DS41: 1.189012755 | DT41: 1.18487107 | DU41: 1.176217317 | DV41: 1.164334797 | DW41: 1.152452277 | DX41: 1.140569757 | DY41: 1.13734099 | DZ41: 1.12637726 | EA41: 1.11541353 | EB41: 1.1044498 | EC41: 1.09348607 | ED41: 1.09348607
A42: R124 | B42: 88 | C42: 88 | CZ42: 1.482209966 | DA42: 1.47 | DB42: 1.449866366 | DC42: 1.432232732 | DD42: 1.414599098 | DE42: 1.406231068 | DF42: 1.3875 | DG42: 1.376482118 | DH42: 1.357964235 | DI42: 1.346946353 | DJ42: 1.337678456 | DK42: 1.326929627 | DL42: 1.316321361 | DM42: 1.30130986 | DN42: 1.287604829 | DO42: 1.277632452 | DP42: 1.269640254 | DQ42: 1.255435527 | DR42: 1.241230801 | DS42: 1.227026074 | DT42: 1.220813546 | DU42: 1.213108658 | DV42: 1.20056062 | DW42: 1.188012582 | DX42: 1.175464544 | DY42: 1.170621393 | DZ42: 1.159066033 | EA42: 1.147510672 | EB42: 1.135955312 | EC42: 1.124399951 | ED42: 1.124399951
A43: R124 | B43: 89 | C43: 89 | CZ43: 1.430878357 | DA43: 1.42 | DB43: 1.399910911 | DC43: 1.384821821 | DD43: 1.369732732 | DE43: 1.359633276 | DF43: 1.345 | DG43: 1.332964235 | DH43: 1.31592847 | DI43: 1.303892705 | DJ43: 1.295169494 | DK43: 1.283859254 | DL43: 1.272642722 | DM43: 1.2584907 | DN43: 1.245209658 | DO43: 1.238561407 | DP43: 1.229280508 | DQ43: 1.215857924 | DR43: 1.202435339 | DS43: 1.189012755 | DT43: 1.18487107 | DU43: 1.176217317 | DV43: 1.164334797 | DW43: 1.152452277 | DX43: 1.140569757 | DY43: 1.13734099 | DZ43: 1.12637726 | EA43: 1.11541353 | EB43: 1.1044498 | EC43: 1.09348607 | ED43: 1.09348607
A44: R124 | B44: 90 | C44: 90 | CZ44: 1.533541574 | DA44: 1.52 | DB44: 1.499821821 | DC44: 1.479643643 | DD44: 1.459465464 | DE44: 1.45282886 | DF44: 1.43 | DG44: 1.42 | DH44: 1.4 | DI44: 1.39 | DJ44: 1.380187417 | DK44: 1.37 | DL44: 1.36 | DM44: 1.34412902 | DN44: 1.33 | DO44: 1.316703498 | DP44: 1.31 | DQ44: 1.295013131 | DR44: 1.280026262 | DS44: 1.265039393 | DT44: 1.256756022 | DU44: 1.25 | DV44: 1.236786444 | DW44: 1.223572887 | DX44: 1.210359331 | DY44: 1.203901797 | DZ44: 1.191754805 | EA44: 1.179607814 | EB44: 1.167460823 | EC44: 1.155313832 | ED44: 1.155313832
A45: R124 | B45: 91 | C45: 91 | CZ45: 1.605467276 | DA45: 1.59 | DB45: 1.567922624 | DC45: 1.545845248 | DD45: 1.524599098 | DE45: 1.517157772 | DF45: 1.493890844 | DG45: 1.480245561 | DH45: 1.459100277 | DI45: 1.4475 | DJ45: 1.438095557 | DK45: 1.42516327 | DL45: 1.412371546 | DM45: 1.395176587 | DN45: 1.3825 | DO45: 1.369315721 | DP45: 1.359357255 | DQ45: 1.343186261 | DR45: 1.327015266 | DS45: 1.313779545 | DT45: 1.304631744 | DU45: 1.295269583 | DV45: 1.281064272 | DW45: 1.266858961 | DX45: 1.255269498 | DY45: 1.247810499 | DZ45: 1.236316104 | EA45: 1.224705861 | EB45: 1.210595617 | EC45: 1.198985374 | ED45: 1.195745579
A46: R124 | B46: 92 | C46: 92 | CZ46: 1.677392978 | DA46: 1.66 | DB46: 1.636023426 | DC46: 1.612046853 | DD46: 1.589732732 | DE46: 1.581486684 | DF46: 1.557781687 | DG46: 1.540491121 | DH46: 1.518200555 | DI46: 1.505 | DJ46: 1.496003697 | DK46: 1.48032654 | DL46: 1.464743092 | DM46: 1.446224154 | DN46: 1.435 | DO46: 1.421927944 | DP46: 1.40871451 | DQ46: 1.391359391 | DR46: 1.374004271 | DS46: 1.362519696 | DT46: 1.352507466 | DU46: 1.340539167 | DV46: 1.325342101 | DW46: 1.310145035 | DX46: 1.300179666 | DY46: 1.291719201 | DZ46: 1.280877403 | EA46: 1.269803907 | EB46: 1.253730411 | EC46: 1.242656916 | ED46: 1.236177326
A47: R124 | B47: 93 | C47: 93 | CZ47: 1.749318681 | DA47: 1.73 | DB47: 1.704124229 | DC47: 1.678248457 | DD47: 1.654866366 | DE47: 1.645815596 | DF47: 1.621672531 | DG47: 1.600736682 | DH47: 1.577300832 | DI47: 1.5625 | DJ47: 1.553911837 | DK47: 1.53548981 | DL47: 1.517114638 | DM47: 1.497271721 | DN47: 1.4875 | DO47: 1.474540168 | DP47: 1.458071765 | DQ47: 1.43953252 | DR47: 1.420993275 | DS47: 1.411259848 | DT47: 1.400383188 | DU47: 1.38580875 | DV47: 1.369619929 | DW47: 1.353431108 | DX47: 1.345089833 | DY47: 1.335627904 | DZ47: 1.325438701 | EA47: 1.314901954 | EB47: 1.296865206 | EC47: 1.286328458 | ED47: 1.276609073
A48: R124 | B48: 94 | C48: 94 | CZ48: 1.677392978 | DA48: 1.66 | DB48: 1.636023426 | DC48: 1.612046853 | DD48: 1.589732732 | DE48: 1.581486684 | DF48: 1.557781687 | DG48: 1.540491121 | DH48: 1.518200555 | DI48: 1.505 | DJ48: 1.496003697 | DK48: 1.48032654 | DL48: 1.464743092 | DM48: 1.446224154 | DN48: 1.435 | DO48: 1.421927944 | DP48: 1.40871451 | DQ48: 1.391359391 | DR48: 1.374004271 | DS48: 1.362519696 | DT48: 1.352507466 | DU48: 1.340539167 | DV48: 1.325342101 | DW48: 1.310145035 | DX48: 1.300179666 | DY48: 1.291719201 | DZ48: 1.280877403 | EA48: 1.269803907 | EB48: 1.253730411 | EC48: 1.242656916 | ED48: 1.236177326
A49: R124 | B49: 95 | C49: 95 | CZ49: 1.821244383 | DA49: 1.8 | DB49: 1.772225031 | DC49: 1.744450062 | DD49: 1.72 | DE49: 1.710144507 | DF49: 1.685563375 | DG49: 1.660982242 | DH49: 1.63640111 | DI49: 1.62 | DJ49: 1.611819977 | DK49: 1.590653081 | DL49: 1.569486184 | DM49: 1.548319287 | DN49: 1.54 | DO49: 1.527152391 | DP49: 1.507429021 | DQ49: 1.48770565 | DR49: 1.46798228 | DS49: 1.46 | DT49: 1.448258909 | DU49: 1.431078334 | DV49: 1.413897758 | DW49: 1.396717182 | DX49: 1.39 | DY49: 1.379536606 | DZ49: 1.37 | EA49: 1.36 | EB49: 1.34 | EC49: 1.33 | ED49: 1.31704082
A50: R124 | B50: 96 | C50: 96 | CZ50: 1.928597015 | DA50: 1.902380057 | DB50: 1.871265159 | DC50: 1.840150261 | DD50: 1.8175 | DE50: 1.804137424 | DF50: 1.776819084 | DG50: 1.749500745 | DH50: 1.722182406 | DI50: 1.705 | DJ50: 1.694864067 | DK50: 1.671499183 | DL50: 1.648134298 | DM50: 1.624769414 | DN50: 1.6125 | DO50: 1.601404529 | DP50: 1.579761612 | DQ50: 1.558118694 | DR50: 1.536475777 | DS50: 1.525 | DT50: 1.514832859 | DU50: 1.496078642 | DV50: 1.477324425 | DW50: 1.458570208 | DX50: 1.45 | DY50: 1.439815991 | DZ50: 1.427404202 | EA50: 1.414644868 | EB50: 1.394385533 | EC50: 1.385 | ED50: 1.371906814
A51: R124 | B51: 97 | C51: 97 | CZ51: 2.035949648 | DA51: 2.004760114 | DB51: 1.970305287 | DC51: 1.93585046 | DD51: 1.915 | DE51: 1.89813034 | DF51: 1.868074794 | DG51: 1.838019248 | DH51: 1.807963702 | DI51: 1.79 | DJ51: 1.777908157 | DK51: 1.752345284 | DL51: 1.726782412 | DM51: 1.70121954 | DN51: 1.685 | DO51: 1.675656668 | DP51: 1.652094203 | DQ51: 1.628531738 | DR51: 1.604969274 | DS51: 1.59 | DT51: 1.581406809 | DU51: 1.561078951 | DV51: 1.540751093 | DW51: 1.520423234 | DX51: 1.51 | DY51: 1.500095376 | DZ51: 1.484808404 | EA51: 1.469289736 | EB51: 1.448771067 | EC51: 1.44 | ED51: 1.426772808
A52: R124 | B52: 98 | C52: 98 | CZ52: 2.14330228 | DA52: 2.107140171 | DB52: 2.069345415 | DC52: 2.031550659 | DD52: 2.0125 | DE52: 1.992123256 | DF52: 1.959330504 | DG52: 1.926537751 | DH52: 1.893744999 | DI52: 1.875 | DJ52: 1.860952246 | DK52: 1.833191386 | DL52: 1.805430526 | DM52: 1.777669667 | DN52: 1.7575 | DO52: 1.749908807 | DP52: 1.724426795 | DQ52: 1.698944783 | DR52: 1.673462771 | DS52: 1.655 | DT52: 1.647980759 | DU52: 1.626079259 | DV52: 1.60417776 | DW52: 1.582276261 | DX52: 1.57 | DY52: 1.560374761 | DZ52: 1.542212607 | EA52: 1.523934603 | EB52: 1.5031566 | EC52: 1.495 | ED52: 1.481638802
A53: R124 | B53: 99 | C53: 99 | CZ53: 2.035949648 | DA53: 2.004760114 | DB53: 1.970305287 | DC53: 1.93585046 | DD53: 1.915 | DE53: 1.89813034 | DF53: 1.868074794 | DG53: 1.838019248 | DH53: 1.807963702 | DI53: 1.79 | DJ53: 1.777908157 | DK53: 1.752345284 | DL53: 1.726782412 | DM53: 1.70121954 | DN53: 1.685 | DO53: 1.675656668 | DP53: 1.652094203 | DQ53: 1.628531738 | DR53: 1.604969274 | DS53: 1.59 | DT53: 1.581406809 | DU53: 1.561078951 | DV53: 1.540751093 | DW53: 1.520423234 | DX53: 1.51 | DY53: 1.500095376 | DZ53: 1.484808404 | EA53: 1.469289736 | EB53: 1.448771067 | EC53: 1.44 | ED53: 1.426772808
A54: R124 | B54: 100 | C54: 100 | CZ54: 2.250654913 | DA54: 2.209520228 | DB54: 2.168385543 | DC54: 2.127250858 | DD54: 2.11 | DE54: 2.086116172 | DF54: 2.050586213 | DG54: 2.015056254 | DH54: 1.979526295 | DI54: 1.96 | DJ54: 1.943996336 | DK54: 1.914037488 | DL54: 1.884078641 | DM54: 1.854119793 | DN54: 1.83 | DO54: 1.824160945 | DP54: 1.796759386 | DQ54: 1.769357827 | DR54: 1.741956268 | DS54: 1.72 | DT54: 1.714554708 | DU54: 1.691079568 | DV54: 1.667604427 | DW54: 1.644129287 | DX54: 1.63 | DY54: 1.620654146 | DZ54: 1.599616809 | EA54: 1.578579471 | EB54: 1.557542134 | EC54: 1.55 | ED54: 1.536504796
A55: R134a | B55: -10 | C55: 110 | BV55: 0.71 | BW55: 0.71 | BX55: 0.7 | BY55: 0.7 | BZ55: 0.7 | CA55: 0.7 | CB55: 0.69 | CC55: 0.69 | CD55: 0.69 | CE55: 0.69 | CF55: 0.69 | CG55: 0.68 | CH55: 0.68 | CI55: 0.68 | CJ55: 0.68 | CK55: 0.68 | CL55: 0.67 | CM55: 0.67 | CN55: 0.67 | CO55: 0.67 | CQ55: 0.66 | CR55: 0.66 | CS55: 0.66 | CT55: 0.66 | CU55: 0.66 | CV55: 0.65 | CW55: 0.65 | CX55: 0.65 | CY55: 0.65 | CZ55: 0.65 | DA55: 0.64 | DB55: 0.64 | DC55: 0.64 | DD55: 0.64 | DE55: 0.64 | DF55: 0.64 | DG55: 0.63 | DH55: 0.63 | DI55: 0.63 | DJ55: 0.63 | DK55: 0.63 | DL55: 0.63 | DM55: 0.62 | DN55: 0.62 | DO55: 0.62 | DP55: 0.62 | DQ55: 0.62 | DR55: 0.62 | DS55: 0.61 | DT55: 0.61
A56: R134a | B56: -9 | C56: 111 | BV56: 0.71 | BW56: 0.71 | BX56: 0.71 | BY56: 0.71 | BZ56: 0.7 | CA56: 0.7 | CB56: 0.7 | CC56: 0.7 | CD56: 0.7 | CE56: 0.69 | CF56: 0.69 | CG56: 0.69 | CH56: 0.69 | CI56: 0.68 | CJ56: 0.68 | CK56: 0.68 | CL56: 0.68 | CM56: 0.68 | CN56: 0.67 | CO56: 0.67 | CP56: 0.67 | CR56: 0.67 | CS56: 0.66 | CT56: 0.66 | CU56: 0.66 | CV56: 0.66 | CW56: 0.66 | CX56: 0.65 | CY56: 0.65 | CZ56: 0.65 | DA56: 0.65 | DB56: 0.65 | DC56: 0.65 | DD56: 0.64 | DE56: 0.64 | DF56: 0.64 | DG56: 0.64 | DH56: 0.64 | DI56: 0.63 | DJ56: 0.63 | DK56: 0.63 | DL56: 0.63 | DM56: 0.63 | DN56: 0.63 | DO56: 0.63 | DP56: 0.62 | DQ56: 0.62 | DR56: 0.62 | DS56: 0.62 | DT56: 0.62
A57: R134a | B57: -8 | C57: 112 | BV57: 0.72 | BW57: 0.72 | BX57: 0.71 | BY57: 0.71 | BZ57: 0.71 | CA57: 0.71 | CB57: 0.71 | CC57: 0.7 | CD57: 0.7 | CE57: 0.7 | CF57: 0.7 | CG57: 0.69 | CH57: 0.69 | CI57: 0.69 | CJ57: 0.69 | CK57: 0.69 | CL57: 0.68 | CM57: 0.68 | CN57: 0.68 | CO57: 0.68 | CP57: 0.68 | CQ57: 0.67 | CS57: 0.67 | CT57: 0.67 | CU57: 0.67 | CV57: 0.66 | CW57: 0.66 | CX57: 0.66 | CY57: 0.66 | CZ57: 0.66 | DA57: 0.65 | DB57: 0.65 | DC57: 0.65 | DD57: 0.65 | DE57: 0.65 | DF57: 0.64 | DG57: 0.64 | DH57: 0.64 | DI57: 0.64 | DJ57: 0.64 | DK57: 0.64 | DL57: 0.63 | DM57: 0.63 | DN57: 0.63 | DO57: 0.63 | DP57: 0.63 | DQ57: 0.63 | DR57: 0.62 | DS57: 0.62 | DT57: 0.62
A58: R134a | B58: -7 | C58: 113 | BV58: 0.73 | BW58: 0.72 | BX58: 0.72 | BY58: 0.72 | BZ58: 0.72 | CA58: 0.71 | CB58: 0.71 | CC58: 0.71 | CD58: 0.71 | CE58: 0.7 | CF58: 0.7 | CG58: 0.7 | CH58: 0.7 | CI58: 0.7 | CJ58: 0.69 | CK58: 0.69 | CL58: 0.69 | CM58: 0.69 | CN58: 0.68 | CO58: 0.68 | CP58: 0.68 | CQ58: 0.68 | CR58: 0.68 | CT58: 0.67 | CU58: 0.67 | CV58: 0.67 | CW58: 0.67 | CX58: 0.66 | CY58: 0.66 | CZ58: 0.66 | DA58: 0.66 | DB58: 0.66 | DC58: 0.66 | DD58: 0.65 | DE58: 0.65 | DF58: 0.65 | DG58: 0.65 | DH58: 0.65 | DI58: 0.64 | DJ58: 0.64 | DK58: 0.64 | DL58: 0.64 | DM58: 0.64 | DN58: 0.64 | DO58: 0.63 | DP58: 0.63 | DQ58: 0.63 | DR58: 0.63 | DS58: 0.63 | DT58: 0.63
A59: R134a | B59: -6 | C59: 114 | BV59: 0.73 | BW59: 0.73 | BX59: 0.73 | BY59: 0.72 | BZ59: 0.72 | CA59: 0.72 | CB59: 0.72 | CC59: 0.71 | CD59: 0.71 | CE59: 0.71 | CF59: 0.71 | CG59: 0.71 | CH59: 0.7 | CI59: 0.7 | CJ59: 0.7 | CK59: 0.7 | CL59: 0.69 | CM59: 0.69 | CN59: 0.69 | CO59: 0.69 | CP59: 0.69 | CQ59: 0.68 | CR59: 0.68 | CS59: 0.68 | CU59: 0.68 | CV59: 0.67 | CW59: 0.67 | CX59: 0.67 | CY59: 0.67 | CZ59: 0.67 | DA59: 0.66 | DB59: 0.66 | DC59: 0.66 | DD59: 0.66 | DE59: 0.66 | DF59: 0.65 | DG59: 0.65 | DH59: 0.65 | DI59: 0.65 | DJ59: 0.65 | DK59: 0.65 | DL59: 0.64 | DM59: 0.64 | DN59: 0.64 | DO59: 0.64 | DP59: 0.64 | DQ59: 0.64 | DR59: 0.63 | DS59: 0.63 | DT59: 0.63
A60: R134a | B60: -5 | C60: 115 | BV60: 0.74 | BW60: 0.74 | BX60: 0.73 | BY60: 0.73 | BZ60: 0.73 | CA60: 0.73 | CB60: 0.72 | CC60: 0.72 | CD60: 0.72 | CE60: 0.72 | CF60: 0.71 | CG60: 0.71 | CH60: 0.71 | CI60: 0.71 | CJ60: 0.7 | CK60: 0.7 | CL60: 0.7 | CM60: 0.7 | CN60: 0.7 | CO60: 0.69 | CP60: 0.69 | CQ60: 0.69 | CR60: 0.69 | CS60: 0.69 | CT60: 0.68 | CV60: 0.68 | CW60: 0.68 | CX60: 0.67 | CY60: 0.67 | CZ60: 0.67 | DA60: 0.67 | DB60: 0.67 | DC60: 0.67 | DD60: 0.66 | DE60: 0.66 | DF60: 0.66 | DG60: 0.66 | DH60: 0.66 | DI60: 0.65 | DJ60: 0.65 | DK60: 0.65 | DL60: 0.65 | DM60: 0.65 | DN60: 0.65 | DO60: 0.64 | DP60: 0.64 | DQ60: 0.64 | DR60: 0.64 | DS60: 0.64 | DT60: 0.64
A61: R134a | B61: -4 | C61: 116 | BV61: 0.74 | BW61: 0.74 | BX61: 0.74 | BY61: 0.74 | BZ61: 0.73 | CA61: 0.73 | CB61: 0.73 | CC61: 0.73 | CD61: 0.72 | CE61: 0.72 | CF61: 0.72 | CG61: 0.72 | CH61: 0.71 | CI61: 0.71 | CJ61: 0.71 | CK61: 0.71 | CL61: 0.71 | CM61: 0.7 | CN61: 0.7 | CO61: 0.7 | CP61: 0.7 | CQ61: 0.69 | CR61: 0.69 | CS61: 0.69 | CT61: 0.69 | CU61: 0.69 | CW61: 0.68 | CX61: 0.68 | CY61: 0.68 | CZ61: 0.68 | DA61: 0.67 | DB61: 0.67 | DC61: 0.67 | DD61: 0.67 | DE61: 0.67 | DF61: 0.66 | DG61: 0.66 | DH61: 0.66 | DI61: 0.66 | DJ61: 0.66 | DK61: 0.66 | DL61: 0.65 | DM61: 0.65 | DN61: 0.65 | DO61: 0.65 | DP61: 0.65 | DQ61: 0.65 | DR61: 0.64 | DS61: 0.64 | DT61: 0.64
A62: R134a | B62: -3 | C62: 117 | BV62: 0.75 | BW62: 0.75 | BX62: 0.75 | BY62: 0.74 | BZ62: 0.74 | CA62: 0.74 | CB62: 0.74 | CC62: 0.73 | CD62: 0.73 | CE62: 0.73 | CF62: 0.73 | CG62: 0.72 | CH62: 0.72 | CI62: 0.72 | CJ62: 0.72 | CK62: 0.71 | CL62: 0.71 | CM62: 0.71 | CN62: 0.71 | CO62: 0.7 | CP62: 0.7 | CQ62: 0.7 | CR62: 0.7 | CS62: 0.7 | CT62: 0.69 | CU62: 0.69 | CV62: 0.69 | CX62: 0.69 | CY62: 0.68 | CZ62: 0.68 | DA62: 0.68 | DB62: 0.68 | DC62: 0.68 | DD62: 0.67 | DE62: 0.67 | DF62: 0.67 | DG62: 0.67 | DH62: 0.67 | DI62: 0.66 | DJ62: 0.66 | DK62: 0.66 | DL62: 0.66 | DM62: 0.66 | DN62: 0.66 | DO62: 0.65 | DP62: 0.65 | DQ62: 0.65 | DR62: 0.65 | DS62: 0.65 | DT62: 0.65
A63: R134a | B63: -2 | C63: 118 | BV63: 0.76 | BW63: 0.75 | BX63: 0.75 | BY63: 0.75 | BZ63: 0.75 | CA63: 0.74 | CB63: 0.74 | CC63: 0.74 | CD63: 0.74 | CE63: 0.73 | CF63: 0.73 | CG63: 0.73 | CH63: 0.73 | CI63: 0.72 | CJ63: 0.72 | CK63: 0.72 | CL63: 0.72 | CM63: 0.72 | CN63: 0.71 | CO63: 0.71 | CP63: 0.71 | CQ63: 0.71 | CR63: 0.7 | CS63: 0.7 | CT63: 0.7 | CU63: 0.7 | CV63: 0.7 | CW63: 0.69 | CY63: 0.69 | CZ63: 0.69 | DA63: 0.69 | DB63: 0.68 | DC63: 0.68 | DD63: 0.68 | DE63: 0.68 | DF63: 0.68 | DG63: 0.67 | DH63: 0.67 | DI63: 0.67 | DJ63: 0.67 | DK63: 0.67 | DL63: 0.66 | DM63: 0.66 | DN63: 0.66 | DO63: 0.66 | DP63: 0.66 | DQ63: 0.66 | DR63: 0.65 | DS63: 0.65 | DT63: 0.65
A64: R134a | B64: -1 | C64: 119 | BV64: 0.76 | BW64: 0.76 | BX64: 0.76 | BY64: 0.76 | BZ64: 0.75 | CA64: 0.75 | CB64: 0.75 | CC64: 0.75 | CD64: 0.74 | CE64: 0.74 | CF64: 0.74 | CG64: 0.74 | CH64: 0.73 | CI64: 0.73 | CJ64: 0.73 | CK64: 0.73 | CL64: 0.72 | CM64: 0.72 | CN64: 0.72 | CO64: 0.72 | CP64: 0.71 | CQ64: 0.71 | CR64: 0.71 | CS64: 0.71 | CT64: 0.71 | CU64: 0.7 | CV64: 0.7 | CW64: 0.7 | CX64: 0.7 | CZ64: 0.69 | DA64: 0.69 | DB64: 0.69 | DC64: 0.69 | DD64: 0.68 | DE64: 0.68 | DF64: 0.68 | DG64: 0.68 | DH64: 0.68 | DI64: 0.67 | DJ64: 0.67 | DK64: 0.67 | DL64: 0.67 | DM64: 0.67 | DN64: 0.67 | DO64: 0.66 | DP64: 0.66 | DQ64: 0.66 | DR64: 0.66 | DS64: 0.66 | DT64: 0.66
A65: R134a | B65: 0 | C65: 120 | BV65: 0.77 | BW65: 0.77 | BX65: 0.76 | BY65: 0.76 | BZ65: 0.76 | CA65: 0.76 | CB65: 0.75 | CC65: 0.75 | CD65: 0.75 | CE65: 0.75 | CF65: 0.74 | CG65: 0.74 | CH65: 0.74 | CI65: 0.74 | CJ65: 0.73 | CK65: 0.73 | CL65: 0.73 | CM65: 0.73 | CN65: 0.72 | CO65: 0.72 | CP65: 0.72 | CQ65: 0.72 | CR65: 0.72 | CS65: 0.71 | CT65: 0.71 | CU65: 0.71 | CV65: 0.71 | CW65: 0.7 | CX65: 0.7 | CY65: 0.7 | DA65: 0.7 | DB65: 0.69 | DC65: 0.69 | DD65: 0.69 | DE65: 0.69 | DF65: 0.69 | DG65: 0.68 | DH65: 0.68 | DI65: 0.68 | DJ65: 0.68 | DK65: 0.68 | DL65: 0.67 | DM65: 0.67 | DN65: 0.67 | DO65: 0.67 | DP65: 0.67 | DQ65: 0.67 | DR65: 0.66 | DS65: 0.66 | DT65: 0.66
A66: R134a | B66: 1 | C66: 121 | BV66: 0.78 | BW66: 0.77 | BX66: 0.77 | BY66: 0.77 | BZ66: 0.77 | CA66: 0.76 | CB66: 0.76 | CC66: 0.76 | CD66: 0.76 | CE66: 0.75 | CF66: 0.75 | CG66: 0.75 | CH66: 0.75 | CI66: 0.74 | CJ66: 0.74 | CK66: 0.74 | CL66: 0.74 | CM66: 0.73 | CN66: 0.73 | CO66: 0.73 | CP66: 0.73 | CQ66: 0.72 | CR66: 0.72 | CS66: 0.72 | CT66: 0.72 | CU66: 0.71 | CV66: 0.71 | CW66: 0.71 | CX66: 0.71 | CY66: 0.71 | CZ66: 0.7 | DB66: 0.7 | DC66: 0.7 | DD66: 0.7 | DE66: 0.69 | DF66: 0.69 | DG66: 0.69 | DH66: 0.69 | DI66: 0.69 | DJ66: 0.68 | DK66: 0.68 | DL66: 0.68 | DM66: 0.68 | DN66: 0.68 | DO66: 0.67 | DP66: 0.67 | DQ66: 0.67 | DR66: 0.67 | DS66: 0.67 | DT66: 0.67
A67: R134a | B67: 2 | C67: 122 | BV67: 0.78 | BW67: 0.78 | BX67: 0.78 | BY67: 0.78 | BZ67: 0.77 | CA67: 0.77 | CB67: 0.77 | CC67: 0.77 | CD67: 0.76 | CE67: 0.76 | CF67: 0.76 | CG67: 0.75 | CH67: 0.75 | CI67: 0.75 | CJ67: 0.75 | CK67: 0.74 | CL67: 0.74 | CM67: 0.74 | CN67: 0.74 | CO67: 0.73 | CP67: 0.73 | CQ67: 0.73 | CR67: 0.73 | CS67: 0.73 | CT67: 0.72 | CU67: 0.72 | CV67: 0.72 | CW67: 0.72 | CX67: 0.71 | CY67: 0.71 | CZ67: 0.71 | DA67: 0.71 | DC67: 0.7 | DD67: 0.7 | DE67: 0.7 | DF67: 0.7 | DG67: 0.7 | DH67: 0.69 | DI67: 0.69 | DJ67: 0.69 | DK67: 0.69 | DL67: 0.69 | DM67: 0.68 | DN67: 0.68 | DO67: 0.68 | DP67: 0.68 | DQ67: 0.68 | DR67: 0.67 | DS67: 0.67 | DT67: 0.67
A68: R134a | B68: 3 | C68: 123 | BV68: 0.79 | BW68: 0.79 | BX68: 0.79 | BY68: 0.78 | BZ68: 0.78 | CA68: 0.78 | CB68: 0.77 | CC68: 0.77 | CD68: 0.77 | CE68: 0.77 | CF68: 0.76 | CG68: 0.76 | CH68: 0.76 | CI68: 0.76 | CJ68: 0.75 | CK68: 0.75 | CL68: 0.75 | CM68: 0.75 | CN68: 0.74 | CO68: 0.74 | CP68: 0.74 | CQ68: 0.74 | CR68: 0.73 | CS68: 0.73 | CT68: 0.73 | CU68: 0.73 | CV68: 0.72 | CW68: 0.72 | CX68: 0.72 | CY68: 0.72 | CZ68: 0.72 | DA68: 0.71 | DB68: 0.71 | DC68: 0.71 | DD68: 0.71 | DE68: 0.7 | DF68: 0.7 | DG68: 0.7 | DH68: 0.7 | DI68: 0.7 | DJ68: 0.69 | DK68: 0.69 | DL68: 0.69 | DM68: 0.69 | DN68: 0.69 | DO68: 0.69 | DP68: 0.68 | DQ68: 0.68 | DR68: 0.68 | DS68: 0.68 | DT68: 0.68
A69: R134a | B69: 4 | C69: 124 | BV69: 0.8 | BW69: 0.8 | BX69: 0.79 | BY69: 0.79 | BZ69: 0.79 | CA69: 0.78 | CB69: 0.78 | CC69: 0.78 | CD69: 0.78 | CE69: 0.77 | CF69: 0.77 | CG69: 0.77 | CH69: 0.77 | CI69: 0.76 | CJ69: 0.76 | CK69: 0.76 | CL69: 0.76 | CM69: 0.75 | CN69: 0.75 | CO69: 0.75 | CP69: 0.75 | CQ69: 0.74 | CR69: 0.74 | CS69: 0.74 | CT69: 0.74 | CU69: 0.73 | CV69: 0.73 | CW69: 0.73 | CX69: 0.73 | CY69: 0.72 | CZ69: 0.72 | DA69: 0.72 | DB69: 0.72 | DC69: 0.72 | DD69: 0.71 | DE69: 0.71 | DF69: 0.71 | DG69: 0.71 | DH69: 0.7 | DI69: 0.7 | DJ69: 0.7 | DK69: 0.7 | DL69: 0.7 | DM69: 0.69 | DN69: 0.69 | DO69: 0.69 | DP69: 0.69 | DQ69: 0.69 | DR69: 0.69 | DS69: 0.68 | DT69: 0.68
A70: R134a | B70: 5 | C70: 125 | BV70: 0.81 | BW70: 0.8 | BX70: 0.8 | BY70: 0.8 | BZ70: 0.79 | CA70: 0.79 | CB70: 0.79 | CC70: 0.79 | CD70: 0.78 | CE70: 0.78 | CF70: 0.78 | CG70: 0.77 | CH70: 0.77 | CI70: 0.77 | CJ70: 0.77 | CK70: 0.76 | CL70: 0.76 | CM70: 0.76 | CN70: 0.76 | CO70: 0.75 | CP70: 0.75 | CQ70: 0.75 | CR70: 0.75 | CS70: 0.74 | CT70: 0.74 | CU70: 0.74 | CV70: 0.74 | CW70: 0.73 | CX70: 0.73 | CY70: 0.73 | CZ70: 0.73 | DA70: 0.73 | DB70: 0.72 | DC70: 0.72 | DD70: 0.72 | DE70: 0.72 | DF70: 0.71 | DG70: 0.71 | DH70: 0.71 | DI70: 0.71 | DJ70: 0.71 | DK70: 0.7 | DL70: 0.7 | DM70: 0.7 | DN70: 0.7 | DO70: 0.7 | DP70: 0.69 | DQ70: 0.69 | DR70: 0.69 | DS70: 0.69 | DT70: 0.69
A71: R134a | B71: 6 | C71: 126 | BV71: 0.81 | BW71: 0.81 | BX71: 0.81 | BY71: 0.8 | BZ71: 0.8 | CA71: 0.8 | CB71: 0.8 | CC71: 0.79 | CD71: 0.79 | CE71: 0.79 | CF71: 0.78 | CG71: 0.78 | CH71: 0.78 | CI71: 0.78 | CJ71: 0.77 | CK71: 0.77 | CL71: 0.77 | CM71: 0.77 | CN71: 0.76 | CO71: 0.76 | CP71: 0.76 | CQ71: 0.76 | CR71: 0.75 | CS71: 0.75 | CT71: 0.75 | CU71: 0.75 | CV71: 0.74 | CW71: 0.74 | CX71: 0.74 | CY71: 0.74 | CZ71: 0.73 | DA71: 0.73 | DB71: 0.73 | DC71: 0.73 | DD71: 0.73 | DE71: 0.72 | DF71: 0.72 | DG71: 0.72 | DH71: 0.72 | DI71: 0.71 | DJ71: 0.71 | DK71: 0.71 | DL71: 0.71 | DM71: 0.71 | DN71: 0.7 | DO71: 0.7 | DP71: 0.7 | DQ71: 0.7 | DR71: 0.7 | DS71: 0.69 | DT71: 0.69
A72: R134a | B72: 7 | C72: 127 | BV72: 0.82 | BW72: 0.82 | BX72: 0.82 | BY72: 0.81 | BZ72: 0.81 | CA72: 0.81 | CB72: 0.8 | CC72: 0.8 | CD72: 0.8 | CE72: 0.79 | CF72: 0.79 | CG72: 0.79 | CH72: 0.79 | CI72: 0.78 | CJ72: 0.78 | CK72: 0.78 | CL72: 0.78 | CM72: 0.77 | CN72: 0.77 | CO72: 0.77 | CP72: 0.76 | CQ72: 0.76 | CR72: 0.76 | CS72: 0.76 | CT72: 0.75 | CU72: 0.75 | CV72: 0.75 | CW72: 0.75 | CX72: 0.75 | CY72: 0.74 | CZ72: 0.74 | DA72: 0.74 | DB72: 0.74 | DC72: 0.73 | DD72: 0.73 | DE72: 0.73 | DF72: 0.73 | DG72: 0.72 | DH72: 0.72 | DI72: 0.72 | DJ72: 0.72 | DK72: 0.72 | DL72: 0.71 | DM72: 0.71 | DN72: 0.71 | DO72: 0.71 | DP72: 0.71 | DQ72: 0.7 | DR72: 0.7 | DS72: 0.7 | DT72: 0.7
A73: R134a | B73: 8 | C73: 128 | BV73: 0.83 | BW73: 0.83 | BX73: 0.82 | BY73: 0.82 | BZ73: 0.82 | CA73: 0.81 | CB73: 0.81 | CC73: 0.81 | CD73: 0.8 | CE73: 0.8 | CF73: 0.8 | CG73: 0.8 | CH73: 0.79 | CI73: 0.79 | CJ73: 0.79 | CK73: 0.79 | CL73: 0.78 | CM73: 0.78 | CN73: 0.78 | CO73: 0.77 | CP73: 0.77 | CQ73: 0.77 | CR73: 0.77 | CS73: 0.76 | CT73: 0.76 | CU73: 0.76 | CV73: 0.76 | CW73: 0.75 | CX73: 0.75 | CY73: 0.75 | CZ73: 0.75 | DA73: 0.74 | DB73: 0.74 | DC73: 0.74 | DD73: 0.74 | DE73: 0.74 | DF73: 0.73 | DG73: 0.73 | DH73: 0.73 | DI73: 0.73 | DJ73: 0.72 | DK73: 0.72 | DL73: 0.72 | DM73: 0.72 | DN73: 0.72 | DO73: 0.71 | DP73: 0.71 | DQ73: 0.71 | DR73: 0.71 | DS73: 0.71 | DT73: 0.7
A74: R134a | B74: 9 | C74: 129 | BV74: 0.84 | BW74: 0.83 | BX74: 0.83 | BY74: 0.83 | BZ74: 0.82 | CA74: 0.82 | CB74: 0.82 | CC74: 0.82 | CD74: 0.81 | CE74: 0.81 | CF74: 0.81 | CG74: 0.8 | CH74: 0.8 | CI74: 0.8 | CJ74: 0.8 | CK74: 0.79 | CL74: 0.79 | CM74: 0.79 | CN74: 0.78 | CO74: 0.78 | CP74: 0.78 | CQ74: 0.78 | CR74: 0.77 | CS74: 0.77 | CT74: 0.77 | CU74: 0.77 | CV74: 0.76 | CW74: 0.76 | CX74: 0.76 | CY74: 0.76 | CZ74: 0.75 | DA74: 0.75 | DB74: 0.75 | DC74: 0.75 | DD74: 0.74 | DE74: 0.74 | DF74: 0.74 | DG74: 0.74 | DH74: 0.73 | DI74: 0.73 | DJ74: 0.73 | DK74: 0.73 | DL74: 0.73 | DM74: 0.72 | DN74: 0.72 | DO74: 0.72 | DP74: 0.72 | DQ74: 0.72 | DR74: 0.71 | DS74: 0.71 | DT74: 0.71
A75: R134a | B75: 10 | C75: 130 | BG75: 0.8976854171 | BH75: 0.894103318 | BI75: 0.890493514 | BJ75: 0.886968469 | BK75: 0.8834159324 | BL75: 0.8799465892 | BM75: 0.876449968 | BN75: 0.8730350167 | BO75: 0.8696465737 | BP75: 0.8662311723 | BQ75: 0.8628952371 | BR75: 0.8595848974 | BS75: 0.8562998595 | BT75: 0.8530398347 | BU75: 0.8498045382 | BV75: 0.85 | BW75: 0.84 | BX75: 0.84 | BY75: 0.84 | BZ75: 0.83 | CA75: 0.83 | CB75: 0.83 | CC75: 0.82 | CD75: 0.82 | CE75: 0.82 | CF75: 0.81 | CG75: 0.81 | CH75: 0.81 | CI75: 0.81 | CJ75: 0.8 | CK75: 0.8 | CL75: 0.8 | CM75: 0.79 | CN75: 0.79 | CO75: 0.79 | CP75: 0.79 | CQ75: 0.78 | CR75: 0.78 | CS75: 0.78 | CT75: 0.78 | CU75: 0.77 | CV75: 0.77 | CW75: 0.77 | CX75: 0.77 | CY75: 0.76 | CZ75: 0.76 | DA75: 0.76 | DB75: 0.76 | DC75: 0.75 | DD75: 0.75 | DE75: 0.75 | DF75: 0.75 | DG75: 0.74 | DH75: 0.74 | DI75: 0.74 | DJ75: 0.74 | DK75: 0.73 | DL75: 0.73 | DM75: 0.73 | DN75: 0.73 | DO75: 0.73 | DP75: 0.72 | DQ75: 0.72 | DR75: 0.72 | DS75: 0.72 | DT75: 0.72
A76: R134a | B76: 11 | C76: 131 | BG76: 0.9068343733 | BH76: 0.9031840912 | BI76: 0.8995058359 | BJ76: 0.8959141977 | BK76: 0.8922947993 | BL76: 0.8887604031 | BM76: 0.8851984602 | BN76: 0.8817199483 | BO76: 0.8782686679 | BP76: 0.8747901609 | BQ76: 0.8713928129 | BR76: 0.8680217507 | BS76: 0.8646766706 | BT76: 0.8613572732 | BU76: 0.858063264 | BV76: 0.85 | BW76: 0.85 | BX76: 0.85 | BY76: 0.84 | BZ76: 0.84 | CA76: 0.84 | CB76: 0.83 | CC76: 0.83 | CD76: 0.83 | CE76: 0.83 | CF76: 0.82 | CG76: 0.82 | CH76: 0.82 | CI76: 0.81 | CJ76: 0.81 | CK76: 0.81 | CL76: 0.8 | CM76: 0.8 | CN76: 0.8 | CO76: 0.8 | CP76: 0.79 | CQ76: 0.79 | CR76: 0.79 | CS76: 0.79 | CT76: 0.78 | CU76: 0.78 | CV76: 0.78 | CW76: 0.77 | CX76: 0.77 | CY76: 0.77 | CZ76: 0.77 | DA76: 0.76 | DB76: 0.76 | DC76: 0.76 | DD76: 0.76 | DE76: 0.75 | DF76: 0.75 | DG76: 0.75 | DH76: 0.75 | DI76: 0.75 | DJ76: 0.74 | DK76: 0.74 | DL76: 0.74 | DM76: 0.74 | DN76: 0.73 | DO76: 0.73 | DP76: 0.73 | DQ76: 0.73 | DR76: 0.73 | DS76: 0.72 | DT76: 0.72
A77: R134a | B77: 12 | C77: 132 | BG77: 0.9162101856 | BH77: 0.9124893552 | BI77: 0.9087402816 | BJ77: 0.9050797549 | BK77: 0.9013911976 | BL77: 0.8977895203 | BM77: 0.8941600257 | BN77: 0.89061579 | BO77: 0.8870995404 | BP77: 0.8835557934 | BQ77: 0.8800949619 | BR77: 0.8766611362 | BS77: 0.8732540017 | BT77: 0.8698732481 | BU77: 0.8665185704 | BV77: 0.86 | BW77: 0.86 | BX77: 0.86 | BY77: 0.85 | BZ77: 0.85 | CA77: 0.85 | CB77: 0.84 | CC77: 0.84 | CD77: 0.84 | CE77: 0.83 | CF77: 0.83 | CG77: 0.83 | CH77: 0.82 | CI77: 0.82 | CJ77: 0.82 | CK77: 0.81 | CL77: 0.81 | CM77: 0.81 | CN77: 0.81 | CO77: 0.8 | CP77: 0.8 | CQ77: 0.8 | CR77: 0.8 | CS77: 0.79 | CT77: 0.79 | CU77: 0.79 | CV77: 0.78 | CW77: 0.78 | CX77: 0.78 | CY77: 0.78 | CZ77: 0.77 | DA77: 0.77 | DB77: 0.77 | DC77: 0.77 | DD77: 0.76 | DE77: 0.76 | DF77: 0.76 | DG77: 0.76 | DH77: 0.75 | DI77: 0.75 | DJ77: 0.75 | DK77: 0.75 | DL77: 0.75 | DM77: 0.74 | DN77: 0.74 | DO77: 0.74 | DP77: 0.74 | DQ77: 0.73 | DR77: 0.73 | DS77: 0.73 | DT77: 0.73
A78: R134a | B78: 13 | C78: 133 | BG78: 0.9257603989 | BH78: 0.9219670392 | BI78: 0.9181451666 | BJ78: 0.9144138322 | BK78: 0.9106541968 | BL78: 0.9069833788 | BM78: 0.9032844725 | BN78: 0.8996727105 | BO78: 0.8960897166 | BP78: 0.8924789541 | BQ78: 0.8889529178 | BR78: 0.8854546335 | BS78: 0.8819837747 | BT78: 0.8785400203 | BU78: 0.8751230539 | BV78: 0.87 | BW78: 0.87 | BX78: 0.86 | BY78: 0.86 | BZ78: 0.86 | CA78: 0.85 | CB78: 0.85 | CC78: 0.85 | CD78: 0.84 | CE78: 0.84 | CF78: 0.84 | CG78: 0.83 | CH78: 0.83 | CI78: 0.83 | CJ78: 0.83 | CK78: 0.82 | CL78: 0.82 | CM78: 0.82 | CN78: 0.81 | CO78: 0.81 | CP78: 0.81 | CQ78: 0.81 | CR78: 0.8 | CS78: 0.8 | CT78: 0.8 | CU78: 0.79 | CV78: 0.79 | CW78: 0.79 | CX78: 0.79 | CY78: 0.78 | CZ78: 0.78 | DA78: 0.78 | DB78: 0.78 | DC78: 0.77 | DD78: 0.77 | DE78: 0.77 | DF78: 0.77 | DG78: 0.76 | DH78: 0.76 | DI78: 0.76 | DJ78: 0.76 | DK78: 0.75 | DL78: 0.75 | DM78: 0.75 | DN78: 0.75 | DO78: 0.75 | DP78: 0.74 | DQ78: 0.74 | DR78: 0.74 | DS78: 0.74 | DT78: 0.73
A79: R134a | B79: 14 | C79: 134 | BG79: 0.9355273216 | BH79: 0.9316592228 | BI79: 0.9277623409 | BJ79: 0.9239580563 | BK79: 0.9201251995 | BL79: 0.916383163 | BM79: 0.9126127661 | BN79: 0.9089314622 | BO79: 0.9052797384 | BP79: 0.9015999732 | BQ79: 0.8980068052 | BR79: 0.8944421635 | BS79: 0.8909057096 | BT79: 0.8873971105 | BU79: 0.8839160384 | BV79: 0.88 | BW79: 0.88 | BX79: 0.87 | BY79: 0.87 | BZ79: 0.87 | CA79: 0.86 | CB79: 0.86 | CC79: 0.86 | CD79: 0.85 | CE79: 0.85 | CF79: 0.85 | CG79: 0.84 | CH79: 0.84 | CI79: 0.84 | CJ79: 0.83 | CK79: 0.83 | CL79: 0.83 | CM79: 0.82 | CN79: 0.82 | CO79: 0.82 | CP79: 0.82 | CQ79: 0.81 | CR79: 0.81 | CS79: 0.81 | CT79: 0.8 | CU79: 0.8 | CV79: 0.8 | CW79: 0.8 | CX79: 0.79 | CY79: 0.79 | CZ79: 0.79 | DA79: 0.79 | DB79: 0.78 | DC79: 0.78 | DD79: 0.78 | DE79: 0.78 | DF79: 0.77 | DG79: 0.77 | DH79: 0.77 | DI79: 0.77 | DJ79: 0.76 | DK79: 0.76 | DL79: 0.76 | DM79: 0.76 | DN79: 0.75 | DO79: 0.75 | DP79: 0.75 | DQ79: 0.75 | DR79: 0.75 | DS79: 0.74 | DT79: 0.74
A80: R134a | B80: 15 | C80: 135 | BG80: 0.9455042898 | BH80: 0.941558948 | BI80: 0.9375845533 | BJ80: 0.9337048931 | BK80: 0.9297963894 | BL80: 0.9259807841 | BM80: 0.9221365463 | BN80: 0.9183834225 | BO80: 0.9146607256 | BP80: 0.910909714 | BQ80: 0.9072472396 | BR80: 0.9036140985 | BS80: 0.9000099397 | BT80: 0.8964344178 | BU80: 0.8928871928 | BV80: 0.89 | BW80: 0.89 | BX80: 0.88 | BY80: 0.88 | BZ80: 0.87 | CA80: 0.87 | CB80: 0.87 | CC80: 0.86 | CD80: 0.86 | CE80: 0.86 | CF80: 0.85 | CG80: 0.85 | CH80: 0.85 | CI80: 0.85 | CJ80: 0.84 | CK80: 0.84 | CL80: 0.84 | CM80: 0.83 | CN80: 0.83 | CO80: 0.83 | CP80: 0.82 | CQ80: 0.82 | CR80: 0.82 | CS80: 0.82 | CT80: 0.81 | CU80: 0.81 | CV80: 0.81 | CW80: 0.8 | CX80: 0.8 | CY80: 0.8 | CZ80: 0.8 | DA80: 0.79 | DB80: 0.79 | DC80: 0.79 | DD80: 0.79 | DE80: 0.78 | DF80: 0.78 | DG80: 0.78 | DH80: 0.78 | DI80: 0.77 | DJ80: 0.77 | DK80: 0.77 | DL80: 0.77 | DM80: 0.76 | DN80: 0.76 | DO80: 0.76 | DP80: 0.76 | DQ80: 0.75 | DR80: 0.75 | DS80: 0.75 | DT80: 0.75
A81: R134a | B81: 16 | C81: 136 | BG81: 0.9557116673 | BH81: 0.9516866767 | BI81: 0.9476323635 | BJ81: 0.9436749964 | BK81: 0.9396885146 | BL81: 0.9357970812 | BM81: 0.9318767426 | BN81: 0.9280496086 | BO81: 0.9242537815 | BP81: 0.9204293655 | BQ81: 0.9166954924 | BR81: 0.912991791 | BS81: 0.9093178971 | BT81: 0.9056734523 | BU81: 0.9020581039 | BV81: 0.9 | BW81: 0.89 | BX81: 0.89 | BY81: 0.89 | BZ81: 0.88 | CA81: 0.88 | CB81: 0.88 | CC81: 0.87 | CD81: 0.87 | CE81: 0.87 | CF81: 0.86 | CG81: 0.86 | CH81: 0.86 | CI81: 0.85 | CJ81: 0.85 | CK81: 0.85 | CL81: 0.84 | CM81: 0.84 | CN81: 0.84 | CO81: 0.83 | CP81: 0.83 | CQ81: 0.83 | CR81: 0.83 | CS81: 0.82 | CT81: 0.82 | CU81: 0.82 | CV81: 0.81 | CW81: 0.81 | CX81: 0.81 | CY81: 0.81 | CZ81: 0.8 | DA81: 0.8 | DB81: 0.8 | DC81: 0.8 | DD81: 0.79 | DE81: 0.79 | DF81: 0.79 | DG81: 0.78 | DH81: 0.78 | DI81: 0.78 | DJ81: 0.78 | DK81: 0.78 | DL81: 0.77 | DM81: 0.77 | DN81: 0.77 | DO81: 0.77 | DP81: 0.76 | DQ81: 0.76 | DR81: 0.76 | DS81: 0.76 | DT81: 0.75
A82: R134a | B82: 17 | C82: 137 | BG82: 0.9661174372 | BH82: 0.9620104602 | BI82: 0.9578738928 | BJ82: 0.9538365572 | BK82: 0.9497698368 | BL82: 0.9458003861 | BM82: 0.9418017585 | BN82: 0.9378984949 | BO82: 0.9340274516 | BP82: 0.9301275457 | BQ82: 0.9263202534 | BR82: 0.9225440029 | BS82: 0.918798416 | BT82: 0.9150831207 | BU82: 0.9113977511 | BV82: 0.91 | BW82: 0.9 | BX82: 0.9 | BY82: 0.9 | BZ82: 0.89 | CA82: 0.89 | CB82: 0.89 | CC82: 0.88 | CD82: 0.88 | CE82: 0.88 | CF82: 0.87 | CG82: 0.87 | CH82: 0.87 | CI82: 0.86 | CJ82: 0.86 | CK82: 0.86 | CL82: 0.85 | CM82: 0.85 | CN82: 0.85 | CO82: 0.84 | CP82: 0.84 | CQ82: 0.84 | CR82: 0.83 | CS82: 0.83 | CT82: 0.83 | CU82: 0.83 | CV82: 0.82 | CW82: 0.82 | CX82: 0.82 | CY82: 0.81 | CZ82: 0.81 | DA82: 0.81 | DB82: 0.81 | DC82: 0.8 | DD82: 0.8 | DE82: 0.8 | DF82: 0.79 | DG82: 0.79 | DH82: 0.79 | DI82: 0.79 | DJ82: 0.78 | DK82: 0.78 | DL82: 0.78 | DM82: 0.78 | DN82: 0.77 | DO82: 0.77 | DP82: 0.77 | DQ82: 0.77 | DR82: 0.77 | DS82: 0.76 | DT82: 0.76
A83: R134a | B83: 18 | C83: 138 | BG83: 0.9767941251 | BH83: 0.9726021612 | BI83: 0.9683803396 | BJ83: 0.9642601288 | BK83: 0.9601102634 | BL83: 0.956059979 | BM83: 0.9519802458 | BN83: 0.9479981227 | BO83: 0.9440491752 | BP83: 0.9400710908 | BQ83: 0.936187773 | BR83: 0.9323364063 | BS83: 0.9285165979 | BT83: 0.9247279616 | BU83: 0.9209701172 | BV83: 0.92 | BW83: 0.91 | BX83: 0.91 | BY83: 0.91 | BZ83: 0.9 | CA83: 0.9 | CB83: 0.89 | CC83: 0.89 | CD83: 0.89 | CE83: 0.88 | CF83: 0.88 | CG83: 0.88 | CH83: 0.87 | CI83: 0.87 | CJ83: 0.87 | CK83: 0.86 | CL83: 0.86 | CM83: 0.86 | CN83: 0.85 | CO83: 0.85 | CP83: 0.85 | CQ83: 0.85 | CR83: 0.84 | CS83: 0.84 | CT83: 0.84 | CU83: 0.83 | CV83: 0.83 | CW83: 0.83 | CX83: 0.82 | CY83: 0.82 | CZ83: 0.82 | DA83: 0.82 | DB83: 0.81 | DC83: 0.81 | DD83: 0.81 | DE83: 0.81 | DF83: 0.8 | DG83: 0.8 | DH83: 0.8 | DI83: 0.79 | DJ83: 0.79 | DK83: 0.79 | DL83: 0.79 | DM83: 0.78 | DN83: 0.78 | DO83: 0.78 | DP83: 0.78 | DQ83: 0.78 | DR83: 0.77 | DS83: 0.77 | DT83: 0.77
A84: R134a | B84: 19 | C84: 139 | BG84: 0.9876836207 | BH84: 0.9834041113 | BI84: 0.9790944794 | BJ84: 0.9748889192 | BK84: 0.9706534368 | BL84: 0.9665199255 | BM84: 0.9623566952 | BN84: 0.9582933971 | BO84: 0.9542642671 | BP84: 0.9502057268 | BQ84: 0.9462441783 | BR84: 0.9423155251 | BS84: 0.9384193593 | BT84: 0.9345552796 | BU84: 0.9307228912 | BV84: 0.93 | BW84: 0.92 | BX84: 0.92 | BY84: 0.92 | BZ84: 0.91 | CA84: 0.91 | CB84: 0.9 | CC84: 0.9 | CD84: 0.9 | CE84: 0.89 | CF84: 0.89 | CG84: 0.89 | CH84: 0.88 | CI84: 0.88 | CJ84: 0.88 | CK84: 0.87 | CL84: 0.87 | CM84: 0.87 | CN84: 0.86 | CO84: 0.86 | CP84: 0.86 | CQ84: 0.85 | CR84: 0.85 | CS84: 0.85 | CT84: 0.84 | CU84: 0.84 | CV84: 0.84 | CW84: 0.84 | CX84: 0.83 | CY84: 0.83 | CZ84: 0.83 | DA84: 0.82 | DB84: 0.82 | DC84: 0.82 | DD84: 0.82 | DE84: 0.81 | DF84: 0.81 | DG84: 0.81 | DH84: 0.8 | DI84: 0.8 | DJ84: 0.8 | DK84: 0.8 | DL84: 0.79 | DM84: 0.79 | DN84: 0.79 | DO84: 0.79 | DP84: 0.78 | DQ84: 0.78 | DR84: 0.78 | DS84: 0.78 | DT84: 0.78
A85: R134a | B85: 20 | C85: 140 | BG85: 0.9989026344 | BH85: 0.9945321318 | BI85: 0.9901312429 | BJ85: 0.9858369934 | BK85: 0.9815125542 | BL85: 0.9772925794 | BM85: 0.9730426151 | BN85: 0.9688950045 | BO85: 0.9647826023 | BP85: 0.9606405156 | BQ85: 0.9565977399 | BR85: 0.9525888489 | BS85: 0.9486134185 | BT85: 0.9446710315 | BU85: 0.9407612775 | BV85: 0.94 | BW85: 0.93 | BX85: 0.93 | BY85: 0.93 | BZ85: 0.92 | CA85: 0.92 | CB85: 0.91 | CC85: 0.91 | CD85: 0.91 | CE85: 0.9 | CF85: 0.9 | CG85: 0.9 | CH85: 0.89 | CI85: 0.89 | CJ85: 0.89 | CK85: 0.88 | CL85: 0.88 | CM85: 0.88 | CN85: 0.87 | CO85: 0.87 | CP85: 0.87 | CQ85: 0.86 | CR85: 0.86 | CS85: 0.86 | CT85: 0.85 | CU85: 0.85 | CV85: 0.85 | CW85: 0.84 | CX85: 0.84 | CY85: 0.84 | CZ85: 0.83 | DA85: 0.83 | DB85: 0.83 | DC85: 0.83 | DD85: 0.82 | DE85: 0.82 | DF85: 0.82 | DG85: 0.82 | DH85: 0.81 | DI85: 0.81 | DJ85: 0.81 | DK85: 0.8 | DL85: 0.8 | DM85: 0.8 | DN85: 0.8 | DO85: 0.79 | DP85: 0.79 | DQ85: 0.79 | DR85: 0.79 | DS85: 0.78 | DT85: 0.78
A86: R134a | B86: 21 | C86: 141 | BG86: 1.010310075 | BH86: 1.005845947 | BI86: 1.001351174 | BJ86: 0.9969656942 | BK86: 0.992549762 | BL86: 0.9882408703 | BM86: 0.9839017227 | BN86: 0.9796674302 | BO86: 0.9754694266 | BP86: 0.9712414676 | BQ86: 0.9671152141 | BR86: 0.9630238726 | BS86: 0.9589670017 | BT86: 0.9549441677 | BU86: 0.950954944 | BV86: 0.95 | BW86: 0.94 | BX86: 0.94 | BY86: 0.94 | BZ86: 0.93 | CA86: 0.93 | CB86: 0.92 | CC86: 0.92 | CD86: 0.92 | CE86: 0.91 | CF86: 0.91 | CG86: 0.91 | CH86: 0.9 | CI86: 0.9 | CJ86: 0.89 | CK86: 0.89 | CL86: 0.89 | CM86: 0.88 | CN86: 0.88 | CO86: 0.88 | CP86: 0.87 | CQ86: 0.87 | CR86: 0.87 | CS86: 0.86 | CT86: 0.86 | CU86: 0.86 | CV86: 0.86 | CW86: 0.85 | CX86: 0.85 | CY86: 0.85 | CZ86: 0.84 | DA86: 0.84 | DB86: 0.84 | DC86: 0.83 | DD86: 0.83 | DE86: 0.83 | DF86: 0.83 | DG86: 0.82 | DH86: 0.82 | DI86: 0.82 | DJ86: 0.82 | DK86: 0.81 | DL86: 0.81 | DM86: 0.81 | DN86: 0.8 | DO86: 0.8 | DP86: 0.8 | DQ86: 0.8 | DR86: 0.79 | DS86: 0.79 | DT86: 0.79
A87: R134a | B87: 22 | C87: 142 | BG87: 1.021995007 | BH87: 1.017434146 | BI87: 1.012842383 | BJ87: 1.008362667 | BK87: 1.003852239 | BL87: 0.9994515228 | BM87: 0.9950202864 | BN87: 0.9906964984 | BO87: 0.9864101252 | BP87: 0.9820935271 | BQ87: 0.9778811161 | BR87: 0.9737046867 | BS87: 0.9695637798 | BT87: 0.9654579441 | BU87: 0.9613867359 | BV87: 0.96 | BW87: 0.95 | BX87: 0.95 | BY87: 0.95 | BZ87: 0.94 | CA87: 0.94 | CB87: 0.93 | CC87: 0.93 | CD87: 0.93 | CE87: 0.92 | CF87: 0.92 | CG87: 0.92 | CH87: 0.91 | CI87: 0.91 | CJ87: 0.9 | CK87: 0.9 | CL87: 0.9 | CM87: 0.89 | CN87: 0.89 | CO87: 0.89 | CP87: 0.88 | CQ87: 0.88 | CR87: 0.88 | CS87: 0.87 | CT87: 0.87 | CU87: 0.87 | CV87: 0.86 | CW87: 0.86 | CX87: 0.86 | CY87: 0.85 | CZ87: 0.85 | DA87: 0.85 | DB87: 0.85 | DC87: 0.84 | DD87: 0.84 | DE87: 0.84 | DF87: 0.83 | DG87: 0.83 | DH87: 0.83 | DI87: 0.83 | DJ87: 0.82 | DK87: 0.82 | DL87: 0.82 | DM87: 0.81 | DN87: 0.81 | DO87: 0.81 | DP87: 0.81 | DQ87: 0.8 | DR87: 0.8 | DS87: 0.8 | DT87: 0.8
A88: R134a | B88: 23 | C88: 143 | BG88: 1.0339665 | BH88: 1.029305661 | BI88: 1.024613669 | BJ88: 1.020036582 | BK88: 1.015428525 | BL88: 1.010932953 | BM88: 1.006406598 | BN88: 1.001990382 | BO88: 0.9976127543 | BP88: 0.9932046339 | BQ88: 0.9889032734 | BR88: 0.9846390087 | BS88: 0.9804113622 | BT88: 0.9762198641 | BU88: 0.9720640528 | BV88: 0.97 | BW88: 0.96 | BX88: 0.96 | BY88: 0.96 | BZ88: 0.95 | CA88: 0.95 | CB88: 0.94 | CC88: 0.94 | CD88: 0.94 | CE88: 0.93 | CF88: 0.93 | CG88: 0.92 | CH88: 0.92 | CI88: 0.92 | CJ88: 0.91 | CK88: 0.91 | CL88: 0.91 | CM88: 0.9 | CN88: 0.9 | CO88: 0.9 | CP88: 0.89 | CQ88: 0.89 | CR88: 0.89 | CS88: 0.88 | CT88: 0.88 | CU88: 0.88 | CV88: 0.87 | CW88: 0.87 | CX88: 0.87 | CY88: 0.86 | CZ88: 0.86 | DA88: 0.86 | DB88: 0.85 | DC88: 0.85 | DD88: 0.85 | DE88: 0.85 | DF88: 0.84 | DG88: 0.84 | DH88: 0.84 | DI88: 0.83 | DJ88: 0.83 | DK88: 0.83 | DL88: 0.83 | DM88: 0.82 | DN88: 0.82 | DO88: 0.82 | DP88: 0.82 | DQ88: 0.81 | DR88: 0.81 | DS88: 0.81 | DT88: 0.81
A89: R134a | B89: 24 | C89: 144 | BG89: 1.046223552 | BH89: 1.041459053 | BI89: 1.036663155 | BJ89: 1.03198514 | BK89: 1.027275903 | BL89: 1.022682037 | BM89: 1.018057132 | BN89: 1.013545166 | BO89: 1.009073017 | BP89: 1.004570111 | BQ89: 1.000176642 | BR89: 0.9958214358 | BS89: 0.9915039938 | BT89: 0.9872238272 | BU89: 0.9829804553 | BV89: 0.98 | BW89: 0.98 | BX89: 0.97 | BY89: 0.97 | BZ89: 0.96 | CA89: 0.96 | CB89: 0.95 | CC89: 0.95 | CD89: 0.95 | CE89: 0.94 | CF89: 0.94 | CG89: 0.94 | CH89: 0.93 | CI89: 0.93 | CJ89: 0.92 | CK89: 0.92 | CL89: 0.92 | CM89: 0.91 | CN89: 0.91 | CO89: 0.91 | CP89: 0.9 | CQ89: 0.9 | CR89: 0.9 | CS89: 0.89 | CT89: 0.89 | CU89: 0.89 | CV89: 0.88 | CW89: 0.88 | CX89: 0.88 | CY89: 0.87 | CZ89: 0.87 | DA89: 0.87 | DB89: 0.86 | DC89: 0.86 | DD89: 0.86 | DE89: 0.85 | DF89: 0.85 | DG89: 0.85 | DH89: 0.85 | DI89: 0.84 | DJ89: 0.84 | DK89: 0.84 | DL89: 0.83 | DM89: 0.83 | DN89: 0.83 | DO89: 0.83 | DP89: 0.82 | DQ89: 0.82 | DR89: 0.82 | DS89: 0.82 | DT89: 0.81
A90: R134a | B90: 25 | C90: 145 | BG90: 1.058864983 | BH90: 1.053992549 | BI90: 1.049088476 | BJ90: 1.044305398 | BK90: 1.039490851 | BL90: 1.034794693 | BM90: 1.030067242 | BN90: 1.025455656 | BO90: 1.020885178 | BP90: 1.016283681 | BQ90: 1.011794418 | BR90: 1.007344641 | BS90: 1.002933833 | BT90: 0.9985614828 | BU90: 0.9942270903 | BV90: 0.99 | BW90: 0.99 | BX90: 0.98 | BY90: 0.98 | BZ90: 0.97 | CA90: 0.97 | CB90: 0.97 | CC90: 0.96 | CD90: 0.96 | CE90: 0.95 | CF90: 0.95 | CG90: 0.95 | CH90: 0.94 | CI90: 0.94 | CJ90: 0.93 | CK90: 0.93 | CL90: 0.93 | CM90: 0.92 | CN90: 0.92 | CO90: 0.92 | CP90: 0.91 | CQ90: 0.91 | CR90: 0.9 | CS90: 0.9 | CT90: 0.9 | CU90: 0.89 | CV90: 0.89 | CW90: 0.89 | CX90: 0.88 | CY90: 0.88 | CZ90: 0.88 | DA90: 0.88 | DB90: 0.87 | DC90: 0.87 | DD90: 0.87 | DE90: 0.86 | DF90: 0.86 | DG90: 0.86 | DH90: 0.85 | DI90: 0.85 | DJ90: 0.85 | DK90: 0.85 | DL90: 0.84 | DM90: 0.84 | DN90: 0.84 | DO90: 0.83 | DP90: 0.83 | DQ90: 0.83 | DR90: 0.83 | DS90: 0.82 | DT90: 0.82
A91: R134a | B91: 26 | C91: 146 | BG91: 1.071703008 | BH91: 1.066719815 | BI91: 1.061704751 | BJ91: 1.056813891 | BK91: 1.051891322 | BL91: 1.047090254 | BM91: 1.042257645 | BN91: 1.037543917 | BO91: 1.032872634 | BP91: 1.028170077 | BQ91: 1.023582632 | BR91: 1.019035942 | BS91: 1.014529466 | BT91: 1.010062672 | BU91: 1.005635038 | BV91: 1 | BW91: 1 | BX91: 0.99 | BY91: 0.99 | BZ91: 0.98 | CA91: 0.98 | CB91: 0.98 | CC91: 0.97 | CD91: 0.97 | CE91: 0.96 | CF91: 0.96 | CG91: 0.96 | CH91: 0.95 | CI91: 0.95 | CJ91: 0.94 | CK91: 0.94 | CL91: 0.94 | CM91: 0.93 | CN91: 0.93 | CO91: 0.93 | CP91: 0.92 | CQ91: 0.92 | CR91: 0.91 | CS91: 0.91 | CT91: 0.91 | CU91: 0.9 | CV91: 0.9 | CW91: 0.9 | CX91: 0.89 | CY91: 0.89 | CZ91: 0.89 | DA91: 0.88 | DB91: 0.88 | DC91: 0.88 | DD91: 0.87 | DE91: 0.87 | DF91: 0.87 | DG91: 0.87 | DH91: 0.86 | DI91: 0.86 | DJ91: 0.86 | DK91: 0.85 | DL91: 0.85 | DM91: 0.85 | DN91: 0.85 | DO91: 0.84 | DP91: 0.84 | DQ91: 0.84 | DR91: 0.83 | DS91: 0.83 | DT91: 0.83
A92: R134a | B92: 27 | C92: 147 | BG92: 1.084903674 | BH92: 1.079805291 | BI92: 1.074674813 | BJ92: 1.069671893 | BK92: 1.064637032 | BL92: 1.05972692 | BM92: 1.054785028 | BN92: 1.049965165 | BO92: 1.04518915 | BP92: 1.04038161 | BQ92: 1.035692189 | BR92: 1.031044852 | BS92: 1.026439036 | BT92: 1.021874186 | BU92: 1.017349759 | BV92: 1.01 | BW92: 1.01 | BX92: 1.01 | BY92: 1 | BZ92: 1 | CA92: 0.99 | CB92: 0.99 | CC92: 0.98 | CD92: 0.98 | CE92: 0.98 | CF92: 0.97 | CG92: 0.97 | CH92: 0.96 | CI92: 0.96 | CJ92: 0.95 | CK92: 0.95 | CL92: 0.95 | CM92: 0.94 | CN92: 0.94 | CO92: 0.94 | CP92: 0.93 | CQ92: 0.93 | CR92: 0.92 | CS92: 0.92 | CT92: 0.92 | CU92: 0.91 | CV92: 0.91 | CW92: 0.91 | CX92: 0.9 | CY92: 0.9 | CZ92: 0.9 | DA92: 0.89 | DB92: 0.89 | DC92: 0.89 | DD92: 0.88 | DE92: 0.88 | DF92: 0.88 | DG92: 0.87 | DH92: 0.87 | DI92: 0.87 | DJ92: 0.87 | DK92: 0.86 | DL92: 0.86 | DM92: 0.86 | DN92: 0.85 | DO92: 0.85 | DP92: 0.85 | DQ92: 0.85 | DR92: 0.84 | DS92: 0.84 | DT92: 0.84
A93: R134a | B93: 28 | C93: 148 | BG93: 1.098527786 | BH93: 1.093309324 | BI93: 1.088058551 | BJ93: 1.082938849 | BK93: 1.077786981 | BL93: 1.072763262 | BM93: 1.067707529 | BN93: 1.06277712 | BO93: 1.057892036 | BP93: 1.052975182 | BQ93: 1.048179589 | BR93: 1.043427479 | BS93: 1.038718264 | BT93: 1.034051366 | BU93: 1.029426216 | BV93: 1.03 | BW93: 1.02 | BX93: 1.02 | BY93: 1.01 | BZ93: 1.01 | CA93: 1 | CB93: 1 | CC93: 0.99 | CD93: 0.99 | CE93: 0.99 | CF93: 0.98 | CG93: 0.98 | CH93: 0.97 | CI93: 0.97 | CJ93: 0.97 | CK93: 0.96 | CL93: 0.96 | CM93: 0.95 | CN93: 0.95 | CO93: 0.95 | CP93: 0.94 | CQ93: 0.94 | CR93: 0.93 | CS93: 0.93 | CT93: 0.93 | CU93: 0.92 | CV93: 0.92 | CW93: 0.92 | CX93: 0.91 | CY93: 0.91 | CZ93: 0.91 | DA93: 0.9 | DB93: 0.9 | DC93: 0.9 | DD93: 0.89 | DE93: 0.89 | DF93: 0.89 | DG93: 0.88 | DH93: 0.88 | DI93: 0.88 | DJ93: 0.87 | DK93: 0.87 | DL93: 0.87 | DM93: 0.87 | DN93: 0.86 | DO93: 0.86 | DP93: 0.86 | DQ93: 0.85 | DR93: 0.85 | DS93: 0.85 | DT93: 0.85
A94: R134a | B94: 29 | C94: 149 | BG94: 1.112414634 | BH94: 1.107072195 | BI94: 1.101697242 | BJ94: 1.096457006 | BK94: 1.09118439 | BL94: 1.086043453 | BM94: 1.080870278 | BN94: 1.075825843 | BO94: 1.070828274 | BP94: 1.065798697 | BQ94: 1.060893641 | BR94: 1.056033526 | BS94: 1.051217738 | BT94: 1.046445673 | BU94: 1.041716738 | BV94: 1.04 | BW94: 1.03 | BX94: 1.03 | BY94: 1.02 | BZ94: 1.02 | CA94: 1.02 | CB94: 1.01 | CC94: 1.01 | CD94: 1 | CE94: 1 | CF94: 0.99 | CG94: 0.99 | CH94: 0.99 | CI94: 0.98 | CJ94: 0.98 | CK94: 0.97 | CL94: 0.97 | CM94: 0.96 | CN94: 0.96 | CO94: 0.96 | CP94: 0.95 | CQ94: 0.95 | CR94: 0.95 | CS94: 0.94 | CT94: 0.94 | CU94: 0.93 | CV94: 0.93 | CW94: 0.93 | CX94: 0.92 | CY94: 0.92 | CZ94: 0.92 | DA94: 0.91 | DB94: 0.91 | DC94: 0.91 | DD94: 0.9 | DE94: 0.9 | DF94: 0.9 | DG94: 0.89 | DH94: 0.89 | DI94: 0.89 | DJ94: 0.88 | DK94: 0.88 | DL94: 0.88 | DM94: 0.87 | DN94: 0.87 | DO94: 0.87 | DP94: 0.87 | DQ94: 0.86 | DR94: 0.86 | DS94: 0.86 | DT94: 0.85
A95: R134a | B95: 30 | C95: 150 | BG95: 1.126667268 | BH95: 1.121196323 | BI95: 1.115692675 | BJ95: 1.110327539 | BK95: 1.104929821 | BL95: 1.099667455 | BM95: 1.094372637 | BN95: 1.089210116 | BO95: 1.084096072 | BP95: 1.078949792 | BQ95: 1.073931421 | BR95: 1.068959516 | BS95: 1.064033435 | BT95: 1.059152548 | BU95: 1.054316235 | BV95: 1.05 | BW95: 1.05 | BX95: 1.04 | BY95: 1.04 | BZ95: 1.03 | CA95: 1.03 | CB95: 1.02 | CC95: 1.02 | CD95: 1.01 | CE95: 1.01 | CF95: 1.01 | CG95: 1 | CH95: 1 | CI95: 0.99 | CJ95: 0.99 | CK95: 0.98 | CL95: 0.98 | CM95: 0.98 | CN95: 0.97 | CO95: 0.97 | CP95: 0.96 | CQ95: 0.96 | CR95: 0.96 | CS95: 0.95 | CT95: 0.95 | CU95: 0.94 | CV95: 0.94 | CW95: 0.94 | CX95: 0.93 | CY95: 0.93 | CZ95: 0.93 | DA95: 0.92 | DB95: 0.92 | DC95: 0.92 | DD95: 0.91 | DE95: 0.91 | DF95: 0.91 | DG95: 0.9 | DH95: 0.9 | DI95: 0.9 | DJ95: 0.89 | DK95: 0.89 | DL95: 0.89 | DM95: 0.88 | DN95: 0.88 | DO95: 0.88 | DP95: 0.87 | DQ95: 0.87 | DR95: 0.87 | DS95: 0.87 | DT95: 0.86
A96: R134a | B96: 31 | C96: 151 | BG96: 1.141388247 | BH96: 1.135783176 | BI96: 1.130145223 | BJ96: 1.124649766 | BK96: 1.119121533 | BL96: 1.113732505 | BM96: 1.108310821 | BN96: 1.10302516 | BO96: 1.097789676 | BP96: 1.092521734 | BQ96: 1.087385251 | BR96: 1.08229684 | BS96: 1.077255831 | BT96: 1.072261562 | BU96: 1.067313387 | BV96: 1.06 | BW96: 1.06 | BX96: 1.05 | BY96: 1.05 | BZ96: 1.05 | CA96: 1.04 | CB96: 1.04 | CC96: 1.03 | CD96: 1.03 | CE96: 1.02 | CF96: 1.02 | CG96: 1.01 | CH96: 1.01 | CI96: 1 | CJ96: 1 | CK96: 1 | CL96: 0.99 | CM96: 0.99 | CN96: 0.98 | CO96: 0.98 | CP96: 0.97 | CQ96: 0.97 | CR96: 0.97 | CS96: 0.96 | CT96: 0.96 | CU96: 0.96 | CV96: 0.95 | CW96: 0.95 | CX96: 0.94 | CY96: 0.94 | CZ96: 0.94 | DA96: 0.93 | DB96: 0.93 | DC96: 0.93 | DD96: 0.92 | DE96: 0.92 | DF96: 0.92 | DG96: 0.91 | DH96: 0.91 | DI96: 0.91 | DJ96: 0.9 | DK96: 0.9 | DL96: 0.9 | DM96: 0.89 | DN96: 0.89 | DO96: 0.89 | DP96: 0.88 | DQ96: 0.88 | DR96: 0.88 | DS96: 0.88 | DT96: 0.87
A97: R134a | B97: 32 | C97: 152 | BG97: 1.15640835 | BH97: 1.1506646 | BI97: 1.144887809 | BJ97: 1.139257652 | BK97: 1.133594546 | BL97: 1.128074647 | BM97: 1.122521903 | BN97: 1.117109054 | BO97: 1.111748155 | BP97: 1.106354593 | BQ97: 1.101096174 | BR97: 1.095887504 | BS97: 1.090727882 | BT97: 1.085616616 | BU97: 1.080553031 | BV97: 1.08 | BW97: 1.07 | BX97: 1.07 | BY97: 1.06 | BZ97: 1.06 | CA97: 1.05 | CB97: 1.05 | CC97: 1.04 | CD97: 1.04 | CE97: 1.03 | CF97: 1.03 | CG97: 1.03 | CH97: 1.02 | CI97: 1.02 | CJ97: 1.01 | CK97: 1.01 | CL97: 1 | CM97: 1 | CN97: 0.99 | CO97: 0.99 | CP97: 0.99 | CQ97: 0.98 | CR97: 0.98 | CS97: 0.97 | CT97: 0.97 | CU97: 0.97 | CV97: 0.96 | CW97: 0.96 | CX97: 0.95 | CY97: 0.95 | CZ97: 0.95 | DA97: 0.94 | DB97: 0.94 | DC97: 0.94 | DD97: 0.93 | DE97: 0.93 | DF97: 0.93 | DG97: 0.92 | DH97: 0.92 | DI97: 0.92 | DJ97: 0.91 | DK97: 0.91 | DL97: 0.91 | DM97: 0.9 | DN97: 0.9 | DO97: 0.9 | DP97: 0.89 | DQ97: 0.89 | DR97: 0.89 | DS97: 0.88 | DT97: 0.88
A98: R134a | B98: 33 | C98: 153 | BG98: 1.171930952 | BH98: 1.166042321 | BI98: 1.160120507 | BJ98: 1.154349674 | BK98: 1.148545732 | BL98: 1.142889198 | BM98: 1.137199644 | BN98: 1.131654046 | BO98: 1.126162273 | BP98: 1.120637638 | BQ98: 1.115252012 | BR98: 1.109917903 | BS98: 1.104634577 | BT98: 1.09940131 | BU98: 1.094217396 | BV98: 1.09 | BW98: 1.09 | BX98: 1.08 | BY98: 1.08 | BZ98: 1.07 | CA98: 1.07 | CB98: 1.06 | CC98: 1.06 | CD98: 1.05 | CE98: 1.05 | CF98: 1.04 | CG98: 1.04 | CH98: 1.03 | CI98: 1.03 | CJ98: 1.02 | CK98: 1.02 | CL98: 1.02 | CM98: 1.01 | CN98: 1.01 | CO98: 1 | CP98: 1 | CQ98: 0.99 | CR98: 0.99 | CS98: 0.99 | CT98: 0.98 | CU98: 0.98 | CV98: 0.97 | CW98: 0.97 | CX98: 0.97 | CY98: 0.96 | CZ98: 0.96 | DA98: 0.95 | DB98: 0.95 | DC98: 0.95 | DD98: 0.94 | DE98: 0.94 | DF98: 0.94 | DG98: 0.93 | DH98: 0.93 | DI98: 0.93 | DJ98: 0.92 | DK98: 0.92 | DL98: 0.92 | DM98: 0.91 | DN98: 0.91 | DO98: 0.91 | DP98: 0.9 | DQ98: 0.9 | DR98: 0.9 | DS98: 0.89 | DT98: 0.89
A99: R134a | B99: 34 | C99: 154 | BG99: 1.187831487 | BH99: 1.181792641 | BI99: 1.175720489 | BJ99: 1.169803851 | BK99: 1.163853962 | BL99: 1.15805586 | BM99: 1.15222458 | BN99: 1.146541486 | BO99: 1.140914179 | BP99: 1.13525383 | BQ99: 1.129736512 | BR99: 1.124272563 | BS99: 1.118861212 | BT99: 1.113501704 | BU99: 1.108193296 | BV99: 1.11 | BW99: 1.1 | BX99: 1.1 | BY99: 1.09 | BZ99: 1.09 | CA99: 1.08 | CB99: 1.07 | CC99: 1.07 | CD99: 1.07 | CE99: 1.06 | CF99: 1.06 | CG99: 1.05 | CH99: 1.05 | CI99: 1.04 | CJ99: 1.04 | CK99: 1.03 | CL99: 1.03 | CM99: 1.02 | CN99: 1.02 | CO99: 1.01 | CP99: 1.01 | CQ99: 1.01 | CR99: 1 | CS99: 1 | CT99: 0.99 | CU99: 0.99 | CV99: 0.98 | CW99: 0.98 | CX99: 0.98 | CY99: 0.97 | CZ99: 0.97 | DA99: 0.97 | DB99: 0.96 | DC99: 0.96 | DD99: 0.95 | DE99: 0.95 | DF99: 0.95 | DG99: 0.94 | DH99: 0.94 | DI99: 0.94 | DJ99: 0.93 | DK99: 0.93 | DL99: 0.93 | DM99: 0.92 | DN99: 0.92 | DO99: 0.92 | DP99: 0.91 | DQ99: 0.91 | DR99: 0.91 | DS99: 0.9 | DT99: 0.9
A100: R134a | B100: 35 | C100: 155 | BG100: 1.204274049 | BH100: 1.198078111 | BI100: 1.191848766 | BJ100: 1.185779701 | BK100: 1.179677265 | BL100: 1.173731216 | BM100: 1.167751848 | BN100: 1.161925112 | BO100: 1.156156235 | BP100: 1.150354149 | BQ100: 1.144699318 | BR100: 1.139099811 | BS100: 1.133554819 | BT100: 1.12806355 | BU100: 1.122625227 | BV100: 1.12 | BW100: 1.12 | BX100: 1.11 | BY100: 1.1 | BZ100: 1.1 | CA100: 1.09 | CB100: 1.09 | CC100: 1.08 | CD100: 1.08 | CE100: 1.07 | CF100: 1.07 | CG100: 1.06 | CH100: 1.06 | CI100: 1.05 | CJ100: 1.05 | CK100: 1.04 | CL100: 1.04 | CM100: 1.04 | CN100: 1.03 | CO100: 1.03 | CP100: 1.02 | CQ100: 1.02 | CR100: 1.01 | CS100: 1.01 | CT100: 1 | CU100: 1 | CV100: 1 | CW100: 0.99 | CX100: 0.99 | CY100: 0.98 | CZ100: 0.98 | DA100: 0.98 | DB100: 0.97 | DC100: 0.97 | DD100: 0.97 | DE100: 0.96 | DF100: 0.96 | DG100: 0.95 | DH100: 0.95 | DI100: 0.95 | DJ100: 0.94 | DK100: 0.94 | DL100: 0.94 | DM100: 0.93 | DN100: 0.93 | DO100: 0.93 | DP100: 0.92 | DQ100: 0.92 | DR100: 0.92 | DS100: 0.91 | DT100: 0.91
A101: R134a | B101: 36 | C101: 156 | BG101: 1.221129557 | BH101: 1.214770558 | BI101: 1.20837808 | BJ101: 1.202150856 | BK101: 1.195890163 | BL101: 1.189790659 | BM101: 1.183657717 | BN101: 1.177682043 | BO101: 1.171766402 | BP101: 1.165817406 | BQ101: 1.160020066 | BR101: 1.154280099 | BS101: 1.148596656 | BT101: 1.142968908 | BU101: 1.137396039 | BV101: 1.14 | BW101: 1.13 | BX101: 1.12 | BY101: 1.12 | BZ101: 1.11 | CA101: 1.11 | CB101: 1.1 | CC101: 1.1 | CD101: 1.09 | CE101: 1.09 | CF101: 1.08 | CG101: 1.08 | CH101: 1.07 | CI101: 1.07 | CJ101: 1.06 | CK101: 1.06 | CL101: 1.05 | CM101: 1.05 | CN101: 1.04 | CO101: 1.04 | CP101: 1.03 | CQ101: 1.03 | CR101: 1.03 | CS101: 1.02 | CT101: 1.02 | CU101: 1.01 | CV101: 1.01 | CW101: 1 | CX101: 1 | CY101: 1 | CZ101: 0.99 | DA101: 0.99 | DB101: 0.98 | DC101: 0.98 | DD101: 0.98 | DE101: 0.97 | DF101: 0.97 | DG101: 0.97 | DH101: 0.96 | DI101: 0.96 | DJ101: 0.95 | DK101: 0.95 | DL101: 0.95 | DM101: 0.94 | DN101: 0.94 | DO101: 0.94 | DP101: 0.93 | DQ101: 0.93 | DR101: 0.93 | DS101: 0.92 | DT101: 0.92
A102: R134a | B102: 37 | C102: 157 | BG102: 1.23841343 | BH102: 1.231885102 | BI102: 1.225323251 | BJ102: 1.218931848 | BK102: 1.212506907 | BL102: 1.206248166 | BM102: 1.199955894 | BN102: 1.193825727 | BO102: 1.187757875 | BP102: 1.181656542 | BQ102: 1.175711457 | BR102: 1.169825893 | BS102: 1.163998961 | BT102: 1.15822979 | BU102: 1.152517525 | BV102: 1.15 | BW102: 1.15 | BX102: 1.14 | BY102: 1.13 | BZ102: 1.13 | CA102: 1.12 | CB102: 1.12 | CC102: 1.11 | CD102: 1.11 | CE102: 1.1 | CF102: 1.1 | CG102: 1.09 | CH102: 1.09 | CI102: 1.08 | CJ102: 1.08 | CK102: 1.07 | CL102: 1.07 | CM102: 1.06 | CN102: 1.06 | CO102: 1.05 | CP102: 1.05 | CQ102: 1.04 | CR102: 1.04 | CS102: 1.03 | CT102: 1.03 | CU102: 1.03 | CV102: 1.02 | CW102: 1.02 | CX102: 1.01 | CY102: 1.01 | CZ102: 1 | DA102: 1 | DB102: 1 | DC102: 0.99 | DD102: 0.99 | DE102: 0.98 | DF102: 0.98 | DG102: 0.98 | DH102: 0.97 | DI102: 0.97 | DJ102: 0.97 | DK102: 0.96 | DL102: 0.96 | DM102: 0.95 | DN102: 0.95 | DO102: 0.95 | DP102: 0.94 | DQ102: 0.94 | DR102: 0.94 | DS102: 0.93 | DT102: 0.93
A103: R134a | B103: 38 | C103: 158 | BG103: 1.256303237 | BH103: 1.24959756 | BI103: 1.242858347 | BJ103: 1.236295054 | BK103: 1.229698182 | BL103: 1.223272788 | BM103: 1.216813794 | BN103: 1.210521996 | BO103: 1.204294929 | BP103: 1.198034278 | BQ103: 1.191934702 | BR103: 1.18589692 | BS103: 1.17992 | BT103: 1.174003025 | BU103: 1.168145097 | BV103: 1.17 | BW103: 1.16 | BX103: 1.15 | BY103: 1.15 | BZ103: 1.14 | CA103: 1.14 | CB103: 1.13 | CC103: 1.13 | CD103: 1.12 | CE103: 1.12 | CF103: 1.11 | CG103: 1.11 | CH103: 1.1 | CI103: 1.1 | CJ103: 1.09 | CK103: 1.09 | CL103: 1.08 | CM103: 1.08 | CN103: 1.07 | CO103: 1.07 | CP103: 1.06 | CQ103: 1.06 | CR103: 1.05 | CS103: 1.05 | CT103: 1.04 | CU103: 1.04 | CV103: 1.03 | CW103: 1.03 | CX103: 1.02 | CY103: 1.02 | CZ103: 1.02 | DA103: 1.01 | DB103: 1.01 | DC103: 1 | DD103: 1 | DE103: 1 | DF103: 0.99 | DG103: 0.99 | DH103: 0.98 | DI103: 0.98 | DJ103: 0.98 | DK103: 0.97 | DL103: 0.97 | DM103: 0.97 | DN103: 0.96 | DO103: 0.96 | DP103: 0.96 | DQ103: 0.95 | DR103: 0.95 | DS103: 0.95 | DT103: 0.94
A104: R134a | B104: 39 | C104: 159 | BG104: 1.274717065 | BH104: 1.267826111 | BI104: 1.260901647 | BJ104: 1.254158858 | BK104: 1.247382482 | BL104: 1.240783129 | BM104: 1.234150142 | BN104: 1.227689697 | BO104: 1.221296537 | BP104: 1.214869717 | BQ104: 1.208609039 | BR104: 1.202412557 | BS104: 1.196279289 | BT104: 1.190208273 | BU104: 1.184198565 | BV104: 1.18 | BW104: 1.18 | BX104: 1.17 | BY104: 1.16 | BZ104: 1.16 | CA104: 1.15 | CB104: 1.15 | CC104: 1.14 | CD104: 1.14 | CE104: 1.13 | CF104: 1.13 | CG104: 1.12 | CH104: 1.11 | CI104: 1.11 | CJ104: 1.1 | CK104: 1.1 | CL104: 1.09 | CM104: 1.09 | CN104: 1.08 | CO104: 1.08 | CP104: 1.07 | CQ104: 1.07 | CR104: 1.06 | CS104: 1.06 | CT104: 1.06 | CU104: 1.05 | CV104: 1.05 | CW104: 1.04 | CX104: 1.04 | CY104: 1.03 | CZ104: 1.03 | DA104: 1.02 | DB104: 1.02 | DC104: 1.02 | DD104: 1.01 | DE104: 1.01 | DF104: 1 | DG104: 1 | DH104: 1 | DI104: 0.99 | DJ104: 0.99 | DK104: 0.98 | DL104: 0.98 | DM104: 0.98 | DN104: 0.97 | DO104: 0.97 | DP104: 0.97 | DQ104: 0.96 | DR104: 0.96 | DS104: 0.96 | DT104: 0.95
A105: R134a | B105: 40 | C105: 160 | BG105: 1.293735567 | BH105: 1.286651226 | BI105: 1.279533439 | BJ105: 1.272603367 | BK105: 1.265639737 | BL105: 1.258858947 | BM105: 1.25204452 | BN105: 1.245408242 | BO105: 1.238841942 | BP105: 1.232241935 | BQ105: 1.225813379 | BR105: 1.21945155 | BS105: 1.213155414 | BT105: 1.206923959 | BU105: 1.200756194 | BV105: 1.2 | BW105: 1.19 | BX105: 1.19 | BY105: 1.18 | BZ105: 1.18 | CA105: 1.17 | CB105: 1.16 | CC105: 1.16 | CD105: 1.15 | CE105: 1.15 | CF105: 1.14 | CG105: 1.14 | CH105: 1.13 | CI105: 1.12 | CJ105: 1.12 | CK105: 1.11 | CL105: 1.11 | CM105: 1.1 | CN105: 1.1 | CO105: 1.09 | CP105: 1.09 | CQ105: 1.08 | CR105: 1.08 | CS105: 1.07 | CT105: 1.07 | CU105: 1.06 | CV105: 1.06 | CW105: 1.06 | CX105: 1.05 | CY105: 1.05 | CZ105: 1.04 | DA105: 1.04 | DB105: 1.03 | DC105: 1.03 | DD105: 1.02 | DE105: 1.02 | DF105: 1.02 | DG105: 1.01 | DH105: 1.01 | DI105: 1 | DJ105: 1 | DK105: 1 | DL105: 0.99 | DM105: 0.99 | DN105: 0.99 | DO105: 0.98 | DP105: 0.98 | DQ105: 0.97 | DR105: 0.97 | DS105: 0.97 | DT105: 0.96
A106: R134a | B106: 41 | C106: 161 | BG106: 1.313328575 | BH106: 1.306041944 | BI106: 1.298721978 | BJ106: 1.291596087 | BK106: 1.284436712 | BL106: 1.2774663 | BM106: 1.270462287 | BN106: 1.26364232 | BO106: 1.256895184 | BP106: 1.250114328 | BQ106: 1.243510504 | BR106: 1.236976084 | BS106: 1.230509979 | BT106: 1.224111124 | BU106: 1.217778475 | BV106: 1.22 | BW106: 1.21 | BX106: 1.2 | BY106: 1.2 | BZ106: 1.19 | CA106: 1.19 | CB106: 1.18 | CC106: 1.17 | CD106: 1.17 | CE106: 1.16 | CF106: 1.16 | CG106: 1.15 | CH106: 1.15 | CI106: 1.14 | CJ106: 1.13 | CK106: 1.13 | CL106: 1.12 | CM106: 1.12 | CN106: 1.11 | CO106: 1.11 | CP106: 1.1 | CQ106: 1.1 | CR106: 1.09 | CS106: 1.09 | CT106: 1.08 | CU106: 1.08 | CV106: 1.07 | CW106: 1.07 | CX106: 1.06 | CY106: 1.06 | CZ106: 1.05 | DA106: 1.05 | DB106: 1.05 | DC106: 1.04 | DD106: 1.04 | DE106: 1.03 | DF106: 1.03 | DG106: 1.02 | DH106: 1.02 | DI106: 1.02 | DJ106: 1.01 | DK106: 1.01 | DL106: 1 | DM106: 1 | DN106: 1 | DO106: 0.99 | DP106: 0.99 | DQ106: 0.99 | DR106: 0.98 | DS106: 0.98 | DT106: 0.98
A107: R134a | B107: 42 | C107: 162 | BG107: 1.333521195 | BH107: 1.326023486 | BI107: 1.318492604 | BJ107: 1.311162474 | BK107: 1.303798978 | BL107: 1.296630871 | BM107: 1.289429242 | BN107: 1.282417845 | BO107: 1.275482287 | BP107: 1.268513033 | BQ107: 1.261726661 | BR107: 1.255012514 | BS107: 1.248369447 | BT107: 1.241796336 | BU107: 1.235292081 | BV107: 1.23 | BW107: 1.23 | BX107: 1.22 | BY107: 1.22 | BZ107: 1.21 | CA107: 1.2 | CB107: 1.2 | CC107: 1.19 | CD107: 1.18 | CE107: 1.18 | CF107: 1.17 | CG107: 1.17 | CH107: 1.16 | CI107: 1.16 | CJ107: 1.15 | CK107: 1.14 | CL107: 1.14 | CM107: 1.13 | CN107: 1.13 | CO107: 1.12 | CP107: 1.12 | CQ107: 1.11 | CR107: 1.11 | CS107: 1.1 | CT107: 1.1 | CU107: 1.09 | CV107: 1.09 | CW107: 1.08 | CX107: 1.08 | CY107: 1.07 | CZ107: 1.07 | DA107: 1.06 | DB107: 1.06 | DC107: 1.05 | DD107: 1.05 | DE107: 1.05 | DF107: 1.04 | DG107: 1.04 | DH107: 1.03 | DI107: 1.03 | DJ107: 1.03 | DK107: 1.02 | DL107: 1.02 | DM107: 1.01 | DN107: 1.01 | DO107: 1.01 | DP107: 1 | DQ107: 1 | DR107: 0.99 | DS107: 0.99 | DT107: 0.99
A108: R134a | B108: 43 | C108: 163 | BG108: 1.354339115 | BH108: 1.346621036 | BI108: 1.338870002 | BJ108: 1.331326735 | BK108: 1.323750271 | BL108: 1.316375944 | BM108: 1.308968218 | BN108: 1.301757218 | BO108: 1.294625232 | BP108: 1.287459617 | BQ108: 1.280483016 | BR108: 1.273581619 | BS108: 1.266754216 | BT108: 1.259999623 | BU108: 1.253316682 | BV108: 1.25 | BW108: 1.25 | BX108: 1.24 | BY108: 1.23 | BZ108: 1.23 | CA108: 1.22 | CB108: 1.21 | CC108: 1.21 | CD108: 1.2 | CE108: 1.2 | CF108: 1.19 | CG108: 1.18 | CH108: 1.18 | CI108: 1.17 | CJ108: 1.17 | CK108: 1.16 | CL108: 1.15 | CM108: 1.15 | CN108: 1.14 | CO108: 1.14 | CP108: 1.13 | CQ108: 1.13 | CR108: 1.12 | CS108: 1.12 | CT108: 1.11 | CU108: 1.11 | CV108: 1.1 | CW108: 1.1 | CX108: 1.09 | CY108: 1.09 | CZ108: 1.08 | DA108: 1.08 | DB108: 1.07 | DC108: 1.07 | DD108: 1.06 | DE108: 1.06 | DF108: 1.06 | DG108: 1.05 | DH108: 1.05 | DI108: 1.04 | DJ108: 1.04 | DK108: 1.03 | DL108: 1.03 | DM108: 1.03 | DN108: 1.02 | DO108: 1.02 | DP108: 1.01 | DQ108: 1.01 | DR108: 1.01 | DS108: 1 | DT108: 1
A109: R134a | B109: 44 | C109: 164 | BG109: 1.375941494 | BH109: 1.367990993 | BI109: 1.360007823 | BJ109: 1.352239872 | BK109: 1.344438957 | BL109: 1.336847342 | BM109: 1.329222511 | BN109: 1.321801293 | BO109: 1.314462483 | BP109: 1.307090158 | BQ109: 1.299913351 | BR109: 1.292814925 | BS109: 1.285793603 | BT109: 1.278848135 | BU109: 1.271977298 | BV109: 1.27 | BW109: 1.26 | BX109: 1.26 | BY109: 1.25 | BZ109: 1.24 | CA109: 1.24 | CB109: 1.23 | CC109: 1.22 | CD109: 1.22 | CE109: 1.21 | CF109: 1.21 | CG109: 1.2 | CH109: 1.19 | CI109: 1.19 | CJ109: 1.18 | CK109: 1.18 | CL109: 1.17 | CM109: 1.16 | CN109: 1.16 | CO109: 1.15 | CP109: 1.15 | CQ109: 1.14 | CR109: 1.14 | CS109: 1.13 | CT109: 1.13 | CU109: 1.12 | CV109: 1.12 | CW109: 1.11 | CX109: 1.11 | CY109: 1.1 | CZ109: 1.1 | DA109: 1.09 | DB109: 1.09 | DC109: 1.08 | DD109: 1.08 | DE109: 1.07 | DF109: 1.07 | DG109: 1.06 | DH109: 1.06 | DI109: 1.06 | DJ109: 1.05 | DK109: 1.05 | DL109: 1.04 | DM109: 1.04 | DN109: 1.03 | DO109: 1.03 | DP109: 1.03 | DQ109: 1.02 | DR109: 1.02 | DS109: 1.02 | DT109: 1.01
A110: R134a | B110: 45 | C110: 165 | BG110: 1.398104804 | BH110: 1.389912784 | BI110: 1.381688448 | BJ110: 1.373687127 | BK110: 1.365653135 | BL110: 1.357835931 | BM110: 1.34998575 | BN110: 1.342346381 | BO110: 1.334792985 | BP110: 1.327206239 | BQ110: 1.319821801 | BR110: 1.312519081 | BS110: 1.305296729 | BT110: 1.298153427 | BU110: 1.291087884 | BV110: 1.29 | BW110: 1.28 | BX110: 1.28 | BY110: 1.27 | BZ110: 1.26 | CA110: 1.26 | CB110: 1.25 | CC110: 1.24 | CD110: 1.24 | CE110: 1.23 | CF110: 1.22 | CG110: 1.22 | CH110: 1.21 | CI110: 1.21 | CJ110: 1.2 | CK110: 1.19 | CL110: 1.19 | CM110: 1.18 | CN110: 1.18 | CO110: 1.17 | CP110: 1.16 | CQ110: 1.16 | CR110: 1.15 | CS110: 1.15 | CT110: 1.14 | CU110: 1.14 | CV110: 1.13 | CW110: 1.13 | CX110: 1.12 | CY110: 1.12 | CZ110: 1.11 | DA110: 1.11 | DB110: 1.1 | DC110: 1.1 | DD110: 1.09 | DE110: 1.09 | DF110: 1.08 | DG110: 1.08 | DH110: 1.07 | DI110: 1.07 | DJ110: 1.06 | DK110: 1.06 | DL110: 1.06 | DM110: 1.05 | DN110: 1.05 | DO110: 1.04 | DP110: 1.04 | DQ110: 1.04 | DR110: 1.03 | DS110: 1.03 | DT110: 1.02
A111: R134a | B111: 46 | C111: 166 | BG111: 1.42125268 | BH111: 1.412804815 | BI111: 1.404325071 | BJ111: 1.396076658 | BK111: 1.387795944 | BL111: 1.379740001 | BM111: 1.371651391 | BN111: 1.36378126 | BO111: 1.356000927 | BP111: 1.34818747 | BQ111: 1.340583548 | BR111: 1.333064919 | BS111: 1.325630155 | BT111: 1.318277862 | BU111: 1.311006674 | BV111: 1.31 | BW111: 1.3 | BX111: 1.3 | BY111: 1.29 | BZ111: 1.28 | CA111: 1.28 | CB111: 1.27 | CC111: 1.26 | CD111: 1.25 | CE111: 1.25 | CF111: 1.24 | CG111: 1.24 | CH111: 1.23 | CI111: 1.22 | CJ111: 1.22 | CK111: 1.21 | CL111: 1.2 | CM111: 1.2 | CN111: 1.19 | CO111: 1.19 | CP111: 1.18 | CQ111: 1.17 | CR111: 1.17 | CS111: 1.16 | CT111: 1.16 | CU111: 1.15 | CV111: 1.15 | CW111: 1.14 | CX111: 1.14 | CY111: 1.13 | CZ111: 1.13 | DA111: 1.12 | DB111: 1.12 | DC111: 1.11 | DD111: 1.11 | DE111: 1.1 | DF111: 1.1 | DG111: 1.09 | DH111: 1.09 | DI111: 1.08 | DJ111: 1.08 | DK111: 1.07 | DL111: 1.07 | DM111: 1.07 | DN111: 1.06 | DO111: 1.06 | DP111: 1.05 | DQ111: 1.05 | DR111: 1.04 | DS111: 1.04 | DT111: 1.04
A112: R134a | B112: 47 | C112: 167 | BG112: 1.445100194 | BH112: 1.436384771 | BI112: 1.427637994 | BJ112: 1.419131308 | BK112: 1.410592772 | BL112: 1.402287413 | BM112: 1.393949769 | BN112: 1.385838674 | BO112: 1.377821425 | BP112: 1.369771346 | BQ112: 1.361938397 | BR112: 1.354194523 | BS112: 1.346538214 | BT112: 1.338967992 | BU112: 1.331482414 | BV112: 1.33 | BW112: 1.32 | BX112: 1.32 | BY112: 1.31 | BZ112: 1.3 | CA112: 1.29 | CB112: 1.29 | CC112: 1.28 | CD112: 1.27 | CE112: 1.27 | CF112: 1.26 | CG112: 1.25 | CH112: 1.25 | CI112: 1.24 | CJ112: 1.23 | CK112: 1.23 | CL112: 1.22 | CM112: 1.22 | CN112: 1.21 | CO112: 1.2 | CP112: 1.2 | CQ112: 1.19 | CR112: 1.19 | CS112: 1.18 | CT112: 1.17 | CU112: 1.17 | CV112: 1.16 | CW112: 1.16 | CX112: 1.15 | CY112: 1.15 | CZ112: 1.14 | DA112: 1.14 | DB112: 1.13 | DC112: 1.13 | DD112: 1.12 | DE112: 1.12 | DF112: 1.11 | DG112: 1.11 | DH112: 1.1 | DI112: 1.1 | DJ112: 1.09 | DK112: 1.09 | DL112: 1.08 | DM112: 1.08 | DN112: 1.08 | DO112: 1.07 | DP112: 1.07 | DQ112: 1.06 | DR112: 1.06 | DS112: 1.05 | DT112: 1.05
A113: R134a | B113: 48 | C113: 168 | BG113: 1.46974503 | BH113: 1.460749214 | BI113: 1.451722667 | BJ113: 1.442945457 | BK113: 1.434136938 | BL113: 1.425570462 | BM113: 1.416972166 | BN113: 1.408608924 | BO113: 1.400343826 | BP113: 1.39204626 | BQ113: 1.383973827 | BR113: 1.375994478 | BS113: 1.368106611 | BT113: 1.360308664 | BU113: 1.352599106 | BV113: 1.35 | BW113: 1.35 | BX113: 1.34 | BY113: 1.33 | BZ113: 1.32 | CA113: 1.32 | CB113: 1.31 | CC113: 1.3 | CD113: 1.29 | CE113: 1.29 | CF113: 1.28 | CG113: 1.27 | CH113: 1.27 | CI113: 1.26 | CJ113: 1.25 | CK113: 1.25 | CL113: 1.24 | CM113: 1.23 | CN113: 1.23 | CO113: 1.22 | CP113: 1.22 | CQ113: 1.21 | CR113: 1.2 | CS113: 1.2 | CT113: 1.19 | CU113: 1.19 | CV113: 1.18 | CW113: 1.17 | CX113: 1.17 | CY113: 1.16 | CZ113: 1.16 | DA113: 1.15 | DB113: 1.15 | DC113: 1.14 | DD113: 1.14 | DE113: 1.13 | DF113: 1.13 | DG113: 1.12 | DH113: 1.12 | DI113: 1.11 | DJ113: 1.11 | DK113: 1.1 | DL113: 1.1 | DM113: 1.09 | DN113: 1.09 | DO113: 1.09 | DP113: 1.08 | DQ113: 1.08 | DR113: 1.07 | DS113: 1.07 | DT113: 1.06
A114: R134a | B114: 49 | C114: 169 | BG114: 1.49530579 | BH114: 1.486014512 | BI114: 1.476693241 | BJ114: 1.467631126 | BK114: 1.458538349 | BL114: 1.449697021 | BM114: 1.440824437 | BN114: 1.432195926 | BO114: 1.423670145 | BP114: 1.415112345 | BQ114: 1.406788155 | BR114: 1.398561324 | BS114: 1.390430153 | BT114: 1.382392985 | BU114: 1.374448198 | BV114: 1.37 | BW114: 1.37 | BX114: 1.36 | BY114: 1.35 | BZ114: 1.34 | CA114: 1.34 | CB114: 1.33 | CC114: 1.32 | CD114: 1.31 | CE114: 1.31 | CF114: 1.3 | CG114: 1.29 | CH114: 1.29 | CI114: 1.28 | CJ114: 1.27 | CK114: 1.27 | CL114: 1.26 | CM114: 1.25 | CN114: 1.25 | CO114: 1.24 | CP114: 1.23 | CQ114: 1.23 | CR114: 1.22 | CS114: 1.21 | CT114: 1.21 | CU114: 1.2 | CV114: 1.2 | CW114: 1.19 | CX114: 1.19 | CY114: 1.18 | CZ114: 1.17 | DA114: 1.17 | DB114: 1.16 | DC114: 1.16 | DD114: 1.15 | DE114: 1.15 | DF114: 1.14 | DG114: 1.14 | DH114: 1.13 | DI114: 1.13 | DJ114: 1.12 | DK114: 1.12 | DL114: 1.11 | DM114: 1.11 | DN114: 1.1 | DO114: 1.1 | DP114: 1.1 | DQ114: 1.09 | DR114: 1.09 | DS114: 1.08 | DT114: 1.08
A115: R134a | B115: 50 | C115: 170 | BG115: 1.521833059 | BH115: 1.512230146 | BI115: 1.502598107 | BJ115: 1.493235662 | BK115: 1.48384332 | BL115: 1.474712423 | BM115: 1.46555094 | BN115: 1.456643105 | BO115: 1.447842902 | BP115: 1.439011226 | BQ115: 1.430422149 | BR115: 1.421934995 | BS115: 1.413547962 | BT115: 1.405259287 | BU115: 1.397067251 | BV115: 1.4 | BW115: 1.39 | BX115: 1.38 | BY115: 1.37 | BZ115: 1.37 | CA115: 1.36 | CB115: 1.35 | CC115: 1.34 | CD115: 1.33 | CE115: 1.33 | CF115: 1.32 | CG115: 1.31 | CH115: 1.31 | CI115: 1.3 | CJ115: 1.29 | CK115: 1.28 | CL115: 1.28 | CM115: 1.27 | CN115: 1.26 | CO115: 1.26 | CP115: 1.25 | CQ115: 1.25 | CR115: 1.24 | CS115: 1.23 | CT115: 1.23 | CU115: 1.22 | CV115: 1.21 | CW115: 1.21 | CX115: 1.2 | CY115: 1.2 | CZ115: 1.19 | DA115: 1.19 | DB115: 1.18 | DC115: 1.18 | DD115: 1.17 | DE115: 1.16 | DF115: 1.16 | DG115: 1.15 | DH115: 1.15 | DI115: 1.14 | DJ115: 1.14 | DK115: 1.13 | DL115: 1.13 | DM115: 1.12 | DN115: 1.12 | DO115: 1.12 | DP115: 1.11 | DQ115: 1.11 | DR115: 1.1 | DS115: 1.1 | DT115: 1.09
A116: R134a | B116: 51 | C116: 171 | BG116: 1.5494518 | BH116: 1.539519416 | BI116: 1.529558919 | BJ116: 1.519879138 | BK116: 1.510170359 | BL116: 1.500733666 | BM116: 1.491267181 | BN116: 1.482064534 | BO116: 1.472974769 | BP116: 1.463854182 | BQ116: 1.454985751 | BR116: 1.446224128 | BS116: 1.437567394 | BT116: 1.429013678 | BU116: 1.420561151 | BV116: 1.42 | BW116: 1.41 | BX116: 1.4 | BY116: 1.4 | BZ116: 1.39 | CA116: 1.38 | CB116: 1.37 | CC116: 1.36 | CD116: 1.36 | CE116: 1.35 | CF116: 1.34 | CG116: 1.33 | CH116: 1.33 | CI116: 1.32 | CJ116: 1.31 | CK116: 1.31 | CL116: 1.3 | CM116: 1.29 | CN116: 1.28 | CO116: 1.28 | CP116: 1.27 | CQ116: 1.26 | CR116: 1.26 | CS116: 1.25 | CT116: 1.25 | CU116: 1.24 | CV116: 1.23 | CW116: 1.23 | CX116: 1.22 | CY116: 1.22 | CZ116: 1.21 | DA116: 1.2 | DB116: 1.2 | DC116: 1.19 | DD116: 1.19 | DE116: 1.18 | DF116: 1.18 | DG116: 1.17 | DH116: 1.17 | DI116: 1.16 | DJ116: 1.16 | DK116: 1.15 | DL116: 1.15 | DM116: 1.14 | DN116: 1.14 | DO116: 1.13 | DP116: 1.13 | DQ116: 1.12 | DR116: 1.12 | DS116: 1.11 | DT116: 1.11
A117: R134a | B117: 52 | C117: 172 | BG117: 1.577988963 | BH117: 1.567710499 | BI117: 1.557405089 | BJ117: 1.547392177 | BK117: 1.537351307 | BL117: 1.527593788 | BM117: 1.517807402 | BN117: 1.508295627 | BO117: 1.498902327 | BP117: 1.489478973 | BQ117: 1.48031787 | BR117: 1.47126877 | BS117: 1.462329631 | BT117: 1.453498461 | BU117: 1.444773315 | BV117: 1.45 | BW117: 1.44 | BX117: 1.43 | BY117: 1.42 | BZ117: 1.41 | CA117: 1.4 | CB117: 1.4 | CC117: 1.39 | CD117: 1.38 | CE117: 1.37 | CF117: 1.36 | CG117: 1.36 | CH117: 1.35 | CI117: 1.34 | CJ117: 1.33 | CK117: 1.33 | CL117: 1.32 | CM117: 1.31 | CN117: 1.3 | CO117: 1.3 | CP117: 1.29 | CQ117: 1.28 | CR117: 1.28 | CS117: 1.27 | CT117: 1.26 | CU117: 1.26 | CV117: 1.25 | CW117: 1.25 | CX117: 1.24 | CY117: 1.23 | CZ117: 1.23 | DA117: 1.22 | DB117: 1.22 | DC117: 1.21 | DD117: 1.2 | DE117: 1.2 | DF117: 1.19 | DG117: 1.19 | DH117: 1.18 | DI117: 1.18 | DJ117: 1.17 | DK117: 1.17 | DL117: 1.16 | DM117: 1.16 | DN117: 1.15 | DO117: 1.15 | DP117: 1.14 | DQ117: 1.14 | DR117: 1.13 | DS117: 1.13 | DT117: 1.12
A118: R134a | B118: 53 | C118: 173 | BG118: 1.607734197 | BH118: 1.597089189 | BI118: 1.586418585 | BJ118: 1.576053063 | BK118: 1.56566079 | BL118: 1.555563889 | BM118: 1.545439198 | BN118: 1.535600609 | BO118: 1.525886498 | BP118: 1.516143234 | BQ118: 1.506672975 | BR118: 1.497320291 | BS118: 1.488083003 | BT118: 1.478958991 | BU118: 1.469946182 | BV118: 1.47 | BW118: 1.46 | BX118: 1.45 | BY118: 1.44 | BZ118: 1.44 | CA118: 1.43 | CB118: 1.42 | CC118: 1.41 | CD118: 1.4 | CE118: 1.39 | CF118: 1.39 | CG118: 1.38 | CH118: 1.37 | CI118: 1.36 | CJ118: 1.36 | CK118: 1.35 | CL118: 1.34 | CM118: 1.33 | CN118: 1.33 | CO118: 1.32 | CP118: 1.31 | CQ118: 1.3 | CR118: 1.3 | CS118: 1.29 | CT118: 1.28 | CU118: 1.28 | CV118: 1.27 | CW118: 1.26 | CX118: 1.26 | CY118: 1.25 | CZ118: 1.25 | DA118: 1.24 | DB118: 1.23 | DC118: 1.23 | DD118: 1.22 | DE118: 1.22 | DF118: 1.21 | DG118: 1.21 | DH118: 1.2 | DI118: 1.19 | DJ118: 1.19 | DK118: 1.18 | DL118: 1.18 | DM118: 1.17 | DN118: 1.17 | DO118: 1.16 | DP118: 1.16 | DQ118: 1.15 | DR118: 1.15 | DS118: 1.14 | DT118: 1.14
A119: R134a | B119: 54 | C119: 174 | BG119: 1.638760071 | BH119: 1.627726419 | BI119: 1.61666873 | BJ119: 1.605929576 | BK119: 1.595165071 | BL119: 1.584708782 | BM119: 1.574225954 | BN119: 1.564041497 | BO119: 1.553987971 | BP119: 1.543906346 | BQ119: 1.534109196 | BR119: 1.524435602 | BS119: 1.514883241 | BT119: 1.505449847 | BU119: 1.496133212 | BV119: 1.5 | BW119: 1.49 | BX119: 1.48 | BY119: 1.47 | BZ119: 1.46 | CA119: 1.45 | CB119: 1.44 | CC119: 1.43 | CD119: 1.43 | CE119: 1.42 | CF119: 1.41 | CG119: 1.4 | CH119: 1.39 | CI119: 1.39 | CJ119: 1.38 | CK119: 1.37 | CL119: 1.36 | CM119: 1.35 | CN119: 1.35 | CO119: 1.34 | CP119: 1.33 | CQ119: 1.33 | CR119: 1.32 | CS119: 1.31 | CT119: 1.3 | CU119: 1.3 | CV119: 1.29 | CW119: 1.28 | CX119: 1.28 | CY119: 1.27 | CZ119: 1.27 | DA119: 1.26 | DB119: 1.25 | DC119: 1.25 | DD119: 1.24 | DE119: 1.23 | DF119: 1.23 | DG119: 1.22 | DH119: 1.22 | DI119: 1.21 | DJ119: 1.21 | DK119: 1.2 | DL119: 1.2 | DM119: 1.19 | DN119: 1.19 | DO119: 1.18 | DP119: 1.17 | DQ119: 1.17 | DR119: 1.16 | DS119: 1.16 | DT119: 1.16
A120: R134a | B120: 55 | C120: 175 | BG120: 1.670884668 | BH120: 1.659441497 | BI120: 1.647976069 | BJ120: 1.636843484 | BK120: 1.625687149 | BL120: 1.614852674 | BM120: 1.6039931 | BN120: 1.59344492 | BO120: 1.583034567 | BP120: 1.572597335 | BQ120: 1.562456738 | BR120: 1.552446083 | BS120: 1.542562887 | BT120: 1.532804732 | BU120: 1.523169261 | BV120: 1.53 | BW120: 1.52 | BX120: 1.51 | BY120: 1.5 | BZ120: 1.49 | CA120: 1.48 | CB120: 1.47 | CC120: 1.46 | CD120: 1.45 | CE120: 1.44 | CF120: 1.43 | CG120: 1.43 | CH120: 1.42 | CI120: 1.41 | CJ120: 1.4 | CK120: 1.39 | CL120: 1.39 | CM120: 1.38 | CN120: 1.37 | CO120: 1.36 | CP120: 1.35 | CQ120: 1.35 | CR120: 1.34 | CS120: 1.33 | CT120: 1.33 | CU120: 1.32 | CV120: 1.31 | CW120: 1.31 | CX120: 1.3 | CY120: 1.29 | CZ120: 1.29 | DA120: 1.28 | DB120: 1.27 | DC120: 1.27 | DD120: 1.26 | DE120: 1.25 | DF120: 1.25 | DG120: 1.24 | DH120: 1.24 | DI120: 1.23 | DJ120: 1.22 | DK120: 1.22 | DL120: 1.21 | DM120: 1.21 | DN120: 1.2 | DO120: 1.2 | DP120: 1.19 | DQ120: 1.19 | DR120: 1.18 | DS120: 1.18 | DT120: 1.17
A121: R134a | B121: 56 | C121: 176 | BG121: 1.70435613 | BH121: 1.692478427 | BI121: 1.680580511 | BJ121: 1.66903076 | BK121: 1.657459103 | BL121: 1.646223905 | BM121: 1.634965268 | BN121: 1.624031947 | BO121: 1.613243882 | BP121: 1.602430349 | BQ121: 1.591926436 | BR121: 1.581559332 | BS121: 1.571326381 | BT121: 1.561224998 | BU121: 1.551252659 | BV121: 1.55 | BW121: 1.54 | BX121: 1.53 | BY121: 1.52 | BZ121: 1.51 | CA121: 1.5 | CB121: 1.5 | CC121: 1.49 | CD121: 1.48 | CE121: 1.47 | CF121: 1.46 | CG121: 1.45 | CH121: 1.44 | CI121: 1.43 | CJ121: 1.43 | CK121: 1.42 | CL121: 1.41 | CM121: 1.4 | CN121: 1.39 | CO121: 1.39 | CP121: 1.38 | CQ121: 1.37 | CR121: 1.36 | CS121: 1.35 | CT121: 1.35 | CU121: 1.34 | CV121: 1.33 | CW121: 1.33 | CX121: 1.32 | CY121: 1.31 | CZ121: 1.31 | DA121: 1.3 | DB121: 1.29 | DC121: 1.29 | DD121: 1.28 | DE121: 1.27 | DF121: 1.27 | DG121: 1.26 | DH121: 1.26 | DI121: 1.25 | DJ121: 1.24 | DK121: 1.24 | DL121: 1.23 | DM121: 1.23 | DN121: 1.22 | DO121: 1.22 | DP121: 1.21 | DQ121: 1.2 | DR121: 1.2 | DS121: 1.19 | DT121: 1.19
A122: R134a | B122: 57 | C122: 177 | BG122: 1.739421815 | BH122: 1.727081323 | BI122: 1.714722959 | BJ122: 1.702729227 | BK122: 1.690715703 | BL122: 1.679054319 | BM122: 1.667371401 | BN122: 1.656028738 | BO122: 1.644839355 | BP122: 1.633626134 | BQ122: 1.622736445 | BR122: 1.611990976 | BS122: 1.60138688 | BT122: 1.590921384 | BU122: 1.580591791 | BV122: 1.58 | BW122: 1.57 | BX122: 1.56 | BY122: 1.55 | BZ122: 1.54 | CA122: 1.53 | CB122: 1.52 | CC122: 1.51 | CD122: 1.5 | CE122: 1.49 | CF122: 1.49 | CG122: 1.48 | CH122: 1.47 | CI122: 1.46 | CJ122: 1.45 | CK122: 1.44 | CL122: 1.43 | CM122: 1.43 | CN122: 1.42 | CO122: 1.41 | CP122: 1.4 | CQ122: 1.39 | CR122: 1.39 | CS122: 1.38 | CT122: 1.37 | CU122: 1.36 | CV122: 1.36 | CW122: 1.35 | CX122: 1.34 | CY122: 1.33 | CZ122: 1.33 | DA122: 1.32 | DB122: 1.31 | DC122: 1.31 | DD122: 1.3 | DE122: 1.29 | DF122: 1.29 | DG122: 1.28 | DH122: 1.28 | DI122: 1.27 | DJ122: 1.26 | DK122: 1.26 | DL122: 1.25 | DM122: 1.25 | DN122: 1.24 | DO122: 1.23 | DP122: 1.23 | DQ122: 1.22 | DR122: 1.22 | DS122: 1.21 | DT122: 1.21
A123: R134a | B123: 58 | C123: 178 | BG123: 1.776019115 | BH123: 1.763186313 | BI123: 1.75033832 | BJ123: 1.73787265 | BK123: 1.725389614 | BL123: 1.713275545 | BM123: 1.701142134 | BN123: 1.689364996 | BO123: 1.677749805 | BP123: 1.666112655 | BQ123: 1.654813936 | BR123: 1.643667429 | BS123: 1.632670079 | BT123: 1.621818912 | BU123: 1.611111032 | BV123: 1.61 | BW123: 1.6 | BX123: 1.59 | BY123: 1.58 | BZ123: 1.57 | CA123: 1.56 | CB123: 1.55 | CC123: 1.54 | CD123: 1.53 | CE123: 1.52 | CF123: 1.51 | CG123: 1.5 | CH123: 1.49 | CI123: 1.49 | CJ123: 1.48 | CK123: 1.47 | CL123: 1.46 | CM123: 1.45 | CN123: 1.44 | CO123: 1.43 | CP123: 1.43 | CQ123: 1.42 | CR123: 1.41 | CS123: 1.4 | CT123: 1.39 | CU123: 1.39 | CV123: 1.38 | CW123: 1.37 | CX123: 1.36 | CY123: 1.36 | CZ123: 1.35 | DA123: 1.34 | DB123: 1.34 | DC123: 1.33 | DD123: 1.32 | DE123: 1.32 | DF123: 1.31 | DG123: 1.3 | DH123: 1.3 | DI123: 1.29 | DJ123: 1.28 | DK123: 1.28 | DL123: 1.27 | DM123: 1.27 | DN123: 1.26 | DO123: 1.25 | DP123: 1.25 | DQ123: 1.24 | DR123: 1.24 | DS123: 1.23 | DT123: 1.23
A124: R134a | B124: 59 | C124: 179 | BG124: 1.814034854 | BH124: 1.800680777 | BI124: 1.787314554 | BJ124: 1.774349578 | BK124: 1.761369995 | BL124: 1.748777359 | BM124: 1.736167878 | BN124: 1.723931769 | BO124: 1.711866928 | BP124: 1.699782273 | BQ124: 1.688051932 | BR124: 1.676482385 | BS124: 1.66507035 | BT124: 1.65381263 | BU124: 1.642706117 | BV124: 1.65 | BW124: 1.63 | BX124: 1.62 | BY124: 1.61 | BZ124: 1.6 | CA124: 1.59 | CB124: 1.58 | CC124: 1.57 | CD124: 1.56 | CE124: 1.55 | CF124: 1.54 | CG124: 1.53 | CH124: 1.52 | CI124: 1.51 | CJ124: 1.5 | CK124: 1.49 | CL124: 1.49 | CM124: 1.48 | CN124: 1.47 | CO124: 1.46 | CP124: 1.45 | CQ124: 1.44 | CR124: 1.43 | CS124: 1.43 | CT124: 1.42 | CU124: 1.41 | CV124: 1.4 | CW124: 1.39 | CX124: 1.39 | CY124: 1.38 | CZ124: 1.37 | DA124: 1.37 | DB124: 1.36 | DC124: 1.35 | DD124: 1.34 | DE124: 1.34 | DF124: 1.33 | DG124: 1.32 | DH124: 1.32 | DI124: 1.31 | DJ124: 1.3 | DK124: 1.3 | DL124: 1.29 | DM124: 1.29 | DN124: 1.28 | DO124: 1.27 | DP124: 1.27 | DQ124: 1.26 | DR124: 1.26 | DS124: 1.25 | DT124: 1.24
A125: R134a | B125: 60 | C125: 180 | BG125: 1.853862087 | BH125: 1.839951497 | BI125: 1.826032243 | BJ125: 1.812534644 | BK125: 1.799025594 | BL125: 1.785922864 | BM125: 1.772806148 | BN125: 1.760081209 | BO125: 1.747537644 | BP125: 1.734976726 | BQ125: 1.722787194 | BR125: 1.710767749 | BS125: 1.698914854 | BT125: 1.687225073 | BU125: 1.675695061 | BV125: 1.68 | BW125: 1.67 | BX125: 1.66 | BY125: 1.65 | BZ125: 1.63 | CA125: 1.62 | CB125: 1.61 | CC125: 1.6 | CD125: 1.59 | CE125: 1.58 | CF125: 1.57 | CG125: 1.56 | CH125: 1.55 | CI125: 1.54 | CJ125: 1.53 | CK125: 1.52 | CL125: 1.51 | CM125: 1.5 | CN125: 1.49 | CO125: 1.49 | CP125: 1.48 | CQ125: 1.47 | CR125: 1.46 | CS125: 1.45 | CT125: 1.44 | CU125: 1.44 | CV125: 1.43 | CW125: 1.42 | CX125: 1.41 | CY125: 1.4 | CZ125: 1.4 | DA125: 1.39 | DB125: 1.38 | DC125: 1.37 | DD125: 1.37 | DE125: 1.36 | DF125: 1.35 | DG125: 1.35 | DH125: 1.34 | DI125: 1.33 | DJ125: 1.33 | DK125: 1.32 | DL125: 1.31 | DM125: 1.31 | DN125: 1.3 | DO125: 1.29 | DP125: 1.29 | DQ125: 1.28 | DR125: 1.28 | DS125: 1.27 | DT125: 1.26
A126: R134a | B126: 61 | C126: 181 | BV126: 1.71 | BW126: 1.7 | BX126: 1.69 | BY126: 1.68 | BZ126: 1.67 | CA126: 1.66 | CB126: 1.64 | CC126: 1.63 | CD126: 1.62 | CE126: 1.61 | CF126: 1.6 | CG126: 1.59 | CH126: 1.58 | CI126: 1.57 | CJ126: 1.56 | CK126: 1.55 | CL126: 1.54 | CM126: 1.53 | CN126: 1.52 | CO126: 1.51 | CP126: 1.5 | CQ126: 1.5 | CR126: 1.49 | CS126: 1.48 | CT126: 1.47 | CU126: 1.46 | CV126: 1.45 | CW126: 1.44 | CX126: 1.44 | CY126: 1.43 | CZ126: 1.42 | DA126: 1.41 | DB126: 1.41 | DC126: 1.4 | DD126: 1.39 | DE126: 1.38 | DF126: 1.38 | DG126: 1.37 | DH126: 1.36 | DI126: 1.35 | DJ126: 1.35 | DK126: 1.34 | DL126: 1.33 | DM126: 1.33 | DN126: 1.32 | DO126: 1.32 | DP126: 1.31 | DQ126: 1.3 | DR126: 1.3 | DS126: 1.29 | DT126: 1.29
A127: R134a | B127: 62 | C127: 182 | BV127: 1.75 | BW127: 1.74 | BX127: 1.73 | BY127: 1.71 | BZ127: 1.7 | CA127: 1.69 | CB127: 1.68 | CC127: 1.67 | CD127: 1.66 | CE127: 1.64 | CF127: 1.63 | CG127: 1.62 | CH127: 1.61 | CI127: 1.6 | CJ127: 1.59 | CK127: 1.58 | CL127: 1.57 | CM127: 1.56 | CN127: 1.55 | CO127: 1.54 | CP127: 1.53 | CQ127: 1.52 | CR127: 1.51 | CS127: 1.51 | CT127: 1.5 | CU127: 1.49 | CV127: 1.48 | CW127: 1.47 | CX127: 1.46 | CY127: 1.45 | CZ127: 1.45 | DA127: 1.44 | DB127: 1.43 | DC127: 1.42 | DD127: 1.41 | DE127: 1.41 | DF127: 1.4 | DG127: 1.39 | DH127: 1.39 | DI127: 1.38 | DJ127: 1.37 | DK127: 1.36 | DL127: 1.36 | DM127: 1.35 | DN127: 1.34 | DO127: 1.34 | DP127: 1.33 | DQ127: 1.32 | DR127: 1.32 | DS127: 1.31 | DT127: 1.31
A128: R134a | B128: 63 | C128: 183 | BV128: 1.79 | BW128: 1.78 | BX128: 1.76 | BY128: 1.75 | BZ128: 1.74 | CA128: 1.73 | CB128: 1.71 | CC128: 1.7 | CD128: 1.69 | CE128: 1.68 | CF128: 1.67 | CG128: 1.66 | CH128: 1.65 | CI128: 1.63 | CJ128: 1.62 | CK128: 1.61 | CL128: 1.6 | CM128: 1.59 | CN128: 1.58 | CO128: 1.57 | CP128: 1.56 | CQ128: 1.55 | CR128: 1.54 | CS128: 1.53 | CT128: 1.53 | CU128: 1.52 | CV128: 1.51 | CW128: 1.5 | CX128: 1.49 | CY128: 1.48 | CZ128: 1.47 | DA128: 1.46 | DB128: 1.46 | DC128: 1.45 | DD128: 1.44 | DE128: 1.43 | DF128: 1.43 | DG128: 1.42 | DH128: 1.41 | DI128: 1.4 | DJ128: 1.4 | DK128: 1.39 | DL128: 1.38 | DM128: 1.37 | DN128: 1.37 | DO128: 1.36 | DP128: 1.35 | DQ128: 1.35 | DR128: 1.34 | DS128: 1.33 | DT128: 1.33
A129: R134a | B129: 64 | C129: 184 | BV129: 1.83 | BW129: 1.82 | BX129: 1.8 | BY129: 1.79 | BZ129: 1.78 | CA129: 1.76 | CB129: 1.75 | CC129: 1.74 | CD129: 1.73 | CE129: 1.71 | CF129: 1.7 | CG129: 1.69 | CH129: 1.68 | CI129: 1.67 | CJ129: 1.66 | CK129: 1.65 | CL129: 1.64 | CM129: 1.62 | CN129: 1.61 | CO129: 1.6 | CP129: 1.59 | CQ129: 1.58 | CR129: 1.57 | CS129: 1.56 | CT129: 1.55 | CU129: 1.55 | CV129: 1.54 | CW129: 1.53 | CX129: 1.52 | CY129: 1.51 | CZ129: 1.5 | DA129: 1.49 | DB129: 1.48 | DC129: 1.48 | DD129: 1.47 | DE129: 1.46 | DF129: 1.45 | DG129: 1.44 | DH129: 1.44 | DI129: 1.43 | DJ129: 1.42 | DK129: 1.41 | DL129: 1.41 | DM129: 1.4 | DN129: 1.39 | DO129: 1.38 | DP129: 1.38 | DQ129: 1.37 | DR129: 1.36 | DS129: 1.36 | DT129: 1.35
A130: R134a | B130: 65 | C130: 185 | BV130: 1.87 | BW130: 1.86 | BX130: 1.84 | BY130: 1.83 | BZ130: 1.82 | CA130: 1.8 | CB130: 1.79 | CC130: 1.78 | CD130: 1.76 | CE130: 1.75 | CF130: 1.74 | CG130: 1.73 | CH130: 1.72 | CI130: 1.7 | CJ130: 1.69 | CK130: 1.68 | CL130: 1.67 | CM130: 1.66 | CN130: 1.65 | CO130: 1.64 | CP130: 1.63 | CQ130: 1.62 | CR130: 1.61 | CS130: 1.6 | CT130: 1.59 | CU130: 1.58 | CV130: 1.57 | CW130: 1.56 | CX130: 1.55 | CY130: 1.54 | CZ130: 1.53 | DA130: 1.52 | DB130: 1.51 | DC130: 1.5 | DD130: 1.49 | DE130: 1.49 | DF130: 1.48 | DG130: 1.47 | DH130: 1.46 | DI130: 1.45 | DJ130: 1.45 | DK130: 1.44 | DL130: 1.43 | DM130: 1.42 | DN130: 1.42 | DO130: 1.41 | DP130: 1.4 | DQ130: 1.4 | DR130: 1.39 | DS130: 1.38 | DT130: 1.38
A131: R134a | B131: 66 | C131: 186 | BV131: 1.92 | BW131: 1.9 | BX131: 1.89 | BY131: 1.87 | BZ131: 1.86 | CA131: 1.84 | CB131: 1.83 | CC131: 1.82 | CD131: 1.8 | CE131: 1.79 | CF131: 1.78 | CG131: 1.76 | CH131: 1.75 | CI131: 1.74 | CJ131: 1.73 | CK131: 1.72 | CL131: 1.7 | CM131: 1.69 | CN131: 1.68 | CO131: 1.67 | CP131: 1.66 | CQ131: 1.65 | CR131: 1.64 | CS131: 1.63 | CT131: 1.62 | CU131: 1.61 | CV131: 1.6 | CW131: 1.59 | CX131: 1.58 | CY131: 1.57 | CZ131: 1.56 | DA131: 1.55 | DB131: 1.54 | DC131: 1.53 | DD131: 1.52 | DE131: 1.52 | DF131: 1.51 | DG131: 1.5 | DH131: 1.49 | DI131: 1.48 | DJ131: 1.47 | DK131: 1.47 | DL131: 1.46 | DM131: 1.45 | DN131: 1.44 | DO131: 1.44 | DP131: 1.43 | DQ131: 1.42 | DR131: 1.41 | DS131: 1.41 | DT131: 1.4
A132: R134a | B132: 67 | C132: 187 | BV132: 1.96 | BW132: 1.95 | BX132: 1.93 | BY132: 1.92 | BZ132: 1.9 | CA132: 1.89 | CB132: 1.87 | CC132: 1.86 | CD132: 1.84 | CE132: 1.83 | CF132: 1.82 | CG132: 1.8 | CH132: 1.79 | CI132: 1.78 | CJ132: 1.77 | CK132: 1.75 | CL132: 1.74 | CM132: 1.73 | CN132: 1.72 | CO132: 1.71 | CP132: 1.7 | CQ132: 1.68 | CR132: 1.67 | CS132: 1.66 | CT132: 1.65 | CU132: 1.64 | CV132: 1.63 | CW132: 1.62 | CX132: 1.61 | CY132: 1.6 | CZ132: 1.59 | DA132: 1.58 | DB132: 1.57 | DC132: 1.56 | DD132: 1.55 | DE132: 1.54 | DF132: 1.54 | DG132: 1.53 | DH132: 1.52 | DI132: 1.51 | DJ132: 1.5 | DK132: 1.49 | DL132: 1.49 | DM132: 1.48 | DN132: 1.47 | DO132: 1.46 | DP132: 1.45 | DQ132: 1.45 | DR132: 1.44 | DS132: 1.43 | DT132: 1.43
A133: R134a | B133: 68 | C133: 188 | BV133: 2.01 | BW133: 1.99 | BX133: 1.98 | BY133: 1.96 | BZ133: 1.95 | CA133: 1.93 | CB133: 1.92 | CC133: 1.9 | CD133: 1.89 | CE133: 1.87 | CF133: 1.86 | CG133: 1.85 | CH133: 1.83 | CI133: 1.82 | CJ133: 1.81 | CK133: 1.79 | CL133: 1.78 | CM133: 1.77 | CN133: 1.76 | CO133: 1.74 | CP133: 1.73 | CQ133: 1.72 | CR133: 1.71 | CS133: 1.7 | CT133: 1.69 | CU133: 1.68 | CV133: 1.67 | CW133: 1.65 | CX133: 1.64 | CY133: 1.63 | CZ133: 1.62 | DA133: 1.61 | DB133: 1.6 | DC133: 1.59 | DD133: 1.59 | DE133: 1.58 | DF133: 1.57 | DG133: 1.56 | DH133: 1.55 | DI133: 1.54 | DJ133: 1.53 | DK133: 1.52 | DL133: 1.51 | DM133: 1.51 | DN133: 1.5 | DO133: 1.49 | DP133: 1.48 | DQ133: 1.47 | DR133: 1.47 | DS133: 1.46 | DT133: 1.45
A134: R134a | B134: 69 | C134: 189 | BV134: 2.06 | BW134: 2.04 | BX134: 2.03 | BY134: 2.01 | BZ134: 2 | CA134: 1.98 | CB134: 1.96 | CC134: 1.95 | CD134: 1.93 | CE134: 1.92 | CF134: 1.9 | CG134: 1.89 | CH134: 1.88 | CI134: 1.86 | CJ134: 1.85 | CK134: 1.84 | CL134: 1.82 | CM134: 1.81 | CN134: 1.8 | CO134: 1.78 | CP134: 1.77 | CQ134: 1.76 | CR134: 1.75 | CS134: 1.74 | CT134: 1.72 | CU134: 1.71 | CV134: 1.7 | CW134: 1.69 | CX134: 1.68 | CY134: 1.67 | CZ134: 1.66 | DA134: 1.65 | DB134: 1.64 | DC134: 1.63 | DD134: 1.62 | DE134: 1.61 | DF134: 1.6 | DG134: 1.59 | DH134: 1.58 | DI134: 1.57 | DJ134: 1.56 | DK134: 1.55 | DL134: 1.54 | DM134: 1.54 | DN134: 1.53 | DO134: 1.52 | DP134: 1.51 | DQ134: 1.5 | DR134: 1.5 | DS134: 1.49 | DT134: 1.48
A135: R134a | B135: 70 | C135: 190 | BV135: 2.12 | BW135: 2.1 | BX135: 2.08 | BY135: 2.06 | BZ135: 2.05 | CA135: 2.03 | CB135: 2.01 | CC135: 2 | CD135: 1.98 | CE135: 1.97 | CF135: 1.95 | CG135: 1.94 | CH135: 1.92 | CI135: 1.91 | CJ135: 1.89 | CK135: 1.88 | CL135: 1.86 | CM135: 1.85 | CN135: 1.84 | CO135: 1.82 | CP135: 1.81 | CQ135: 1.8 | CR135: 1.79 | CS135: 1.77 | CT135: 1.76 | CU135: 1.75 | CV135: 1.74 | CW135: 1.73 | CX135: 1.72 | CY135: 1.71 | CZ135: 1.69 | DA135: 1.68 | DB135: 1.67 | DC135: 1.66 | DD135: 1.65 | DE135: 1.64 | DF135: 1.63 | DG135: 1.62 | DH135: 1.61 | DI135: 1.6 | DJ135: 1.59 | DK135: 1.59 | DL135: 1.58 | DM135: 1.57 | DN135: 1.56 | DO135: 1.55 | DP135: 1.54 | DQ135: 1.53 | DR135: 1.53 | DS135: 1.52 | DT135: 1.51
A136: R134a | B136: 71 | C136: 191 | BV136: 2.17 | BW136: 2.16 | BX136: 2.14 | BY136: 2.12 | BZ136: 2.1 | CA136: 2.08 | CB136: 2.07 | CC136: 2.05 | CD136: 2.03 | CE136: 2.02 | CF136: 2 | CG136: 1.98 | CH136: 1.97 | CI136: 1.95 | CJ136: 1.94 | CK136: 1.92 | CL136: 1.91 | CM136: 1.9 | CN136: 1.88 | CO136: 1.87 | CP136: 1.86 | CQ136: 1.84 | CR136: 1.83 | CS136: 1.82 | CT136: 1.8 | CU136: 1.79 | CV136: 1.78 | CW136: 1.77 | CX136: 1.76 | CY136: 1.74 | CZ136: 1.73 | DA136: 1.72 | DB136: 1.71 | DC136: 1.7 | DD136: 1.69 | DE136: 1.68 | DF136: 1.67 | DG136: 1.66 | DH136: 1.65 | DI136: 1.64 | DJ136: 1.63 | DK136: 1.62 | DL136: 1.61 | DM136: 1.6 | DN136: 1.59 | DO136: 1.58 | DP136: 1.57 | DQ136: 1.56 | DR136: 1.56 | DS136: 1.55 | DT136: 1.54
A137: R134a | B137: 72 | C137: 192 | BV137: 2.24 | BW137: 2.22 | BX137: 2.2 | BY137: 2.18 | BZ137: 2.16 | CA137: 2.14 | CB137: 2.12 | CC137: 2.1 | CD137: 2.09 | CE137: 2.07 | CF137: 2.05 | CG137: 2.04 | CH137: 2.02 | CI137: 2 | CJ137: 1.99 | CK137: 1.97 | CL137: 1.96 | CM137: 1.94 | CN137: 1.93 | CO137: 1.91 | CP137: 1.9 | CQ137: 1.89 | CR137: 1.87 | CS137: 1.86 | CT137: 1.85 | CU137: 1.83 | CV137: 1.82 | CW137: 1.81 | CX137: 1.8 | CY137: 1.78 | CZ137: 1.77 | DA137: 1.76 | DB137: 1.75 | DC137: 1.74 | DD137: 1.73 | DE137: 1.72 | DF137: 1.7 | DG137: 1.69 | DH137: 1.68 | DI137: 1.67 | DJ137: 1.66 | DK137: 1.65 | DL137: 1.64 | DM137: 1.63 | DN137: 1.63 | DO137: 1.62 | DP137: 1.61 | DQ137: 1.6 | DR137: 1.59 | DS137: 1.58 | DT137: 1.57
A138: R134a | B138: 73 | C138: 193 | BV138: 2.3 | BW138: 2.28 | BX138: 2.26 | BY138: 2.24 | BZ138: 2.22 | CA138: 2.2 | CB138: 2.18 | CC138: 2.16 | CD138: 2.14 | CE138: 2.13 | CF138: 2.11 | CG138: 2.09 | CH138: 2.07 | CI138: 2.06 | CJ138: 2.04 | CK138: 2.02 | CL138: 2.01 | CM138: 1.99 | CN138: 1.98 | CO138: 1.96 | CP138: 1.95 | CQ138: 1.93 | CR138: 1.92 | CS138: 1.91 | CT138: 1.89 | CU138: 1.88 | CV138: 1.86 | CW138: 1.85 | CX138: 1.84 | CY138: 1.83 | CZ138: 1.81 | DA138: 1.8 | DB138: 1.79 | DC138: 1.78 | DD138: 1.77 | DE138: 1.76 | DF138: 1.74 | DG138: 1.73 | DH138: 1.72 | DI138: 1.71 | DJ138: 1.7 | DK138: 1.69 | DL138: 1.68 | DM138: 1.67 | DN138: 1.66 | DO138: 1.65 | DP138: 1.64 | DQ138: 1.63 | DR138: 1.62 | DS138: 1.61 | DT138: 1.61
A139: R134a | B139: 74 | C139: 194 | BV139: 2.37 | BW139: 2.35 | BX139: 2.33 | BY139: 2.3 | BZ139: 2.28 | CA139: 2.26 | CB139: 2.24 | CC139: 2.22 | CD139: 2.2 | CE139: 2.19 | CF139: 2.17 | CG139: 2.15 | CH139: 2.13 | CI139: 2.11 | CJ139: 2.1 | CK139: 2.08 | CL139: 2.06 | CM139: 2.05 | CN139: 2.03 | CO139: 2.01 | CP139: 2 | CQ139: 1.98 | CR139: 1.97 | CS139: 1.95 | CT139: 1.94 | CU139: 1.93 | CV139: 1.91 | CW139: 1.9 | CX139: 1.88 | CY139: 1.87 | CZ139: 1.86 | DA139: 1.85 | DB139: 1.83 | DC139: 1.82 | DD139: 1.81 | DE139: 1.8 | DF139: 1.78 | DG139: 1.77 | DH139: 1.76 | DI139: 1.75 | DJ139: 1.74 | DK139: 1.73 | DL139: 1.72 | DM139: 1.71 | DN139: 1.7 | DO139: 1.69 | DP139: 1.68 | DQ139: 1.67 | DR139: 1.66 | DS139: 1.65 | DT139: 1.64
A140: R134a | B140: 75 | C140: 195 | BV140: 2.44 | BW140: 2.42 | BX140: 2.4 | BY140: 2.37 | BZ140: 2.35 | CA140: 2.33 | CB140: 2.31 | CC140: 2.29 | CD140: 2.27 | CE140: 2.25 | CF140: 2.23 | CG140: 2.21 | CH140: 2.19 | CI140: 2.17 | CJ140: 2.15 | CK140: 2.14 | CL140: 2.12 | CM140: 2.1 | CN140: 2.08 | CO140: 2.07 | CP140: 2.05 | CQ140: 2.04 | CR140: 2.02 | CS140: 2.01 | CT140: 1.99 | CU140: 1.98 | CV140: 1.96 | CW140: 1.95 | CX140: 1.93 | CY140: 1.92 | CZ140: 1.9 | DA140: 1.89 | DB140: 1.88 | DC140: 1.87 | DD140: 1.85 | DE140: 1.84 | DF140: 1.83 | DG140: 1.82 | DH140: 1.8 | DI140: 1.79 | DJ140: 1.78 | DK140: 1.77 | DL140: 1.76 | DM140: 1.75 | DN140: 1.74 | DO140: 1.73 | DP140: 1.72 | DQ140: 1.71 | DR140: 1.7 | DS140: 1.69 | DT140: 1.68
A141: R134a | B141: 76 | C141: 196 | BV141: 2.52 | BW141: 2.5 | BX141: 2.47 | BY141: 2.45 | BZ141: 2.43 | CA141: 2.4 | CB141: 2.38 | CC141: 2.36 | CD141: 2.34 | CE141: 2.32 | CF141: 2.3 | CG141: 2.28 | CH141: 2.26 | CI141: 2.24 | CJ141: 2.22 | CK141: 2.2 | CL141: 2.18 | CM141: 2.16 | CN141: 2.14 | CO141: 2.13 | CP141: 2.11 | CQ141: 2.09 | CR141: 2.08 | CS141: 2.06 | CT141: 2.04 | CU141: 2.03 | CV141: 2.01 | CW141: 2 | CX141: 1.98 | CY141: 1.97 | CZ141: 1.95 | DA141: 1.94 | DB141: 1.93 | DC141: 1.91 | DD141: 1.9 | DE141: 1.89 | DF141: 1.87 | DG141: 1.86 | DH141: 1.85 | DI141: 1.84 | DJ141: 1.82 | DK141: 1.81 | DL141: 1.8 | DM141: 1.79 | DN141: 1.78 | DO141: 1.77 | DP141: 1.76 | DQ141: 1.75 | DR141: 1.74 | DS141: 1.73 | DT141: 1.72
A142: R134a | B142: 77 | C142: 197 | BV142: 2.61 | BW142: 2.58 | BX142: 2.56 | BY142: 2.53 | BZ142: 2.51 | CA142: 2.48 | CB142: 2.46 | CC142: 2.43 | CD142: 2.41 | CE142: 2.39 | CF142: 2.37 | CG142: 2.34 | CH142: 2.32 | CI142: 2.3 | CJ142: 2.28 | CK142: 2.26 | CL142: 2.24 | CM142: 2.22 | CN142: 2.21 | CO142: 2.19 | CP142: 2.17 | CQ142: 2.15 | CR142: 2.13 | CS142: 2.12 | CT142: 2.1 | CU142: 2.08 | CV142: 2.07 | CW142: 2.05 | CX142: 2.04 | CY142: 2.02 | CZ142: 2.01 | DA142: 1.99 | DB142: 1.98 | DC142: 1.96 | DD142: 1.95 | DE142: 1.94 | DF142: 1.92 | DG142: 1.91 | DH142: 1.9 | DI142: 1.88 | DJ142: 1.87 | DK142: 1.86 | DL142: 1.85 | DM142: 1.83 | DN142: 1.82 | DO142: 1.81 | DP142: 1.8 | DQ142: 1.79 | DR142: 1.78 | DS142: 1.77 | DT142: 1.76
A143: R134a | B143: 78 | C143: 198 | BV143: 2.7 | BW143: 2.67 | BX143: 2.64 | BY143: 2.62 | BZ143: 2.59 | CA143: 2.56 | CB143: 2.54 | CC143: 2.51 | CD143: 2.49 | CE143: 2.47 | CF143: 2.44 | CG143: 2.42 | CH143: 2.4 | CI143: 2.38 | CJ143: 2.35 | CK143: 2.33 | CL143: 2.31 | CM143: 2.29 | CN143: 2.27 | CO143: 2.25 | CP143: 2.23 | CQ143: 2.22 | CR143: 2.2 | CS143: 2.18 | CT143: 2.16 | CU143: 2.14 | CV143: 2.13 | CW143: 2.11 | CX143: 2.09 | CY143: 2.08 | CZ143: 2.06 | DA143: 2.05 | DB143: 2.03 | DC143: 2.02 | DD143: 2 | DE143: 1.99 | DF143: 1.97 | DG143: 1.96 | DH143: 1.95 | DI143: 1.93 | DJ143: 1.92 | DK143: 1.91 | DL143: 1.89 | DM143: 1.88 | DN143: 1.87 | DO143: 1.86 | DP143: 1.85 | DQ143: 1.83 | DR143: 1.82 | DS143: 1.81 | DT143: 1.8
A144: R134a | B144: 79 | C144: 199 | BV144: 2.8 | BW144: 2.77 | BX144: 2.74 | BY144: 2.71 | BZ144: 2.68 | CA144: 2.65 | CB144: 2.63 | CC144: 2.6 | CD144: 2.57 | CE144: 2.55 | CF144: 2.52 | CG144: 2.5 | CH144: 2.48 | CI144: 2.45 | CJ144: 2.43 | CK144: 2.41 | CL144: 2.39 | CM144: 2.36 | CN144: 2.34 | CO144: 2.32 | CP144: 2.3 | CQ144: 2.28 | CR144: 2.26 | CS144: 2.24 | CT144: 2.23 | CU144: 2.21 | CV144: 2.19 | CW144: 2.17 | CX144: 2.16 | CY144: 2.14 | CZ144: 2.12 | DA144: 2.11 | DB144: 2.09 | DC144: 2.07 | DD144: 2.06 | DE144: 2.04 | DF144: 2.03 | DG144: 2.01 | DH144: 2 | DI144: 1.99 | DJ144: 1.97 | DK144: 1.96 | DL144: 1.94 | DM144: 1.93 | DN144: 1.92 | DO144: 1.91 | DP144: 1.89 | DQ144: 1.88 | DR144: 1.87 | DS144: 1.86 | DT144: 1.85
A145: R134a | B145: 80 | C145: 200 | BV145: 2.91 | BW145: 2.87 | BX145: 2.84 | BY145: 2.81 | BZ145: 2.78 | CA145: 2.75 | CB145: 2.72 | CC145: 2.69 | CD145: 2.67 | CE145: 2.64 | CF145: 2.61 | CG145: 2.59 | CH145: 2.56 | CI145: 2.54 | CJ145: 2.51 | CK145: 2.49 | CL145: 2.47 | CM145: 2.44 | CN145: 2.42 | CO145: 2.4 | CP145: 2.38 | CQ145: 2.36 | CR145: 2.34 | CS145: 2.32 | CT145: 2.3 | CU145: 2.28 | CV145: 2.26 | CW145: 2.24 | CX145: 2.22 | CY145: 2.2 | CZ145: 2.19 | DA145: 2.17 | DB145: 2.15 | DC145: 2.13 | DD145: 2.12 | DE145: 2.1 | DF145: 2.09 | DG145: 2.07 | DH145: 2.06 | DI145: 2.04 | DJ145: 2.03 | DK145: 2.01 | DL145: 2 | DM145: 1.99 | DN145: 1.97 | DO145: 1.96 | DP145: 1.95 | DQ145: 1.93 | DR145: 1.92 | DS145: 1.91 | DT145: 1.9
A146: R22 | B146: -50 | C146: 210 | AH146: 0.62 | AI146: 0.62 | AJ146: 0.62 | AK146: 0.62 | AL146: 0.62 | AM146: 0.62 | AN146: 0.61 | AO146: 0.61 | AP146: 0.61 | AQ146: 0.61 | AR146: 0.61 | AS146: 0.61 | AT146: 0.61 | AU146: 0.61 | AV146: 0.6 | AW146: 0.6 | AX146: 0.6 | AY146: 0.6 | AZ146: 0.6 | BA146: 0.6 | BB146: 0.6 | BC146: 0.6 | BD146: 0.59 | BE146: 0.59 | BF146: 0.59 | BG146: 0.59 | BH146: 0.59 | BI146: 0.59 | BJ146: 0.59 | BK146: 0.59 | BL146: 0.59 | BM146: 0.58 | BN146: 0.58 | BO146: 0.58 | BP146: 0.58 | BQ146: 0.58 | BR146: 0.58 | BS146: 0.58 | BT146: 0.58 | BU146: 0.58 | BV146: 0.57 | BW146: 0.57 | BX146: 0.57 | BY146: 0.57 | BZ146: 0.57 | CA146: 0.57 | CB146: 0.57 | CC146: 0.57 | CD146: 0.57 | CE146: 0.57 | CF146: 0.56 | CG146: 0.56 | CH146: 0.56 | CI146: 0.56 | CJ146: 0.56 | CK146: 0.56 | CL146: 0.56 | CM146: 0.56 | CN146: 0.56 | CO146: 0.56 | CP146: 0.56 | CQ146: 0.55 | CR146: 0.55 | CS146: 0.55 | CT146: 0.55 | CU146: 0.55 | CV146: 0.55 | CW146: 0.55 | CX146: 0.55 | CY146: 0.55 | CZ146: 0.55 | DA146: 0.55 | DB146: 0.55 | DC146: 0.54 | DD146: 0.54 | DE146: 0.54 | DF146: 0.54 | DG146: 0.54 | DH146: 0.54 | DI146: 0.54 | DJ146: 0.54 | DK146: 0.54 | DL146: 0.54 | DM146: 0.54 | DN146: 0.54 | DO146: 0.54 | DP146: 0.54 | DQ146: 0.54 | DR146: 0.53 | DS146: 0.53 | DT146: 0.53
A147: R22 | B147: -49 | C147: 211 | AH147: 0.63 | AI147: 0.62 | AJ147: 0.62 | AK147: 0.62 | AL147: 0.62 | AM147: 0.62 | AN147: 0.62 | AO147: 0.62 | AP147: 0.61 | AQ147: 0.61 | AR147: 0.61 | AS147: 0.61 | AT147: 0.61 | AU147: 0.61 | AV147: 0.61 | AW147: 0.61 | AX147: 0.6 | AY147: 0.6 | AZ147: 0.6 | BA147: 0.6 | BB147: 0.6 | BC147: 0.6 | BD147: 0.6 | BE147: 0.6 | BF147: 0.6 | BG147: 0.59 | BH147: 0.59 | BI147: 0.59 | BJ147: 0.59 | BK147: 0.59 | BL147: 0.59 | BM147: 0.59 | BN147: 0.59 | BO147: 0.58 | BP147: 0.58 | BQ147: 0.58 | BR147: 0.58 | BS147: 0.58 | BT147: 0.58 | BU147: 0.58 | BV147: 0.58 | BW147: 0.58 | BX147: 0.58 | BY147: 0.57 | BZ147: 0.57 | CA147: 0.57 | CB147: 0.57 | CC147: 0.57 | CD147: 0.57 | CE147: 0.57 | CF147: 0.57 | CG147: 0.57 | CH147: 0.57 | CI147: 0.56 | CJ147: 0.56 | CK147: 0.56 | CL147: 0.56 | CM147: 0.56 | CN147: 0.56 | CO147: 0.56 | CP147: 0.56 | CQ147: 0.56 | CR147: 0.56 | CS147: 0.56 | CT147: 0.55 | CU147: 0.55 | CV147: 0.55 | CW147: 0.55 | CX147: 0.55 | CY147: 0.55 | CZ147: 0.55 | DA147: 0.55 | DB147: 0.55 | DC147: 0.55 | DD147: 0.55 | DE147: 0.55 | DF147: 0.55 | DG147: 0.54 | DH147: 0.54 | DI147: 0.54 | DJ147: 0.54 | DK147: 0.54 | DL147: 0.54 | DM147: 0.54 | DN147: 0.54 | DO147: 0.54 | DP147: 0.54 | DQ147: 0.54 | DR147: 0.54 | DS147: 0.54 | DT147: 0.54
A148: R22 | B148: -48 | C148: 212 | AH148: 0.63 | AI148: 0.63 | AJ148: 0.63 | AK148: 0.62 | AL148: 0.62 | AM148: 0.62 | AN148: 0.62 | AO148: 0.62 | AP148: 0.62 | AQ148: 0.62 | AR148: 0.62 | AS148: 0.61 | AT148: 0.61 | AU148: 0.61 | AV148: 0.61 | AW148: 0.61 | AX148: 0.61 | AY148: 0.61 | AZ148: 0.61 | BA148: 0.6 | BB148: 0.6 | BC148: 0.6 | BD148: 0.6 | BE148: 0.6 | BF148: 0.6 | BG148: 0.6 | BH148: 0.6 | BI148: 0.59 | BJ148: 0.59 | BK148: 0.59 | BL148: 0.59 | BM148: 0.59 | BN148: 0.59 | BO148: 0.59 | BP148: 0.59 | BQ148: 0.59 | BR148: 0.58 | BS148: 0.58 | BT148: 0.58 | BU148: 0.58 | BV148: 0.58 | BW148: 0.58 | BX148: 0.58 | BY148: 0.58 | BZ148: 0.58 | CA148: 0.58 | CB148: 0.57 | CC148: 0.57 | CD148: 0.57 | CE148: 0.57 | CF148: 0.57 | CG148: 0.57 | CH148: 0.57 | CI148: 0.57 | CJ148: 0.57 | CK148: 0.57 | CL148: 0.56 | CM148: 0.56 | CN148: 0.56 | CO148: 0.56 | CP148: 0.56 | CQ148: 0.56 | CR148: 0.56 | CS148: 0.56 | CT148: 0.56 | CU148: 0.56 | CV148: 0.56 | CW148: 0.56 | CX148: 0.55 | CY148: 0.55 | CZ148: 0.55 | DA148: 0.55 | DB148: 0.55 | DC148: 0.55 | DD148: 0.55 | DE148: 0.55 | DF148: 0.55 | DG148: 0.55 | DH148: 0.55 | DI148: 0.55 | DJ148: 0.55 | DK148: 0.54 | DL148: 0.54 | DM148: 0.54 | DN148: 0.54 | DO148: 0.54 | DP148: 0.54 | DQ148: 0.54 | DR148: 0.54 | DS148: 0.54 | DT148: 0.54
A149: R22 | B149: -47 | C149: 213 | AH149: 0.63 | AI149: 0.63 | AJ149: 0.63 | AK149: 0.63 | AL149: 0.63 | AM149: 0.63 | AN149: 0.62 | AO149: 0.62 | AP149: 0.62 | AQ149: 0.62 | AR149: 0.62 | AS149: 0.62 | AT149: 0.62 | AU149: 0.61 | AV149: 0.61 | AW149: 0.61 | AX149: 0.61 | AY149: 0.61 | AZ149: 0.61 | BA149: 0.61 | BB149: 0.61 | BC149: 0.6 | BD149: 0.6 | BE149: 0.6 | BF149: 0.6 | BG149: 0.6 | BH149: 0.6 | BI149: 0.6 | BJ149: 0.6 | BK149: 0.6 | BL149: 0.59 | BM149: 0.59 | BN149: 0.59 | BO149: 0.59 | BP149: 0.59 | BQ149: 0.59 | BR149: 0.59 | BS149: 0.59 | BT149: 0.59 | BU149: 0.58 | BV149: 0.58 | BW149: 0.58 | BX149: 0.58 | BY149: 0.58 | BZ149: 0.58 | CA149: 0.58 | CB149: 0.58 | CC149: 0.58 | CD149: 0.58 | CE149: 0.57 | CF149: 0.57 | CG149: 0.57 | CH149: 0.57 | CI149: 0.57 | CJ149: 0.57 | CK149: 0.57 | CL149: 0.57 | CM149: 0.57 | CN149: 0.57 | CO149: 0.56 | CP149: 0.56 | CQ149: 0.56 | CR149: 0.56 | CS149: 0.56 | CT149: 0.56 | CU149: 0.56 | CV149: 0.56 | CW149: 0.56 | CX149: 0.56 | CY149: 0.56 | CZ149: 0.56 | DA149: 0.55 | DB149: 0.55 | DC149: 0.55 | DD149: 0.55 | DE149: 0.55 | DF149: 0.55 | DG149: 0.55 | DH149: 0.55 | DI149: 0.55 | DJ149: 0.55 | DK149: 0.55 | DL149: 0.55 | DM149: 0.55 | DN149: 0.55 | DO149: 0.54 | DP149: 0.54 | DQ149: 0.54 | DR149: 0.54 | DS149: 0.54 | DT149: 0.54
A150: R22 | B150: -46 | C150: 214 | AH150: 0.64 | AI150: 0.63 | AJ150: 0.63 | AK150: 0.63 | AL150: 0.63 | AM150: 0.63 | AN150: 0.63 | AO150: 0.63 | AP150: 0.62 | AQ150: 0.62 | AR150: 0.62 | AS150: 0.62 | AT150: 0.62 | AU150: 0.62 | AV150: 0.62 | AW150: 0.62 | AX150: 0.61 | AY150: 0.61 | AZ150: 0.61 | BA150: 0.61 | BB150: 0.61 | BC150: 0.61 | BD150: 0.61 | BE150: 0.61 | BF150: 0.6 | BG150: 0.6 | BH150: 0.6 | BI150: 0.6 | BJ150: 0.6 | BK150: 0.6 | BL150: 0.6 | BM150: 0.6 | BN150: 0.6 | BO150: 0.59 | BP150: 0.59 | BQ150: 0.59 | BR150: 0.59 | BS150: 0.59 | BT150: 0.59 | BU150: 0.59 | BV150: 0.59 | BW150: 0.59 | BX150: 0.58 | BY150: 0.58 | BZ150: 0.58 | CA150: 0.58 | CB150: 0.58 | CC150: 0.58 | CD150: 0.58 | CE150: 0.58 | CF150: 0.58 | CG150: 0.58 | CH150: 0.57 | CI150: 0.57 | CJ150: 0.57 | CK150: 0.57 | CL150: 0.57 | CM150: 0.57 | CN150: 0.57 | CO150: 0.57 | CP150: 0.57 | CQ150: 0.57 | CR150: 0.56 | CS150: 0.56 | CT150: 0.56 | CU150: 0.56 | CV150: 0.56 | CW150: 0.56 | CX150: 0.56 | CY150: 0.56 | CZ150: 0.56 | DA150: 0.56 | DB150: 0.56 | DC150: 0.56 | DD150: 0.56 | DE150: 0.55 | DF150: 0.55 | DG150: 0.55 | DH150: 0.55 | DI150: 0.55 | DJ150: 0.55 | DK150: 0.55 | DL150: 0.55 | DM150: 0.55 | DN150: 0.55 | DO150: 0.55 | DP150: 0.55 | DQ150: 0.55 | DR150: 0.55 | DS150: 0.54 | DT150: 0.54
A151: R22 | B151: -45 | C151: 215 | AH151: 0.64 | AI151: 0.64 | AJ151: 0.64 | AK151: 0.64 | AL151: 0.63 | AM151: 0.63 | AN151: 0.63 | AO151: 0.63 | AP151: 0.63 | AQ151: 0.63 | AR151: 0.63 | AS151: 0.62 | AT151: 0.62 | AU151: 0.62 | AV151: 0.62 | AW151: 0.62 | AX151: 0.62 | AY151: 0.62 | AZ151: 0.62 | BA151: 0.61 | BB151: 0.61 | BC151: 0.61 | BD151: 0.61 | BE151: 0.61 | BF151: 0.61 | BG151: 0.61 | BH151: 0.61 | BI151: 0.6 | BJ151: 0.6 | BK151: 0.6 | BL151: 0.6 | BM151: 0.6 | BN151: 0.6 | BO151: 0.6 | BP151: 0.6 | BQ151: 0.59 | BR151: 0.59 | BS151: 0.59 | BT151: 0.59 | BU151: 0.59 | BV151: 0.59 | BW151: 0.59 | BX151: 0.59 | BY151: 0.59 | BZ151: 0.59 | CA151: 0.58 | CB151: 0.58 | CC151: 0.58 | CD151: 0.58 | CE151: 0.58 | CF151: 0.58 | CG151: 0.58 | CH151: 0.58 | CI151: 0.58 | CJ151: 0.58 | CK151: 0.57 | CL151: 0.57 | CM151: 0.57 | CN151: 0.57 | CO151: 0.57 | CP151: 0.57 | CQ151: 0.57 | CR151: 0.57 | CS151: 0.57 | CT151: 0.57 | CU151: 0.57 | CV151: 0.56 | CW151: 0.56 | CX151: 0.56 | CY151: 0.56 | CZ151: 0.56 | DA151: 0.56 | DB151: 0.56 | DC151: 0.56 | DD151: 0.56 | DE151: 0.56 | DF151: 0.56 | DG151: 0.56 | DH151: 0.55 | DI151: 0.55 | DJ151: 0.55 | DK151: 0.55 | DL151: 0.55 | DM151: 0.55 | DN151: 0.55 | DO151: 0.55 | DP151: 0.55 | DQ151: 0.55 | DR151: 0.55 | DS151: 0.55 | DT151: 0.55
A152: R22 | B152: -44 | C152: 216 | AH152: 0.64 | AI152: 0.64 | AJ152: 0.64 | AK152: 0.64 | AL152: 0.64 | AM152: 0.64 | AN152: 0.63 | AO152: 0.63 | AP152: 0.63 | AQ152: 0.63 | AR152: 0.63 | AS152: 0.63 | AT152: 0.63 | AU152: 0.63 | AV152: 0.62 | AW152: 0.62 | AX152: 0.62 | AY152: 0.62 | AZ152: 0.62 | BA152: 0.62 | BB152: 0.62 | BC152: 0.61 | BD152: 0.61 | BE152: 0.61 | BF152: 0.61 | BG152: 0.61 | BH152: 0.61 | BI152: 0.61 | BJ152: 0.61 | BK152: 0.61 | BL152: 0.6 | BM152: 0.6 | BN152: 0.6 | BO152: 0.6 | BP152: 0.6 | BQ152: 0.6 | BR152: 0.6 | BS152: 0.6 | BT152: 0.59 | BU152: 0.59 | BV152: 0.59 | BW152: 0.59 | BX152: 0.59 | BY152: 0.59 | BZ152: 0.59 | CA152: 0.59 | CB152: 0.59 | CC152: 0.59 | CD152: 0.58 | CE152: 0.58 | CF152: 0.58 | CG152: 0.58 | CH152: 0.58 | CI152: 0.58 | CJ152: 0.58 | CK152: 0.58 | CL152: 0.58 | CM152: 0.58 | CN152: 0.57 | CO152: 0.57 | CP152: 0.57 | CQ152: 0.57 | CR152: 0.57 | CS152: 0.57 | CT152: 0.57 | CU152: 0.57 | CV152: 0.57 | CW152: 0.57 | CX152: 0.57 | CY152: 0.56 | CZ152: 0.56 | DA152: 0.56 | DB152: 0.56 | DC152: 0.56 | DD152: 0.56 | DE152: 0.56 | DF152: 0.56 | DG152: 0.56 | DH152: 0.56 | DI152: 0.56 | DJ152: 0.56 | DK152: 0.56 | DL152: 0.55 | DM152: 0.55 | DN152: 0.55 | DO152: 0.55 | DP152: 0.55 | DQ152: 0.55 | DR152: 0.55 | DS152: 0.55 | DT152: 0.55
A153: R22 | B153: -43 | C153: 217 | AH153: 0.65 | AI153: 0.65 | AJ153: 0.64 | AK153: 0.64 | AL153: 0.64 | AM153: 0.64 | AN153: 0.64 | AO153: 0.64 | AP153: 0.64 | AQ153: 0.63 | AR153: 0.63 | AS153: 0.63 | AT153: 0.63 | AU153: 0.63 | AV153: 0.63 | AW153: 0.63 | AX153: 0.62 | AY153: 0.62 | AZ153: 0.62 | BA153: 0.62 | BB153: 0.62 | BC153: 0.62 | BD153: 0.62 | BE153: 0.62 | BF153: 0.61 | BG153: 0.61 | BH153: 0.61 | BI153: 0.61 | BJ153: 0.61 | BK153: 0.61 | BL153: 0.61 | BM153: 0.61 | BN153: 0.6 | BO153: 0.6 | BP153: 0.6 | BQ153: 0.6 | BR153: 0.6 | BS153: 0.6 | BT153: 0.6 | BU153: 0.6 | BV153: 0.6 | BW153: 0.59 | BX153: 0.59 | BY153: 0.59 | BZ153: 0.59 | CA153: 0.59 | CB153: 0.59 | CC153: 0.59 | CD153: 0.59 | CE153: 0.59 | CF153: 0.59 | CG153: 0.58 | CH153: 0.58 | CI153: 0.58 | CJ153: 0.58 | CK153: 0.58 | CL153: 0.58 | CM153: 0.58 | CN153: 0.58 | CO153: 0.58 | CP153: 0.58 | CQ153: 0.57 | CR153: 0.57 | CS153: 0.57 | CT153: 0.57 | CU153: 0.57 | CV153: 0.57 | CW153: 0.57 | CX153: 0.57 | CY153: 0.57 | CZ153: 0.57 | DA153: 0.57 | DB153: 0.57 | DC153: 0.56 | DD153: 0.56 | DE153: 0.56 | DF153: 0.56 | DG153: 0.56 | DH153: 0.56 | DI153: 0.56 | DJ153: 0.56 | DK153: 0.56 | DL153: 0.56 | DM153: 0.56 | DN153: 0.56 | DO153: 0.56 | DP153: 0.55 | DQ153: 0.55 | DR153: 0.55 | DS153: 0.55 | DT153: 0.55
A154: R22 | B154: -42 | C154: 218 | AH154: 0.65 | AI154: 0.65 | AJ154: 0.65 | AK154: 0.65 | AL154: 0.64 | AM154: 0.64 | AN154: 0.64 | AO154: 0.64 | AP154: 0.64 | AQ154: 0.64 | AR154: 0.64 | AS154: 0.63 | AT154: 0.63 | AU154: 0.63 | AV154: 0.63 | AW154: 0.63 | AX154: 0.63 | AY154: 0.63 | AZ154: 0.63 | BA154: 0.62 | BB154: 0.62 | BC154: 0.62 | BD154: 0.62 | BE154: 0.62 | BF154: 0.62 | BG154: 0.62 | BH154: 0.62 | BI154: 0.61 | BJ154: 0.61 | BK154: 0.61 | BL154: 0.61 | BM154: 0.61 | BN154: 0.61 | BO154: 0.61 | BP154: 0.61 | BQ154: 0.6 | BR154: 0.6 | BS154: 0.6 | BT154: 0.6 | BU154: 0.6 | BV154: 0.6 | BW154: 0.6 | BX154: 0.6 | BY154: 0.6 | BZ154: 0.59 | CA154: 0.59 | CB154: 0.59 | CC154: 0.59 | CD154: 0.59 | CE154: 0.59 | CF154: 0.59 | CG154: 0.59 | CH154: 0.59 | CI154: 0.59 | CJ154: 0.58 | CK154: 0.58 | CL154: 0.58 | CM154: 0.58 | CN154: 0.58 | CO154: 0.58 | CP154: 0.58 | CQ154: 0.58 | CR154: 0.58 | CS154: 0.58 | CT154: 0.57 | CU154: 0.57 | CV154: 0.57 | CW154: 0.57 | CX154: 0.57 | CY154: 0.57 | CZ154: 0.57 | DA154: 0.57 | DB154: 0.57 | DC154: 0.57 | DD154: 0.57 | DE154: 0.57 | DF154: 0.56 | DG154: 0.56 | DH154: 0.56 | DI154: 0.56 | DJ154: 0.56 | DK154: 0.56 | DL154: 0.56 | DM154: 0.56 | DN154: 0.56 | DO154: 0.56 | DP154: 0.56 | DQ154: 0.56 | DR154: 0.56 | DS154: 0.56 | DT154: 0.56
A155: R22 | B155: -41 | C155: 219 | AH155: 0.65 | AI155: 0.65 | AJ155: 0.65 | AK155: 0.65 | AL155: 0.65 | AM155: 0.65 | AN155: 0.65 | AO155: 0.64 | AP155: 0.64 | AQ155: 0.64 | AR155: 0.64 | AS155: 0.64 | AT155: 0.64 | AU155: 0.64 | AV155: 0.63 | AW155: 0.63 | AX155: 0.63 | AY155: 0.63 | AZ155: 0.63 | BA155: 0.63 | BB155: 0.63 | BC155: 0.63 | BD155: 0.62 | BE155: 0.62 | BF155: 0.62 | BG155: 0.62 | BH155: 0.62 | BI155: 0.62 | BJ155: 0.62 | BK155: 0.62 | BL155: 0.61 | BM155: 0.61 | BN155: 0.61 | BO155: 0.61 | BP155: 0.61 | BQ155: 0.61 | BR155: 0.61 | BS155: 0.61 | BT155: 0.6 | BU155: 0.6 | BV155: 0.6 | BW155: 0.6 | BX155: 0.6 | BY155: 0.6 | BZ155: 0.6 | CA155: 0.6 | CB155: 0.6 | CC155: 0.59 | CD155: 0.59 | CE155: 0.59 | CF155: 0.59 | CG155: 0.59 | CH155: 0.59 | CI155: 0.59 | CJ155: 0.59 | CK155: 0.59 | CL155: 0.59 | CM155: 0.58 | CN155: 0.58 | CO155: 0.58 | CP155: 0.58 | CQ155: 0.58 | CR155: 0.58 | CS155: 0.58 | CT155: 0.58 | CU155: 0.58 | CV155: 0.58 | CW155: 0.58 | CX155: 0.57 | CY155: 0.57 | CZ155: 0.57 | DA155: 0.57 | DB155: 0.57 | DC155: 0.57 | DD155: 0.57 | DE155: 0.57 | DF155: 0.57 | DG155: 0.57 | DH155: 0.57 | DI155: 0.57 | DJ155: 0.56 | DK155: 0.56 | DL155: 0.56 | DM155: 0.56 | DN155: 0.56 | DO155: 0.56 | DP155: 0.56 | DQ155: 0.56 | DR155: 0.56 | DS155: 0.56 | DT155: 0.56
A156: R22 | B156: -40 | C156: 220 | AH156: 0.66 | AI156: 0.66 | AJ156: 0.66 | AK156: 0.65 | AL156: 0.65 | AM156: 0.65 | AN156: 0.65 | AO156: 0.65 | AP156: 0.65 | AQ156: 0.65 | AR156: 0.64 | AS156: 0.64 | AT156: 0.64 | AU156: 0.64 | AV156: 0.64 | AW156: 0.64 | AX156: 0.64 | AY156: 0.63 | AZ156: 0.63 | BA156: 0.63 | BB156: 0.63 | BC156: 0.63 | BD156: 0.63 | BE156: 0.63 | BF156: 0.62 | BG156: 0.62 | BH156: 0.62 | BI156: 0.62 | BJ156: 0.62 | BK156: 0.62 | BL156: 0.62 | BM156: 0.62 | BN156: 0.61 | BO156: 0.61 | BP156: 0.61 | BQ156: 0.61 | BR156: 0.61 | BS156: 0.61 | BT156: 0.61 | BU156: 0.61 | BV156: 0.61 | BW156: 0.6 | BX156: 0.6 | BY156: 0.6 | BZ156: 0.6 | CA156: 0.6 | CB156: 0.6 | CC156: 0.6 | CD156: 0.6 | CE156: 0.6 | CF156: 0.59 | CG156: 0.59 | CH156: 0.59 | CI156: 0.59 | CJ156: 0.59 | CK156: 0.59 | CL156: 0.59 | CM156: 0.59 | CN156: 0.59 | CO156: 0.59 | CP156: 0.58 | CQ156: 0.58 | CR156: 0.58 | CS156: 0.58 | CT156: 0.58 | CU156: 0.58 | CV156: 0.58 | CW156: 0.58 | CX156: 0.58 | CY156: 0.58 | CZ156: 0.58 | DA156: 0.57 | DB156: 0.57 | DC156: 0.57 | DD156: 0.57 | DE156: 0.57 | DF156: 0.57 | DG156: 0.57 | DH156: 0.57 | DI156: 0.57 | DJ156: 0.57 | DK156: 0.57 | DL156: 0.57 | DM156: 0.57 | DN156: 0.56 | DO156: 0.56 | DP156: 0.56 | DQ156: 0.56 | DR156: 0.56 | DS156: 0.56 | DT156: 0.56
A157: R22 | B157: -39 | C157: 221 | AH157: 0.66 | AI157: 0.66 | AJ157: 0.66 | AK157: 0.66 | AL157: 0.66 | AM157: 0.65 | AN157: 0.65 | AO157: 0.65 | AP157: 0.65 | AQ157: 0.65 | AR157: 0.65 | AS157: 0.65 | AT157: 0.64 | AU157: 0.64 | AV157: 0.64 | AW157: 0.64 | AX157: 0.64 | AY157: 0.64 | AZ157: 0.64 | BA157: 0.63 | BB157: 0.63 | BC157: 0.63 | BD157: 0.63 | BE157: 0.63 | BF157: 0.63 | BG157: 0.63 | BH157: 0.63 | BI157: 0.62 | BJ157: 0.62 | BK157: 0.62 | BL157: 0.62 | BM157: 0.62 | BN157: 0.62 | BO157: 0.62 | BP157: 0.62 | BQ157: 0.61 | BR157: 0.61 | BS157: 0.61 | BT157: 0.61 | BU157: 0.61 | BV157: 0.61 | BW157: 0.61 | BX157: 0.61 | BY157: 0.61 | BZ157: 0.6 | CA157: 0.6 | CB157: 0.6 | CC157: 0.6 | CD157: 0.6 | CE157: 0.6 | CF157: 0.6 | CG157: 0.6 | CH157: 0.6 | CI157: 0.59 | CJ157: 0.59 | CK157: 0.59 | CL157: 0.59 | CM157: 0.59 | CN157: 0.59 | CO157: 0.59 | CP157: 0.59 | CQ157: 0.59 | CR157: 0.59 | CS157: 0.59 | CT157: 0.58 | CU157: 0.58 | CV157: 0.58 | CW157: 0.58 | CX157: 0.58 | CY157: 0.58 | CZ157: 0.58 | DA157: 0.58 | DB157: 0.58 | DC157: 0.58 | DD157: 0.58 | DE157: 0.57 | DF157: 0.57 | DG157: 0.57 | DH157: 0.57 | DI157: 0.57 | DJ157: 0.57 | DK157: 0.57 | DL157: 0.57 | DM157: 0.57 | DN157: 0.57 | DO157: 0.57 | DP157: 0.57 | DQ157: 0.57 | DR157: 0.57 | DS157: 0.56 | DT157: 0.56
A158: R22 | B158: -38 | C158: 222 | AH158: 0.67 | AI158: 0.66 | AJ158: 0.66 | AK158: 0.66 | AL158: 0.66 | AM158: 0.66 | AN158: 0.66 | AO158: 0.66 | AP158: 0.65 | AQ158: 0.65 | AR158: 0.65 | AS158: 0.65 | AT158: 0.65 | AU158: 0.65 | AV158: 0.65 | AW158: 0.64 | AX158: 0.64 | AY158: 0.64 | AZ158: 0.64 | BA158: 0.64 | BB158: 0.64 | BC158: 0.64 | BD158: 0.63 | BE158: 0.63 | BF158: 0.63 | BG158: 0.63 | BH158: 0.63 | BI158: 0.63 | BJ158: 0.63 | BK158: 0.63 | BL158: 0.62 | BM158: 0.62 | BN158: 0.62 | BO158: 0.62 | BP158: 0.62 | BQ158: 0.62 | BR158: 0.62 | BS158: 0.62 | BT158: 0.61 | BU158: 0.61 | BV158: 0.61 | BW158: 0.61 | BX158: 0.61 | BY158: 0.61 | BZ158: 0.61 | CA158: 0.61 | CB158: 0.61 | CC158: 0.6 | CD158: 0.6 | CE158: 0.6 | CF158: 0.6 | CG158: 0.6 | CH158: 0.6 | CI158: 0.6 | CJ158: 0.6 | CK158: 0.6 | CL158: 0.59 | CM158: 0.59 | CN158: 0.59 | CO158: 0.59 | CP158: 0.59 | CQ158: 0.59 | CR158: 0.59 | CS158: 0.59 | CT158: 0.59 | CU158: 0.59 | CV158: 0.59 | CW158: 0.58 | CX158: 0.58 | CY158: 0.58 | CZ158: 0.58 | DA158: 0.58 | DB158: 0.58 | DC158: 0.58 | DD158: 0.58 | DE158: 0.58 | DF158: 0.58 | DG158: 0.58 | DH158: 0.58 | DI158: 0.57 | DJ158: 0.57 | DK158: 0.57 | DL158: 0.57 | DM158: 0.57 | DN158: 0.57 | DO158: 0.57 | DP158: 0.57 | DQ158: 0.57 | DR158: 0.57 | DS158: 0.57 | DT158: 0.57
A159: R22 | B159: -37 | C159: 223 | AH159: 0.67 | AI159: 0.67 | AJ159: 0.67 | AK159: 0.67 | AL159: 0.66 | AM159: 0.66 | AN159: 0.66 | AO159: 0.66 | AP159: 0.66 | AQ159: 0.66 | AR159: 0.65 | AS159: 0.65 | AT159: 0.65 | AU159: 0.65 | AV159: 0.65 | AW159: 0.65 | AX159: 0.65 | AY159: 0.65 | AZ159: 0.64 | BA159: 0.64 | BB159: 0.64 | BC159: 0.64 | BD159: 0.64 | BE159: 0.64 | BF159: 0.64 | BG159: 0.63 | BH159: 0.63 | BI159: 0.63 | BJ159: 0.63 | BK159: 0.63 | BL159: 0.63 | BM159: 0.63 | BN159: 0.63 | BO159: 0.62 | BP159: 0.62 | BQ159: 0.62 | BR159: 0.62 | BS159: 0.62 | BT159: 0.62 | BU159: 0.62 | BV159: 0.62 | BW159: 0.61 | BX159: 0.61 | BY159: 0.61 | BZ159: 0.61 | CA159: 0.61 | CB159: 0.61 | CC159: 0.61 | CD159: 0.61 | CE159: 0.61 | CF159: 0.6 | CG159: 0.6 | CH159: 0.6 | CI159: 0.6 | CJ159: 0.6 | CK159: 0.6 | CL159: 0.6 | CM159: 0.6 | CN159: 0.6 | CO159: 0.6 | CP159: 0.59 | CQ159: 0.59 | CR159: 0.59 | CS159: 0.59 | CT159: 0.59 | CU159: 0.59 | CV159: 0.59 | CW159: 0.59 | CX159: 0.59 | CY159: 0.59 | CZ159: 0.58 | DA159: 0.58 | DB159: 0.58 | DC159: 0.58 | DD159: 0.58 | DE159: 0.58 | DF159: 0.58 | DG159: 0.58 | DH159: 0.58 | DI159: 0.58 | DJ159: 0.58 | DK159: 0.58 | DL159: 0.58 | DM159: 0.57 | DN159: 0.57 | DO159: 0.57 | DP159: 0.57 | DQ159: 0.57 | DR159: 0.57 | DS159: 0.57 | DT159: 0.57
A160: R22 | B160: -36 | C160: 224 | AH160: 0.67 | AI160: 0.67 | AJ160: 0.67 | AK160: 0.67 | AL160: 0.67 | AM160: 0.67 | AN160: 0.66 | AO160: 0.66 | AP160: 0.66 | AQ160: 0.66 | AR160: 0.66 | AS160: 0.66 | AT160: 0.66 | AU160: 0.65 | AV160: 0.65 | AW160: 0.65 | AX160: 0.65 | AY160: 0.65 | AZ160: 0.65 | BA160: 0.65 | BB160: 0.64 | BC160: 0.64 | BD160: 0.64 | BE160: 0.64 | BF160: 0.64 | BG160: 0.64 | BH160: 0.64 | BI160: 0.64 | BJ160: 0.63 | BK160: 0.63 | BL160: 0.63 | BM160: 0.63 | BN160: 0.63 | BO160: 0.63 | BP160: 0.63 | BQ160: 0.63 | BR160: 0.62 | BS160: 0.62 | BT160: 0.62 | BU160: 0.62 | BV160: 0.62 | BW160: 0.62 | BX160: 0.62 | BY160: 0.62 | BZ160: 0.61 | CA160: 0.61 | CB160: 0.61 | CC160: 0.61 | CD160: 0.61 | CE160: 0.61 | CF160: 0.61 | CG160: 0.61 | CH160: 0.61 | CI160: 0.6 | CJ160: 0.6 | CK160: 0.6 | CL160: 0.6 | CM160: 0.6 | CN160: 0.6 | CO160: 0.6 | CP160: 0.6 | CQ160: 0.6 | CR160: 0.6 | CS160: 0.59 | CT160: 0.59 | CU160: 0.59 | CV160: 0.59 | CW160: 0.59 | CX160: 0.59 | CY160: 0.59 | CZ160: 0.59 | DA160: 0.59 | DB160: 0.59 | DC160: 0.59 | DD160: 0.58 | DE160: 0.58 | DF160: 0.58 | DG160: 0.58 | DH160: 0.58 | DI160: 0.58 | DJ160: 0.58 | DK160: 0.58 | DL160: 0.58 | DM160: 0.58 | DN160: 0.58 | DO160: 0.58 | DP160: 0.58 | DQ160: 0.57 | DR160: 0.57 | DS160: 0.57 | DT160: 0.57
A161: R22 | B161: -35 | C161: 225 | AH161: 0.68 | AI161: 0.68 | AJ161: 0.67 | AK161: 0.67 | AL161: 0.67 | AM161: 0.67 | AN161: 0.67 | AO161: 0.67 | AP161: 0.67 | AQ161: 0.66 | AR161: 0.66 | AS161: 0.66 | AT161: 0.66 | AU161: 0.66 | AV161: 0.66 | AW161: 0.66 | AX161: 0.65 | AY161: 0.65 | AZ161: 0.65 | BA161: 0.65 | BB161: 0.65 | BC161: 0.65 | BD161: 0.65 | BE161: 0.64 | BF161: 0.64 | BG161: 0.64 | BH161: 0.64 | BI161: 0.64 | BJ161: 0.64 | BK161: 0.64 | BL161: 0.64 | BM161: 0.63 | BN161: 0.63 | BO161: 0.63 | BP161: 0.63 | BQ161: 0.63 | BR161: 0.63 | BS161: 0.63 | BT161: 0.63 | BU161: 0.62 | BV161: 0.62 | BW161: 0.62 | BX161: 0.62 | BY161: 0.62 | BZ161: 0.62 | CA161: 0.62 | CB161: 0.62 | CC161: 0.61 | CD161: 0.61 | CE161: 0.61 | CF161: 0.61 | CG161: 0.61 | CH161: 0.61 | CI161: 0.61 | CJ161: 0.61 | CK161: 0.61 | CL161: 0.6 | CM161: 0.6 | CN161: 0.6 | CO161: 0.6 | CP161: 0.6 | CQ161: 0.6 | CR161: 0.6 | CS161: 0.6 | CT161: 0.6 | CU161: 0.6 | CV161: 0.59 | CW161: 0.59 | CX161: 0.59 | CY161: 0.59 | CZ161: 0.59 | DA161: 0.59 | DB161: 0.59 | DC161: 0.59 | DD161: 0.59 | DE161: 0.59 | DF161: 0.59 | DG161: 0.59 | DH161: 0.58 | DI161: 0.58 | DJ161: 0.58 | DK161: 0.58 | DL161: 0.58 | DM161: 0.58 | DN161: 0.58 | DO161: 0.58 | DP161: 0.58 | DQ161: 0.58 | DR161: 0.58 | DS161: 0.58 | DT161: 0.58
A162: R22 | B162: -34 | C162: 226 | AH162: 0.68 | AI162: 0.68 | AJ162: 0.68 | AK162: 0.68 | AL162: 0.68 | AM162: 0.67 | AN162: 0.67 | AO162: 0.67 | AP162: 0.67 | AQ162: 0.67 | AR162: 0.67 | AS162: 0.67 | AT162: 0.66 | AU162: 0.66 | AV162: 0.66 | AW162: 0.66 | AX162: 0.66 | AY162: 0.66 | AZ162: 0.66 | BA162: 0.65 | BB162: 0.65 | BC162: 0.65 | BD162: 0.65 | BE162: 0.65 | BF162: 0.65 | BG162: 0.65 | BH162: 0.64 | BI162: 0.64 | BJ162: 0.64 | BK162: 0.64 | BL162: 0.64 | BM162: 0.64 | BN162: 0.64 | BO162: 0.63 | BP162: 0.63 | BQ162: 0.63 | BR162: 0.63 | BS162: 0.63 | BT162: 0.63 | BU162: 0.63 | BV162: 0.63 | BW162: 0.62 | BX162: 0.62 | BY162: 0.62 | BZ162: 0.62 | CA162: 0.62 | CB162: 0.62 | CC162: 0.62 | CD162: 0.62 | CE162: 0.62 | CF162: 0.61 | CG162: 0.61 | CH162: 0.61 | CI162: 0.61 | CJ162: 0.61 | CK162: 0.61 | CL162: 0.61 | CM162: 0.61 | CN162: 0.61 | CO162: 0.61 | CP162: 0.6 | CQ162: 0.6 | CR162: 0.6 | CS162: 0.6 | CT162: 0.6 | CU162: 0.6 | CV162: 0.6 | CW162: 0.6 | CX162: 0.6 | CY162: 0.6 | CZ162: 0.59 | DA162: 0.59 | DB162: 0.59 | DC162: 0.59 | DD162: 0.59 | DE162: 0.59 | DF162: 0.59 | DG162: 0.59 | DH162: 0.59 | DI162: 0.59 | DJ162: 0.59 | DK162: 0.59 | DL162: 0.58 | DM162: 0.58 | DN162: 0.58 | DO162: 0.58 | DP162: 0.58 | DQ162: 0.58 | DR162: 0.58 | DS162: 0.58 | DT162: 0.58
A163: R22 | B163: -33 | C163: 227 | AH163: 0.69 | AI163: 0.68 | AJ163: 0.68 | AK163: 0.68 | AL163: 0.68 | AM163: 0.68 | AN163: 0.68 | AO163: 0.68 | AP163: 0.67 | AQ163: 0.67 | AR163: 0.67 | AS163: 0.67 | AT163: 0.67 | AU163: 0.67 | AV163: 0.66 | AW163: 0.66 | AX163: 0.66 | AY163: 0.66 | AZ163: 0.66 | BA163: 0.66 | BB163: 0.66 | BC163: 0.65 | BD163: 0.65 | BE163: 0.65 | BF163: 0.65 | BG163: 0.65 | BH163: 0.65 | BI163: 0.65 | BJ163: 0.65 | BK163: 0.64 | BL163: 0.64 | BM163: 0.64 | BN163: 0.64 | BO163: 0.64 | BP163: 0.64 | BQ163: 0.64 | BR163: 0.63 | BS163: 0.63 | BT163: 0.63 | BU163: 0.63 | BV163: 0.63 | BW163: 0.63 | BX163: 0.63 | BY163: 0.63 | BZ163: 0.62 | CA163: 0.62 | CB163: 0.62 | CC163: 0.62 | CD163: 0.62 | CE163: 0.62 | CF163: 0.62 | CG163: 0.62 | CH163: 0.62 | CI163: 0.61 | CJ163: 0.61 | CK163: 0.61 | CL163: 0.61 | CM163: 0.61 | CN163: 0.61 | CO163: 0.61 | CP163: 0.61 | CQ163: 0.61 | CR163: 0.61 | CS163: 0.6 | CT163: 0.6 | CU163: 0.6 | CV163: 0.6 | CW163: 0.6 | CX163: 0.6 | CY163: 0.6 | CZ163: 0.6 | DA163: 0.6 | DB163: 0.6 | DC163: 0.6 | DD163: 0.59 | DE163: 0.59 | DF163: 0.59 | DG163: 0.59 | DH163: 0.59 | DI163: 0.59 | DJ163: 0.59 | DK163: 0.59 | DL163: 0.59 | DM163: 0.59 | DN163: 0.59 | DO163: 0.59 | DP163: 0.58 | DQ163: 0.58 | DR163: 0.58 | DS163: 0.58 | DT163: 0.58
A164: R22 | B164: -32 | C164: 228 | AH164: 0.69 | AI164: 0.69 | AJ164: 0.69 | AK164: 0.69 | AL164: 0.68 | AM164: 0.68 | AN164: 0.68 | AO164: 0.68 | AP164: 0.68 | AQ164: 0.68 | AR164: 0.67 | AS164: 0.67 | AT164: 0.67 | AU164: 0.67 | AV164: 0.67 | AW164: 0.67 | AX164: 0.67 | AY164: 0.66 | AZ164: 0.66 | BA164: 0.66 | BB164: 0.66 | BC164: 0.66 | BD164: 0.66 | BE164: 0.66 | BF164: 0.65 | BG164: 0.65 | BH164: 0.65 | BI164: 0.65 | BJ164: 0.65 | BK164: 0.65 | BL164: 0.65 | BM164: 0.64 | BN164: 0.64 | BO164: 0.64 | BP164: 0.64 | BQ164: 0.64 | BR164: 0.64 | BS164: 0.64 | BT164: 0.64 | BU164: 0.63 | BV164: 0.63 | BW164: 0.63 | BX164: 0.63 | BY164: 0.63 | BZ164: 0.63 | CA164: 0.63 | CB164: 0.63 | CC164: 0.62 | CD164: 0.62 | CE164: 0.62 | CF164: 0.62 | CG164: 0.62 | CH164: 0.62 | CI164: 0.62 | CJ164: 0.62 | CK164: 0.62 | CL164: 0.61 | CM164: 0.61 | CN164: 0.61 | CO164: 0.61 | CP164: 0.61 | CQ164: 0.61 | CR164: 0.61 | CS164: 0.61 | CT164: 0.61 | CU164: 0.61 | CV164: 0.6 | CW164: 0.6 | CX164: 0.6 | CY164: 0.6 | CZ164: 0.6 | DA164: 0.6 | DB164: 0.6 | DC164: 0.6 | DD164: 0.6 | DE164: 0.6 | DF164: 0.6 | DG164: 0.59 | DH164: 0.59 | DI164: 0.59 | DJ164: 0.59 | DK164: 0.59 | DL164: 0.59 | DM164: 0.59 | DN164: 0.59 | DO164: 0.59 | DP164: 0.59 | DQ164: 0.59 | DR164: 0.59 | DS164: 0.59 | DT164: 0.59
A165: R22 | B165: -31 | C165: 229 | AH165: 0.69 | AI165: 0.69 | AJ165: 0.69 | AK165: 0.69 | AL165: 0.69 | AM165: 0.69 | AN165: 0.69 | AO165: 0.68 | AP165: 0.68 | AQ165: 0.68 | AR165: 0.68 | AS165: 0.68 | AT165: 0.68 | AU165: 0.67 | AV165: 0.67 | AW165: 0.67 | AX165: 0.67 | AY165: 0.67 | AZ165: 0.67 | BA165: 0.67 | BB165: 0.66 | BC165: 0.66 | BD165: 0.66 | BE165: 0.66 | BF165: 0.66 | BG165: 0.66 | BH165: 0.66 | BI165: 0.65 | BJ165: 0.65 | BK165: 0.65 | BL165: 0.65 | BM165: 0.65 | BN165: 0.65 | BO165: 0.65 | BP165: 0.64 | BQ165: 0.64 | BR165: 0.64 | BS165: 0.64 | BT165: 0.64 | BU165: 0.64 | BV165: 0.64 | BW165: 0.64 | BX165: 0.63 | BY165: 0.63 | BZ165: 0.63 | CA165: 0.63 | CB165: 0.63 | CC165: 0.63 | CD165: 0.63 | CE165: 0.63 | CF165: 0.63 | CG165: 0.62 | CH165: 0.62 | CI165: 0.62 | CJ165: 0.62 | CK165: 0.62 | CL165: 0.62 | CM165: 0.62 | CN165: 0.62 | CO165: 0.62 | CP165: 0.61 | CQ165: 0.61 | CR165: 0.61 | CS165: 0.61 | CT165: 0.61 | CU165: 0.61 | CV165: 0.61 | CW165: 0.61 | CX165: 0.61 | CY165: 0.61 | CZ165: 0.6 | DA165: 0.6 | DB165: 0.6 | DC165: 0.6 | DD165: 0.6 | DE165: 0.6 | DF165: 0.6 | DG165: 0.6 | DH165: 0.6 | DI165: 0.6 | DJ165: 0.6 | DK165: 0.59 | DL165: 0.59 | DM165: 0.59 | DN165: 0.59 | DO165: 0.59 | DP165: 0.59 | DQ165: 0.59 | DR165: 0.59 | DS165: 0.59 | DT165: 0.59
A166: R22 | B166: -30 | C166: 230 | AH166: 0.7 | AI166: 0.7 | AJ166: 0.7 | AK166: 0.69 | AL166: 0.69 | AM166: 0.69 | AN166: 0.69 | AO166: 0.69 | AP166: 0.69 | AQ166: 0.68 | AR166: 0.68 | AS166: 0.68 | AT166: 0.68 | AU166: 0.68 | AV166: 0.68 | AW166: 0.68 | AX166: 0.67 | AY166: 0.67 | AZ166: 0.67 | BA166: 0.67 | BB166: 0.67 | BC166: 0.67 | BD166: 0.67 | BE166: 0.66 | BF166: 0.66 | BG166: 0.66 | BH166: 0.66 | BI166: 0.66 | BJ166: 0.66 | BK166: 0.66 | BL166: 0.65 | BM166: 0.65 | BN166: 0.65 | BO166: 0.65 | BP166: 0.65 | BQ166: 0.65 | BR166: 0.65 | BS166: 0.64 | BT166: 0.64 | BU166: 0.64 | BV166: 0.64 | BW166: 0.64 | BX166: 0.64 | BY166: 0.64 | BZ166: 0.64 | CA166: 0.63 | CB166: 0.63 | CC166: 0.63 | CD166: 0.63 | CE166: 0.63 | CF166: 0.63 | CG166: 0.63 | CH166: 0.63 | CI166: 0.63 | CJ166: 0.62 | CK166: 0.62 | CL166: 0.62 | CM166: 0.62 | CN166: 0.62 | CO166: 0.62 | CP166: 0.62 | CQ166: 0.62 | CR166: 0.62 | CS166: 0.61 | CT166: 0.61 | CU166: 0.61 | CV166: 0.61 | CW166: 0.61 | CX166: 0.61 | CY166: 0.61 | CZ166: 0.61 | DA166: 0.61 | DB166: 0.61 | DC166: 0.61 | DD166: 0.6 | DE166: 0.6 | DF166: 0.6 | DG166: 0.6 | DH166: 0.6 | DI166: 0.6 | DJ166: 0.6 | DK166: 0.6 | DL166: 0.6 | DM166: 0.6 | DN166: 0.6 | DO166: 0.6 | DP166: 0.59 | DQ166: 0.59 | DR166: 0.59 | DS166: 0.59 | DT166: 0.59
A167: R22 | B167: -29 | C167: 231 | AH167: 0.7 | AI167: 0.7 | AJ167: 0.7 | AK167: 0.7 | AL167: 0.7 | AM167: 0.7 | AN167: 0.69 | AO167: 0.69 | AP167: 0.69 | AQ167: 0.69 | AR167: 0.69 | AS167: 0.69 | AT167: 0.68 | AU167: 0.68 | AV167: 0.68 | AW167: 0.68 | AX167: 0.68 | AY167: 0.68 | AZ167: 0.68 | BA167: 0.67 | BB167: 0.67 | BC167: 0.67 | BD167: 0.67 | BE167: 0.67 | BF167: 0.67 | BG167: 0.66 | BH167: 0.66 | BI167: 0.66 | BJ167: 0.66 | BK167: 0.66 | BL167: 0.66 | BM167: 0.66 | BN167: 0.66 | BO167: 0.65 | BP167: 0.65 | BQ167: 0.65 | BR167: 0.65 | BS167: 0.65 | BT167: 0.65 | BU167: 0.65 | BV167: 0.64 | BW167: 0.64 | BX167: 0.64 | BY167: 0.64 | BZ167: 0.64 | CA167: 0.64 | CB167: 0.64 | CC167: 0.64 | CD167: 0.63 | CE167: 0.63 | CF167: 0.63 | CG167: 0.63 | CH167: 0.63 | CI167: 0.63 | CJ167: 0.63 | CK167: 0.63 | CL167: 0.63 | CM167: 0.62 | CN167: 0.62 | CO167: 0.62 | CP167: 0.62 | CQ167: 0.62 | CR167: 0.62 | CS167: 0.62 | CT167: 0.62 | CU167: 0.62 | CV167: 0.62 | CW167: 0.61 | CX167: 0.61 | CY167: 0.61 | CZ167: 0.61 | DA167: 0.61 | DB167: 0.61 | DC167: 0.61 | DD167: 0.61 | DE167: 0.61 | DF167: 0.61 | DG167: 0.6 | DH167: 0.6 | DI167: 0.6 | DJ167: 0.6 | DK167: 0.6 | DL167: 0.6 | DM167: 0.6 | DN167: 0.6 | DO167: 0.6 | DP167: 0.6 | DQ167: 0.6 | DR167: 0.6 | DS167: 0.6 | DT167: 0.59
A168: R22 | B168: -28 | C168: 232 | AH168: 0.71 | AI168: 0.71 | AJ168: 0.7 | AK168: 0.7 | AL168: 0.7 | AM168: 0.7 | AN168: 0.7 | AO168: 0.7 | AP168: 0.69 | AQ168: 0.69 | AR168: 0.69 | AS168: 0.69 | AT168: 0.69 | AU168: 0.69 | AV168: 0.69 | AW168: 0.68 | AX168: 0.68 | AY168: 0.68 | AZ168: 0.68 | BA168: 0.68 | BB168: 0.68 | BC168: 0.67 | BD168: 0.67 | BE168: 0.67 | BF168: 0.67 | BG168: 0.67 | BH168: 0.67 | BI168: 0.67 | BJ168: 0.66 | BK168: 0.66 | BL168: 0.66 | BM168: 0.66 | BN168: 0.66 | BO168: 0.66 | BP168: 0.66 | BQ168: 0.65 | BR168: 0.65 | BS168: 0.65 | BT168: 0.65 | BU168: 0.65 | BV168: 0.65 | BW168: 0.65 | BX168: 0.65 | BY168: 0.64 | BZ168: 0.64 | CA168: 0.64 | CB168: 0.64 | CC168: 0.64 | CD168: 0.64 | CE168: 0.64 | CF168: 0.64 | CG168: 0.63 | CH168: 0.63 | CI168: 0.63 | CJ168: 0.63 | CK168: 0.63 | CL168: 0.63 | CM168: 0.63 | CN168: 0.63 | CO168: 0.63 | CP168: 0.62 | CQ168: 0.62 | CR168: 0.62 | CS168: 0.62 | CT168: 0.62 | CU168: 0.62 | CV168: 0.62 | CW168: 0.62 | CX168: 0.62 | CY168: 0.62 | CZ168: 0.61 | DA168: 0.61 | DB168: 0.61 | DC168: 0.61 | DD168: 0.61 | DE168: 0.61 | DF168: 0.61 | DG168: 0.61 | DH168: 0.61 | DI168: 0.61 | DJ168: 0.61 | DK168: 0.6 | DL168: 0.6 | DM168: 0.6 | DN168: 0.6 | DO168: 0.6 | DP168: 0.6 | DQ168: 0.6 | DR168: 0.6 | DS168: 0.6 | DT168: 0.6
A169: R22 | B169: -27 | C169: 233 | AH169: 0.71 | AI169: 0.71 | AJ169: 0.71 | AK169: 0.71 | AL169: 0.71 | AM169: 0.7 | AN169: 0.7 | AO169: 0.7 | AP169: 0.7 | AQ169: 0.7 | AR169: 0.7 | AS169: 0.69 | AT169: 0.69 | AU169: 0.69 | AV169: 0.69 | AW169: 0.69 | AX169: 0.69 | AY169: 0.69 | AZ169: 0.68 | BA169: 0.68 | BB169: 0.68 | BC169: 0.68 | BD169: 0.68 | BE169: 0.68 | BF169: 0.67 | BG169: 0.67 | BH169: 0.67 | BI169: 0.67 | BJ169: 0.67 | BK169: 0.67 | BL169: 0.67 | BM169: 0.66 | BN169: 0.66 | BO169: 0.66 | BP169: 0.66 | BQ169: 0.66 | BR169: 0.66 | BS169: 0.66 | BT169: 0.65 | BU169: 0.65 | BV169: 0.65 | BW169: 0.65 | BX169: 0.65 | BY169: 0.65 | BZ169: 0.65 | CA169: 0.65 | CB169: 0.64 | CC169: 0.64 | CD169: 0.64 | CE169: 0.64 | CF169: 0.64 | CG169: 0.64 | CH169: 0.64 | CI169: 0.64 | CJ169: 0.64 | CK169: 0.63 | CL169: 0.63 | CM169: 0.63 | CN169: 0.63 | CO169: 0.63 | CP169: 0.63 | CQ169: 0.63 | CR169: 0.63 | CS169: 0.63 | CT169: 0.62 | CU169: 0.62 | CV169: 0.62 | CW169: 0.62 | CX169: 0.62 | CY169: 0.62 | CZ169: 0.62 | DA169: 0.62 | DB169: 0.62 | DC169: 0.62 | DD169: 0.61 | DE169: 0.61 | DF169: 0.61 | DG169: 0.61 | DH169: 0.61 | DI169: 0.61 | DJ169: 0.61 | DK169: 0.61 | DL169: 0.61 | DM169: 0.61 | DN169: 0.61 | DO169: 0.61 | DP169: 0.6 | DQ169: 0.6 | DR169: 0.6 | DS169: 0.6 | DT169: 0.6
